Workbook

Sheet Hamburg Knights
D1: Offense | T1: Defense
A2: ID | B2: Spieler | C2: Gegner | D2: PA | E2: AB | F2: R | G2: RBI | H2: H | I2: 2B | J2: 3B | K2: HR | L2: K | M2: BB | N2: HP | O2: SB | P2: CS | Q2: SH | R2: SF | T2: A | U2: PO | V2: E
A3: 1 | B3: Bertonasco | C3: Wesseling | D3: 1 | E3: 1 | L3: 1 | T3: 2 | V3: 1
C4: Haar
C5: Neunkirchen | D5: 2 | E5: 2 | L5: 2
A8: 2 | B8: Strohm | C8: Wesseling | D8: 1 | E8: 1 | L8: 1 | U8: 2 | V8: 2
C9: Haar | D9: 1 | E9: 1 | V9: 1
C10: Neunkirchen | D10: 2 | E10: 2 | F10: 1 | G10: 1
A13: 3 | B13: Rackwitz | C13: Wesseling | D13: 1 | E13: 1
C14: Haar | D14: 2 | E14: 2 | F14: 1 | H14: 1 | I14: 1 | O14: 1 | U14: 3 | V14: 1
C15: Neunkirchen | D15: 3 | E15: 1 | F15: 1 | H15: 1 | I15: 1 | M15: 2 | O15: 1
A18: 4 | B18: Haase | C18: Wesseling | D18: 1 | E18: 1 | L18: 1 | V18: 1
C19: Haar
C20: Neunkirchen
A23: 5 | B23: Brunzel | C23: Wesseling | D23: 1 | E23: 1 | L23: 1 | T23: 1 | U23: 2
C24: Haar | D24: 1 | E24: 1
C25: Neunkirchen | D25: 2 | E25: 1 | F25: 1 | L25: 1 | N25: 1 | O25: 1
A28: 6 | B28: Wittkugel | C28: Wesseling | D28: 1 | E28: 1 | U28: 1
C29: Haar
C30: Neunkirchen | D30: 2 | E30: 2 | F30: 1 | L30: 1 | O30: 1
A33: 7 | B33: Bünnerstede | C33: Wesseling | D33: 1 | E33: 1 | L33: 1 | U33: 2
C34: Haar
C35: Neunkirchen | D35: 2 | E35: 2 | F35: 1
A38: 8 | B38: Feistel | C38: Wesseling | D38: 1 | E38: 1
C39: Haar | D39: 1 | E39: 1
C40: Neunkirchen | D40: 1 | E40: 1 | G40: 1 | H40: 1 | P40: 1
A43: 9 | B43: Tikrani | C43: Wesseling | D43: 1 | E43: 1 | L43: 1
C44: Haar
C45: Neunkirchen
A48: 10 | B48: Herrmann | C48: Wesseling | T48: 1
C49: Haar | D49: 1 | E49: 1
C50: Neunkirchen
A53: 11 | B53: Flügge | C53: Wesseling | U53: 1 | V53: 1
C54: Haar | D54: 1 | E54: 1 | L54: 1 | U54: 1 | V54: 1
C55: Neunkirchen
A58: 12 | B58: Schade | C58: Wesseling
C59: Haar
C60: Neunkirchen | D60: 1 | E60: 1 | H60: 1
A63: 13 | B63: Heiland | C63: Wesseling | D63: 1 | E63: 1 | G63: 2 | H63: 1 | J63: 1 | V63: 1
C64: Haar
C65: Neunkirchen | D65: 3 | E65: 2 | F65: 1 | N65: 1
A68: 14 | B68: Siering | C68: Wesseling | V68: 1
C69: Haar | D69: 2 | E69: 1 | F69: 1 | H69: 1 | M69: 1 | O69: 1 | T69: 2 | U69: 4
C70: Neunkirchen | D70: 4 | E70: 3 | F70: 1 | H70: 1 | L70: 1 | M70: 1 | P70: 1
A73: 15 | B73: Rathjen | C73: Wesseling
C74: Haar | D74: 2 | E74: 1 | F74: 1 | M74: 1 | T74: 1 | U74: 2 | V74: 2
C75: Neunkirchen | D75: 2 | E75: 1 | F75: 1 | M75: 1 | O75: 1
A78: 16 | B78: Ernst | C78: Wesseling
C79: Haar
C80: Neunkirchen | D80: 4 | E80: 3 | F80: 2 | H80: 2 | M80: 1
A83: 17 | B83: Flohr | C83: Wesseling
C84: Haar
C85: Neunkirchen

Sheet Knights 2
D1: Offense | T1: Defense
A2: ID | B2: Spieler | C2: Gegner | D2: PA | E2: AB | F2: R | G2: RBI | H2: H | I2: 2B | J2: 3B | K2: HR | L2: K | M2: BB | N2: HP | O2: SB | P2: CS | Q2: SH | R2: SF | T2: A | U2: PO | V2: E
A3: 18 | B3: Lühr | C3: Wesseling
C4: Haar | D4: 2 | E4: 2 | L4: 1
C5: Neunkirchen | D5: 2 | E5: 2 | F5: 1 | H5: 1
A8: 19 | B8: Ottenberg | C8: Wesseling
C9: Haar | D9: 2 | E9: 2 | F9: 1 | U9: 1
C10: Neunkirchen
A13: 20 | B13: Piotrowski | C13: Wesseling
C14: Haar | D14: 2 | E14: 2 | G14: 1 | H14: 1 | T14: 1
C15: Neunkirchen | D15: 1 | E15: 1
A18: 600
A23: 205
A28: 206
A33: 207
A38: 208
A43: 209
A48: 210
A53: 211
A58: 212
A63: 213
A68: 214
A73: 215
A78: 216
A83: 217

Sheet Wesseling Vermins
D1: Offense | T1: Defense
A2: ID | B2: Spieler | C2: Gegner | D2: PA | E2: AB | F2: R | G2: RBI | H2: H | I2: 2B | J2: 3B | K2: HR | L2: K | M2: BB | N2: HP | O2: SB | P2: CS | Q2: SH | R2: SF | T2: A | U2: PO | V2: E
A3: 21 | B3: Dunford | C3: Hamburg | D3: 4 | E3: 1 | F3: 2 | G3: 1 | M3: 3 | O3: 1 | U3: 5
C4: Haar | D4: 4 | E4: 2 | F4: 3 | G4: 2 | H4: 1 | I4: 1 | M4: 2 | U4: 6
C5: Freising | D5: 2 | E5: 2 | T5: 1 | U5: 8
C6: Haar | D6: 3 | E6: 2 | F6: 1 | L6: 1 | M6: 1 | O6: 1 | T6: 1 | U6: 11
A8: 22 | B8: Schlitzer | C8: Hamburg | D8: 3 | E8: 2 | F8: 2 | G8: 1 | M8: 1 | O8: 1
C9: Haar | D9: 4 | E9: 3 | F9: 1 | G9: 2 | H9: 1 | O9: 1 | Q9: 1 | T9: 2 | V9: 2
C10: Freising | D10: 2 | E10: 2 | T10: 1 | V10: 3
C11: Haar | D11: 3 | E11: 3 | T11: 1 | U11: 1 | V11: 1
A13: 23 | B13: Seitz | C13: Hamburg | D13: 2 | E13: 1 | F13: 2 | G13: 1 | M13: 1
C14: Haar | D14: 4 | E14: 2 | G14: 1 | Q14: 2
C15: Freising | D15: 2 | E15: 2 | L15: 1
C16: Haar | D16: 3 | E16: 3 | G16: 1
A18: 24 | B18: Dickmeiss | C18: Hamburg | D18: 3 | F18: 2 | M18: 3 | T18: 1
C19: Haar | D19: 4 | E19: 3 | F19: 4 | G19: 1 | H19: 2 | I19: 1 | M19: 1 | O19: 2
C20: Freising | D20: 2 | E20: 2 | H20: 1 | T20: 2
C21: Haar | D21: 3 | E21: 3 | F21: 1 | H21: 1 | I21: 1 | O21: 3
A23: 25 | B23: Thies | C23: Hamburg | D23: 3 | F23: 2 | M23: 3
C24: Haar | D24: 4 | E24: 3 | F24: 2 | G24: 1 | H24: 2 | I24: 1 | M24: 1 | T24: 1 | U24: 2
C25: Freising | D25: 2 | E25: 2 | L25: 1
C26: Haar | D26: 3 | E26: 3 | L26: 3
A28: 26 | B28: Reisenauer | C28: Hamburg | D28: 3 | E28: 3 | F28: 1 | G28: 2
C29: Haar | D29: 4 | E29: 1 | G29: 1 | H29: 1 | M29: 1 | Q29: 2 | T29: 4 | U29: 1
C30: Freising | D30: 2 | E30: 2 | L30: 1 | T30: 1 | U30: 1
C31: Haar | D31: 3 | E31: 3 | G31: 1 | L31: 1 | T31: 4 | U31: 1
A33: 27 | B33: Ziegler | C33: Hamburg | D33: 2 | E33: 1 | F33: 1 | L33: 1 | M33: 1
C34: Haar | D34: 4 | E34: 3 | L34: 1 | M34: 1
C35: Freising | D35: 2 | E35: 2 | L35: 2
C36: Haar | D36: 3 | E36: 3 | L36: 1
A38: 28 | B38: Wolff | C38: Hamburg | D38: 3 | E38: 1 | F38: 1 | G38: 1 | M38: 2
C39: Haar | D39: 3 | E39: 1 | F39: 1 | M39: 2 | U39: 1
C40: Freising
C41: Haar | D41: 2 | E41: 2 | L41: 1 | U41: 1
A43: 29 | B43: Kowalewski | C43: Hamburg | D43: 3 | E43: 3 | F43: 1 | G43: 1 | H43: 1 | U43: 3
C44: Haar | D44: 3 | E44: 2 | F44: 2 | H44: 1 | M44: 1 | U44: 5
C45: Freising | D45: 1 | E45: 1 | L45: 1 | U45: 5 | V45: 1
C46: Haar | D46: 2 | E46: 2 | L46: 1 | U46: 7
A48: 30 | B48: Seiden | C48: Hamburg | D48: 1 | F48: 1 | N48: 1
C49: Haar
C50: Freising | U50: 1
C51: Haar
A53: 31 | B53: Erden | C53: Hamburg | D53: 1 | M53: 1
C54: Haar | D54: 1 | E54: 1
C55: Freising | D55: 1 | E55: 1 | L55: 1
C56: Haar
A63: 313
A68: 314
A73: 315
A78: 316
A83: 317

Sheet Freising Grizzlies
D1: Offense | T1: Defense
A2: ID | B2: Spieler | C2: Gegner | D2: PA | E2: AB | F2: R | G2: RBI | H2: H | I2: 2B | J2: 3B | K2: HR | L2: K | M2: BB | N2: HP | O2: SB | P2: CS | Q2: SH | R2: SF | T2: A | U2: PO | V2: E
A3: 32 | B3: Biswas, T. | C3: Karlsruhe | D3: 4 | E3: 1 | F3: 1 | G3: 1 | M3: 3 | T3: 2 | V3: 2
C4: Neunkirchen | D4: 3 | E4: 3 | F4: 1 | G4: 2 | H4: 1 | I4: 1 | L4: 1 | O4: 1 | U4: 4
C5: Wesseling | D5: 3 | E5: 3 | F5: 1 | H5: 1 | I5: 1 | L5: 1
C6: Haar | D6: 3 | E6: 2 | F6: 1 | M6: 1
A8: 33 | B8: Eschke | C8: Karlsruhe | D8: 1 | M8: 1
C9: Neunkirchen | D9: 1 | E9: 1 | L9: 1
C10: Wesseling | D10: 1 | E10: 1 | L10: 1
C11: Haar
A13: 34 | B13: Mann | C13: Karlsruhe
C14: Neunkirchen | D14: 1 | E14: 1 | G14: 1
C15: Wesseling
C16: Haar
A18: 35 | B18: Sandner | C18: Karlsruhe | D18: 4 | E18: 3 | F18: 3 | H18: 2 | M18: 1 | T18: 2 | U18: 1 | V18: 1
C19: Neunkirchen | D19: 4 | E19: 3 | F19: 4 | G19: 2 | H19: 2 | M19: 1 | U19: 2
C20: Wesseling | D20: 4 | E20: 4 | F20: 2 | H20: 3 | L20: 1 | O20: 1 | T20: 2 | U20: 1
C21: Haar | D21: 4 | E21: 3 | F21: 3 | G21: 2 | H21: 1 | I21: 1 | M21: 1 | O21: 1 | T21: 3
A23: 36 | B23: Salomon | C23: Karlsruhe | D23: 4 | E23: 3 | F23: 2 | G23: 1 | H23: 1 | M23: 1 | T23: 1
C24: Neunkirchen | D24: 4 | E24: 3 | F24: 3 | G24: 2 | H24: 1 | M24: 1 | T24: 1 | U24: 1
C25: Wesseling | D25: 4 | E25: 3 | G25: 1 | M25: 1
C26: Haar | D26: 4 | E26: 1 | F26: 1 | L26: 1 | M26: 1 | O26: 1 | Q26: 1
A28: 37 | B28: Steffen | C28: Karlsruhe | D28: 4 | E28: 2 | F28: 3 | G28: 2 | H28: 1 | I28: 1 | M28: 2 | T28: 1 | U28: 1
C29: Neunkirchen | D29: 4 | E29: 2 | F29: 2 | H29: 1 | M29: 1 | N29: 1 | T29: 1 | U29: 1
C30: Wesseling | D30: 4 | E30: 4 | F30: 1 | G30: 1 | H30: 1 | T30: 2
C31: Haar | D31: 4 | E31: 2 | F31: 2 | G31: 2 | H31: 1 | I31: 1 | M31: 1 | O31: 1 | Q31: 1 | T31: 4 | U31: 2
A33: 38 | B33: Biswas, L. | C33: Karlsruhe | D33: 4 | E33: 3 | F33: 2 | G33: 3 | H33: 2 | I33: 1 | R33: 1 | T33: 1 | U33: 1 | V33: 1
C34: Neunkirchen | D34: 4 | E34: 4 | F34: 2 | G34: 4 | H34: 2 | I34: 1 | J34: 1 | L34: 1 | U34: 1
C35: Wesseling | D35: 3 | E35: 3 | F35: 1 | G35: 2 | H35: 2 | J35: 1 | T35: 1
C36: Haar | D36: 3 | E36: 2 | G36: 2 | H36: 1 | I36: 1 | R36: 1 | T36: 2
A38: 39 | B38: Kerscher | C38: Karlsruhe | D38: 4 | E38: 1 | F38: 1 | G38: 2 | M38: 2 | R38: 1 | U38: 5
C39: Neunkirchen
C40: Wesseling | D40: 3 | E40: 2 | F40: 2 | G40: 1 | H40: 1 | I40: 1 | L40: 1 | M40: 1 | T40: 1 | U40: 6
C41: haar | D41: 3 | E41: 3 | H41: 1 | P41: 1 | U41: 5
A43: 40 | B43: Brosch | C43: Karlsruhe | D43: 3 | E43: 3 | F43: 1 | H43: 2 | U43: 6 | V43: 1
C44: Neunkirchen | D44: 4 | E44: 3 | F44: 1 | H44: 1 | M44: 1 | P44: 1 | T44: 2 | U44: 2
C45: Wesseling | D45: 3 | E45: 3 | L45: 2 | U45: 6
C46: Haar | D46: 3 | E46: 2 | F46: 1 | H46: 1 | O46: 1 | Q46: 1 | U46: 8
A48: 41 | B48: Thürmer | C48: Karlsruhe | D48: 3 | E48: 3 | F48: 1 | G48: 1 | H48: 1 | T48: 1 | U48: 1
C49: Neunkirchen | D49: 4 | E49: 4 | F49: 3 | H49: 2 | J49: 1 | T49: 3 | U49: 1
C50: Wesseling | D50: 3 | E50: 3 | F50: 2 | G50: 2 | H50: 2 | L50: 1 | T50: 2 | U50: 2
C51: Haar | D51: 3 | E51: 3 | L51: 1 | T51: 2 | U51: 1
A53: 42 | B53: Zimmernmann | C53: Karlsruhe | D53: 3 | E53: 1 | F53: 2 | M53: 2
C54: Neunkirchen | D54: 2 | E54: 1 | F54: 2 | G54: 1 | H54: 1 | J54: 1 | N54: 1
C55: Wesseling | D55: 3 | E55: 1 | F55: 1 | L55: 1 | M55: 2
C56: Haar | D56: 3 | E56: 2 | F56: 1 | H56: 1 | M56: 1 | O56: 1
A58: 412 | B58: Schnirch | C58: Haar | U58: 2 | V58: 1
A63: 413
A68: 414
A73: 415
A78: 416
A83: 417

Sheet Haar Disciples
D1: Offense | T1: Defense
A2: ID | B2: Spieler | C2: Gegner | D2: PA | E2: AB | F2: R | G2: RBI | H2: H | I2: 2B | J2: 3B | K2: HR | L2: K | M2: BB | N2: HP | O2: SB | P2: CS | Q2: SH | R2: SF | T2: A | U2: PO | V2: E
A3: 43 | B3: Stepniak | C3: Hamburg | D3: 4 | E3: 4 | F3: 4 | H3: 2 | J3: 2 | O3: 1 | T3: 2
C4: Wesseling | D4: 3 | E4: 3 | F4: 1 | H4: 1 | L4: 1 | T4: 2
C5: Karlsruhe | D5: 4 | E5: 3 | F5: 1 | G5: 1 | H5: 1 | M5: 1 | T5: 1 | U5: 4 | V5: 1
C6: Wesseling | D6: 4 | E6: 4 | F6: 2 | H6: 2 | O6: 1 | T6: 6 | U6: 1
C7: Freising | D7: 3 | E7: 1 | M7: 1 | N7: 1 | O7: 1 | T7: 2 | U7: 2
A8: 44 | B8: Gruber | C8: Hamburg | D8: 3 | E8: 2 | F8: 1 | G8: 3 | H8: 2 | M8: 1 | O8: 1 | U8: 7
C9: Wesseling | D9: 3 | E9: 3 | F9: 1 | H9: 1 | I9: 1 | U9: 12 | V9: 2
C10: Karlsruhe | D10: 4 | E10: 2 | F10: 1 | M10: 2 | T10: 1 | U10: 6 | V10: 1
C11: Wesseling | D11: 4 | E11: 3 | F11: 1 | G11: 3 | H11: 3 | K11: 2 | M11: 1 | T11: 6 | U11: 1
C12: Freising | D12: 3 | E12: 2 | G12: 1 | H12: 1 | M12: 1 | O12: 1 | T12: 2 | U12: 3
A13: 45 | B13: Laack | C13: Hamburg | D13: 4 | E13: 3 | F13: 2 | H13: 1 | L13: 1 | M13: 1
C14: Wesseling | D14: 2 | E14: 2
C15: Karlsruhe | D15: 4 | E15: 4 | F15: 1 | G15: 1 | H15: 2 | J15: 1 | T15: 1 | U15: 1
C16: Wesseling | D16: 4 | E16: 4 | F16: 1 | G16: 1 | H16: 1 | L16: 2
C17: Freising | D17: 3 | E17: 3 | L17: 1 | U17: 2 | V17: 1
A18: 46 | B18: Reinisch, Kat | C18: Hamburg | D18: 3 | E18: 1 | F18: 1 | M18: 2 | U18: 3
C19: Wesseling | D19: 2 | E19: 2 | G19: 2 | H19: 1 | I19: 1 | T19: 5 | U19: 2 | V19: 1
C20: Karlsruhe | D20: 4 | E20: 2 | F20: 1 | L20: 1 | M20: 2 | T20: 2 | U20: 2
C21: Wesseling | D21: 4 | E21: 4 | G21: 1 | H21: 2 | I21: 1 | L21: 2 | T21: 1 | U21: 7
C22: Freising
A23: 47 | B23: Mohr | C23: Hamburg | D23: 3 | E23: 1 | F23: 2 | G23: 1 | M23: 2
C24: Wesseling | D24: 2 | E24: 2 | L24: 2 | T24: 1
C25: Karlsruhe | D25: 3 | E25: 3 | F25: 1 | H25: 1 | L25: 1 | U25: 2
C26: Wesseling | D26: 2 | E26: 1 | M26: 1 | O26: 1
C27: Freising | D27: 2 | F27: 1 | M27: 2 | T27: 2 | U27: 4 | V27: 1
A28: 48 | B28: Wiele | C28: Hamburg | D28: 3 | E28: 2 | F28: 1 | M28: 1 | O28: 1
C29: Wesseling | D29: 2 | E29: 2 | L29: 1
C30: Karlsruhe | D30: 4 | E30: 3 | G30: 1 | Q30: 1
C31: Wesseling | D31: 3 | E31: 3 | F31: 1 | H31: 1 | L31: 2
C32: Freising | D32: 3 | E32: 3 | H32: 1 | L32: 1
A33: 49 | B33: Marric | C33: Hamburg | D33: 3 | E33: 2 | F33: 3 | G33: 1 | H33: 1
C34: Wesseling | T34: 1
C35: Karlsruhe | D35: 3 | E35: 3 | F35: 1 | H35: 1
C36: Wesseling | D36: 4 | E36: 4 | F36: 1 | H36: 2 | L36: 1
C37: Freising | D37: 3 | E37: 2 | H37: 1 | M37: 1 | U37: 1
A38: 50 | B38: Reinisch, Sophie | C38: Hamburg | D38: 4 | E38: 2 | F38: 2 | G38: 2 | H38: 1 | M38: 2 | O38: 2 | T38: 2
C39: Wesseling | D39: 2 | E39: 2 | V39: 1
C40: Karlsruhe | D40: 3 | E40: 3 | F40: 1 | H40: 1 | T40: 1 | U40: 1 | V40: 1
C41: Wesseling | D41: 4 | E41: 3 | G41: 1 | L41: 1 | M41: 1 | T41: 4 | U41: 2
C42: Freising | D42: 4 | E42: 3 | G42: 1 | H42: 1 | N42: 1
A43: 51 | B43: Ruziourouh | C43: Hamburg | D43: 4 | E43: 3 | F43: 2 | G43: 2 | H43: 1 | M43: 1
C44: Wesseling
C45: Karlsruhe | D45: 4 | E45: 3 | F45: 2 | G45: 2 | H45: 3 | I45: 1 | M45: 1 | T45: 2
C46: Wesseling | D46: 4 | E46: 4 | H46: 1
C47: Freising | D47: 4 | E47: 4 | F47: 1
A48: 52 | B48: Huber | C48: Hamburg | D48: 1 | F48: 2 | M48: 1 | T48: 1 | U48: 2
C49: Wesseling
C50: Karlsruhe | T50: 3 | U50: 1
C51: Wesseling | T51: 2 | U51: 2 | V51: 2
C52: Freising
A53: 53 | B53: Gomilschak | C53: Hamburg | D53: 1 | E53: 1
C54: Wesseling | D54: 1 | E54: 1 | L54: 1 | U54: 1 | V54: 1
C55: Karlsruhe
C56: Wesseling
C57: Freising
A58: 54 | B58: Knallhuber | C58: Hamburg | D58: 1 | N58: 1
C59: Wesseling
C60: Karlsruhe | D60: 1 | E60: 1
C61: Wesseling | D61: 1 | E61: 1 | L61: 1
C62: Freising | D62: 1 | E62: 1 | L62: 1
A63: 55 | B63: Harvey | C63: Hamburg | D63: 1 | F63: 1 | G63: 1 | M63: 1
C64: Wesseling
C65: Karlsruhe
C66: Wesseling | D66: 1 | E66: 1 | L66: 1
C67: Freising
A68: 56 | B68: Kuhles | C68: Hamburg | D68: 1 | E68: 1 | L68: 1 | M68: 1
C69: Wesseling
C70: Karlsruhe
C71: Wesseling
C72: Freising
A73: 515 | B73: Pozgaj | C73: Karlsruhe | D73: 1 | E73: 1 | T73: 1 | U73: 4
C74: Wesseling
C75: Freising
A78: 516 | B78: Kuprian | C78: Wesseling | D78: 1 | E78: 1 | L78: 1
C79: Freising
A83: 517

Sheet Karlsruhe Cougars
D1: Offense | T1: Defense
A2: ID | B2: Spieler | C2: Gegner | D2: PA | E2: AB | F2: R | G2: RBI | H2: H | I2: 2B | J2: 3B | K2: HR | L2: K | M2: BB | N2: HP | O2: SB | P2: CS | Q2: SH | R2: SF | T2: A | U2: PO | V2: E
A3: 57 | B3: Weil | C3: Freising | D3: 3 | E3: 3 | F3: 3 | H3: 3 | I3: 1 | O3: 1 | T3: 1 | U3: 2 | V3: 1
C4: Neunkirchen | D4: 4 | E4: 3 | F4: 4 | G4: 1 | H4: 3 | I4: 1 | M4: 1 | T4: 1 | U4: 1
C5: Haar | D5: 5 | E5: 5 | F5: 3 | G5: 1 | H5: 3 | I5: 1 | L5: 1 | O5: 1 | T5: 2 | U5: 2
A8: 58 | B8: Seso | C8: Freising | D8: 3 | E8: 2 | F8: 1 | H8: 1 | M8: 1 | O8: 1 | V8: 2
C9: Neunkirchen | D9: 4 | E9: 4 | F9: 1 | G9: 1 | H9: 1 | L9: 2 | T9: 2 | U9: 6
C10: Haar | D10: 5 | E10: 4 | F10: 1 | H10: 1 | L10: 1 | N10: 1 | U10: 3 | V10: 1
A13: 59 | B13: Reibenspies | C13: Freising | D13: 3 | E13: 2 | F13: 1 | G13: 1 | M13: 1 | U13: 2
C14: Neunkirchen | D14: 4 | E14: 3 | F14: 2 | G14: 3 | H14: 2 | I14: 2 | M14: 1 | O14: 2 | T14: 3
C15: Haar | D15: 4 | E15: 4 | G15: 2 | H15: 2 | I15: 1 | L15: 1 | U15: 1 | V15: 2
A18: 60 | B18: Apel | C18: Freising | D18: 3 | E18: 2 | F18: 1 | G18: 1 | H18: 1 | N18: 1 | U18: 3 | V18: 3
C19: Neunkirchen | D19: 4 | E19: 1 | F19: 2 | M19: 3 | O19: 2 | U19: 1 | V19: 1
C20: Haar | D20: 4 | E20: 2 | M20: 2 | O20: 1 | T20: 1 | U20: 5 | V20: 1
A23: 61 | B23: Sturm | C23: Freising | D23: 3 | E23: 3 | L23: 1 | T23: 1
C24: Neunkirchen | D24: 3 | E24: 2 | F24: 2 | G24: 1 | M24: 1 | U24: 1 | V24: 1
C25: Haar | D25: 4 | E25: 2 | M25: 2 | T25: 2 | U25: 3
A28: 62 | B28: Malmbeck | C28: Freising | D28: 3 | E28: 3 | L28: 3 | T28: 1
C29: Neunkirchen | D29: 3 | E29: 2 | F29: 1 | M29: 1 | T29: 1
C30: Haar | D30: 4 | E30: 2 | F30: 1 | G30: 1 | M30: 1 | N30: 1
A33: 63 | B33: Kortenkamp | C33: Freising | D33: 3 | E33: 3 | F33: 1 | H33: 1 | T33: 1 | U33: 3
C34: Neunkirchen | D34: 3 | E34: 3 | G34: 3 | H34: 2 | L34: 1 | O34: 1
C35: Haar | D35: 4 | E35: 2 | G35: 1 | H35: 1 | N35: 1 | O35: 1 | R35: 1 | T35: 1 | U35: 1 | V35: 1
A38: 64 | B38: Müller | C38: Freising | D38: 3 | E38: 3 | H38: 1 | U38: 1
C39: Neunkirchen | D39: 4 | E39: 4 | F39: 3 | H39: 2 | T39: 1 | U39: 1
C40: Haar | D40: 4 | E40: 4 | F40: 1 | H40: 1 | L40: 1 | T40: 1 | U40: 2 | V40: 1
A43: 65 | B43: Rauprich | C43: Freising | D43: 3 | E43: 2 | L43: 1 | M43: 1 | U43: 1
C44: Neunkirchen | D44: 3 | E44: 2 | F44: 2 | G44: 1 | H44: 1 | M44: 1 | U44: 2 | V44: 1
C45: Haar | D45: 4 | E45: 1 | F45: 1 | L45: 1 | M45: 3 | T45: 2 | U45: 1
A48: 66
A53: 611
A58: 612
A63: 613
A68: 614
A73: 615
A78: 616
A83: 617

Sheet Neunkirchen Nightmares
D1: Offense | T1: Defense
A2: ID | B2: Spieler | C2: Gegner | D2: PA | E2: AB | F2: R | G2: RBI | H2: H | I2: 2B | J2: 3B | K2: HR | L2: K | M2: BB | N2: HP | O2: SB | P2: CS | Q2: SH | R2: SF | T2: A | U2: PO | V2: E
A3: 67 | B3: Lamersdorf | C3: Karlsruhe | D3: 3 | E3: 3 | F3: 2 | H3: 1 | L3: 1 | U3: 5 | V3: 1
C4: Freising | D4: 4 | E4: 2 | F4: 1 | M4: 2 | T4: 2 | U4: 2 | V4: 2
C5: Hamburg | D5: 4 | E5: 2 | F5: 1 | G5: 1 | M5: 2 | O5: 1
A8: 68 | B8: Fischer | C8: Karlsruhe | D8: 3 | E8: 2 | F8: 1 | L8: 1 | M8: 1 | V8: 1
C9: Freising | D9: 3 | E9: 2 | F9: 1 | M9: 1 | T9: 2 | U9: 1
C10: Hamburg | D10: 4 | E10: 2 | F10: 1 | G10: 2 | M10: 2 | O10: 2
A13: 69 | B13: Weyer | C13: Karlsruhe | D13: 2 | E13: 0 | F13: 2 | M13: 2 | V13: 3
C14: Freising | D14: 3 | E14: 3 | T14: 2 | U14: 1
C15: Hamburg | D15: 4 | E15: 3 | F15: 2 | H15: 1 | M15: 1 | O15: 1
A18: 70 | B18: Parpart | C18: Karlsruhe | D18: 2 | E18: 1 | G18: 3 | H18: 1 | J18: 1 | M18: 1 | O18: 2 | T18: 2 | U18: 2 | V18: 1
C19: Freising | D19: 2 | E19: 2 | F19: 1 | G19: 1 | H19: 1 | I19: 1 | T19: 1 | U19: 4 | V19: 2
C20: Hamburg | D20: 3 | E20: 0 | F20: 3 | M20: 3 | O20: 2
A23: 71 | B23: Cadsky | C23: Karlsruhe | D23: 2 | E23: 1 | G23: 1 | R23: 1 | T23: 1 | U23: 2
C24: Freising | D24: 2 | E24: 1 | F24: 1 | G24: 2 | H24: 1 | M24: 1 | O24: 1 | U24: 3
C25: Hamburg | D25: 3 | E25: 1 | F25: 2 | G25: 1 | H25: 1 | M25: 1 | R25: 1
A28: 72 | B28: Singer | C28: Karlsruhe | D28: 2 | E28: 1 | H28: 1 | M28: 1 | O28: 3 | V28: 2
C29: Freising | D29: 2 | E29: 1 | L29: 1 | M29: 1
C30: Hamburg | D30: 3 | E30: 3
A33: 73 | B33: Hupperich | C33: Karlsruhe | D33: 2 | E33: 1 | L33: 1 | M33: 1
C34: Freising | D34: 2 | M34: 2 | T34: 1
C35: Hamburg | D35: 3 | E35: 1 | F35: 2 | L35: 1 | M35: 2 | O35: 2
A38: 74 | B38: Kaufner | C38: Karlsruhe | D38: 2 | E38: 2 | L38: 2
C39: Freising | D39: 2 | M39: 2
C40: Hamburg | D40: 3 | E40: 0 | F40: 2 | G40: 1 | M40: 2 | Q40: 1
A43: 75 | B43: Pietrzyt | C43: Karlsruhe | D43: 2 | E43: 2 | T43: 1 | U43: 1
C44: Freising | D44: 3 | E44: 1 | L44: 1 | M44: 2 | V44: 2
C45: Hamburg | D45: 3 | E45: 3 | F45: 1 | G45: 1 | H45: 2
A48: 710
A53: 711
A58: 712
A63: 713
A68: 714
A73: 715
A78: 716
A83: 717

Sheet Team 8
D1: Offense | T1: Defense
A2: ID | B2: Spieler | C2: Gegner | D2: PA | E2: AB | F2: R | G2: RBI | H2: H | I2: 2B | J2: 3B | K2: HR | L2: K | M2: BB | N2: HP | O2: SB | P2: CS | Q2: SH | R2: SF | T2: A | U2: PO | V2: E
A3: 801
A8: 802
A13: 803
A18: 804
A23: 805
A28: 806
A33: 807
A38: 808
A43: 809
A48: 810
A53: 811
A58: 812
A63: 813
A68: 814
A73: 815
A78: 816
A83: 817

Sheet Offense Leaders
C1: Offense | S1: Defense | W1: Percentage
A2: ID | B2: Spieler | C2: PA | D2: AB | E2: R | F2: RBI | G2: H | H2: 2B | I2: 3B | J2: HR | K2: K | L2: BB | M2: HP | N2: SB | O2: CS | P2: SH | Q2: SF | S2: A | T2: PO | U2: E | W2: AVG | X2: SLG | Y2: AVG+SLG | Z2: OBP | AA2: OPS | AC2: FLD
A3: ='Neunkirchen Nightmares'!A18 -> 70 | B3: =IF('Neunkirchen Nightmares'!B18="","",'Neunkirchen Nightmares'!B18) -> Parpart | C3: =SUM('Neunkirchen Nightmares'!D18:D22) -> 7 | D3: =SUM('Neunkirchen Nightmares'!E18:E22) -> 3 | E3: =SUM('Neunkirchen Nightmares'!F18:F22) -> 4 | F3: =SUM('Neunkirchen Nightmares'!G18:G22) -> 4 | G3: =SUM('Neunkirchen Nightmares'!H18:H22) -> 2 | H3: =SUM('Neunkirchen Nightmares'!I18:I22) -> 1 | I3: =SUM('Neunkirchen Nightmares'!J18:J22) -> 1 | J3: =SUM('Neunkirchen Nightmares'!K18:K22) -> 0 | K3: =SUM('Neunkirchen Nightmares'!L18:L22) -> 0 | L3: =SUM('Neunkirchen Nightmares'!M18:M22) -> 4 | M3: =SUM('Neunkirchen Nightmares'!N18:N22) -> 0 | N3: =SUM('Neunkirchen Nightmares'!O18:O22) -> 4 | O3: =SUM('Neunkirchen Nightmares'!P18:P22) -> 0 | P3: =SUM('Neunkirchen Nightmares'!Q18:Q22) -> 0 | Q3: =SUM('Neunkirchen Nightmares'!R18:R22) -> 0 | S3: =SUM('Neunkirchen Nightmares'!T18:T22) -> 3 | T3: =SUM('Neunkirchen Nightmares'!U18:U22) -> 6 | U3: =SUM('Neunkirchen Nightmares'!V18:V22) -> 3 | W3: =IF(ISERROR(G3/D3),0,G3/D3) -> 0.6666666667 | X3: =IF(ISERROR((4*J3+3*I3+2*H3+G3-SUM(H3:J3))/D3),0,(4*J3+3*I3+2*H3+G3-SUM(H3:J3))/D3) -> 1.666666667 | Y3: =W3+X3 -> 2.333333333 | Z3: =IF(ISERROR((G3+L3+M3)/(D3+L3+M3+Q3)),0,(G3+L3+M3)/(D3+L3+M3+Q3)) -> 0.8571428571 | AA3: =Z3+X3 -> 2.523809524 | AC3: =IF(ISERROR((S3+T3)/(U3+S3+T3)),0,(S3+T3)/(U3+S3+T3)) -> 0.75
A4: ='Haar Disciples'!A8 -> 44 | B4: =IF('Haar Disciples'!B8="","",'Haar Disciples'!B8) -> Gruber | C4: =SUM('Haar Disciples'!D8:D12) -> 17 | D4: =SUM('Haar Disciples'!E8:E12) -> 12 | E4: =SUM('Haar Disciples'!F8:F12) -> 4 | F4: =SUM('Haar Disciples'!G8:G12) -> 7 | G4: =SUM('Haar Disciples'!H8:H12) -> 7 | H4: =SUM('Haar Disciples'!I8:I12) -> 1 | I4: =SUM('Haar Disciples'!J8:J12) -> 0 | J4: =SUM('Haar Disciples'!K8:K12) -> 2 | K4: =SUM('Haar Disciples'!L8:L12) -> 0 | L4: =SUM('Haar Disciples'!M8:M12) -> 5 | M4: =SUM('Haar Disciples'!N8:N12) -> 0 | N4: =SUM('Haar Disciples'!O8:O12) -> 2 | O4: =SUM('Haar Disciples'!P8:P12) -> 0 | P4: =SUM('Haar Disciples'!Q8:Q12) -> 0 | Q4: =SUM('Haar Disciples'!R8:R12) -> 0 | S4: =SUM('Haar Disciples'!T8:T12) -> 9 | T4: =SUM('Haar Disciples'!U8:U12) -> 29 | U4: =SUM('Haar Disciples'!V8:V12) -> 3 | W4: =IF(ISERROR(G4/D4),0,G4/D4) -> 0.5833333333 | X4: =IF(ISERROR((4*J4+3*I4+2*H4+G4-SUM(H4:J4))/D4),0,(4*J4+3*I4+2*H4+G4-SUM(H4:J4))/D4) -> 1.166666667 | Y4: =W4+X4 -> 1.75 | Z4: =IF(ISERROR((G4+L4+M4)/(D4+L4+M4+Q4)),0,(G4+L4+M4)/(D4+L4+M4+Q4)) -> 0.7058823529 | AA4: =Z4+X4 -> 1.87254902 | AC4: =IF(ISERROR((S4+T4)/(U4+S4+T4)),0,(S4+T4)/(U4+S4+T4)) -> 0.9268292683
A5: ='Hamburg Knights'!A58 -> 12 | B5: =IF('Hamburg Knights'!B58="","",'Hamburg Knights'!B58) -> Schade | C5: =SUM('Hamburg Knights'!D58:D62) -> 1 | D5: =SUM('Hamburg Knights'!E58:E62) -> 1 | E5: =SUM('Hamburg Knights'!F58:F62) -> 0 | F5: =SUM('Hamburg Knights'!G58:G62) -> 0 | G5: =SUM('Hamburg Knights'!H58:H62) -> 1 | H5: =SUM('Hamburg Knights'!I58:I62) -> 0 | I5: =SUM('Hamburg Knights'!J58:J62) -> 0 | J5: =SUM('Hamburg Knights'!K58:K62) -> 0 | K5: =SUM('Hamburg Knights'!L58:L62) -> 0 | L5: =SUM('Hamburg Knights'!M58:M62) -> 0 | M5: =SUM('Hamburg Knights'!N58:N62) -> 0 | N5: =SUM('Hamburg Knights'!O58:O62) -> 0 | O5: =SUM('Hamburg Knights'!P58:P62) -> 0 | P5: =SUM('Hamburg Knights'!Q58:Q62) -> 0 | Q5: =SUM('Hamburg Knights'!R58:R62) -> 0 | S5: =SUM('Hamburg Knights'!T58:T62) -> 0 | T5: =SUM('Hamburg Knights'!U58:U62) -> 0 | U5: =SUM('Hamburg Knights'!V58:V62) -> 0 | W5: =IF(ISERROR(G5/D5),0,G5/D5) -> 1 | X5: =IF(ISERROR((4*J5+3*I5+2*H5+G5-SUM(H5:J5))/D5),0,(4*J5+3*I5+2*H5+G5-SUM(H5:J5))/D5) -> 1 | Y5: =W5+X5 -> 2 | Z5: =IF(ISERROR((G5+L5+M5)/(D5+L5+M5+Q5)),0,(G5+L5+M5)/(D5+L5+M5+Q5)) -> 1 | AA5: =Z5+X5 -> 2 | AC5: =IF(ISERROR((S5+T5)/(U5+S5+T5)),0,(S5+T5)/(U5+S5+T5)) -> 0
A6: ='Karlsruhe Cougars'!A3 -> 57 | B6: =IF('Karlsruhe Cougars'!B3="","",'Karlsruhe Cougars'!B3) -> Weil | C6: =SUM('Karlsruhe Cougars'!D3:D7) -> 12 | D6: =SUM('Karlsruhe Cougars'!E3:E7) -> 11 | E6: =SUM('Karlsruhe Cougars'!F3:F7) -> 10 | F6: =SUM('Karlsruhe Cougars'!G3:G7) -> 2 | G6: =SUM('Karlsruhe Cougars'!H3:H7) -> 9 | H6: =SUM('Karlsruhe Cougars'!I3:I7) -> 3 | I6: =SUM('Karlsruhe Cougars'!J3:J7) -> 0 | J6: =SUM('Karlsruhe Cougars'!K3:K7) -> 0 | K6: =SUM('Karlsruhe Cougars'!L3:L7) -> 1 | L6: =SUM('Karlsruhe Cougars'!M3:M7) -> 1 | M6: =SUM('Karlsruhe Cougars'!N3:N7) -> 0 | N6: =SUM('Karlsruhe Cougars'!O3:O7) -> 2 | O6: =SUM('Karlsruhe Cougars'!P3:P7) -> 0 | P6: =SUM('Karlsruhe Cougars'!Q3:Q7) -> 0 | Q6: =SUM('Karlsruhe Cougars'!R3:R7) -> 0 | S6: =SUM('Karlsruhe Cougars'!T3:T7) -> 4 | T6: =SUM('Karlsruhe Cougars'!U3:U7) -> 5 | U6: =SUM('Karlsruhe Cougars'!V3:V7) -> 1 | W6: =IF(ISERROR(G6/D6),0,G6/D6) -> 0.8181818182 | X6: =IF(ISERROR((4*J6+3*I6+2*H6+G6-SUM(H6:J6))/D6),0,(4*J6+3*I6+2*H6+G6-SUM(H6:J6))/D6) -> 1.090909091 | Y6: =W6+X6 -> 1.909090909 | Z6: =IF(ISERROR((G6+L6+M6)/(D6+L6+M6+Q6)),0,(G6+L6+M6)/(D6+L6+M6+Q6)) -> 0.8333333333 | AA6: =Z6+X6 -> 1.924242424 | AC6: =IF(ISERROR((S6+T6)/(U6+S6+T6)),0,(S6+T6)/(U6+S6+T6)) -> 0.9
A7: ='Freising Grizzlies'!A53 -> 42 | B7: =IF('Freising Grizzlies'!B53="","",'Freising Grizzlies'!B53) -> Zimmernmann | C7: =SUM('Freising Grizzlies'!D53:D57) -> 11 | D7: =SUM('Freising Grizzlies'!E53:E57) -> 5 | E7: =SUM('Freising Grizzlies'!F53:F57) -> 6 | F7: =SUM('Freising Grizzlies'!G53:G57) -> 1 | G7: =SUM('Freising Grizzlies'!H53:H57) -> 2 | H7: =SUM('Freising Grizzlies'!I53:I57) -> 0 | I7: =SUM('Freising Grizzlies'!J53:J57) -> 1 | J7: =SUM('Freising Grizzlies'!K53:K57) -> 0 | K7: =SUM('Freising Grizzlies'!L53:L57) -> 1 | L7: =SUM('Freising Grizzlies'!M53:M57) -> 5 | M7: =SUM('Freising Grizzlies'!N53:N57) -> 1 | N7: =SUM('Freising Grizzlies'!O53:O57) -> 1 | O7: =SUM('Freising Grizzlies'!P53:P57) -> 0 | P7: =SUM('Freising Grizzlies'!Q53:Q57) -> 0 | Q7: =SUM('Freising Grizzlies'!R53:R57) -> 0 | S7: =SUM('Freising Grizzlies'!T53:T57) -> 0 | T7: =SUM('Freising Grizzlies'!U53:U57) -> 0 | U7: =SUM('Freising Grizzlies'!V53:V57) -> 0 | W7: =IF(ISERROR(G7/D7),0,G7/D7) -> 0.4 | X7: =IF(ISERROR((4*J7+3*I7+2*H7+G7-SUM(H7:J7))/D7),0,(4*J7+3*I7+2*H7+G7-SUM(H7:J7))/D7) -> 0.8 | Y7: =W7+X7 -> 1.2 | Z7: =IF(ISERROR((G7+L7+M7)/(D7+L7+M7+Q7)),0,(G7+L7+M7)/(D7+L7+M7+Q7)) -> 0.7272727273 | AA7: =Z7+X7 -> 1.527272727 | AC7: =IF(ISERROR((S7+T7)/(U7+S7+T7)),0,(S7+T7)/(U7+S7+T7)) -> 0
A8: ='Freising Grizzlies'!A33 -> 38 | B8: =IF('Freising Grizzlies'!B33="","",'Freising Grizzlies'!B33) -> Biswas, L. | C8: =SUM('Freising Grizzlies'!D33:D37) -> 14 | D8: =SUM('Freising Grizzlies'!E33:E37) -> 12 | E8: =SUM('Freising Grizzlies'!F33:F37) -> 5 | F8: =SUM('Freising Grizzlies'!G33:G37) -> 11 | G8: =SUM('Freising Grizzlies'!H33:H37) -> 7 | H8: =SUM('Freising Grizzlies'!I33:I37) -> 3 | I8: =SUM('Freising Grizzlies'!J33:J37) -> 2 | J8: =SUM('Freising Grizzlies'!K33:K37) -> 0 | K8: =SUM('Freising Grizzlies'!L33:L37) -> 1 | L8: =SUM('Freising Grizzlies'!M33:M37) -> 0 | M8: =SUM('Freising Grizzlies'!N33:N37) -> 0 | N8: =SUM('Freising Grizzlies'!O33:O37) -> 0 | O8: =SUM('Freising Grizzlies'!P33:P37) -> 0 | P8: =SUM('Freising Grizzlies'!Q33:Q37) -> 0 | Q8: =SUM('Freising Grizzlies'!R33:R37) -> 2 | S8: =SUM('Freising Grizzlies'!T33:T37) -> 4 | T8: =SUM('Freising Grizzlies'!U33:U37) -> 2 | U8: =SUM('Freising Grizzlies'!V33:V37) -> 1 | W8: =IF(ISERROR(G8/D8),0,G8/D8) -> 0.5833333333 | X8: =IF(ISERROR((4*J8+3*I8+2*H8+G8-SUM(H8:J8))/D8),0,(4*J8+3*I8+2*H8+G8-SUM(H8:J8))/D8) -> 1.166666667 | Y8: =W8+X8 -> 1.75 | Z8: =IF(ISERROR((G8+L8+M8)/(D8+L8+M8+Q8)),0,(G8+L8+M8)/(D8+L8+M8+Q8)) -> 0.5 | AA8: =Z8+X8 -> 1.666666667 | AC8: =IF(ISERROR((S8+T8)/(U8+S8+T8)),0,(S8+T8)/(U8+S8+T8)) -> 0.8571428571
A9: ='Hamburg Knights'!A13 -> 3 | B9: =IF('Hamburg Knights'!B13="","",'Hamburg Knights'!B13) -> Rackwitz | C9: =SUM('Hamburg Knights'!D13:D17) -> 6 | D9: =SUM('Hamburg Knights'!E13:E17) -> 4 | E9: =SUM('Hamburg Knights'!F13:F17) -> 2 | F9: =SUM('Hamburg Knights'!G13:G17) -> 0 | G9: =SUM('Hamburg Knights'!H13:H17) -> 2 | H9: =SUM('Hamburg Knights'!I13:I17) -> 2 | I9: =SUM('Hamburg Knights'!J13:J17) -> 0 | J9: =SUM('Hamburg Knights'!K13:K17) -> 0 | K9: =SUM('Hamburg Knights'!L13:L17) -> 0 | L9: =SUM('Hamburg Knights'!M13:M17) -> 2 | M9: =SUM('Hamburg Knights'!N13:N17) -> 0 | N9: =SUM('Hamburg Knights'!O13:O17) -> 2 | O9: =SUM('Hamburg Knights'!P13:P17) -> 0 | P9: =SUM('Hamburg Knights'!Q13:Q17) -> 0 | Q9: =SUM('Hamburg Knights'!R13:R17) -> 0 | S9: =SUM('Hamburg Knights'!T13:T17) -> 0 | T9: =SUM('Hamburg Knights'!U13:U17) -> 3 | U9: =SUM('Hamburg Knights'!V13:V17) -> 1 | W9: =IF(ISERROR(G9/D9),0,G9/D9) -> 0.5 | X9: =IF(ISERROR((4*J9+3*I9+2*H9+G9-SUM(H9:J9))/D9),0,(4*J9+3*I9+2*H9+G9-SUM(H9:J9))/D9) -> 1 | Y9: =W9+X9 -> 1.5 | Z9: =IF(ISERROR((G9+L9+M9)/(D9+L9+M9+Q9)),0,(G9+L9+M9)/(D9+L9+M9+Q9)) -> 0.6666666667 | AA9: =Z9+X9 -> 1.666666667 | AC9: =IF(ISERROR((S9+T9)/(U9+S9+T9)),0,(S9+T9)/(U9+S9+T9)) -> 0.75
A10: ='Hamburg Knights'!A63 -> 13 | B10: =IF('Hamburg Knights'!B63="","",'Hamburg Knights'!B63) -> Heiland | C10: =SUM('Hamburg Knights'!D63:D67) -> 4 | D10: =SUM('Hamburg Knights'!E63:E67) -> 3 | E10: =SUM('Hamburg Knights'!F63:F67) -> 1 | F10: =SUM('Hamburg Knights'!G63:G67) -> 2 | G10: =SUM('Hamburg Knights'!H63:H67) -> 1 | H10: =SUM('Hamburg Knights'!I63:I67) -> 0 | I10: =SUM('Hamburg Knights'!J63:J67) -> 1 | J10: =SUM('Hamburg Knights'!K63:K67) -> 0 | K10: =SUM('Hamburg Knights'!L63:L67) -> 0 | L10: =SUM('Hamburg Knights'!M63:M67) -> 0 | M10: =SUM('Hamburg Knights'!N63:N67) -> 1 | N10: =SUM('Hamburg Knights'!O63:O67) -> 0 | O10: =SUM('Hamburg Knights'!P63:P67) -> 0 | P10: =SUM('Hamburg Knights'!Q63:Q67) -> 0 | Q10: =SUM('Hamburg Knights'!R63:R67) -> 0 | S10: =SUM('Hamburg Knights'!T63:T67) -> 0 | T10: =SUM('Hamburg Knights'!U63:U67) -> 0 | U10: =SUM('Hamburg Knights'!V63:V67) -> 1 | W10: =IF(ISERROR(G10/D10),0,G10/D10) -> 0.3333333333 | X10: =IF(ISERROR((4*J10+3*I10+2*H10+G10-SUM(H10:J10))/D10),0,(4*J10+3*I10+2*H10+G10-SUM(H10:J10))/D10) -> 1 | Y10: =W10+X10 -> 1.333333333 | Z10: =IF(ISERROR((G10+L10+M10)/(D10+L10+M10+Q10)),0,(G10+L10+M10)/(D10+L10+M10+Q10)) -> 0.5 | AA10: =Z10+X10 -> 1.5 | AC10: =IF(ISERROR((S10+T10)/(U10+S10+T10)),0,(S10+T10)/(U10+S10+T10)) -> 0
A11: ='Freising Grizzlies'!A18 -> 35 | B11: =IF('Freising Grizzlies'!B18="","",'Freising Grizzlies'!B18) -> Sandner | C11: =SUM('Freising Grizzlies'!D18:D22) -> 16 | D11: =SUM('Freising Grizzlies'!E18:E22) -> 13 | E11: =SUM('Freising Grizzlies'!F18:F22) -> 12 | F11: =SUM('Freising Grizzlies'!G18:G22) -> 4 | G11: =SUM('Freising Grizzlies'!H18:H22) -> 8 | H11: =SUM('Freising Grizzlies'!I18:I22) -> 1 | I11: =SUM('Freising Grizzlies'!J18:J22) -> 0 | J11: =SUM('Freising Grizzlies'!K18:K22) -> 0 | K11: =SUM('Freising Grizzlies'!L18:L22) -> 1 | L11: =SUM('Freising Grizzlies'!M18:M22) -> 3 | M11: =SUM('Freising Grizzlies'!N18:N22) -> 0 | N11: =SUM('Freising Grizzlies'!O18:O22) -> 2 | O11: =SUM('Freising Grizzlies'!P18:P22) -> 0 | P11: =SUM('Freising Grizzlies'!Q18:Q22) -> 0 | Q11: =SUM('Freising Grizzlies'!R18:R22) -> 0 | S11: =SUM('Freising Grizzlies'!T18:T22) -> 7 | T11: =SUM('Freising Grizzlies'!U18:U22) -> 4 | U11: =SUM('Freising Grizzlies'!V18:V22) -> 1 | W11: =IF(ISERROR(G11/D11),0,G11/D11) -> 0.6153846154 | X11: =IF(ISERROR((4*J11+3*I11+2*H11+G11-SUM(H11:J11))/D11),0,(4*J11+3*I11+2*H11+G11-SUM(H11:J11))/D11) -> 0.6923076923 | Y11: =W11+X11 -> 1.307692308 | Z11: =IF(ISERROR((G11+L11+M11)/(D11+L11+M11+Q11)),0,(G11+L11+M11)/(D11+L11+M11+Q11)) -> 0.6875 | AA11: =Z11+X11 -> 1.379807692 | AC11: =IF(ISERROR((S11+T11)/(U11+S11+T11)),0,(S11+T11)/(U11+S11+T11)) -> 0.9166666667
A12: ='Wesseling Vermins'!A18 -> 24 | B12: =IF('Wesseling Vermins'!B18="","",'Wesseling Vermins'!B18) -> Dickmeiss | C12: =SUM('Wesseling Vermins'!D18:D22) -> 12 | D12: =SUM('Wesseling Vermins'!E18:E22) -> 8 | E12: =SUM('Wesseling Vermins'!F18:F22) -> 7 | F12: =SUM('Wesseling Vermins'!G18:G22) -> 1 | G12: =SUM('Wesseling Vermins'!H18:H22) -> 4 | H12: =SUM('Wesseling Vermins'!I18:I22) -> 2 | I12: =SUM('Wesseling Vermins'!J18:J22) -> 0 | J12: =SUM('Wesseling Vermins'!K18:K22) -> 0 | K12: =SUM('Wesseling Vermins'!L18:L22) -> 0 | L12: =SUM('Wesseling Vermins'!M18:M22) -> 4 | M12: =SUM('Wesseling Vermins'!N18:N22) -> 0 | N12: =SUM('Wesseling Vermins'!O18:O22) -> 5 | O12: =SUM('Wesseling Vermins'!P18:P22) -> 0 | P12: =SUM('Wesseling Vermins'!Q18:Q22) -> 0 | Q12: =SUM('Wesseling Vermins'!R18:R22) -> 0 | S12: =SUM('Wesseling Vermins'!T18:T22) -> 3 | T12: =SUM('Wesseling Vermins'!U18:U22) -> 0 | U12: =SUM('Wesseling Vermins'!V18:V22) -> 0 | W12: =IF(ISERROR(G12/D12),0,G12/D12) -> 0.5 | X12: =IF(ISERROR((4*J12+3*I12+2*H12+G12-SUM(H12:J12))/D12),0,(4*J12+3*I12+2*H12+G12-SUM(H12:J12))/D12) -> 0.75 | Y12: =W12+X12 -> 1.25 | Z12: =IF(ISERROR((G12+L12+M12)/(D12+L12+M12+Q12)),0,(G12+L12+M12)/(D12+L12+M12+Q12)) -> 0.6666666667 | AA12: =Z12+X12 -> 1.416666667 | AC12: =IF(ISERROR((S12+T12)/(U12+S12+T12)),0,(S12+T12)/(U12+S12+T12)) -> 1
A13: ='Hamburg Knights'!A78 -> 16 | B13: =IF('Hamburg Knights'!B78="","",'Hamburg Knights'!B78) -> Ernst | C13: =SUM('Hamburg Knights'!D78:D82) -> 4 | D13: =SUM('Hamburg Knights'!E78:E82) -> 3 | E13: =SUM('Hamburg Knights'!F78:F82) -> 2 | F13: =SUM('Hamburg Knights'!G78:G82) -> 0 | G13: =SUM('Hamburg Knights'!H78:H82) -> 2 | H13: =SUM('Hamburg Knights'!I78:I82) -> 0 | I13: =SUM('Hamburg Knights'!J78:J82) -> 0 | J13: =SUM('Hamburg Knights'!K78:K82) -> 0 | K13: =SUM('Hamburg Knights'!L78:L82) -> 0 | L13: =SUM('Hamburg Knights'!M78:M82) -> 1 | M13: =SUM('Hamburg Knights'!N78:N82) -> 0 | N13: =SUM('Hamburg Knights'!O78:O82) -> 0 | O13: =SUM('Hamburg Knights'!P78:P82) -> 0 | P13: =SUM('Hamburg Knights'!Q78:Q82) -> 0 | Q13: =SUM('Hamburg Knights'!R78:R82) -> 0 | S13: =SUM('Hamburg Knights'!T78:T82) -> 0 | T13: =SUM('Hamburg Knights'!U78:U82) -> 0 | U13: =SUM('Hamburg Knights'!V78:V82) -> 0 | W13: =IF(ISERROR(G13/D13),0,G13/D13) -> 0.6666666667 | X13: =IF(ISERROR((4*J13+3*I13+2*H13+G13-SUM(H13:J13))/D13),0,(4*J13+3*I13+2*H13+G13-SUM(H13:J13))/D13) -> 0.6666666667 | Y13: =W13+X13 -> 1.333333333 | Z13: =IF(ISERROR((G13+L13+M13)/(D13+L13+M13+Q13)),0,(G13+L13+M13)/(D13+L13+M13+Q13)) -> 0.75 | AA13: =Z13+X13 -> 1.416666667 | AC13: =IF(ISERROR((S13+T13)/(U13+S13+T13)),0,(S13+T13)/(U13+S13+T13)) -> 0
A14: ='Karlsruhe Cougars'!A13 -> 59 | B14: =IF('Karlsruhe Cougars'!B13="","",'Karlsruhe Cougars'!B13) -> Reibenspies | C14: =SUM('Karlsruhe Cougars'!D13:D17) -> 11 | D14: =SUM('Karlsruhe Cougars'!E13:E17) -> 9 | E14: =SUM('Karlsruhe Cougars'!F13:F17) -> 3 | F14: =SUM('Karlsruhe Cougars'!G13:G17) -> 6 | G14: =SUM('Karlsruhe Cougars'!H13:H17) -> 4 | H14: =SUM('Karlsruhe Cougars'!I13:I17) -> 3 | I14: =SUM('Karlsruhe Cougars'!J13:J17) -> 0 | J14: =SUM('Karlsruhe Cougars'!K13:K17) -> 0 | K14: =SUM('Karlsruhe Cougars'!L13:L17) -> 1 | L14: =SUM('Karlsruhe Cougars'!M13:M17) -> 2 | M14: =SUM('Karlsruhe Cougars'!N13:N17) -> 0 | N14: =SUM('Karlsruhe Cougars'!O13:O17) -> 2 | O14: =SUM('Karlsruhe Cougars'!P13:P17) -> 0 | P14: =SUM('Karlsruhe Cougars'!Q13:Q17) -> 0 | Q14: =SUM('Karlsruhe Cougars'!R13:R17) -> 0 | S14: =SUM('Karlsruhe Cougars'!T13:T17) -> 3 | T14: =SUM('Karlsruhe Cougars'!U13:U17) -> 3 | U14: =SUM('Karlsruhe Cougars'!V13:V17) -> 2 | W14: =IF(ISERROR(G14/D14),0,G14/D14) -> 0.4444444444 | X14: =IF(ISERROR((4*J14+3*I14+2*H14+G14-SUM(H14:J14))/D14),0,(4*J14+3*I14+2*H14+G14-SUM(H14:J14))/D14) -> 0.7777777778 | Y14: =W14+X14 -> 1.222222222 | Z14: =IF(ISERROR((G14+L14+M14)/(D14+L14+M14+Q14)),0,(G14+L14+M14)/(D14+L14+M14+Q14)) -> 0.5454545455 | AA14: =Z14+X14 -> 1.323232323 | AC14: =IF(ISERROR((S14+T14)/(U14+S14+T14)),0,(S14+T14)/(U14+S14+T14)) -> 0.75
A15: ='Freising Grizzlies'!A38 -> 39 | B15: =IF('Freising Grizzlies'!B38="","",'Freising Grizzlies'!B38) -> Kerscher | C15: =SUM('Freising Grizzlies'!D38:D42) -> 10 | D15: =SUM('Freising Grizzlies'!E38:E42) -> 6 | E15: =SUM('Freising Grizzlies'!F38:F42) -> 3 | F15: =SUM('Freising Grizzlies'!G38:G42) -> 3 | G15: =SUM('Freising Grizzlies'!H38:H42) -> 2 | H15: =SUM('Freising Grizzlies'!I38:I42) -> 1 | I15: =SUM('Freising Grizzlies'!J38:J42) -> 0 | J15: =SUM('Freising Grizzlies'!K38:K42) -> 0 | K15: =SUM('Freising Grizzlies'!L38:L42) -> 1 | L15: =SUM('Freising Grizzlies'!M38:M42) -> 3 | M15: =SUM('Freising Grizzlies'!N38:N42) -> 0 | N15: =SUM('Freising Grizzlies'!O38:O42) -> 0 | O15: =SUM('Freising Grizzlies'!P38:P42) -> 1 | P15: =SUM('Freising Grizzlies'!Q38:Q42) -> 0 | Q15: =SUM('Freising Grizzlies'!R38:R42) -> 1 | S15: =SUM('Freising Grizzlies'!T38:T42) -> 1 | T15: =SUM('Freising Grizzlies'!U38:U42) -> 16 | U15: =SUM('Freising Grizzlies'!V38:V42) -> 0 | W15: =IF(ISERROR(G15/D15),0,G15/D15) -> 0.3333333333 | X15: =IF(ISERROR((4*J15+3*I15+2*H15+G15-SUM(H15:J15))/D15),0,(4*J15+3*I15+2*H15+G15-SUM(H15:J15))/D15) -> 0.5 | Y15: =W15+X15 -> 0.8333333333 | Z15: =IF(ISERROR((G15+L15+M15)/(D15+L15+M15+Q15)),0,(G15+L15+M15)/(D15+L15+M15+Q15)) -> 0.5 | AA15: =Z15+X15 -> 1 | AC15: =IF(ISERROR((S15+T15)/(U15+S15+T15)),0,(S15+T15)/(U15+S15+T15)) -> 1
A16: ='Neunkirchen Nightmares'!A23 -> 71 | B16: =IF('Neunkirchen Nightmares'!B23="","",'Neunkirchen Nightmares'!B23) -> Cadsky | C16: =SUM('Neunkirchen Nightmares'!D23:D27) -> 7 | D16: =SUM('Neunkirchen Nightmares'!E23:E27) -> 3 | E16: =SUM('Neunkirchen Nightmares'!F23:F27) -> 3 | F16: =SUM('Neunkirchen Nightmares'!G23:G27) -> 4 | G16: =SUM('Neunkirchen Nightmares'!H23:H27) -> 2 | H16: =SUM('Neunkirchen Nightmares'!I23:I27) -> 0 | I16: =SUM('Neunkirchen Nightmares'!J23:J27) -> 0 | J16: =SUM('Neunkirchen Nightmares'!K23:K27) -> 0 | K16: =SUM('Neunkirchen Nightmares'!L23:L27) -> 0 | L16: =SUM('Neunkirchen Nightmares'!M23:M27) -> 2 | M16: =SUM('Neunkirchen Nightmares'!N23:N27) -> 0 | N16: =SUM('Neunkirchen Nightmares'!O23:O27) -> 1 | O16: =SUM('Neunkirchen Nightmares'!P23:P27) -> 0 | P16: =SUM('Neunkirchen Nightmares'!Q23:Q27) -> 0 | Q16: =SUM('Neunkirchen Nightmares'!R23:R27) -> 2 | S16: =SUM('Neunkirchen Nightmares'!T23:T27) -> 1 | T16: =SUM('Neunkirchen Nightmares'!U23:U27) -> 5 | U16: =SUM('Neunkirchen Nightmares'!V23:V27) -> 0 | W16: =IF(ISERROR(G16/D16),0,G16/D16) -> 0.6666666667 | X16: =IF(ISERROR((4*J16+3*I16+2*H16+G16-SUM(H16:J16))/D16),0,(4*J16+3*I16+2*H16+G16-SUM(H16:J16))/D16) -> 0.6666666667 | Y16: =W16+X16 -> 1.333333333 | Z16: =IF(ISERROR((G16+L16+M16)/(D16+L16+M16+Q16)),0,(G16+L16+M16)/(D16+L16+M16+Q16)) -> 0.5714285714 | AA16: =Z16+X16 -> 1.238095238 | AC16: =IF(ISERROR((S16+T16)/(U16+S16+T16)),0,(S16+T16)/(U16+S16+T16)) -> 1
A17: ='Freising Grizzlies'!A48 -> 41 | B17: =IF('Freising Grizzlies'!B48="","",'Freising Grizzlies'!B48) -> Thürmer | C17: =SUM('Freising Grizzlies'!D48:D52) -> 13 | D17: =SUM('Freising Grizzlies'!E48:E52) -> 13 | E17: =SUM('Freising Grizzlies'!F48:F52) -> 6 | F17: =SUM('Freising Grizzlies'!G48:G52) -> 3 | G17: =SUM('Freising Grizzlies'!H48:H52) -> 5 | H17: =SUM('Freising Grizzlies'!I48:I52) -> 0 | I17: =SUM('Freising Grizzlies'!J48:J52) -> 1 | J17: =SUM('Freising Grizzlies'!K48:K52) -> 0 | K17: =SUM('Freising Grizzlies'!L48:L52) -> 2 | L17: =SUM('Freising Grizzlies'!M48:M52) -> 0 | M17: =SUM('Freising Grizzlies'!N48:N52) -> 0 | N17: =SUM('Freising Grizzlies'!O48:O52) -> 0 | O17: =SUM('Freising Grizzlies'!P48:P52) -> 0 | P17: =SUM('Freising Grizzlies'!Q48:Q52) -> 0 | Q17: =SUM('Freising Grizzlies'!R48:R52) -> 0 | S17: =SUM('Freising Grizzlies'!T48:T52) -> 8 | T17: =SUM('Freising Grizzlies'!U48:U52) -> 5 | U17: =SUM('Freising Grizzlies'!V48:V52) -> 0 | W17: =IF(ISERROR(G17/D17),0,G17/D17) -> 0.3846153846 | X17: =IF(ISERROR((4*J17+3*I17+2*H17+G17-SUM(H17:J17))/D17),0,(4*J17+3*I17+2*H17+G17-SUM(H17:J17))/D17) -> 0.5384615385 | Y17: =W17+X17 -> 0.9230769231 | Z17: =IF(ISERROR((G17+L17+M17)/(D17+L17+M17+Q17)),0,(G17+L17+M17)/(D17+L17+M17+Q17)) -> 0.3846153846 | AA17: =Z17+X17 -> 0.9230769231 | AC17: =IF(ISERROR((S17+T17)/(U17+S17+T17)),0,(S17+T17)/(U17+S17+T17)) -> 1
A18: ='Haar Disciples'!A43 -> 51 | B18: =IF('Haar Disciples'!B43="","",'Haar Disciples'!B43) -> Ruziourouh | C18: =SUM('Haar Disciples'!D43:D47) -> 16 | D18: =SUM('Haar Disciples'!E43:E47) -> 14 | E18: =SUM('Haar Disciples'!F43:F47) -> 5 | F18: =SUM('Haar Disciples'!G43:G47) -> 4 | G18: =SUM('Haar Disciples'!H43:H47) -> 5 | H18: =SUM('Haar Disciples'!I43:I47) -> 1 | I18: =SUM('Haar Disciples'!J43:J47) -> 0 | J18: =SUM('Haar Disciples'!K43:K47) -> 0 | K18: =SUM('Haar Disciples'!L43:L47) -> 0 | L18: =SUM('Haar Disciples'!M43:M47) -> 2 | M18: =SUM('Haar Disciples'!N43:N47) -> 0 | N18: =SUM('Haar Disciples'!O43:O47) -> 0 | O18: =SUM('Haar Disciples'!P43:P47) -> 0 | P18: =SUM('Haar Disciples'!Q43:Q47) -> 0 | Q18: =SUM('Haar Disciples'!R43:R47) -> 0 | S18: =SUM('Haar Disciples'!T43:T47) -> 2 | T18: =SUM('Haar Disciples'!U43:U47) -> 0 | U18: =SUM('Haar Disciples'!V43:V47) -> 0 | W18: =IF(ISERROR(G18/D18),0,G18/D18) -> 0.3571428571 | X18: =IF(ISERROR((4*J18+3*I18+2*H18+G18-SUM(H18:J18))/D18),0,(4*J18+3*I18+2*H18+G18-SUM(H18:J18))/D18) -> 0.4285714286 | Y18: =W18+X18 -> 0.7857142857 | Z18: =IF(ISERROR((G18+L18+M18)/(D18+L18+M18+Q18)),0,(G18+L18+M18)/(D18+L18+M18+Q18)) -> 0.4375 | AA18: =Z18+X18 -> 0.8660714286 | AC18: =IF(ISERROR((S18+T18)/(U18+S18+T18)),0,(S18+T18)/(U18+S18+T18)) -> 1
A19: ='Haar Disciples'!A3 -> 43 | B19: =IF('Haar Disciples'!B3="","",'Haar Disciples'!B3) -> Stepniak | C19: =SUM('Haar Disciples'!D3:D7) -> 18 | D19: =SUM('Haar Disciples'!E3:E7) -> 15 | E19: =SUM('Haar Disciples'!F3:F7) -> 8 | F19: =SUM('Haar Disciples'!G3:G7) -> 1 | G19: =SUM('Haar Disciples'!H3:H7) -> 6 | H19: =SUM('Haar Disciples'!I3:I7) -> 0 | I19: =SUM('Haar Disciples'!J3:J7) -> 2 | J19: =SUM('Haar Disciples'!K3:K7) -> 0 | K19: =SUM('Haar Disciples'!L3:L7) -> 1 | L19: =SUM('Haar Disciples'!M3:M7) -> 2 | M19: =SUM('Haar Disciples'!N3:N7) -> 1 | N19: =SUM('Haar Disciples'!O3:O7) -> 3 | O19: =SUM('Haar Disciples'!P3:P7) -> 0 | P19: =SUM('Haar Disciples'!Q3:Q7) -> 0 | Q19: =SUM('Haar Disciples'!R3:R7) -> 0 | S19: =SUM('Haar Disciples'!T3:T7) -> 13 | T19: =SUM('Haar Disciples'!U3:U7) -> 7 | U19: =SUM('Haar Disciples'!V3:V7) -> 1 | W19: =IF(ISERROR(G19/D19),0,G19/D19) -> 0.4 | X19: =IF(ISERROR((4*J19+3*I19+2*H19+G19-SUM(H19:J19))/D19),0,(4*J19+3*I19+2*H19+G19-SUM(H19:J19))/D19) -> 0.6666666667 | Y19: =W19+X19 -> 1.066666667 | Z19: =IF(ISERROR((G19+L19+M19)/(D19+L19+M19+Q19)),0,(G19+L19+M19)/(D19+L19+M19+Q19)) -> 0.5 | AA19: =Z19+X19 -> 1.166666667 | AC19: =IF(ISERROR((S19+T19)/(U19+S19+T19)),0,(S19+T19)/(U19+S19+T19)) -> 0.9523809524
A20: ='Hamburg Knights'!A68 -> 14 | B20: =IF('Hamburg Knights'!B68="","",'Hamburg Knights'!B68) -> Siering | C20: =SUM('Hamburg Knights'!D68:D72) -> 6 | D20: =SUM('Hamburg Knights'!E68:E72) -> 4 | E20: =SUM('Hamburg Knights'!F68:F72) -> 2 | F20: =SUM('Hamburg Knights'!G68:G72) -> 0 | G20: =SUM('Hamburg Knights'!H68:H72) -> 2 | H20: =SUM('Hamburg Knights'!I68:I72) -> 0 | I20: =SUM('Hamburg Knights'!J68:J72) -> 0 | J20: =SUM('Hamburg Knights'!K68:K72) -> 0 | K20: =SUM('Hamburg Knights'!L68:L72) -> 1 | L20: =SUM('Hamburg Knights'!M68:M72) -> 2 | M20: =SUM('Hamburg Knights'!N68:N72) -> 0 | N20: =SUM('Hamburg Knights'!O68:O72) -> 1 | O20: =SUM('Hamburg Knights'!P68:P72) -> 1 | P20: =SUM('Hamburg Knights'!Q68:Q72) -> 0 | Q20: =SUM('Hamburg Knights'!R68:R72) -> 0 | S20: =SUM('Hamburg Knights'!T68:T72) -> 2 | T20: =SUM('Hamburg Knights'!U68:U72) -> 4 | U20: =SUM('Hamburg Knights'!V68:V72) -> 1 | W20: =IF(ISERROR(G20/D20),0,G20/D20) -> 0.5 | X20: =IF(ISERROR((4*J20+3*I20+2*H20+G20-SUM(H20:J20))/D20),0,(4*J20+3*I20+2*H20+G20-SUM(H20:J20))/D20) -> 0.5 | Y20: =W20+X20 -> 1 | Z20: =IF(ISERROR((G20+L20+M20)/(D20+L20+M20+Q20)),0,(G20+L20+M20)/(D20+L20+M20+Q20)) -> 0.6666666667 | AA20: =Z20+X20 -> 1.166666667 | AC20: =IF(ISERROR((S20+T20)/(U20+S20+T20)),0,(S20+T20)/(U20+S20+T20)) -> 0.8571428571
A21: ='Haar Disciples'!A18 -> 46 | B21: =IF('Haar Disciples'!B18="","",'Haar Disciples'!B18) -> Reinisch, Kat | C21: =SUM('Haar Disciples'!D18:D22) -> 13 | D21: =SUM('Haar Disciples'!E18:E22) -> 9 | E21: =SUM('Haar Disciples'!F18:F22) -> 2 | F21: =SUM('Haar Disciples'!G18:G22) -> 3 | G21: =SUM('Haar Disciples'!H18:H22) -> 3 | H21: =SUM('Haar Disciples'!I18:I22) -> 2 | I21: =SUM('Haar Disciples'!J18:J22) -> 0 | J21: =SUM('Haar Disciples'!K18:K22) -> 0 | K21: =SUM('Haar Disciples'!L18:L22) -> 3 | L21: =SUM('Haar Disciples'!M18:M22) -> 4 | M21: =SUM('Haar Disciples'!N18:N22) -> 0 | N21: =SUM('Haar Disciples'!O18:O22) -> 0 | O21: =SUM('Haar Disciples'!P18:P22) -> 0 | P21: =SUM('Haar Disciples'!Q18:Q22) -> 0 | Q21: =SUM('Haar Disciples'!R18:R22) -> 0 | S21: =SUM('Haar Disciples'!T18:T22) -> 8 | T21: =SUM('Haar Disciples'!U18:U22) -> 14 | U21: =SUM('Haar Disciples'!V18:V22) -> 1 | W21: =IF(ISERROR(G21/D21),0,G21/D21) -> 0.3333333333 | X21: =IF(ISERROR((4*J21+3*I21+2*H21+G21-SUM(H21:J21))/D21),0,(4*J21+3*I21+2*H21+G21-SUM(H21:J21))/D21) -> 0.5555555556 | Y21: =W21+X21 -> 0.8888888889 | Z21: =IF(ISERROR((G21+L21+M21)/(D21+L21+M21+Q21)),0,(G21+L21+M21)/(D21+L21+M21+Q21)) -> 0.5384615385 | AA21: =Z21+X21 -> 1.094017094 | AC21: =IF(ISERROR((S21+T21)/(U21+S21+T21)),0,(S21+T21)/(U21+S21+T21)) -> 0.9565217391
A22: ='Freising Grizzlies'!A28 -> 37 | B22: =IF('Freising Grizzlies'!B28="","",'Freising Grizzlies'!B28) -> Steffen | C22: =SUM('Freising Grizzlies'!D28:D32) -> 16 | D22: =SUM('Freising Grizzlies'!E28:E32) -> 10 | E22: =SUM('Freising Grizzlies'!F28:F32) -> 8 | F22: =SUM('Freising Grizzlies'!G28:G32) -> 5 | G22: =SUM('Freising Grizzlies'!H28:H32) -> 4 | H22: =SUM('Freising Grizzlies'!I28:I32) -> 2 | I22: =SUM('Freising Grizzlies'!J28:J32) -> 0 | J22: =SUM('Freising Grizzlies'!K28:K32) -> 0 | K22: =SUM('Freising Grizzlies'!L28:L32) -> 0 | L22: =SUM('Freising Grizzlies'!M28:M32) -> 4 | M22: =SUM('Freising Grizzlies'!N28:N32) -> 1 | N22: =SUM('Freising Grizzlies'!O28:O32) -> 1 | O22: =SUM('Freising Grizzlies'!P28:P32) -> 0 | P22: =SUM('Freising Grizzlies'!Q28:Q32) -> 1 | Q22: =SUM('Freising Grizzlies'!R28:R32) -> 0 | S22: =SUM('Freising Grizzlies'!T28:T32) -> 8 | T22: =SUM('Freising Grizzlies'!U28:U32) -> 4 | U22: =SUM('Freising Grizzlies'!V28:V32) -> 0 | W22: =IF(ISERROR(G22/D22),0,G22/D22) -> 0.4 | X22: =IF(ISERROR((4*J22+3*I22+2*H22+G22-SUM(H22:J22))/D22),0,(4*J22+3*I22+2*H22+G22-SUM(H22:J22))/D22) -> 0.6 | Y22: =W22+X22 -> 1 | Z22: =IF(ISERROR((G22+L22+M22)/(D22+L22+M22+Q22)),0,(G22+L22+M22)/(D22+L22+M22+Q22)) -> 0.6 | AA22: =Z22+X22 -> 1.2 | AC22: =IF(ISERROR((S22+T22)/(U22+S22+T22)),0,(S22+T22)/(U22+S22+T22)) -> 1
A23: ='Freising Grizzlies'!A3 -> 32 | B23: =IF('Freising Grizzlies'!B3="","",'Freising Grizzlies'!B3) -> Biswas, T. | C23: =SUM('Freising Grizzlies'!D3:D7) -> 13 | D23: =SUM('Freising Grizzlies'!E3:E7) -> 9 | E23: =SUM('Freising Grizzlies'!F3:F7) -> 4 | F23: =SUM('Freising Grizzlies'!G3:G7) -> 3 | G23: =SUM('Freising Grizzlies'!H3:H7) -> 2 | H23: =SUM('Freising Grizzlies'!I3:I7) -> 2 | I23: =SUM('Freising Grizzlies'!J3:J7) -> 0 | J23: =SUM('Freising Grizzlies'!K3:K7) -> 0 | K23: =SUM('Freising Grizzlies'!L3:L7) -> 2 | L23: =SUM('Freising Grizzlies'!M3:M7) -> 4 | M23: =SUM('Freising Grizzlies'!N3:N7) -> 0 | N23: =SUM('Freising Grizzlies'!O3:O7) -> 1 | O23: =SUM('Freising Grizzlies'!P3:P7) -> 0 | P23: =SUM('Freising Grizzlies'!Q3:Q7) -> 0 | Q23: =SUM('Freising Grizzlies'!R3:R7) -> 0 | S23: =SUM('Freising Grizzlies'!T3:T7) -> 2 | T23: =SUM('Freising Grizzlies'!U3:U7) -> 4 | U23: =SUM('Freising Grizzlies'!V3:V7) -> 2 | W23: =IF(ISERROR(G23/D23),0,G23/D23) -> 0.2222222222 | X23: =IF(ISERROR((4*J23+3*I23+2*H23+G23-SUM(H23:J23))/D23),0,(4*J23+3*I23+2*H23+G23-SUM(H23:J23))/D23) -> 0.4444444444 | Y23: =W23+X23 -> 0.6666666667 | Z23: =IF(ISERROR((G23+L23+M23)/(D23+L23+M23+Q23)),0,(G23+L23+M23)/(D23+L23+M23+Q23)) -> 0.4615384615 | AA23: =Z23+X23 -> 0.905982906 | AC23: =IF(ISERROR((S23+T23)/(U23+S23+T23)),0,(S23+T23)/(U23+S23+T23)) -> 0.75
A24: ='Karlsruhe Cougars'!A33 -> 63 | B24: =IF('Karlsruhe Cougars'!B33="","",'Karlsruhe Cougars'!B33) -> Kortenkamp | C24: =SUM('Karlsruhe Cougars'!D33:D37) -> 10 | D24: =SUM('Karlsruhe Cougars'!E33:E37) -> 8 | E24: =SUM('Karlsruhe Cougars'!F33:F37) -> 1 | F24: =SUM('Karlsruhe Cougars'!G33:G37) -> 4 | G24: =SUM('Karlsruhe Cougars'!H33:H37) -> 4 | H24: =SUM('Karlsruhe Cougars'!I33:I37) -> 0 | I24: =SUM('Karlsruhe Cougars'!J33:J37) -> 0 | J24: =SUM('Karlsruhe Cougars'!K33:K37) -> 0 | K24: =SUM('Karlsruhe Cougars'!L33:L37) -> 1 | L24: =SUM('Karlsruhe Cougars'!M33:M37) -> 0 | M24: =SUM('Karlsruhe Cougars'!N33:N37) -> 1 | N24: =SUM('Karlsruhe Cougars'!O33:O37) -> 2 | O24: =SUM('Karlsruhe Cougars'!P33:P37) -> 0 | P24: =SUM('Karlsruhe Cougars'!Q33:Q37) -> 0 | Q24: =SUM('Karlsruhe Cougars'!R33:R37) -> 1 | S24: =SUM('Karlsruhe Cougars'!T33:T37) -> 2 | T24: =SUM('Karlsruhe Cougars'!U33:U37) -> 4 | U24: =SUM('Karlsruhe Cougars'!V33:V37) -> 1 | W24: =IF(ISERROR(G24/D24),0,G24/D24) -> 0.5 | X24: =IF(ISERROR((4*J24+3*I24+2*H24+G24-SUM(H24:J24))/D24),0,(4*J24+3*I24+2*H24+G24-SUM(H24:J24))/D24) -> 0.5 | Y24: =W24+X24 -> 1 | Z24: =IF(ISERROR((G24+L24+M24)/(D24+L24+M24+Q24)),0,(G24+L24+M24)/(D24+L24+M24+Q24)) -> 0.5 | AA24: =Z24+X24 -> 1 | AC24: =IF(ISERROR((S24+T24)/(U24+S24+T24)),0,(S24+T24)/(U24+S24+T24)) -> 0.8571428571
A25: ='Wesseling Vermins'!A48 -> 30 | B25: =IF('Wesseling Vermins'!B48="","",'Wesseling Vermins'!B48) -> Seiden | C25: =SUM('Wesseling Vermins'!D48:D52) -> 1 | D25: =SUM('Wesseling Vermins'!E48:E52) -> 0 | E25: =SUM('Wesseling Vermins'!F48:F52) -> 1 | F25: =SUM('Wesseling Vermins'!G48:G52) -> 0 | G25: =SUM('Wesseling Vermins'!H48:H52) -> 0 | H25: =SUM('Wesseling Vermins'!I48:I52) -> 0 | I25: =SUM('Wesseling Vermins'!J48:J52) -> 0 | J25: =SUM('Wesseling Vermins'!K48:K52) -> 0 | K25: =SUM('Wesseling Vermins'!L48:L52) -> 0 | L25: =SUM('Wesseling Vermins'!M48:M52) -> 0 | M25: =SUM('Wesseling Vermins'!N48:N52) -> 1 | N25: =SUM('Wesseling Vermins'!O48:O52) -> 0 | O25: =SUM('Wesseling Vermins'!P48:P52) -> 0 | P25: =SUM('Wesseling Vermins'!Q48:Q52) -> 0 | Q25: =SUM('Wesseling Vermins'!R48:R52) -> 0 | S25: =SUM('Wesseling Vermins'!T48:T52) -> 0 | T25: =SUM('Wesseling Vermins'!U48:U52) -> 1 | U25: =SUM('Wesseling Vermins'!V48:V52) -> 0 | W25: =IF(ISERROR(G25/D25),0,G25/D25) -> 0 | X25: =IF(ISERROR((4*J25+3*I25+2*H25+G25-SUM(H25:J25))/D25),0,(4*J25+3*I25+2*H25+G25-SUM(H25:J25))/D25) -> 0 | Y25: =W25+X25 -> 0 | Z25: =IF(ISERROR((G25+L25+M25)/(D25+L25+M25+Q25)),0,(G25+L25+M25)/(D25+L25+M25+Q25)) -> 1 | AA25: =Z25+X25 -> 1 | AC25: =IF(ISERROR((S25+T25)/(U25+S25+T25)),0,(S25+T25)/(U25+S25+T25)) -> 1
A26: ='Haar Disciples'!A48 -> 52 | B26: =IF('Haar Disciples'!B48="","",'Haar Disciples'!B48) -> Huber | C26: =SUM('Haar Disciples'!D48:D52) -> 1 | D26: =SUM('Haar Disciples'!E48:E52) -> 0 | E26: =SUM('Haar Disciples'!F48:F52) -> 2 | F26: =SUM('Haar Disciples'!G48:G52) -> 0 | G26: =SUM('Haar Disciples'!H48:H52) -> 0 | H26: =SUM('Haar Disciples'!I48:I52) -> 0 | I26: =SUM('Haar Disciples'!J48:J52) -> 0 | J26: =SUM('Haar Disciples'!K48:K52) -> 0 | K26: =SUM('Haar Disciples'!L48:L52) -> 0 | L26: =SUM('Haar Disciples'!M48:M52) -> 1 | M26: =SUM('Haar Disciples'!N48:N52) -> 0 | N26: =SUM('Haar Disciples'!O48:O52) -> 0 | O26: =SUM('Haar Disciples'!P48:P52) -> 0 | P26: =SUM('Haar Disciples'!Q48:Q52) -> 0 | Q26: =SUM('Haar Disciples'!R48:R52) -> 0 | S26: =SUM('Haar Disciples'!T48:T52) -> 6 | T26: =SUM('Haar Disciples'!U48:U52) -> 5 | U26: =SUM('Haar Disciples'!V48:V52) -> 2 | W26: =IF(ISERROR(G26/D26),0,G26/D26) -> 0 | X26: =IF(ISERROR((4*J26+3*I26+2*H26+G26-SUM(H26:J26))/D26),0,(4*J26+3*I26+2*H26+G26-SUM(H26:J26))/D26) -> 0 | Y26: =W26+X26 -> 0 | Z26: =IF(ISERROR((G26+L26+M26)/(D26+L26+M26+Q26)),0,(G26+L26+M26)/(D26+L26+M26+Q26)) -> 1 | AA26: =Z26+X26 -> 1 | AC26: =IF(ISERROR((S26+T26)/(U26+S26+T26)),0,(S26+T26)/(U26+S26+T26)) -> 0.8461538462
A27: ='Haar Disciples'!A33 -> 49 | B27: =IF('Haar Disciples'!B33="","",'Haar Disciples'!B33) -> Marric | C27: =SUM('Haar Disciples'!D33:D37) -> 13 | D27: =SUM('Haar Disciples'!E33:E37) -> 11 | E27: =SUM('Haar Disciples'!F33:F37) -> 5 | F27: =SUM('Haar Disciples'!G33:G37) -> 1 | G27: =SUM('Haar Disciples'!H33:H37) -> 5 | H27: =SUM('Haar Disciples'!I33:I37) -> 0 | I27: =SUM('Haar Disciples'!J33:J37) -> 0 | J27: =SUM('Haar Disciples'!K33:K37) -> 0 | K27: =SUM('Haar Disciples'!L33:L37) -> 1 | L27: =SUM('Haar Disciples'!M33:M37) -> 1 | M27: =SUM('Haar Disciples'!N33:N37) -> 0 | N27: =SUM('Haar Disciples'!O33:O37) -> 0 | O27: =SUM('Haar Disciples'!P33:P37) -> 0 | P27: =SUM('Haar Disciples'!Q33:Q37) -> 0 | Q27: =SUM('Haar Disciples'!R33:R37) -> 0 | S27: =SUM('Haar Disciples'!T33:T37) -> 1 | T27: =SUM('Haar Disciples'!U33:U37) -> 1 | U27: =SUM('Haar Disciples'!V33:V37) -> 0 | W27: =IF(ISERROR(G27/D27),0,G27/D27) -> 0.4545454545 | X27: =IF(ISERROR((4*J27+3*I27+2*H27+G27-SUM(H27:J27))/D27),0,(4*J27+3*I27+2*H27+G27-SUM(H27:J27))/D27) -> 0.4545454545 | Y27: =W27+X27 -> 0.9090909091 | Z27: =IF(ISERROR((G27+L27+M27)/(D27+L27+M27+Q27)),0,(G27+L27+M27)/(D27+L27+M27+Q27)) -> 0.5 | AA27: =Z27+X27 -> 0.9545454545 | AC27: =IF(ISERROR((S27+T27)/(U27+S27+T27)),0,(S27+T27)/(U27+S27+T27)) -> 1
A28: ='Wesseling Vermins'!A23 -> 25 | B28: =IF('Wesseling Vermins'!B23="","",'Wesseling Vermins'!B23) -> Thies | C28: =SUM('Wesseling Vermins'!D23:D27) -> 12 | D28: =SUM('Wesseling Vermins'!E23:E27) -> 8 | E28: =SUM('Wesseling Vermins'!F23:F27) -> 4 | F28: =SUM('Wesseling Vermins'!G23:G27) -> 1 | G28: =SUM('Wesseling Vermins'!H23:H27) -> 2 | H28: =SUM('Wesseling Vermins'!I23:I27) -> 1 | I28: =SUM('Wesseling Vermins'!J23:J27) -> 0 | J28: =SUM('Wesseling Vermins'!K23:K27) -> 0 | K28: =SUM('Wesseling Vermins'!L23:L27) -> 4 | L28: =SUM('Wesseling Vermins'!M23:M27) -> 4 | M28: =SUM('Wesseling Vermins'!N23:N27) -> 0 | N28: =SUM('Wesseling Vermins'!O23:O27) -> 0 | O28: =SUM('Wesseling Vermins'!P23:P27) -> 0 | P28: =SUM('Wesseling Vermins'!Q23:Q27) -> 0 | Q28: =SUM('Wesseling Vermins'!R23:R27) -> 0 | S28: =SUM('Wesseling Vermins'!T23:T27) -> 1 | T28: =SUM('Wesseling Vermins'!U23:U27) -> 2 | U28: =SUM('Wesseling Vermins'!V23:V27) -> 0 | W28: =IF(ISERROR(G28/D28),0,G28/D28) -> 0.25 | X28: =IF(ISERROR((4*J28+3*I28+2*H28+G28-SUM(H28:J28))/D28),0,(4*J28+3*I28+2*H28+G28-SUM(H28:J28))/D28) -> 0.375 | Y28: =W28+X28 -> 0.625 | Z28: =IF(ISERROR((G28+L28+M28)/(D28+L28+M28+Q28)),0,(G28+L28+M28)/(D28+L28+M28+Q28)) -> 0.5 | AA28: =Z28+X28 -> 0.875 | AC28: =IF(ISERROR((S28+T28)/(U28+S28+T28)),0,(S28+T28)/(U28+S28+T28)) -> 1
A29: ='Karlsruhe Cougars'!A18 -> 60 | B29: =IF('Karlsruhe Cougars'!B18="","",'Karlsruhe Cougars'!B18) -> Apel | C29: =SUM('Karlsruhe Cougars'!D18:D22) -> 11 | D29: =SUM('Karlsruhe Cougars'!E18:E22) -> 5 | E29: =SUM('Karlsruhe Cougars'!F18:F22) -> 3 | F29: =SUM('Karlsruhe Cougars'!G18:G22) -> 1 | G29: =SUM('Karlsruhe Cougars'!H18:H22) -> 1 | H29: =SUM('Karlsruhe Cougars'!I18:I22) -> 0 | I29: =SUM('Karlsruhe Cougars'!J18:J22) -> 0 | J29: =SUM('Karlsruhe Cougars'!K18:K22) -> 0 | K29: =SUM('Karlsruhe Cougars'!L18:L22) -> 0 | L29: =SUM('Karlsruhe Cougars'!M18:M22) -> 5 | M29: =SUM('Karlsruhe Cougars'!N18:N22) -> 1 | N29: =SUM('Karlsruhe Cougars'!O18:O22) -> 3 | O29: =SUM('Karlsruhe Cougars'!P18:P22) -> 0 | P29: =SUM('Karlsruhe Cougars'!Q18:Q22) -> 0 | Q29: =SUM('Karlsruhe Cougars'!R18:R22) -> 0 | S29: =SUM('Karlsruhe Cougars'!T18:T22) -> 1 | T29: =SUM('Karlsruhe Cougars'!U18:U22) -> 9 | U29: =SUM('Karlsruhe Cougars'!V18:V22) -> 5 | W29: =IF(ISERROR(G29/D29),0,G29/D29) -> 0.2 | X29: =IF(ISERROR((4*J29+3*I29+2*H29+G29-SUM(H29:J29))/D29),0,(4*J29+3*I29+2*H29+G29-SUM(H29:J29))/D29) -> 0.2 | Y29: =W29+X29 -> 0.4 | Z29: =IF(ISERROR((G29+L29+M29)/(D29+L29+M29+Q29)),0,(G29+L29+M29)/(D29+L29+M29+Q29)) -> 0.6363636364 | AA29: =Z29+X29 -> 0.8363636364 | AC29: =IF(ISERROR((S29+T29)/(U29+S29+T29)),0,(S29+T29)/(U29+S29+T29)) -> 0.6666666667
A30: ='Neunkirchen Nightmares'!A43 -> 75 | B30: =IF('Neunkirchen Nightmares'!B43="","",'Neunkirchen Nightmares'!B43) -> Pietrzyt | C30: =SUM('Neunkirchen Nightmares'!D43:D47) -> 8 | D30: =SUM('Neunkirchen Nightmares'!E43:E47) -> 6 | E30: =SUM('Neunkirchen Nightmares'!F43:F47) -> 1 | F30: =SUM('Neunkirchen Nightmares'!G43:G47) -> 1 | G30: =SUM('Neunkirchen Nightmares'!H43:H47) -> 2 | H30: =SUM('Neunkirchen Nightmares'!I43:I47) -> 0 | I30: =SUM('Neunkirchen Nightmares'!J43:J47) -> 0 | J30: =SUM('Neunkirchen Nightmares'!K43:K47) -> 0 | K30: =SUM('Neunkirchen Nightmares'!L43:L47) -> 1 | L30: =SUM('Neunkirchen Nightmares'!M43:M47) -> 2 | M30: =SUM('Neunkirchen Nightmares'!N43:N47) -> 0 | N30: =SUM('Neunkirchen Nightmares'!O43:O47) -> 0 | O30: =SUM('Neunkirchen Nightmares'!P43:P47) -> 0 | P30: =SUM('Neunkirchen Nightmares'!Q43:Q47) -> 0 | Q30: =SUM('Neunkirchen Nightmares'!R43:R47) -> 0 | S30: =SUM('Neunkirchen Nightmares'!T43:T47) -> 1 | T30: =SUM('Neunkirchen Nightmares'!U43:U47) -> 1 | U30: =SUM('Neunkirchen Nightmares'!V43:V47) -> 2 | W30: =IF(ISERROR(G30/D30),0,G30/D30) -> 0.3333333333 | X30: =IF(ISERROR((4*J30+3*I30+2*H30+G30-SUM(H30:J30))/D30),0,(4*J30+3*I30+2*H30+G30-SUM(H30:J30))/D30) -> 0.3333333333 | Y30: =W30+X30 -> 0.6666666667 | Z30: =IF(ISERROR((G30+L30+M30)/(D30+L30+M30+Q30)),0,(G30+L30+M30)/(D30+L30+M30+Q30)) -> 0.5 | AA30: =Z30+X30 -> 0.8333333333 | AC30: =IF(ISERROR((S30+T30)/(U30+S30+T30)),0,(S30+T30)/(U30+S30+T30)) -> 0.5
A31: ='Wesseling Vermins'!A3 -> 21 | B31: =IF('Wesseling Vermins'!B3="","",'Wesseling Vermins'!B3) -> Dunford | C31: =SUM('Wesseling Vermins'!D3:D7) -> 13 | D31: =SUM('Wesseling Vermins'!E3:E7) -> 7 | E31: =SUM('Wesseling Vermins'!F3:F7) -> 6 | F31: =SUM('Wesseling Vermins'!G3:G7) -> 3 | G31: =SUM('Wesseling Vermins'!H3:H7) -> 1 | H31: =SUM('Wesseling Vermins'!I3:I7) -> 1 | I31: =SUM('Wesseling Vermins'!J3:J7) -> 0 | J31: =SUM('Wesseling Vermins'!K3:K7) -> 0 | K31: =SUM('Wesseling Vermins'!L3:L7) -> 1 | L31: =SUM('Wesseling Vermins'!M3:M7) -> 6 | M31: =SUM('Wesseling Vermins'!N3:N7) -> 0 | N31: =SUM('Wesseling Vermins'!O3:O7) -> 2 | O31: =SUM('Wesseling Vermins'!P3:P7) -> 0 | P31: =SUM('Wesseling Vermins'!Q3:Q7) -> 0 | Q31: =SUM('Wesseling Vermins'!R3:R7) -> 0 | S31: =SUM('Wesseling Vermins'!T3:T7) -> 2 | T31: =SUM('Wesseling Vermins'!U3:U7) -> 30 | U31: =SUM('Wesseling Vermins'!V3:V7) -> 0 | W31: =IF(ISERROR(G31/D31),0,G31/D31) -> 0.1428571429 | X31: =IF(ISERROR((4*J31+3*I31+2*H31+G31-SUM(H31:J31))/D31),0,(4*J31+3*I31+2*H31+G31-SUM(H31:J31))/D31) -> 0.2857142857 | Y31: =W31+X31 -> 0.4285714286 | Z31: =IF(ISERROR((G31+L31+M31)/(D31+L31+M31+Q31)),0,(G31+L31+M31)/(D31+L31+M31+Q31)) -> 0.5384615385 | AA31: =Z31+X31 -> 0.8241758242 | AC31: =IF(ISERROR((S31+T31)/(U31+S31+T31)),0,(S31+T31)/(U31+S31+T31)) -> 1
A32: ='Haar Disciples'!A13 -> 45 | B32: =IF('Haar Disciples'!B13="","",'Haar Disciples'!B13) -> Laack | C32: =SUM('Haar Disciples'!D13:D17) -> 17 | D32: =SUM('Haar Disciples'!E13:E17) -> 16 | E32: =SUM('Haar Disciples'!F13:F17) -> 4 | F32: =SUM('Haar Disciples'!G13:G17) -> 2 | G32: =SUM('Haar Disciples'!H13:H17) -> 4 | H32: =SUM('Haar Disciples'!I13:I17) -> 0 | I32: =SUM('Haar Disciples'!J13:J17) -> 1 | J32: =SUM('Haar Disciples'!K13:K17) -> 0 | K32: =SUM('Haar Disciples'!L13:L17) -> 4 | L32: =SUM('Haar Disciples'!M13:M17) -> 1 | M32: =SUM('Haar Disciples'!N13:N17) -> 0 | N32: =SUM('Haar Disciples'!O13:O17) -> 0 | O32: =SUM('Haar Disciples'!P13:P17) -> 0 | P32: =SUM('Haar Disciples'!Q13:Q17) -> 0 | Q32: =SUM('Haar Disciples'!R13:R17) -> 0 | S32: =SUM('Haar Disciples'!T13:T17) -> 1 | T32: =SUM('Haar Disciples'!U13:U17) -> 3 | U32: =SUM('Haar Disciples'!V13:V17) -> 1 | W32: =IF(ISERROR(G32/D32),0,G32/D32) -> 0.25 | X32: =IF(ISERROR((4*J32+3*I32+2*H32+G32-SUM(H32:J32))/D32),0,(4*J32+3*I32+2*H32+G32-SUM(H32:J32))/D32) -> 0.375 | Y32: =W32+X32 -> 0.625 | Z32: =IF(ISERROR((G32+L32+M32)/(D32+L32+M32+Q32)),0,(G32+L32+M32)/(D32+L32+M32+Q32)) -> 0.2941176471 | AA32: =Z32+X32 -> 0.6691176471 | AC32: =IF(ISERROR((S32+T32)/(U32+S32+T32)),0,(S32+T32)/(U32+S32+T32)) -> 0.8
A33: ='Karlsruhe Cougars'!A43 -> 65 | B33: =IF('Karlsruhe Cougars'!B43="","",'Karlsruhe Cougars'!B43) -> Rauprich | C33: =SUM('Karlsruhe Cougars'!D43:D47) -> 10 | D33: =SUM('Karlsruhe Cougars'!E43:E47) -> 5 | E33: =SUM('Karlsruhe Cougars'!F43:F47) -> 3 | F33: =SUM('Karlsruhe Cougars'!G43:G47) -> 1 | G33: =SUM('Karlsruhe Cougars'!H43:H47) -> 1 | H33: =SUM('Karlsruhe Cougars'!I43:I47) -> 0 | I33: =SUM('Karlsruhe Cougars'!J43:J47) -> 0 | J33: =SUM('Karlsruhe Cougars'!K43:K47) -> 0 | K33: =SUM('Karlsruhe Cougars'!L43:L47) -> 2 | L33: =SUM('Karlsruhe Cougars'!M43:M47) -> 5 | M33: =SUM('Karlsruhe Cougars'!N43:N47) -> 0 | N33: =SUM('Karlsruhe Cougars'!O43:O47) -> 0 | O33: =SUM('Karlsruhe Cougars'!P43:P47) -> 0 | P33: =SUM('Karlsruhe Cougars'!Q43:Q47) -> 0 | Q33: =SUM('Karlsruhe Cougars'!R43:R47) -> 0 | S33: =SUM('Karlsruhe Cougars'!T43:T47) -> 2 | T33: =SUM('Karlsruhe Cougars'!U43:U47) -> 4 | U33: =SUM('Karlsruhe Cougars'!V43:V47) -> 1 | W33: =IF(ISERROR(G33/D33),0,G33/D33) -> 0.2 | X33: =IF(ISERROR((4*J33+3*I33+2*H33+G33-SUM(H33:J33))/D33),0,(4*J33+3*I33+2*H33+G33-SUM(H33:J33))/D33) -> 0.2 | Y33: =W33+X33 -> 0.4 | Z33: =IF(ISERROR((G33+L33+M33)/(D33+L33+M33+Q33)),0,(G33+L33+M33)/(D33+L33+M33+Q33)) -> 0.6 | AA33: =Z33+X33 -> 0.8 | AC33: =IF(ISERROR((S33+T33)/(U33+S33+T33)),0,(S33+T33)/(U33+S33+T33)) -> 0.8571428571
A34: ='Freising Grizzlies'!A43 -> 40 | B34: =IF('Freising Grizzlies'!B43="","",'Freising Grizzlies'!B43) -> Brosch | C34: =SUM('Freising Grizzlies'!D43:D47) -> 13 | D34: =SUM('Freising Grizzlies'!E43:E47) -> 11 | E34: =SUM('Freising Grizzlies'!F43:F47) -> 3 | F34: =SUM('Freising Grizzlies'!G43:G47) -> 0 | G34: =SUM('Freising Grizzlies'!H43:H47) -> 4 | H34: =SUM('Freising Grizzlies'!I43:I47) -> 0 | I34: =SUM('Freising Grizzlies'!J43:J47) -> 0 | J34: =SUM('Freising Grizzlies'!K43:K47) -> 0 | K34: =SUM('Freising Grizzlies'!L43:L47) -> 2 | L34: =SUM('Freising Grizzlies'!M43:M47) -> 1 | M34: =SUM('Freising Grizzlies'!N43:N47) -> 0 | N34: =SUM('Freising Grizzlies'!O43:O47) -> 1 | O34: =SUM('Freising Grizzlies'!P43:P47) -> 1 | P34: =SUM('Freising Grizzlies'!Q43:Q47) -> 1 | Q34: =SUM('Freising Grizzlies'!R43:R47) -> 0 | S34: =SUM('Freising Grizzlies'!T43:T47) -> 2 | T34: =SUM('Freising Grizzlies'!U43:U47) -> 22 | U34: =SUM('Freising Grizzlies'!V43:V47) -> 1 | W34: =IF(ISERROR(G34/D34),0,G34/D34) -> 0.3636363636 | X34: =IF(ISERROR((4*J34+3*I34+2*H34+G34-SUM(H34:J34))/D34),0,(4*J34+3*I34+2*H34+G34-SUM(H34:J34))/D34) -> 0.3636363636 | Y34: =W34+X34 -> 0.7272727273 | Z34: =IF(ISERROR((G34+L34+M34)/(D34+L34+M34+Q34)),0,(G34+L34+M34)/(D34+L34+M34+Q34)) -> 0.4166666667 | AA34: =Z34+X34 -> 0.7803030303 | AC34: =IF(ISERROR((S34+T34)/(U34+S34+T34)),0,(S34+T34)/(U34+S34+T34)) -> 0.96
A35: ='Karlsruhe Cougars'!A38 -> 64 | B35: =IF('Karlsruhe Cougars'!B38="","",'Karlsruhe Cougars'!B38) -> Müller | C35: =SUM('Karlsruhe Cougars'!D38:D42) -> 11 | D35: =SUM('Karlsruhe Cougars'!E38:E42) -> 11 | E35: =SUM('Karlsruhe Cougars'!F38:F42) -> 4 | F35: =SUM('Karlsruhe Cougars'!G38:G42) -> 0 | G35: =SUM('Karlsruhe Cougars'!H38:H42) -> 4 | H35: =SUM('Karlsruhe Cougars'!I38:I42) -> 0 | I35: =SUM('Karlsruhe Cougars'!J38:J42) -> 0 | J35: =SUM('Karlsruhe Cougars'!K38:K42) -> 0 | K35: =SUM('Karlsruhe Cougars'!L38:L42) -> 1 | L35: =SUM('Karlsruhe Cougars'!M38:M42) -> 0 | M35: =SUM('Karlsruhe Cougars'!N38:N42) -> 0 | N35: =SUM('Karlsruhe Cougars'!O38:O42) -> 0 | O35: =SUM('Karlsruhe Cougars'!P38:P42) -> 0 | P35: =SUM('Karlsruhe Cougars'!Q38:Q42) -> 0 | Q35: =SUM('Karlsruhe Cougars'!R38:R42) -> 0 | S35: =SUM('Karlsruhe Cougars'!T38:T42) -> 2 | T35: =SUM('Karlsruhe Cougars'!U38:U42) -> 4 | U35: =SUM('Karlsruhe Cougars'!V38:V42) -> 1 | W35: =IF(ISERROR(G35/D35),0,G35/D35) -> 0.3636363636 | X35: =IF(ISERROR((4*J35+3*I35+2*H35+G35-SUM(H35:J35))/D35),0,(4*J35+3*I35+2*H35+G35-SUM(H35:J35))/D35) -> 0.3636363636 | Y35: =W35+X35 -> 0.7272727273 | Z35: =IF(ISERROR((G35+L35+M35)/(D35+L35+M35+Q35)),0,(G35+L35+M35)/(D35+L35+M35+Q35)) -> 0.3636363636 | AA35: =Z35+X35 -> 0.7272727273 | AC35: =IF(ISERROR((S35+T35)/(U35+S35+T35)),0,(S35+T35)/(U35+S35+T35)) -> 0.8571428571
A36: ='Karlsruhe Cougars'!A8 -> 58 | B36: =IF('Karlsruhe Cougars'!B8="","",'Karlsruhe Cougars'!B8) -> Seso | C36: =SUM('Karlsruhe Cougars'!D8:D12) -> 12 | D36: =SUM('Karlsruhe Cougars'!E8:E12) -> 10 | E36: =SUM('Karlsruhe Cougars'!F8:F12) -> 3 | F36: =SUM('Karlsruhe Cougars'!G8:G12) -> 1 | G36: =SUM('Karlsruhe Cougars'!H8:H12) -> 3 | H36: =SUM('Karlsruhe Cougars'!I8:I12) -> 0 | I36: =SUM('Karlsruhe Cougars'!J8:J12) -> 0 | J36: =SUM('Karlsruhe Cougars'!K8:K12) -> 0 | K36: =SUM('Karlsruhe Cougars'!L8:L12) -> 3 | L36: =SUM('Karlsruhe Cougars'!M8:M12) -> 1 | M36: =SUM('Karlsruhe Cougars'!N8:N12) -> 1 | N36: =SUM('Karlsruhe Cougars'!O8:O12) -> 1 | O36: =SUM('Karlsruhe Cougars'!P8:P12) -> 0 | P36: =SUM('Karlsruhe Cougars'!Q8:Q12) -> 0 | Q36: =SUM('Karlsruhe Cougars'!R8:R12) -> 0 | S36: =SUM('Karlsruhe Cougars'!T8:T12) -> 2 | T36: =SUM('Karlsruhe Cougars'!U8:U12) -> 9 | U36: =SUM('Karlsruhe Cougars'!V8:V12) -> 3 | W36: =IF(ISERROR(G36/D36),0,G36/D36) -> 0.3 | X36: =IF(ISERROR((4*J36+3*I36+2*H36+G36-SUM(H36:J36))/D36),0,(4*J36+3*I36+2*H36+G36-SUM(H36:J36))/D36) -> 0.3 | Y36: =W36+X36 -> 0.6 | Z36: =IF(ISERROR((G36+L36+M36)/(D36+L36+M36+Q36)),0,(G36+L36+M36)/(D36+L36+M36+Q36)) -> 0.4166666667 | AA36: =Z36+X36 -> 0.7166666667 | AC36: =IF(ISERROR((S36+T36)/(U36+S36+T36)),0,(S36+T36)/(U36+S36+T36)) -> 0.7857142857
A37: ='Neunkirchen Nightmares'!A33 -> 73 | B37: =IF('Neunkirchen Nightmares'!B33="","",'Neunkirchen Nightmares'!B33) -> Hupperich | C37: =SUM('Neunkirchen Nightmares'!D33:D37) -> 7 | D37: =SUM('Neunkirchen Nightmares'!E33:E37) -> 2 | E37: =SUM('Neunkirchen Nightmares'!F33:F37) -> 2 | F37: =SUM('Neunkirchen Nightmares'!G33:G37) -> 0 | G37: =SUM('Neunkirchen Nightmares'!H33:H37) -> 0 | H37: =SUM('Neunkirchen Nightmares'!I33:I37) -> 0 | I37: =SUM('Neunkirchen Nightmares'!J33:J37) -> 0 | J37: =SUM('Neunkirchen Nightmares'!K33:K37) -> 0 | K37: =SUM('Neunkirchen Nightmares'!L33:L37) -> 2 | L37: =SUM('Neunkirchen Nightmares'!M33:M37) -> 5 | M37: =SUM('Neunkirchen Nightmares'!N33:N37) -> 0 | N37: =SUM('Neunkirchen Nightmares'!O33:O37) -> 2 | O37: =SUM('Neunkirchen Nightmares'!P33:P37) -> 0 | P37: =SUM('Neunkirchen Nightmares'!Q33:Q37) -> 0 | Q37: =SUM('Neunkirchen Nightmares'!R33:R37) -> 0 | S37: =SUM('Neunkirchen Nightmares'!T33:T37) -> 1 | T37: =SUM('Neunkirchen Nightmares'!U33:U37) -> 0 | U37: =SUM('Neunkirchen Nightmares'!V33:V37) -> 0 | W37: =IF(ISERROR(G37/D37),0,G37/D37) -> 0 | X37: =IF(ISERROR((4*J37+3*I37+2*H37+G37-SUM(H37:J37))/D37),0,(4*J37+3*I37+2*H37+G37-SUM(H37:J37))/D37) -> 0 | Y37: =W37+X37 -> 0 | Z37: =IF(ISERROR((G37+L37+M37)/(D37+L37+M37+Q37)),0,(G37+L37+M37)/(D37+L37+M37+Q37)) -> 0.7142857143 | AA37: =Z37+X37 -> 0.7142857143 | AC37: =IF(ISERROR((S37+T37)/(U37+S37+T37)),0,(S37+T37)/(U37+S37+T37)) -> 1
A38: ='Neunkirchen Nightmares'!A38 -> 74 | B38: =IF('Neunkirchen Nightmares'!B38="","",'Neunkirchen Nightmares'!B38) -> Kaufner | C38: =SUM('Neunkirchen Nightmares'!D38:D42) -> 7 | D38: =SUM('Neunkirchen Nightmares'!E38:E42) -> 2 | E38: =SUM('Neunkirchen Nightmares'!F38:F42) -> 2 | F38: =SUM('Neunkirchen Nightmares'!G38:G42) -> 1 | G38: =SUM('Neunkirchen Nightmares'!H38:H42) -> 0 | H38: =SUM('Neunkirchen Nightmares'!I38:I42) -> 0 | I38: =SUM('Neunkirchen Nightmares'!J38:J42) -> 0 | J38: =SUM('Neunkirchen Nightmares'!K38:K42) -> 0 | K38: =SUM('Neunkirchen Nightmares'!L38:L42) -> 2 | L38: =SUM('Neunkirchen Nightmares'!M38:M42) -> 4 | M38: =SUM('Neunkirchen Nightmares'!N38:N42) -> 0 | N38: =SUM('Neunkirchen Nightmares'!O38:O42) -> 0 | O38: =SUM('Neunkirchen Nightmares'!P38:P42) -> 0 | P38: =SUM('Neunkirchen Nightmares'!Q38:Q42) -> 1 | Q38: =SUM('Neunkirchen Nightmares'!R38:R42) -> 0 | S38: =SUM('Neunkirchen Nightmares'!T38:T42) -> 0 | T38: =SUM('Neunkirchen Nightmares'!U38:U42) -> 0 | U38: =SUM('Neunkirchen Nightmares'!V38:V42) -> 0 | W38: =IF(ISERROR(G38/D38),0,G38/D38) -> 0 | X38: =IF(ISERROR((4*J38+3*I38+2*H38+G38-SUM(H38:J38))/D38),0,(4*J38+3*I38+2*H38+G38-SUM(H38:J38))/D38) -> 0 | Y38: =W38+X38 -> 0 | Z38: =IF(ISERROR((G38+L38+M38)/(D38+L38+M38+Q38)),0,(G38+L38+M38)/(D38+L38+M38+Q38)) -> 0.6666666667 | AA38: =Z38+X38 -> 0.6666666667 | AC38: =IF(ISERROR((S38+T38)/(U38+S38+T38)),0,(S38+T38)/(U38+S38+T38)) -> 0
A39: ='Knights 2'!A13 -> 20 | B39: =IF('Knights 2'!B13="","",'Knights 2'!B13) -> Piotrowski | C39: =SUM('Knights 2'!D13:D17) -> 3 | D39: =SUM('Knights 2'!E13:E17) -> 3 | E39: =SUM('Knights 2'!F13:F17) -> 0 | F39: =SUM('Knights 2'!G13:G17) -> 1 | G39: =SUM('Knights 2'!H13:H17) -> 1 | H39: =SUM('Knights 2'!I13:I17) -> 0 | I39: =SUM('Knights 2'!J13:J17) -> 0 | J39: =SUM('Knights 2'!K13:K17) -> 0 | K39: =SUM('Knights 2'!L13:L17) -> 0 | L39: =SUM('Knights 2'!M13:M17) -> 0 | M39: =SUM('Knights 2'!N13:N17) -> 0 | N39: =SUM('Knights 2'!O13:O17) -> 0 | O39: =SUM('Knights 2'!P13:P17) -> 0 | P39: =SUM('Knights 2'!Q13:Q17) -> 0 | Q39: =SUM('Knights 2'!R13:R17) -> 0 | S39: =SUM('Knights 2'!T13:T17) -> 1 | T39: =SUM('Knights 2'!U13:U17) -> 0 | U39: =SUM('Knights 2'!V13:V17) -> 0 | W39: =IF(ISERROR(G39/D39),0,G39/D39) -> 0.3333333333 | X39: =IF(ISERROR((4*J39+3*I39+2*H39+G39-SUM(H39:J39))/D39),0,(4*J39+3*I39+2*H39+G39-SUM(H39:J39))/D39) -> 0.3333333333 | Y39: =W39+X39 -> 0.6666666667 | Z39: =IF(ISERROR((G39+L39+M39)/(D39+L39+M39+Q39)),0,(G39+L39+M39)/(D39+L39+M39+Q39)) -> 0.3333333333 | AA39: =Z39+X39 -> 0.6666666667 | AC39: =IF(ISERROR((S39+T39)/(U39+S39+T39)),0,(S39+T39)/(U39+S39+T39)) -> 1
A40: ='Hamburg Knights'!A38 -> 8 | B40: =IF('Hamburg Knights'!B38="","",'Hamburg Knights'!B38) -> Feistel | C40: =SUM('Hamburg Knights'!D38:D42) -> 3 | D40: =SUM('Hamburg Knights'!E38:E42) -> 3 | E40: =SUM('Hamburg Knights'!F38:F42) -> 0 | F40: =SUM('Hamburg Knights'!G38:G42) -> 1 | G40: =SUM('Hamburg Knights'!H38:H42) -> 1 | H40: =SUM('Hamburg Knights'!I38:I42) -> 0 | I40: =SUM('Hamburg Knights'!J38:J42) -> 0 | J40: =SUM('Hamburg Knights'!K38:K42) -> 0 | K40: =SUM('Hamburg Knights'!L38:L42) -> 0 | L40: =SUM('Hamburg Knights'!M38:M42) -> 0 | M40: =SUM('Hamburg Knights'!N38:N42) -> 0 | N40: =SUM('Hamburg Knights'!O38:O42) -> 0 | O40: =SUM('Hamburg Knights'!P38:P42) -> 1 | P40: =SUM('Hamburg Knights'!Q38:Q42) -> 0 | Q40: =SUM('Hamburg Knights'!R38:R42) -> 0 | S40: =SUM('Hamburg Knights'!T38:T42) -> 0 | T40: =SUM('Hamburg Knights'!U38:U42) -> 0 | U40: =SUM('Hamburg Knights'!V38:V42) -> 0 | W40: =IF(ISERROR(G40/D40),0,G40/D40) -> 0.3333333333 | X40: =IF(ISERROR((4*J40+3*I40+2*H40+G40-SUM(H40:J40))/D40),0,(4*J40+3*I40+2*H40+G40-SUM(H40:J40))/D40) -> 0.3333333333 | Y40: =W40+X40 -> 0.6666666667 | Z40: =IF(ISERROR((G40+L40+M40)/(D40+L40+M40+Q40)),0,(G40+L40+M40)/(D40+L40+M40+Q40)) -> 0.3333333333 | AA40: =Z40+X40 -> 0.6666666667 | AC40: =IF(ISERROR((S40+T40)/(U40+S40+T40)),0,(S40+T40)/(U40+S40+T40)) -> 0
A41: ='Freising Grizzlies'!A23 -> 36 | B41: =IF('Freising Grizzlies'!B23="","",'Freising Grizzlies'!B23) -> Salomon | C41: =SUM('Freising Grizzlies'!D23:D27) -> 16 | D41: =SUM('Freising Grizzlies'!E23:E27) -> 10 | E41: =SUM('Freising Grizzlies'!F23:F27) -> 6 | F41: =SUM('Freising Grizzlies'!G23:G27) -> 4 | G41: =SUM('Freising Grizzlies'!H23:H27) -> 2 | H41: =SUM('Freising Grizzlies'!I23:I27) -> 0 | I41: =SUM('Freising Grizzlies'!J23:J27) -> 0 | J41: =SUM('Freising Grizzlies'!K23:K27) -> 0 | K41: =SUM('Freising Grizzlies'!L23:L27) -> 1 | L41: =SUM('Freising Grizzlies'!M23:M27) -> 4 | M41: =SUM('Freising Grizzlies'!N23:N27) -> 0 | N41: =SUM('Freising Grizzlies'!O23:O27) -> 1 | O41: =SUM('Freising Grizzlies'!P23:P27) -> 0 | P41: =SUM('Freising Grizzlies'!Q23:Q27) -> 1 | Q41: =SUM('Freising Grizzlies'!R23:R27) -> 0 | S41: =SUM('Freising Grizzlies'!T23:T27) -> 2 | T41: =SUM('Freising Grizzlies'!U23:U27) -> 1 | U41: =SUM('Freising Grizzlies'!V23:V27) -> 0 | W41: =IF(ISERROR(G41/D41),0,G41/D41) -> 0.2 | X41: =IF(ISERROR((4*J41+3*I41+2*H41+G41-SUM(H41:J41))/D41),0,(4*J41+3*I41+2*H41+G41-SUM(H41:J41))/D41) -> 0.2 | Y41: =W41+X41 -> 0.4 | Z41: =IF(ISERROR((G41+L41+M41)/(D41+L41+M41+Q41)),0,(G41+L41+M41)/(D41+L41+M41+Q41)) -> 0.4285714286 | AA41: =Z41+X41 -> 0.6285714286 | AC41: =IF(ISERROR((S41+T41)/(U41+S41+T41)),0,(S41+T41)/(U41+S41+T41)) -> 1
A42: ='Neunkirchen Nightmares'!A28 -> 72 | B42: =IF('Neunkirchen Nightmares'!B28="","",'Neunkirchen Nightmares'!B28) -> Singer | C42: =SUM('Neunkirchen Nightmares'!D28:D32) -> 7 | D42: =SUM('Neunkirchen Nightmares'!E28:E32) -> 5 | E42: =SUM('Neunkirchen Nightmares'!F28:F32) -> 0 | F42: =SUM('Neunkirchen Nightmares'!G28:G32) -> 0 | G42: =SUM('Neunkirchen Nightmares'!H28:H32) -> 1 | H42: =SUM('Neunkirchen Nightmares'!I28:I32) -> 0 | I42: =SUM('Neunkirchen Nightmares'!J28:J32) -> 0 | J42: =SUM('Neunkirchen Nightmares'!K28:K32) -> 0 | K42: =SUM('Neunkirchen Nightmares'!L28:L32) -> 1 | L42: =SUM('Neunkirchen Nightmares'!M28:M32) -> 2 | M42: =SUM('Neunkirchen Nightmares'!N28:N32) -> 0 | N42: =SUM('Neunkirchen Nightmares'!O28:O32) -> 3 | O42: =SUM('Neunkirchen Nightmares'!P28:P32) -> 0 | P42: =SUM('Neunkirchen Nightmares'!Q28:Q32) -> 0 | Q42: =SUM('Neunkirchen Nightmares'!R28:R32) -> 0 | S42: =SUM('Neunkirchen Nightmares'!T28:T32) -> 0 | T42: =SUM('Neunkirchen Nightmares'!U28:U32) -> 0 | U42: =SUM('Neunkirchen Nightmares'!V28:V32) -> 2 | W42: =IF(ISERROR(G42/D42),0,G42/D42) -> 0.2 | X42: =IF(ISERROR((4*J42+3*I42+2*H42+G42-SUM(H42:J42))/D42),0,(4*J42+3*I42+2*H42+G42-SUM(H42:J42))/D42) -> 0.2 | Y42: =W42+X42 -> 0.4 | Z42: =IF(ISERROR((G42+L42+M42)/(D42+L42+M42+Q42)),0,(G42+L42+M42)/(D42+L42+M42+Q42)) -> 0.4285714286 | AA42: =Z42+X42 -> 0.6285714286 | AC42: =IF(ISERROR((S42+T42)/(U42+S42+T42)),0,(S42+T42)/(U42+S42+T42)) -> 0
A43: ='Neunkirchen Nightmares'!A13 -> 69 | B43: =IF('Neunkirchen Nightmares'!B13="","",'Neunkirchen Nightmares'!B13) -> Weyer | C43: =SUM('Neunkirchen Nightmares'!D13:D17) -> 9 | D43: =SUM('Neunkirchen Nightmares'!E13:E17) -> 6 | E43: =SUM('Neunkirchen Nightmares'!F13:F17) -> 4 | F43: =SUM('Neunkirchen Nightmares'!G13:G17) -> 0 | G43: =SUM('Neunkirchen Nightmares'!H13:H17) -> 1 | H43: =SUM('Neunkirchen Nightmares'!I13:I17) -> 0 | I43: =SUM('Neunkirchen Nightmares'!J13:J17) -> 0 | J43: =SUM('Neunkirchen Nightmares'!K13:K17) -> 0 | K43: =SUM('Neunkirchen Nightmares'!L13:L17) -> 0 | L43: =SUM('Neunkirchen Nightmares'!M13:M17) -> 3 | M43: =SUM('Neunkirchen Nightmares'!N13:N17) -> 0 | N43: =SUM('Neunkirchen Nightmares'!O13:O17) -> 1 | O43: =SUM('Neunkirchen Nightmares'!P13:P17) -> 0 | P43: =SUM('Neunkirchen Nightmares'!Q13:Q17) -> 0 | Q43: =SUM('Neunkirchen Nightmares'!R13:R17) -> 0 | S43: =SUM('Neunkirchen Nightmares'!T13:T17) -> 2 | T43: =SUM('Neunkirchen Nightmares'!U13:U17) -> 1 | U43: =SUM('Neunkirchen Nightmares'!V13:V17) -> 3 | W43: =IF(ISERROR(G43/D43),0,G43/D43) -> 0.1666666667 | X43: =IF(ISERROR((4*J43+3*I43+2*H43+G43-SUM(H43:J43))/D43),0,(4*J43+3*I43+2*H43+G43-SUM(H43:J43))/D43) -> 0.1666666667 | Y43: =W43+X43 -> 0.3333333333 | Z43: =IF(ISERROR((G43+L43+M43)/(D43+L43+M43+Q43)),0,(G43+L43+M43)/(D43+L43+M43+Q43)) -> 0.4444444444 | AA43: =Z43+X43 -> 0.6111111111 | AC43: =IF(ISERROR((S43+T43)/(U43+S43+T43)),0,(S43+T43)/(U43+S43+T43)) -> 0.5
A44: ='Neunkirchen Nightmares'!A3 -> 67 | B44: =IF('Neunkirchen Nightmares'!B3="","",'Neunkirchen Nightmares'!B3) -> Lamersdorf | C44: =SUM('Neunkirchen Nightmares'!D3:D7) -> 11 | D44: =SUM('Neunkirchen Nightmares'!E3:E7) -> 7 | E44: =SUM('Neunkirchen Nightmares'!F3:F7) -> 4 | F44: =SUM('Neunkirchen Nightmares'!G3:G7) -> 1 | G44: =SUM('Neunkirchen Nightmares'!H3:H7) -> 1 | H44: =SUM('Neunkirchen Nightmares'!I3:I7) -> 0 | I44: =SUM('Neunkirchen Nightmares'!J3:J7) -> 0 | J44: =SUM('Neunkirchen Nightmares'!K3:K7) -> 0 | K44: =SUM('Neunkirchen Nightmares'!L3:L7) -> 1 | L44: =SUM('Neunkirchen Nightmares'!M3:M7) -> 4 | M44: =SUM('Neunkirchen Nightmares'!N3:N7) -> 0 | N44: =SUM('Neunkirchen Nightmares'!O3:O7) -> 1 | O44: =SUM('Neunkirchen Nightmares'!P3:P7) -> 0 | P44: =SUM('Neunkirchen Nightmares'!Q3:Q7) -> 0 | Q44: =SUM('Neunkirchen Nightmares'!R3:R7) -> 0 | S44: =SUM('Neunkirchen Nightmares'!T3:T7) -> 2 | T44: =SUM('Neunkirchen Nightmares'!U3:U7) -> 7 | U44: =SUM('Neunkirchen Nightmares'!V3:V7) -> 3 | W44: =IF(ISERROR(G44/D44),0,G44/D44) -> 0.1428571429 | X44: =IF(ISERROR((4*J44+3*I44+2*H44+G44-SUM(H44:J44))/D44),0,(4*J44+3*I44+2*H44+G44-SUM(H44:J44))/D44) -> 0.1428571429 | Y44: =W44+X44 -> 0.2857142857 | Z44: =IF(ISERROR((G44+L44+M44)/(D44+L44+M44+Q44)),0,(G44+L44+M44)/(D44+L44+M44+Q44)) -> 0.4545454545 | AA44: =Z44+X44 -> 0.5974025974 | AC44: =IF(ISERROR((S44+T44)/(U44+S44+T44)),0,(S44+T44)/(U44+S44+T44)) -> 0.75
A45: ='Haar Disciples'!A38 -> 50 | B45: =IF('Haar Disciples'!B38="","",'Haar Disciples'!B38) -> Reinisch, Sophie | C45: =SUM('Haar Disciples'!D38:D42) -> 17 | D45: =SUM('Haar Disciples'!E38:E42) -> 13 | E45: =SUM('Haar Disciples'!F38:F42) -> 3 | F45: =SUM('Haar Disciples'!G38:G42) -> 4 | G45: =SUM('Haar Disciples'!H38:H42) -> 3 | H45: =SUM('Haar Disciples'!I38:I42) -> 0 | I45: =SUM('Haar Disciples'!J38:J42) -> 0 | J45: =SUM('Haar Disciples'!K38:K42) -> 0 | K45: =SUM('Haar Disciples'!L38:L42) -> 1 | L45: =SUM('Haar Disciples'!M38:M42) -> 3 | M45: =SUM('Haar Disciples'!N38:N42) -> 1 | N45: =SUM('Haar Disciples'!O38:O42) -> 2 | O45: =SUM('Haar Disciples'!P38:P42) -> 0 | P45: =SUM('Haar Disciples'!Q38:Q42) -> 0 | Q45: =SUM('Haar Disciples'!R38:R42) -> 0 | S45: =SUM('Haar Disciples'!T38:T42) -> 7 | T45: =SUM('Haar Disciples'!U38:U42) -> 3 | U45: =SUM('Haar Disciples'!V38:V42) -> 2 | W45: =IF(ISERROR(G45/D45),0,G45/D45) -> 0.2307692308 | X45: =IF(ISERROR((4*J45+3*I45+2*H45+G45-SUM(H45:J45))/D45),0,(4*J45+3*I45+2*H45+G45-SUM(H45:J45))/D45) -> 0.2307692308 | Y45: =W45+X45 -> 0.4615384615 | Z45: =IF(ISERROR((G45+L45+M45)/(D45+L45+M45+Q45)),0,(G45+L45+M45)/(D45+L45+M45+Q45)) -> 0.4117647059 | AA45: =Z45+X45 -> 0.6425339367 | AC45: =IF(ISERROR((S45+T45)/(U45+S45+T45)),0,(S45+T45)/(U45+S45+T45)) -> 0.8333333333
A46: ='Wesseling Vermins'!A43 -> 29 | B46: =IF('Wesseling Vermins'!B43="","",'Wesseling Vermins'!B43) -> Kowalewski | C46: =SUM('Wesseling Vermins'!D43:D47) -> 9 | D46: =SUM('Wesseling Vermins'!E43:E47) -> 8 | E46: =SUM('Wesseling Vermins'!F43:F47) -> 3 | F46: =SUM('Wesseling Vermins'!G43:G47) -> 1 | G46: =SUM('Wesseling Vermins'!H43:H47) -> 2 | H46: =SUM('Wesseling Vermins'!I43:I47) -> 0 | I46: =SUM('Wesseling Vermins'!J43:J47) -> 0 | J46: =SUM('Wesseling Vermins'!K43:K47) -> 0 | K46: =SUM('Wesseling Vermins'!L43:L47) -> 2 | L46: =SUM('Wesseling Vermins'!M43:M47) -> 1 | M46: =SUM('Wesseling Vermins'!N43:N47) -> 0 | N46: =SUM('Wesseling Vermins'!O43:O47) -> 0 | O46: =SUM('Wesseling Vermins'!P43:P47) -> 0 | P46: =SUM('Wesseling Vermins'!Q43:Q47) -> 0 | Q46: =SUM('Wesseling Vermins'!R43:R47) -> 0 | S46: =SUM('Wesseling Vermins'!T43:T47) -> 0 | T46: =SUM('Wesseling Vermins'!U43:U47) -> 20 | U46: =SUM('Wesseling Vermins'!V43:V47) -> 1 | W46: =IF(ISERROR(G46/D46),0,G46/D46) -> 0.25 | X46: =IF(ISERROR((4*J46+3*I46+2*H46+G46-SUM(H46:J46))/D46),0,(4*J46+3*I46+2*H46+G46-SUM(H46:J46))/D46) -> 0.25 | Y46: =W46+X46 -> 0.5 | Z46: =IF(ISERROR((G46+L46+M46)/(D46+L46+M46+Q46)),0,(G46+L46+M46)/(D46+L46+M46+Q46)) -> 0.3333333333 | AA46: =Z46+X46 -> 0.5833333333 | AC46: =IF(ISERROR((S46+T46)/(U46+S46+T46)),0,(S46+T46)/(U46+S46+T46)) -> 0.9523809524
A47: ='Haar Disciples'!A23 -> 47 | B47: =IF('Haar Disciples'!B23="","",'Haar Disciples'!B23) -> Mohr | C47: =SUM('Haar Disciples'!D23:D27) -> 12 | D47: =SUM('Haar Disciples'!E23:E27) -> 7 | E47: =SUM('Haar Disciples'!F23:F27) -> 4 | F47: =SUM('Haar Disciples'!G23:G27) -> 1 | G47: =SUM('Haar Disciples'!H23:H27) -> 1 | H47: =SUM('Haar Disciples'!I23:I27) -> 0 | I47: =SUM('Haar Disciples'!J23:J27) -> 0 | J47: =SUM('Haar Disciples'!K23:K27) -> 0 | K47: =SUM('Haar Disciples'!L23:L27) -> 3 | L47: =SUM('Haar Disciples'!M23:M27) -> 5 | M47: =SUM('Haar Disciples'!N23:N27) -> 0 | N47: =SUM('Haar Disciples'!O23:O27) -> 1 | O47: =SUM('Haar Disciples'!P23:P27) -> 0 | P47: =SUM('Haar Disciples'!Q23:Q27) -> 0 | Q47: =SUM('Haar Disciples'!R23:R27) -> 0 | S47: =SUM('Haar Disciples'!T23:T27) -> 3 | T47: =SUM('Haar Disciples'!U23:U27) -> 6 | U47: =SUM('Haar Disciples'!V23:V27) -> 1 | W47: =IF(ISERROR(G47/D47),0,G47/D47) -> 0.1428571429 | X47: =IF(ISERROR((4*J47+3*I47+2*H47+G47-SUM(H47:J47))/D47),0,(4*J47+3*I47+2*H47+G47-SUM(H47:J47))/D47) -> 0.1428571429 | Y47: =W47+X47 -> 0.2857142857 | Z47: =IF(ISERROR((G47+L47+M47)/(D47+L47+M47+Q47)),0,(G47+L47+M47)/(D47+L47+M47+Q47)) -> 0.5 | AA47: =Z47+X47 -> 0.6428571429 | AC47: =IF(ISERROR((S47+T47)/(U47+S47+T47)),0,(S47+T47)/(U47+S47+T47)) -> 0.9
A48: ='Wesseling Vermins'!A38 -> 28 | B48: =IF('Wesseling Vermins'!B38="","",'Wesseling Vermins'!B38) -> Wolff | C48: =SUM('Wesseling Vermins'!D38:D42) -> 8 | D48: =SUM('Wesseling Vermins'!E38:E42) -> 4 | E48: =SUM('Wesseling Vermins'!F38:F42) -> 2 | F48: =SUM('Wesseling Vermins'!G38:G42) -> 1 | G48: =SUM('Wesseling Vermins'!H38:H42) -> 0 | H48: =SUM('Wesseling Vermins'!I38:I42) -> 0 | I48: =SUM('Wesseling Vermins'!J38:J42) -> 0 | J48: =SUM('Wesseling Vermins'!K38:K42) -> 0 | K48: =SUM('Wesseling Vermins'!L38:L42) -> 1 | L48: =SUM('Wesseling Vermins'!M38:M42) -> 4 | M48: =SUM('Wesseling Vermins'!N38:N42) -> 0 | N48: =SUM('Wesseling Vermins'!O38:O42) -> 0 | O48: =SUM('Wesseling Vermins'!P38:P42) -> 0 | P48: =SUM('Wesseling Vermins'!Q38:Q42) -> 0 | Q48: =SUM('Wesseling Vermins'!R38:R42) -> 0 | S48: =SUM('Wesseling Vermins'!T38:T42) -> 0 | T48: =SUM('Wesseling Vermins'!U38:U42) -> 2 | U48: =SUM('Wesseling Vermins'!V38:V42) -> 0 | W48: =IF(ISERROR(G48/D48),0,G48/D48) -> 0 | X48: =IF(ISERROR((4*J48+3*I48+2*H48+G48-SUM(H48:J48))/D48),0,(4*J48+3*I48+2*H48+G48-SUM(H48:J48))/D48) -> 0 | Y48: =W48+X48 -> 0 | Z48: =IF(ISERROR((G48+L48+M48)/(D48+L48+M48+Q48)),0,(G48+L48+M48)/(D48+L48+M48+Q48)) -> 0.5 | AA48: =Z48+X48 -> 0.5 | AC48: =IF(ISERROR((S48+T48)/(U48+S48+T48)),0,(S48+T48)/(U48+S48+T48)) -> 1
A49: ='Hamburg Knights'!A73 -> 15 | B49: =IF('Hamburg Knights'!B73="","",'Hamburg Knights'!B73) -> Rathjen | C49: =SUM('Hamburg Knights'!D73:D77) -> 4 | D49: =SUM('Hamburg Knights'!E73:E77) -> 2 | E49: =SUM('Hamburg Knights'!F73:F77) -> 2 | F49: =SUM('Hamburg Knights'!G73:G77) -> 0 | G49: =SUM('Hamburg Knights'!H73:H77) -> 0 | H49: =SUM('Hamburg Knights'!I73:I77) -> 0 | I49: =SUM('Hamburg Knights'!J73:J77) -> 0 | J49: =SUM('Hamburg Knights'!K73:K77) -> 0 | K49: =SUM('Hamburg Knights'!L73:L77) -> 0 | L49: =SUM('Hamburg Knights'!M73:M77) -> 2 | M49: =SUM('Hamburg Knights'!N73:N77) -> 0 | N49: =SUM('Hamburg Knights'!O73:O77) -> 1 | O49: =SUM('Hamburg Knights'!P73:P77) -> 0 | P49: =SUM('Hamburg Knights'!Q73:Q77) -> 0 | Q49: =SUM('Hamburg Knights'!R73:R77) -> 0 | S49: =SUM('Hamburg Knights'!T73:T77) -> 1 | T49: =SUM('Hamburg Knights'!U73:U77) -> 2 | U49: =SUM('Hamburg Knights'!V73:V77) -> 2 | W49: =IF(ISERROR(G49/D49),0,G49/D49) -> 0 | X49: =IF(ISERROR((4*J49+3*I49+2*H49+G49-SUM(H49:J49))/D49),0,(4*J49+3*I49+2*H49+G49-SUM(H49:J49))/D49) -> 0 | Y49: =W49+X49 -> 0 | Z49: =IF(ISERROR((G49+L49+M49)/(D49+L49+M49+Q49)),0,(G49+L49+M49)/(D49+L49+M49+Q49)) -> 0.5 | AA49: =Z49+X49 -> 0.5 | AC49: =IF(ISERROR((S49+T49)/(U49+S49+T49)),0,(S49+T49)/(U49+S49+T49)) -> 0.6
A50: ='Knights 2'!A3 -> 18 | B50: =IF('Knights 2'!B3="","",'Knights 2'!B3) -> Lühr | C50: =SUM('Knights 2'!D3:D7) -> 4 | D50: =SUM('Knights 2'!E3:E7) -> 4 | E50: =SUM('Knights 2'!F3:F7) -> 1 | F50: =SUM('Knights 2'!G3:G7) -> 0 | G50: =SUM('Knights 2'!H3:H7) -> 1 | H50: =SUM('Knights 2'!I3:I7) -> 0 | I50: =SUM('Knights 2'!J3:J7) -> 0 | J50: =SUM('Knights 2'!K3:K7) -> 0 | K50: =SUM('Knights 2'!L3:L7) -> 1 | L50: =SUM('Knights 2'!M3:M7) -> 0 | M50: =SUM('Knights 2'!N3:N7) -> 0 | N50: =SUM('Knights 2'!O3:O7) -> 0 | O50: =SUM('Knights 2'!P3:P7) -> 0 | P50: =SUM('Knights 2'!Q3:Q7) -> 0 | Q50: =SUM('Knights 2'!R3:R7) -> 0 | S50: =SUM('Knights 2'!T3:T7) -> 0 | T50: =SUM('Knights 2'!U3:U7) -> 0 | U50: =SUM('Knights 2'!V3:V7) -> 0 | W50: =IF(ISERROR(G50/D50),0,G50/D50) -> 0.25 | X50: =IF(ISERROR((4*J50+3*I50+2*H50+G50-SUM(H50:J50))/D50),0,(4*J50+3*I50+2*H50+G50-SUM(H50:J50))/D50) -> 0.25 | Y50: =W50+X50 -> 0.5 | Z50: =IF(ISERROR((G50+L50+M50)/(D50+L50+M50+Q50)),0,(G50+L50+M50)/(D50+L50+M50+Q50)) -> 0.25 | AA50: =Z50+X50 -> 0.5 | AC50: =IF(ISERROR((S50+T50)/(U50+S50+T50)),0,(S50+T50)/(U50+S50+T50)) -> 0
A51: ='Haar Disciples'!A63 -> 55 | B51: =IF('Haar Disciples'!B63="","",'Haar Disciples'!B63) -> Harvey | C51: =SUM('Haar Disciples'!D63:D67) -> 2 | D51: =SUM('Haar Disciples'!E63:E67) -> 1 | E51: =SUM('Haar Disciples'!F63:F67) -> 1 | F51: =SUM('Haar Disciples'!G63:G67) -> 1 | G51: =SUM('Haar Disciples'!H63:H67) -> 0 | H51: =SUM('Haar Disciples'!I63:I67) -> 0 | I51: =SUM('Haar Disciples'!J63:J67) -> 0 | J51: =SUM('Haar Disciples'!K63:K67) -> 0 | K51: =SUM('Haar Disciples'!L63:L67) -> 1 | L51: =SUM('Haar Disciples'!M63:M67) -> 1 | M51: =SUM('Haar Disciples'!N63:N67) -> 0 | N51: =SUM('Haar Disciples'!O63:O67) -> 0 | O51: =SUM('Haar Disciples'!P63:P67) -> 0 | P51: =SUM('Haar Disciples'!Q63:Q67) -> 0 | Q51: =SUM('Haar Disciples'!R63:R67) -> 0 | S51: =SUM('Haar Disciples'!T63:T67) -> 0 | T51: =SUM('Haar Disciples'!U63:U67) -> 0 | U51: =SUM('Haar Disciples'!V63:V67) -> 0 | W51: =IF(ISERROR(G51/D51),0,G51/D51) -> 0 | X51: =IF(ISERROR((4*J51+3*I51+2*H51+G51-SUM(H51:J51))/D51),0,(4*J51+3*I51+2*H51+G51-SUM(H51:J51))/D51) -> 0 | Y51: =W51+X51 -> 0 | Z51: =IF(ISERROR((G51+L51+M51)/(D51+L51+M51+Q51)),0,(G51+L51+M51)/(D51+L51+M51+Q51)) -> 0.5 | AA51: =Z51+X51 -> 0.5 | AC51: =IF(ISERROR((S51+T51)/(U51+S51+T51)),0,(S51+T51)/(U51+S51+T51)) -> 0
A52: ='Haar Disciples'!A68 -> 56 | B52: =IF('Haar Disciples'!B68="","",'Haar Disciples'!B68) -> Kuhles | C52: =SUM('Haar Disciples'!D68:D72) -> 1 | D52: =SUM('Haar Disciples'!E68:E72) -> 1 | E52: =SUM('Haar Disciples'!F68:F72) -> 0 | F52: =SUM('Haar Disciples'!G68:G72) -> 0 | G52: =SUM('Haar Disciples'!H68:H72) -> 0 | H52: =SUM('Haar Disciples'!I68:I72) -> 0 | I52: =SUM('Haar Disciples'!J68:J72) -> 0 | J52: =SUM('Haar Disciples'!K68:K72) -> 0 | K52: =SUM('Haar Disciples'!L68:L72) -> 1 | L52: =SUM('Haar Disciples'!M68:M72) -> 1 | M52: =SUM('Haar Disciples'!N68:N72) -> 0 | N52: =SUM('Haar Disciples'!O68:O72) -> 0 | O52: =SUM('Haar Disciples'!P68:P72) -> 0 | P52: =SUM('Haar Disciples'!Q68:Q72) -> 0 | Q52: =SUM('Haar Disciples'!R68:R72) -> 0 | S52: =SUM('Haar Disciples'!T68:T72) -> 0 | T52: =SUM('Haar Disciples'!U68:U72) -> 0 | U52: =SUM('Haar Disciples'!V68:V72) -> 0 | W52: =IF(ISERROR(G52/D52),0,G52/D52) -> 0 | X52: =IF(ISERROR((4*J52+3*I52+2*H52+G52-SUM(H52:J52))/D52),0,(4*J52+3*I52+2*H52+G52-SUM(H52:J52))/D52) -> 0 | Y52: =W52+X52 -> 0 | Z52: =IF(ISERROR((G52+L52+M52)/(D52+L52+M52+Q52)),0,(G52+L52+M52)/(D52+L52+M52+Q52)) -> 0.5 | AA52: =Z52+X52 -> 0.5 | AC52: =IF(ISERROR((S52+T52)/(U52+S52+T52)),0,(S52+T52)/(U52+S52+T52)) -> 0
A53: ='Neunkirchen Nightmares'!A8 -> 68 | B53: =IF('Neunkirchen Nightmares'!B8="","",'Neunkirchen Nightmares'!B8) -> Fischer | C53: =SUM('Neunkirchen Nightmares'!D8:D12) -> 10 | D53: =SUM('Neunkirchen Nightmares'!E8:E12) -> 6 | E53: =SUM('Neunkirchen Nightmares'!F8:F12) -> 3 | F53: =SUM('Neunkirchen Nightmares'!G8:G12) -> 2 | G53: =SUM('Neunkirchen Nightmares'!H8:H12) -> 0 | H53: =SUM('Neunkirchen Nightmares'!I8:I12) -> 0 | I53: =SUM('Neunkirchen Nightmares'!J8:J12) -> 0 | J53: =SUM('Neunkirchen Nightmares'!K8:K12) -> 0 | K53: =SUM('Neunkirchen Nightmares'!L8:L12) -> 1 | L53: =SUM('Neunkirchen Nightmares'!M8:M12) -> 4 | M53: =SUM('Neunkirchen Nightmares'!N8:N12) -> 0 | N53: =SUM('Neunkirchen Nightmares'!O8:O12) -> 2 | O53: =SUM('Neunkirchen Nightmares'!P8:P12) -> 0 | P53: =SUM('Neunkirchen Nightmares'!Q8:Q12) -> 0 | Q53: =SUM('Neunkirchen Nightmares'!R8:R12) -> 0 | S53: =SUM('Neunkirchen Nightmares'!T8:T12) -> 2 | T53: =SUM('Neunkirchen Nightmares'!U8:U12) -> 1 | U53: =SUM('Neunkirchen Nightmares'!V8:V12) -> 1 | W53: =IF(ISERROR(G53/D53),0,G53/D53) -> 0 | X53: =IF(ISERROR((4*J53+3*I53+2*H53+G53-SUM(H53:J53))/D53),0,(4*J53+3*I53+2*H53+G53-SUM(H53:J53))/D53) -> 0 | Y53: =W53+X53 -> 0 | Z53: =IF(ISERROR((G53+L53+M53)/(D53+L53+M53+Q53)),0,(G53+L53+M53)/(D53+L53+M53+Q53)) -> 0.4 | AA53: =Z53+X53 -> 0.4 | AC53: =IF(ISERROR((S53+T53)/(U53+S53+T53)),0,(S53+T53)/(U53+S53+T53)) -> 0.75
A54: ='Wesseling Vermins'!A53 -> 31 | B54: =IF('Wesseling Vermins'!B53="","",'Wesseling Vermins'!B53) -> Erden | C54: =SUM('Wesseling Vermins'!D53:D57) -> 3 | D54: =SUM('Wesseling Vermins'!E53:E57) -> 2 | E54: =SUM('Wesseling Vermins'!F53:F57) -> 0 | F54: =SUM('Wesseling Vermins'!G53:G57) -> 0 | G54: =SUM('Wesseling Vermins'!H53:H57) -> 0 | H54: =SUM('Wesseling Vermins'!I53:I57) -> 0 | I54: =SUM('Wesseling Vermins'!J53:J57) -> 0 | J54: =SUM('Wesseling Vermins'!K53:K57) -> 0 | K54: =SUM('Wesseling Vermins'!L53:L57) -> 1 | L54: =SUM('Wesseling Vermins'!M53:M57) -> 1 | M54: =SUM('Wesseling Vermins'!N53:N57) -> 0 | N54: =SUM('Wesseling Vermins'!O53:O57) -> 0 | O54: =SUM('Wesseling Vermins'!P53:P57) -> 0 | P54: =SUM('Wesseling Vermins'!Q53:Q57) -> 0 | Q54: =SUM('Wesseling Vermins'!R53:R57) -> 0 | S54: =SUM('Wesseling Vermins'!T53:T57) -> 0 | T54: =SUM('Wesseling Vermins'!U53:U57) -> 0 | U54: =SUM('Wesseling Vermins'!V53:V57) -> 0 | W54: =IF(ISERROR(G54/D54),0,G54/D54) -> 0 | X54: =IF(ISERROR((4*J54+3*I54+2*H54+G54-SUM(H54:J54))/D54),0,(4*J54+3*I54+2*H54+G54-SUM(H54:J54))/D54) -> 0 | Y54: =W54+X54 -> 0 | Z54: =IF(ISERROR((G54+L54+M54)/(D54+L54+M54+Q54)),0,(G54+L54+M54)/(D54+L54+M54+Q54)) -> 0.3333333333 | AA54: =Z54+X54 -> 0.3333333333 | AC54: =IF(ISERROR((S54+T54)/(U54+S54+T54)),0,(S54+T54)/(U54+S54+T54)) -> 0
A55: ='Freising Grizzlies'!A8 -> 33 | B55: =IF('Freising Grizzlies'!B8="","",'Freising Grizzlies'!B8) -> Eschke | C55: =SUM('Freising Grizzlies'!D8:D12) -> 3 | D55: =SUM('Freising Grizzlies'!E8:E12) -> 2 | E55: =SUM('Freising Grizzlies'!F8:F12) -> 0 | F55: =SUM('Freising Grizzlies'!G8:G12) -> 0 | G55: =SUM('Freising Grizzlies'!H8:H12) -> 0 | H55: =SUM('Freising Grizzlies'!I8:I12) -> 0 | I55: =SUM('Freising Grizzlies'!J8:J12) -> 0 | J55: =SUM('Freising Grizzlies'!K8:K12) -> 0 | K55: =SUM('Freising Grizzlies'!L8:L12) -> 2 | L55: =SUM('Freising Grizzlies'!M8:M12) -> 1 | M55: =SUM('Freising Grizzlies'!N8:N12) -> 0 | N55: =SUM('Freising Grizzlies'!O8:O12) -> 0 | O55: =SUM('Freising Grizzlies'!P8:P12) -> 0 | P55: =SUM('Freising Grizzlies'!Q8:Q12) -> 0 | Q55: =SUM('Freising Grizzlies'!R8:R12) -> 0 | S55: =SUM('Freising Grizzlies'!T8:T12) -> 0 | T55: =SUM('Freising Grizzlies'!U8:U12) -> 0 | U55: =SUM('Freising Grizzlies'!V8:V12) -> 0 | W55: =IF(ISERROR(G55/D55),0,G55/D55) -> 0 | X55: =IF(ISERROR((4*J55+3*I55+2*H55+G55-SUM(H55:J55))/D55),0,(4*J55+3*I55+2*H55+G55-SUM(H55:J55))/D55) -> 0 | Y55: =W55+X55 -> 0 | Z55: =IF(ISERROR((G55+L55+M55)/(D55+L55+M55+Q55)),0,(G55+L55+M55)/(D55+L55+M55+Q55)) -> 0.3333333333 | AA55: =Z55+X55 -> 0.3333333333 | AC55: =IF(ISERROR((S55+T55)/(U55+S55+T55)),0,(S55+T55)/(U55+S55+T55)) -> 0
A56: ='Haar Disciples'!A58 -> 54 | B56: =IF('Haar Disciples'!B58="","",'Haar Disciples'!B58) -> Knallhuber | C56: =SUM('Haar Disciples'!D58:D62) -> 4 | D56: =SUM('Haar Disciples'!E58:E62) -> 3 | E56: =SUM('Haar Disciples'!F58:F62) -> 0 | F56: =SUM('Haar Disciples'!G58:G62) -> 0 | G56: =SUM('Haar Disciples'!H58:H62) -> 0 | H56: =SUM('Haar Disciples'!I58:I62) -> 0 | I56: =SUM('Haar Disciples'!J58:J62) -> 0 | J56: =SUM('Haar Disciples'!K58:K62) -> 0 | K56: =SUM('Haar Disciples'!L58:L62) -> 2 | L56: =SUM('Haar Disciples'!M58:M62) -> 0 | M56: =SUM('Haar Disciples'!N58:N62) -> 1 | N56: =SUM('Haar Disciples'!O58:O62) -> 0 | O56: =SUM('Haar Disciples'!P58:P62) -> 0 | P56: =SUM('Haar Disciples'!Q58:Q62) -> 0 | Q56: =SUM('Haar Disciples'!R58:R62) -> 0 | S56: =SUM('Haar Disciples'!T58:T62) -> 0 | T56: =SUM('Haar Disciples'!U58:U62) -> 0 | U56: =SUM('Haar Disciples'!V58:V62) -> 0 | W56: =IF(ISERROR(G56/D56),0,G56/D56) -> 0 | X56: =IF(ISERROR((4*J56+3*I56+2*H56+G56-SUM(H56:J56))/D56),0,(4*J56+3*I56+2*H56+G56-SUM(H56:J56))/D56) -> 0 | Y56: =W56+X56 -> 0 | Z56: =IF(ISERROR((G56+L56+M56)/(D56+L56+M56+Q56)),0,(G56+L56+M56)/(D56+L56+M56+Q56)) -> 0.25 | AA56: =Z56+X56 -> 0.25 | AC56: =IF(ISERROR((S56+T56)/(U56+S56+T56)),0,(S56+T56)/(U56+S56+T56)) -> 0
A57: ='Wesseling Vermins'!A28 -> 26 | B57: =IF('Wesseling Vermins'!B28="","",'Wesseling Vermins'!B28) -> Reisenauer | C57: =SUM('Wesseling Vermins'!D28:D32) -> 12 | D57: =SUM('Wesseling Vermins'!E28:E32) -> 9 | E57: =SUM('Wesseling Vermins'!F28:F32) -> 1 | F57: =SUM('Wesseling Vermins'!G28:G32) -> 4 | G57: =SUM('Wesseling Vermins'!H28:H32) -> 1 | H57: =SUM('Wesseling Vermins'!I28:I32) -> 0 | I57: =SUM('Wesseling Vermins'!J28:J32) -> 0 | J57: =SUM('Wesseling Vermins'!K28:K32) -> 0 | K57: =SUM('Wesseling Vermins'!L28:L32) -> 2 | L57: =SUM('Wesseling Vermins'!M28:M32) -> 1 | M57: =SUM('Wesseling Vermins'!N28:N32) -> 0 | N57: =SUM('Wesseling Vermins'!O28:O32) -> 0 | O57: =SUM('Wesseling Vermins'!P28:P32) -> 0 | P57: =SUM('Wesseling Vermins'!Q28:Q32) -> 2 | Q57: =SUM('Wesseling Vermins'!R28:R32) -> 0 | S57: =SUM('Wesseling Vermins'!T28:T32) -> 9 | T57: =SUM('Wesseling Vermins'!U28:U32) -> 3 | U57: =SUM('Wesseling Vermins'!V28:V32) -> 0 | W57: =IF(ISERROR(G57/D57),0,G57/D57) -> 0.1111111111 | X57: =IF(ISERROR((4*J57+3*I57+2*H57+G57-SUM(H57:J57))/D57),0,(4*J57+3*I57+2*H57+G57-SUM(H57:J57))/D57) -> 0.1111111111 | Y57: =W57+X57 -> 0.2222222222 | Z57: =IF(ISERROR((G57+L57+M57)/(D57+L57+M57+Q57)),0,(G57+L57+M57)/(D57+L57+M57+Q57)) -> 0.2 | AA57: =Z57+X57 -> 0.3111111111 | AC57: =IF(ISERROR((S57+T57)/(U57+S57+T57)),0,(S57+T57)/(U57+S57+T57)) -> 1
A58: ='Karlsruhe Cougars'!A28 -> 62 | B58: =IF('Karlsruhe Cougars'!B28="","",'Karlsruhe Cougars'!B28) -> Malmbeck | C58: =SUM('Karlsruhe Cougars'!D28:D32) -> 10 | D58: =SUM('Karlsruhe Cougars'!E28:E32) -> 7 | E58: =SUM('Karlsruhe Cougars'!F28:F32) -> 2 | F58: =SUM('Karlsruhe Cougars'!G28:G32) -> 1 | G58: =SUM('Karlsruhe Cougars'!H28:H32) -> 0 | H58: =SUM('Karlsruhe Cougars'!I28:I32) -> 0 | I58: =SUM('Karlsruhe Cougars'!J28:J32) -> 0 | J58: =SUM('Karlsruhe Cougars'!K28:K32) -> 0 | K58: =SUM('Karlsruhe Cougars'!L28:L32) -> 3 | L58: =SUM('Karlsruhe Cougars'!M28:M32) -> 2 | M58: =SUM('Karlsruhe Cougars'!N28:N32) -> 1 | N58: =SUM('Karlsruhe Cougars'!O28:O32) -> 0 | O58: =SUM('Karlsruhe Cougars'!P28:P32) -> 0 | P58: =SUM('Karlsruhe Cougars'!Q28:Q32) -> 0 | Q58: =SUM('Karlsruhe Cougars'!R28:R32) -> 0 | S58: =SUM('Karlsruhe Cougars'!T28:T32) -> 2 | T58: =SUM('Karlsruhe Cougars'!U28:U32) -> 0 | U58: =SUM('Karlsruhe Cougars'!V28:V32) -> 0 | W58: =IF(ISERROR(G58/D58),0,G58/D58) -> 0 | X58: =IF(ISERROR((4*J58+3*I58+2*H58+G58-SUM(H58:J58))/D58),0,(4*J58+3*I58+2*H58+G58-SUM(H58:J58))/D58) -> 0 | Y58: =W58+X58 -> 0 | Z58: =IF(ISERROR((G58+L58+M58)/(D58+L58+M58+Q58)),0,(G58+L58+M58)/(D58+L58+M58+Q58)) -> 0.3 | AA58: =Z58+X58 -> 0.3 | AC58: =IF(ISERROR((S58+T58)/(U58+S58+T58)),0,(S58+T58)/(U58+S58+T58)) -> 1
A59: ='Karlsruhe Cougars'!A23 -> 61 | B59: =IF('Karlsruhe Cougars'!B23="","",'Karlsruhe Cougars'!B23) -> Sturm | C59: =SUM('Karlsruhe Cougars'!D23:D27) -> 10 | D59: =SUM('Karlsruhe Cougars'!E23:E27) -> 7 | E59: =SUM('Karlsruhe Cougars'!F23:F27) -> 2 | F59: =SUM('Karlsruhe Cougars'!G23:G27) -> 1 | G59: =SUM('Karlsruhe Cougars'!H23:H27) -> 0 | H59: =SUM('Karlsruhe Cougars'!I23:I27) -> 0 | I59: =SUM('Karlsruhe Cougars'!J23:J27) -> 0 | J59: =SUM('Karlsruhe Cougars'!K23:K27) -> 0 | K59: =SUM('Karlsruhe Cougars'!L23:L27) -> 1 | L59: =SUM('Karlsruhe Cougars'!M23:M27) -> 3 | M59: =SUM('Karlsruhe Cougars'!N23:N27) -> 0 | N59: =SUM('Karlsruhe Cougars'!O23:O27) -> 0 | O59: =SUM('Karlsruhe Cougars'!P23:P27) -> 0 | P59: =SUM('Karlsruhe Cougars'!Q23:Q27) -> 0 | Q59: =SUM('Karlsruhe Cougars'!R23:R27) -> 0 | S59: =SUM('Karlsruhe Cougars'!T23:T27) -> 3 | T59: =SUM('Karlsruhe Cougars'!U23:U27) -> 4 | U59: =SUM('Karlsruhe Cougars'!V23:V27) -> 1 | W59: =IF(ISERROR(G59/D59),0,G59/D59) -> 0 | X59: =IF(ISERROR((4*J59+3*I59+2*H59+G59-SUM(H59:J59))/D59),0,(4*J59+3*I59+2*H59+G59-SUM(H59:J59))/D59) -> 0 | Y59: =W59+X59 -> 0 | Z59: =IF(ISERROR((G59+L59+M59)/(D59+L59+M59+Q59)),0,(G59+L59+M59)/(D59+L59+M59+Q59)) -> 0.3 | AA59: =Z59+X59 -> 0.3 | AC59: =IF(ISERROR((S59+T59)/(U59+S59+T59)),0,(S59+T59)/(U59+S59+T59)) -> 0.875
A60: ='Wesseling Vermins'!A8 -> 22 | B60: =IF('Wesseling Vermins'!B8="","",'Wesseling Vermins'!B8) -> Schlitzer | C60: =SUM('Wesseling Vermins'!D8:D12) -> 12 | D60: =SUM('Wesseling Vermins'!E8:E12) -> 10 | E60: =SUM('Wesseling Vermins'!F8:F12) -> 3 | F60: =SUM('Wesseling Vermins'!G8:G12) -> 3 | G60: =SUM('Wesseling Vermins'!H8:H12) -> 1 | H60: =SUM('Wesseling Vermins'!I8:I12) -> 0 | I60: =SUM('Wesseling Vermins'!J8:J12) -> 0 | J60: =SUM('Wesseling Vermins'!K8:K12) -> 0 | K60: =SUM('Wesseling Vermins'!L8:L12) -> 0 | L60: =SUM('Wesseling Vermins'!M8:M12) -> 1 | M60: =SUM('Wesseling Vermins'!N8:N12) -> 0 | N60: =SUM('Wesseling Vermins'!O8:O12) -> 2 | O60: =SUM('Wesseling Vermins'!P8:P12) -> 0 | P60: =SUM('Wesseling Vermins'!Q8:Q12) -> 1 | Q60: =SUM('Wesseling Vermins'!R8:R12) -> 0 | S60: =SUM('Wesseling Vermins'!T8:T12) -> 4 | T60: =SUM('Wesseling Vermins'!U8:U12) -> 1 | U60: =SUM('Wesseling Vermins'!V8:V12) -> 6 | W60: =IF(ISERROR(G60/D60),0,G60/D60) -> 0.1 | X60: =IF(ISERROR((4*J60+3*I60+2*H60+G60-SUM(H60:J60))/D60),0,(4*J60+3*I60+2*H60+G60-SUM(H60:J60))/D60) -> 0.1 | Y60: =W60+X60 -> 0.2 | Z60: =IF(ISERROR((G60+L60+M60)/(D60+L60+M60+Q60)),0,(G60+L60+M60)/(D60+L60+M60+Q60)) -> 0.1818181818 | AA60: =Z60+X60 -> 0.2818181818 | AC60: =IF(ISERROR((S60+T60)/(U60+S60+T60)),0,(S60+T60)/(U60+S60+T60)) -> 0.4545454545
A61: ='Haar Disciples'!A28 -> 48 | B61: =IF('Haar Disciples'!B28="","",'Haar Disciples'!B28) -> Wiele | C61: =SUM('Haar Disciples'!D28:D32) -> 15 | D61: =SUM('Haar Disciples'!E28:E32) -> 13 | E61: =SUM('Haar Disciples'!F28:F32) -> 2 | F61: =SUM('Haar Disciples'!G28:G32) -> 1 | G61: =SUM('Haar Disciples'!H28:H32) -> 2 | H61: =SUM('Haar Disciples'!I28:I32) -> 0 | I61: =SUM('Haar Disciples'!J28:J32) -> 0 | J61: =SUM('Haar Disciples'!K28:K32) -> 0 | K61: =SUM('Haar Disciples'!L28:L32) -> 4 | L61: =SUM('Haar Disciples'!M28:M32) -> 1 | M61: =SUM('Haar Disciples'!N28:N32) -> 0 | N61: =SUM('Haar Disciples'!O28:O32) -> 1 | O61: =SUM('Haar Disciples'!P28:P32) -> 0 | P61: =SUM('Haar Disciples'!Q28:Q32) -> 1 | Q61: =SUM('Haar Disciples'!R28:R32) -> 0 | S61: =SUM('Haar Disciples'!T28:T32) -> 0 | T61: =SUM('Haar Disciples'!U28:U32) -> 0 | U61: =SUM('Haar Disciples'!V28:V32) -> 0 | W61: =IF(ISERROR(G61/D61),0,G61/D61) -> 0.1538461538 | X61: =IF(ISERROR((4*J61+3*I61+2*H61+G61-SUM(H61:J61))/D61),0,(4*J61+3*I61+2*H61+G61-SUM(H61:J61))/D61) -> 0.1538461538 | Y61: =W61+X61 -> 0.3076923077 | Z61: =IF(ISERROR((G61+L61+M61)/(D61+L61+M61+Q61)),0,(G61+L61+M61)/(D61+L61+M61+Q61)) -> 0.2142857143 | AA61: =Z61+X61 -> 0.3681318681 | AC61: =IF(ISERROR((S61+T61)/(U61+S61+T61)),0,(S61+T61)/(U61+S61+T61)) -> 0
A62: ='Hamburg Knights'!A23 -> 5 | B62: =IF('Hamburg Knights'!B23="","",'Hamburg Knights'!B23) -> Brunzel | C62: =SUM('Hamburg Knights'!D23:D27) -> 4 | D62: =SUM('Hamburg Knights'!E23:E27) -> 3 | E62: =SUM('Hamburg Knights'!F23:F27) -> 1 | F62: =SUM('Hamburg Knights'!G23:G27) -> 0 | G62: =SUM('Hamburg Knights'!H23:H27) -> 0 | H62: =SUM('Hamburg Knights'!I23:I27) -> 0 | I62: =SUM('Hamburg Knights'!J23:J27) -> 0 | J62: =SUM('Hamburg Knights'!K23:K27) -> 0 | K62: =SUM('Hamburg Knights'!L23:L27) -> 2 | L62: =SUM('Hamburg Knights'!M23:M27) -> 0 | M62: =SUM('Hamburg Knights'!N23:N27) -> 1 | N62: =SUM('Hamburg Knights'!O23:O27) -> 1 | O62: =SUM('Hamburg Knights'!P23:P27) -> 0 | P62: =SUM('Hamburg Knights'!Q23:Q27) -> 0 | Q62: =SUM('Hamburg Knights'!R23:R27) -> 0 | S62: =SUM('Hamburg Knights'!T23:T27) -> 1 | T62: =SUM('Hamburg Knights'!U23:U27) -> 2 | U62: =SUM('Hamburg Knights'!V23:V27) -> 0 | W62: =IF(ISERROR(G62/D62),0,G62/D62) -> 0 | X62: =IF(ISERROR((4*J62+3*I62+2*H62+G62-SUM(H62:J62))/D62),0,(4*J62+3*I62+2*H62+G62-SUM(H62:J62))/D62) -> 0 | Y62: =W62+X62 -> 0 | Z62: =IF(ISERROR((G62+L62+M62)/(D62+L62+M62+Q62)),0,(G62+L62+M62)/(D62+L62+M62+Q62)) -> 0.25 | AA62: =Z62+X62 -> 0.25 | AC62: =IF(ISERROR((S62+T62)/(U62+S62+T62)),0,(S62+T62)/(U62+S62+T62)) -> 1
A63: ='Wesseling Vermins'!A33 -> 27 | B63: =IF('Wesseling Vermins'!B33="","",'Wesseling Vermins'!B33) -> Ziegler | C63: =SUM('Wesseling Vermins'!D33:D37) -> 11 | D63: =SUM('Wesseling Vermins'!E33:E37) -> 9 | E63: =SUM('Wesseling Vermins'!F33:F37) -> 1 | F63: =SUM('Wesseling Vermins'!G33:G37) -> 0 | G63: =SUM('Wesseling Vermins'!H33:H37) -> 0 | H63: =SUM('Wesseling Vermins'!I33:I37) -> 0 | I63: =SUM('Wesseling Vermins'!J33:J37) -> 0 | J63: =SUM('Wesseling Vermins'!K33:K37) -> 0 | K63: =SUM('Wesseling Vermins'!L33:L37) -> 5 | L63: =SUM('Wesseling Vermins'!M33:M37) -> 2 | M63: =SUM('Wesseling Vermins'!N33:N37) -> 0 | N63: =SUM('Wesseling Vermins'!O33:O37) -> 0 | O63: =SUM('Wesseling Vermins'!P33:P37) -> 0 | P63: =SUM('Wesseling Vermins'!Q33:Q37) -> 0 | Q63: =SUM('Wesseling Vermins'!R33:R37) -> 0 | S63: =SUM('Wesseling Vermins'!T33:T37) -> 0 | T63: =SUM('Wesseling Vermins'!U33:U37) -> 0 | U63: =SUM('Wesseling Vermins'!V33:V37) -> 0 | W63: =IF(ISERROR(G63/D63),0,G63/D63) -> 0 | X63: =IF(ISERROR((4*J63+3*I63+2*H63+G63-SUM(H63:J63))/D63),0,(4*J63+3*I63+2*H63+G63-SUM(H63:J63))/D63) -> 0 | Y63: =W63+X63 -> 0 | Z63: =IF(ISERROR((G63+L63+M63)/(D63+L63+M63+Q63)),0,(G63+L63+M63)/(D63+L63+M63+Q63)) -> 0.1818181818 | AA63: =Z63+X63 -> 0.1818181818 | AC63: =IF(ISERROR((S63+T63)/(U63+S63+T63)),0,(S63+T63)/(U63+S63+T63)) -> 0
A64: ='Wesseling Vermins'!A13 -> 23 | B64: =IF('Wesseling Vermins'!B13="","",'Wesseling Vermins'!B13) -> Seitz | C64: =SUM('Wesseling Vermins'!D13:D17) -> 11 | D64: =SUM('Wesseling Vermins'!E13:E17) -> 8 | E64: =SUM('Wesseling Vermins'!F13:F17) -> 2 | F64: =SUM('Wesseling Vermins'!G13:G17) -> 3 | G64: =SUM('Wesseling Vermins'!H13:H17) -> 0 | H64: =SUM('Wesseling Vermins'!I13:I17) -> 0 | I64: =SUM('Wesseling Vermins'!J13:J17) -> 0 | J64: =SUM('Wesseling Vermins'!K13:K17) -> 0 | K64: =SUM('Wesseling Vermins'!L13:L17) -> 1 | L64: =SUM('Wesseling Vermins'!M13:M17) -> 1 | M64: =SUM('Wesseling Vermins'!N13:N17) -> 0 | N64: =SUM('Wesseling Vermins'!O13:O17) -> 0 | O64: =SUM('Wesseling Vermins'!P13:P17) -> 0 | P64: =SUM('Wesseling Vermins'!Q13:Q17) -> 2 | Q64: =SUM('Wesseling Vermins'!R13:R17) -> 0 | S64: =SUM('Wesseling Vermins'!T13:T17) -> 0 | T64: =SUM('Wesseling Vermins'!U13:U17) -> 0 | U64: =SUM('Wesseling Vermins'!V13:V17) -> 0 | W64: =IF(ISERROR(G64/D64),0,G64/D64) -> 0 | X64: =IF(ISERROR((4*J64+3*I64+2*H64+G64-SUM(H64:J64))/D64),0,(4*J64+3*I64+2*H64+G64-SUM(H64:J64))/D64) -> 0 | Y64: =W64+X64 -> 0 | Z64: =IF(ISERROR((G64+L64+M64)/(D64+L64+M64+Q64)),0,(G64+L64+M64)/(D64+L64+M64+Q64)) -> 0.1111111111 | AA64: =Z64+X64 -> 0.1111111111 | AC64: =IF(ISERROR((S64+T64)/(U64+S64+T64)),0,(S64+T64)/(U64+S64+T64)) -> 0
A65: ='Hamburg Knights'!A8 -> 2 | B65: =IF('Hamburg Knights'!B8="","",'Hamburg Knights'!B8) -> Strohm | C65: =SUM('Hamburg Knights'!D8:D12) -> 4 | D65: =SUM('Hamburg Knights'!E8:E12) -> 4 | E65: =SUM('Hamburg Knights'!F8:F12) -> 1 | F65: =SUM('Hamburg Knights'!G8:G12) -> 1 | G65: =SUM('Hamburg Knights'!H8:H12) -> 0 | H65: =SUM('Hamburg Knights'!I8:I12) -> 0 | I65: =SUM('Hamburg Knights'!J8:J12) -> 0 | J65: =SUM('Hamburg Knights'!K8:K12) -> 0 | K65: =SUM('Hamburg Knights'!L8:L12) -> 1 | L65: =SUM('Hamburg Knights'!M8:M12) -> 0 | M65: =SUM('Hamburg Knights'!N8:N12) -> 0 | N65: =SUM('Hamburg Knights'!O8:O12) -> 0 | O65: =SUM('Hamburg Knights'!P8:P12) -> 0 | P65: =SUM('Hamburg Knights'!Q8:Q12) -> 0 | Q65: =SUM('Hamburg Knights'!R8:R12) -> 0 | S65: =SUM('Hamburg Knights'!T8:T12) -> 0 | T65: =SUM('Hamburg Knights'!U8:U12) -> 2 | U65: =SUM('Hamburg Knights'!V8:V12) -> 3 | W65: =IF(ISERROR(G65/D65),0,G65/D65) -> 0 | X65: =IF(ISERROR((4*J65+3*I65+2*H65+G65-SUM(H65:J65))/D65),0,(4*J65+3*I65+2*H65+G65-SUM(H65:J65))/D65) -> 0 | Y65: =W65+X65 -> 0 | Z65: =IF(ISERROR((G65+L65+M65)/(D65+L65+M65+Q65)),0,(G65+L65+M65)/(D65+L65+M65+Q65)) -> 0 | AA65: =Z65+X65 -> 0 | AC65: =IF(ISERROR((S65+T65)/(U65+S65+T65)),0,(S65+T65)/(U65+S65+T65)) -> 0.4
A66: ='Hamburg Knights'!A28 -> 6 | B66: =IF('Hamburg Knights'!B28="","",'Hamburg Knights'!B28) -> Wittkugel | C66: =SUM('Hamburg Knights'!D28:D32) -> 3 | D66: =SUM('Hamburg Knights'!E28:E32) -> 3 | E66: =SUM('Hamburg Knights'!F28:F32) -> 1 | F66: =SUM('Hamburg Knights'!G28:G32) -> 0 | G66: =SUM('Hamburg Knights'!H28:H32) -> 0 | H66: =SUM('Hamburg Knights'!I28:I32) -> 0 | I66: =SUM('Hamburg Knights'!J28:J32) -> 0 | J66: =SUM('Hamburg Knights'!K28:K32) -> 0 | K66: =SUM('Hamburg Knights'!L28:L32) -> 1 | L66: =SUM('Hamburg Knights'!M28:M32) -> 0 | M66: =SUM('Hamburg Knights'!N28:N32) -> 0 | N66: =SUM('Hamburg Knights'!O28:O32) -> 1 | O66: =SUM('Hamburg Knights'!P28:P32) -> 0 | P66: =SUM('Hamburg Knights'!Q28:Q32) -> 0 | Q66: =SUM('Hamburg Knights'!R28:R32) -> 0 | S66: =SUM('Hamburg Knights'!T28:T32) -> 0 | T66: =SUM('Hamburg Knights'!U28:U32) -> 1 | U66: =SUM('Hamburg Knights'!V28:V32) -> 0 | W66: =IF(ISERROR(G66/D66),0,G66/D66) -> 0 | X66: =IF(ISERROR((4*J66+3*I66+2*H66+G66-SUM(H66:J66))/D66),0,(4*J66+3*I66+2*H66+G66-SUM(H66:J66))/D66) -> 0 | Y66: =W66+X66 -> 0 | Z66: =IF(ISERROR((G66+L66+M66)/(D66+L66+M66+Q66)),0,(G66+L66+M66)/(D66+L66+M66+Q66)) -> 0 | AA66: =Z66+X66 -> 0 | AC66: =IF(ISERROR((S66+T66)/(U66+S66+T66)),0,(S66+T66)/(U66+S66+T66)) -> 1
A67: ='Hamburg Knights'!A33 -> 7 | B67: =IF('Hamburg Knights'!B33="","",'Hamburg Knights'!B33) -> Bünnerstede | C67: =SUM('Hamburg Knights'!D33:D37) -> 3 | D67: =SUM('Hamburg Knights'!E33:E37) -> 3 | E67: =SUM('Hamburg Knights'!F33:F37) -> 1 | F67: =SUM('Hamburg Knights'!G33:G37) -> 0 | G67: =SUM('Hamburg Knights'!H33:H37) -> 0 | H67: =SUM('Hamburg Knights'!I33:I37) -> 0 | I67: =SUM('Hamburg Knights'!J33:J37) -> 0 | J67: =SUM('Hamburg Knights'!K33:K37) -> 0 | K67: =SUM('Hamburg Knights'!L33:L37) -> 1 | L67: =SUM('Hamburg Knights'!M33:M37) -> 0 | M67: =SUM('Hamburg Knights'!N33:N37) -> 0 | N67: =SUM('Hamburg Knights'!O33:O37) -> 0 | O67: =SUM('Hamburg Knights'!P33:P37) -> 0 | P67: =SUM('Hamburg Knights'!Q33:Q37) -> 0 | Q67: =SUM('Hamburg Knights'!R33:R37) -> 0 | S67: =SUM('Hamburg Knights'!T33:T37) -> 0 | T67: =SUM('Hamburg Knights'!U33:U37) -> 2 | U67: =SUM('Hamburg Knights'!V33:V37) -> 0 | W67: =IF(ISERROR(G67/D67),0,G67/D67) -> 0 | X67: =IF(ISERROR((4*J67+3*I67+2*H67+G67-SUM(H67:J67))/D67),0,(4*J67+3*I67+2*H67+G67-SUM(H67:J67))/D67) -> 0 | Y67: =W67+X67 -> 0 | Z67: =IF(ISERROR((G67+L67+M67)/(D67+L67+M67+Q67)),0,(G67+L67+M67)/(D67+L67+M67+Q67)) -> 0 | AA67: =Z67+X67 -> 0 | AC67: =IF(ISERROR((S67+T67)/(U67+S67+T67)),0,(S67+T67)/(U67+S67+T67)) -> 1
A68: ='Hamburg Knights'!A3 -> 1 | B68: =IF('Hamburg Knights'!B3="","",'Hamburg Knights'!B3) -> Bertonasco | C68: =SUM('Hamburg Knights'!D3:D7) -> 3 | D68: =SUM('Hamburg Knights'!E3:E7) -> 3 | E68: =SUM('Hamburg Knights'!F3:F7) -> 0 | F68: =SUM('Hamburg Knights'!G3:G7) -> 0 | G68: =SUM('Hamburg Knights'!H3:H7) -> 0 | H68: =SUM('Hamburg Knights'!I3:I7) -> 0 | I68: =SUM('Hamburg Knights'!J3:J7) -> 0 | J68: =SUM('Hamburg Knights'!K3:K7) -> 0 | K68: =SUM('Hamburg Knights'!L3:L7) -> 3 | L68: =SUM('Hamburg Knights'!M3:M7) -> 0 | M68: =SUM('Hamburg Knights'!N3:N7) -> 0 | N68: =SUM('Hamburg Knights'!O3:O7) -> 0 | O68: =SUM('Hamburg Knights'!P3:P7) -> 0 | P68: =SUM('Hamburg Knights'!Q3:Q7) -> 0 | Q68: =SUM('Hamburg Knights'!R3:R7) -> 0 | S68: =SUM('Hamburg Knights'!T3:T7) -> 2 | T68: =SUM('Hamburg Knights'!U3:U7) -> 0 | U68: =SUM('Hamburg Knights'!V3:V7) -> 1 | W68: =IF(ISERROR(G68/D68),0,G68/D68) -> 0 | X68: =IF(ISERROR((4*J68+3*I68+2*H68+G68-SUM(H68:J68))/D68),0,(4*J68+3*I68+2*H68+G68-SUM(H68:J68))/D68) -> 0 | Y68: =W68+X68 -> 0 | Z68: =IF(ISERROR((G68+L68+M68)/(D68+L68+M68+Q68)),0,(G68+L68+M68)/(D68+L68+M68+Q68)) -> 0 | AA68: =Z68+X68 -> 0 | AC68: =IF(ISERROR((S68+T68)/(U68+S68+T68)),0,(S68+T68)/(U68+S68+T68)) -> 0.6666666667
A69: ='Knights 2'!A8 -> 19 | B69: =IF('Knights 2'!B8="","",'Knights 2'!B8) -> Ottenberg | C69: =SUM('Knights 2'!D8:D12) -> 2 | D69: =SUM('Knights 2'!E8:E12) -> 2 | E69: =SUM('Knights 2'!F8:F12) -> 1 | F69: =SUM('Knights 2'!G8:G12) -> 0 | G69: =SUM('Knights 2'!H8:H12) -> 0 | H69: =SUM('Knights 2'!I8:I12) -> 0 | I69: =SUM('Knights 2'!J8:J12) -> 0 | J69: =SUM('Knights 2'!K8:K12) -> 0 | K69: =SUM('Knights 2'!L8:L12) -> 0 | L69: =SUM('Knights 2'!M8:M12) -> 0 | M69: =SUM('Knights 2'!N8:N12) -> 0 | N69: =SUM('Knights 2'!O8:O12) -> 0 | O69: =SUM('Knights 2'!P8:P12) -> 0 | P69: =SUM('Knights 2'!Q8:Q12) -> 0 | Q69: =SUM('Knights 2'!R8:R12) -> 0 | S69: =SUM('Knights 2'!T8:T12) -> 0 | T69: =SUM('Knights 2'!U8:U12) -> 1 | U69: =SUM('Knights 2'!V8:V12) -> 0 | W69: =IF(ISERROR(G69/D69),0,G69/D69) -> 0 | X69: =IF(ISERROR((4*J69+3*I69+2*H69+G69-SUM(H69:J69))/D69),0,(4*J69+3*I69+2*H69+G69-SUM(H69:J69))/D69) -> 0 | Y69: =W69+X69 -> 0 | Z69: =IF(ISERROR((G69+L69+M69)/(D69+L69+M69+Q69)),0,(G69+L69+M69)/(D69+L69+M69+Q69)) -> 0 | AA69: =Z69+X69 -> 0 | AC69: =IF(ISERROR((S69+T69)/(U69+S69+T69)),0,(S69+T69)/(U69+S69+T69)) -> 1
A70: ='Haar Disciples'!A53 -> 53 | B70: =IF('Haar Disciples'!B53="","",'Haar Disciples'!B53) -> Gomilschak | C70: =SUM('Haar Disciples'!D53:D57) -> 2 | D70: =SUM('Haar Disciples'!E53:E57) -> 2 | E70: =SUM('Haar Disciples'!F53:F57) -> 0 | F70: =SUM('Haar Disciples'!G53:G57) -> 0 | G70: =SUM('Haar Disciples'!H53:H57) -> 0 | H70: =SUM('Haar Disciples'!I53:I57) -> 0 | I70: =SUM('Haar Disciples'!J53:J57) -> 0 | J70: =SUM('Haar Disciples'!K53:K57) -> 0 | K70: =SUM('Haar Disciples'!L53:L57) -> 1 | L70: =SUM('Haar Disciples'!M53:M57) -> 0 | M70: =SUM('Haar Disciples'!N53:N57) -> 0 | N70: =SUM('Haar Disciples'!O53:O57) -> 0 | O70: =SUM('Haar Disciples'!P53:P57) -> 0 | P70: =SUM('Haar Disciples'!Q53:Q57) -> 0 | Q70: =SUM('Haar Disciples'!R53:R57) -> 0 | S70: =SUM('Haar Disciples'!T53:T57) -> 0 | T70: =SUM('Haar Disciples'!U53:U57) -> 1 | U70: =SUM('Haar Disciples'!V53:V57) -> 1 | W70: =IF(ISERROR(G70/D70),0,G70/D70) -> 0 | X70: =IF(ISERROR((4*J70+3*I70+2*H70+G70-SUM(H70:J70))/D70),0,(4*J70+3*I70+2*H70+G70-SUM(H70:J70))/D70) -> 0 | Y70: =W70+X70 -> 0 | Z70: =IF(ISERROR((G70+L70+M70)/(D70+L70+M70+Q70)),0,(G70+L70+M70)/(D70+L70+M70+Q70)) -> 0 | AA70: =Z70+X70 -> 0 | AC70: =IF(ISERROR((S70+T70)/(U70+S70+T70)),0,(S70+T70)/(U70+S70+T70)) -> 0.5
A71: ='Hamburg Knights'!A48 -> 10 | B71: =IF('Hamburg Knights'!B48="","",'Hamburg Knights'!B48) -> Herrmann | C71: =SUM('Hamburg Knights'!D48:D52) -> 1 | D71: =SUM('Hamburg Knights'!E48:E52) -> 1 | E71: =SUM('Hamburg Knights'!F48:F52) -> 0 | F71: =SUM('Hamburg Knights'!G48:G52) -> 0 | G71: =SUM('Hamburg Knights'!H48:H52) -> 0 | H71: =SUM('Hamburg Knights'!I48:I52) -> 0 | I71: =SUM('Hamburg Knights'!J48:J52) -> 0 | J71: =SUM('Hamburg Knights'!K48:K52) -> 0 | K71: =SUM('Hamburg Knights'!L48:L52) -> 0 | L71: =SUM('Hamburg Knights'!M48:M52) -> 0 | M71: =SUM('Hamburg Knights'!N48:N52) -> 0 | N71: =SUM('Hamburg Knights'!O48:O52) -> 0 | O71: =SUM('Hamburg Knights'!P48:P52) -> 0 | P71: =SUM('Hamburg Knights'!Q48:Q52) -> 0 | Q71: =SUM('Hamburg Knights'!R48:R52) -> 0 | S71: =SUM('Hamburg Knights'!T48:T52) -> 1 | T71: =SUM('Hamburg Knights'!U48:U52) -> 0 | U71: =SUM('Hamburg Knights'!V48:V52) -> 0 | W71: =IF(ISERROR(G71/D71),0,G71/D71) -> 0 | X71: =IF(ISERROR((4*J71+3*I71+2*H71+G71-SUM(H71:J71))/D71),0,(4*J71+3*I71+2*H71+G71-SUM(H71:J71))/D71) -> 0 | Y71: =W71+X71 -> 0 | Z71: =IF(ISERROR((G71+L71+M71)/(D71+L71+M71+Q71)),0,(G71+L71+M71)/(D71+L71+M71+Q71)) -> 0 | AA71: =Z71+X71 -> 0 | AC71: =IF(ISERROR((S71+T71)/(U71+S71+T71)),0,(S71+T71)/(U71+S71+T71)) -> 1
A72: ='Haar Disciples'!A73 -> 515 | B72: =IF('Haar Disciples'!B73="","",'Haar Disciples'!B73) -> Pozgaj | C72: =SUM('Haar Disciples'!D73:D77) -> 1 | D72: =SUM('Haar Disciples'!E73:E77) -> 1 | E72: =SUM('Haar Disciples'!F73:F77) -> 0 | F72: =SUM('Haar Disciples'!G73:G77) -> 0 | G72: =SUM('Haar Disciples'!H73:H77) -> 0 | H72: =SUM('Haar Disciples'!I73:I77) -> 0 | I72: =SUM('Haar Disciples'!J73:J77) -> 0 | J72: =SUM('Haar Disciples'!K73:K77) -> 0 | K72: =SUM('Haar Disciples'!L73:L77) -> 0 | L72: =SUM('Haar Disciples'!M73:M77) -> 0 | M72: =SUM('Haar Disciples'!N73:N77) -> 0 | N72: =SUM('Haar Disciples'!O73:O77) -> 0 | O72: =SUM('Haar Disciples'!P73:P77) -> 0 | P72: =SUM('Haar Disciples'!Q73:Q77) -> 0 | Q72: =SUM('Haar Disciples'!R73:R77) -> 0 | S72: =SUM('Haar Disciples'!T73:T77) -> 1 | T72: =SUM('Haar Disciples'!U73:U77) -> 4 | U72: =SUM('Haar Disciples'!V73:V77) -> 0 | W72: =IF(ISERROR(G72/D72),0,G72/D72) -> 0 | X72: =IF(ISERROR((4*J72+3*I72+2*H72+G72-SUM(H72:J72))/D72),0,(4*J72+3*I72+2*H72+G72-SUM(H72:J72))/D72) -> 0 | Y72: =W72+X72 -> 0 | Z72: =IF(ISERROR((G72+L72+M72)/(D72+L72+M72+Q72)),0,(G72+L72+M72)/(D72+L72+M72+Q72)) -> 0 | AA72: =Z72+X72 -> 0 | AC72: =IF(ISERROR((S72+T72)/(U72+S72+T72)),0,(S72+T72)/(U72+S72+T72)) -> 1
A73: ='Hamburg Knights'!A53 -> 11 | B73: =IF('Hamburg Knights'!B53="","",'Hamburg Knights'!B53) -> Flügge | C73: =SUM('Hamburg Knights'!D53:D57) -> 1 | D73: =SUM('Hamburg Knights'!E53:E57) -> 1 | E73: =SUM('Hamburg Knights'!F53:F57) -> 0 | F73: =SUM('Hamburg Knights'!G53:G57) -> 0 | G73: =SUM('Hamburg Knights'!H53:H57) -> 0 | H73: =SUM('Hamburg Knights'!I53:I57) -> 0 | I73: =SUM('Hamburg Knights'!J53:J57) -> 0 | J73: =SUM('Hamburg Knights'!K53:K57) -> 0 | K73: =SUM('Hamburg Knights'!L53:L57) -> 1 | L73: =SUM('Hamburg Knights'!M53:M57) -> 0 | M73: =SUM('Hamburg Knights'!N53:N57) -> 0 | N73: =SUM('Hamburg Knights'!O53:O57) -> 0 | O73: =SUM('Hamburg Knights'!P53:P57) -> 0 | P73: =SUM('Hamburg Knights'!Q53:Q57) -> 0 | Q73: =SUM('Hamburg Knights'!R53:R57) -> 0 | S73: =SUM('Hamburg Knights'!T53:T57) -> 0 | T73: =SUM('Hamburg Knights'!U53:U57) -> 2 | U73: =SUM('Hamburg Knights'!V53:V57) -> 2 | W73: =IF(ISERROR(G73/D73),0,G73/D73) -> 0 | X73: =IF(ISERROR((4*J73+3*I73+2*H73+G73-SUM(H73:J73))/D73),0,(4*J73+3*I73+2*H73+G73-SUM(H73:J73))/D73) -> 0 | Y73: =W73+X73 -> 0 | Z73: =IF(ISERROR((G73+L73+M73)/(D73+L73+M73+Q73)),0,(G73+L73+M73)/(D73+L73+M73+Q73)) -> 0 | AA73: =Z73+X73 -> 0 | AC73: =IF(ISERROR((S73+T73)/(U73+S73+T73)),0,(S73+T73)/(U73+S73+T73)) -> 0.5
A74: ='Hamburg Knights'!A18 -> 4 | B74: =IF('Hamburg Knights'!B18="","",'Hamburg Knights'!B18) -> Haase | C74: =SUM('Hamburg Knights'!D18:D22) -> 1 | D74: =SUM('Hamburg Knights'!E18:E22) -> 1 | E74: =SUM('Hamburg Knights'!F18:F22) -> 0 | F74: =SUM('Hamburg Knights'!G18:G22) -> 0 | G74: =SUM('Hamburg Knights'!H18:H22) -> 0 | H74: =SUM('Hamburg Knights'!I18:I22) -> 0 | I74: =SUM('Hamburg Knights'!J18:J22) -> 0 | J74: =SUM('Hamburg Knights'!K18:K22) -> 0 | K74: =SUM('Hamburg Knights'!L18:L22) -> 1 | L74: =SUM('Hamburg Knights'!M18:M22) -> 0 | M74: =SUM('Hamburg Knights'!N18:N22) -> 0 | N74: =SUM('Hamburg Knights'!O18:O22) -> 0 | O74: =SUM('Hamburg Knights'!P18:P22) -> 0 | P74: =SUM('Hamburg Knights'!Q18:Q22) -> 0 | Q74: =SUM('Hamburg Knights'!R18:R22) -> 0 | S74: =SUM('Hamburg Knights'!T18:T22) -> 0 | T74: =SUM('Hamburg Knights'!U18:U22) -> 0 | U74: =SUM('Hamburg Knights'!V18:V22) -> 1 | W74: =IF(ISERROR(G74/D74),0,G74/D74) -> 0 | X74: =IF(ISERROR((4*J74+3*I74+2*H74+G74-SUM(H74:J74))/D74),0,(4*J74+3*I74+2*H74+G74-SUM(H74:J74))/D74) -> 0 | Y74: =W74+X74 -> 0 | Z74: =IF(ISERROR((G74+L74+M74)/(D74+L74+M74+Q74)),0,(G74+L74+M74)/(D74+L74+M74+Q74)) -> 0 | AA74: =Z74+X74 -> 0 | AC74: =IF(ISERROR((S74+T74)/(U74+S74+T74)),0,(S74+T74)/(U74+S74+T74)) -> 0
A75: ='Hamburg Knights'!A43 -> 9 | B75: =IF('Hamburg Knights'!B43="","",'Hamburg Knights'!B43) -> Tikrani | C75: =SUM('Hamburg Knights'!D43:D47) -> 1 | D75: =SUM('Hamburg Knights'!E43:E47) -> 1 | E75: =SUM('Hamburg Knights'!F43:F47) -> 0 | F75: =SUM('Hamburg Knights'!G43:G47) -> 0 | G75: =SUM('Hamburg Knights'!H43:H47) -> 0 | H75: =SUM('Hamburg Knights'!I43:I47) -> 0 | I75: =SUM('Hamburg Knights'!J43:J47) -> 0 | J75: =SUM('Hamburg Knights'!K43:K47) -> 0 | K75: =SUM('Hamburg Knights'!L43:L47) -> 1 | L75: =SUM('Hamburg Knights'!M43:M47) -> 0 | M75: =SUM('Hamburg Knights'!N43:N47) -> 0 | N75: =SUM('Hamburg Knights'!O43:O47) -> 0 | O75: =SUM('Hamburg Knights'!P43:P47) -> 0 | P75: =SUM('Hamburg Knights'!Q43:Q47) -> 0 | Q75: =SUM('Hamburg Knights'!R43:R47) -> 0 | S75: =SUM('Hamburg Knights'!T43:T47) -> 0 | T75: =SUM('Hamburg Knights'!U43:U47) -> 0 | U75: =SUM('Hamburg Knights'!V43:V47) -> 0 | W75: =IF(ISERROR(G75/D75),0,G75/D75) -> 0 | X75: =IF(ISERROR((4*J75+3*I75+2*H75+G75-SUM(H75:J75))/D75),0,(4*J75+3*I75+2*H75+G75-SUM(H75:J75))/D75) -> 0 | Y75: =W75+X75 -> 0 | Z75: =IF(ISERROR((G75+L75+M75)/(D75+L75+M75+Q75)),0,(G75+L75+M75)/(D75+L75+M75+Q75)) -> 0 | AA75: =Z75+X75 -> 0 | AC75: =IF(ISERROR((S75+T75)/(U75+S75+T75)),0,(S75+T75)/(U75+S75+T75)) -> 0
A76: ='Freising Grizzlies'!A13 -> 34 | B76: =IF('Freising Grizzlies'!B13="","",'Freising Grizzlies'!B13) -> Mann | C76: =SUM('Freising Grizzlies'!D13:D17) -> 1 | D76: =SUM('Freising Grizzlies'!E13:E17) -> 1 | E76: =SUM('Freising Grizzlies'!F13:F17) -> 0 | F76: =SUM('Freising Grizzlies'!G13:G17) -> 1 | G76: =SUM('Freising Grizzlies'!H13:H17) -> 0 | H76: =SUM('Freising Grizzlies'!I13:I17) -> 0 | I76: =SUM('Freising Grizzlies'!J13:J17) -> 0 | J76: =SUM('Freising Grizzlies'!K13:K17) -> 0 | K76: =SUM('Freising Grizzlies'!L13:L17) -> 0 | L76: =SUM('Freising Grizzlies'!M13:M17) -> 0 | M76: =SUM('Freising Grizzlies'!N13:N17) -> 0 | N76: =SUM('Freising Grizzlies'!O13:O17) -> 0 | O76: =SUM('Freising Grizzlies'!P13:P17) -> 0 | P76: =SUM('Freising Grizzlies'!Q13:Q17) -> 0 | Q76: =SUM('Freising Grizzlies'!R13:R17) -> 0 | S76: =SUM('Freising Grizzlies'!T13:T17) -> 0 | T76: =SUM('Freising Grizzlies'!U13:U17) -> 0 | U76: =SUM('Freising Grizzlies'!V13:V17) -> 0 | W76: =IF(ISERROR(G76/D76),0,G76/D76) -> 0 | X76: =IF(ISERROR((4*J76+3*I76+2*H76+G76-SUM(H76:J76))/D76),0,(4*J76+3*I76+2*H76+G76-SUM(H76:J76))/D76) -> 0 | Y76: =W76+X76 -> 0 | Z76: =IF(ISERROR((G76+L76+M76)/(D76+L76+M76+Q76)),0,(G76+L76+M76)/(D76+L76+M76+Q76)) -> 0 | AA76: =Z76+X76 -> 0 | AC76: =IF(ISERROR((S76+T76)/(U76+S76+T76)),0,(S76+T76)/(U76+S76+T76)) -> 0
A77: ='Haar Disciples'!A78 -> 516 | B77: =IF('Haar Disciples'!B78="","",'Haar Disciples'!B78) -> Kuprian | C77: =SUM('Haar Disciples'!D78:D82) -> 1 | D77: =SUM('Haar Disciples'!E78:E82) -> 1 | E77: =SUM('Haar Disciples'!F78:F82) -> 0 | F77: =SUM('Haar Disciples'!G78:G82) -> 0 | G77: =SUM('Haar Disciples'!H78:H82) -> 0 | H77: =SUM('Haar Disciples'!I78:I82) -> 0 | I77: =SUM('Haar Disciples'!J78:J82) -> 0 | J77: =SUM('Haar Disciples'!K78:K82) -> 0 | K77: =SUM('Haar Disciples'!L78:L82) -> 1 | L77: =SUM('Haar Disciples'!M78:M82) -> 0 | M77: =SUM('Haar Disciples'!N78:N82) -> 0 | N77: =SUM('Haar Disciples'!O78:O82) -> 0 | O77: =SUM('Haar Disciples'!P78:P82) -> 0 | P77: =SUM('Haar Disciples'!Q78:Q82) -> 0 | Q77: =SUM('Haar Disciples'!R78:R82) -> 0 | S77: =SUM('Haar Disciples'!T78:T82) -> 0 | T77: =SUM('Haar Disciples'!U78:U82) -> 0 | U77: =SUM('Haar Disciples'!V78:V82) -> 0 | W77: =IF(ISERROR(G77/D77),0,G77/D77) -> 0 | X77: =IF(ISERROR((4*J77+3*I77+2*H77+G77-SUM(H77:J77))/D77),0,(4*J77+3*I77+2*H77+G77-SUM(H77:J77))/D77) -> 0 | Y77: =W77+X77 -> 0 | Z77: =IF(ISERROR((G77+L77+M77)/(D77+L77+M77+Q77)),0,(G77+L77+M77)/(D77+L77+M77+Q77)) -> 0 | AA77: =Z77+X77 -> 0 | AC77: =IF(ISERROR((S77+T77)/(U77+S77+T77)),0,(S77+T77)/(U77+S77+T77)) -> 0
A78: ='Wesseling Vermins'!A58 -> 0 | B78: =IF('Wesseling Vermins'!B58="","",'Wesseling Vermins'!B58) ->  | C78: =SUM('Wesseling Vermins'!D58:D62) -> 0 | D78: =SUM('Wesseling Vermins'!E58:E62) -> 0 | E78: =SUM('Wesseling Vermins'!F58:F62) -> 0 | F78: =SUM('Wesseling Vermins'!G58:G62) -> 0 | G78: =SUM('Wesseling Vermins'!H58:H62) -> 0 | H78: =SUM('Wesseling Vermins'!I58:I62) -> 0 | I78: =SUM('Wesseling Vermins'!J58:J62) -> 0 | J78: =SUM('Wesseling Vermins'!K58:K62) -> 0 | K78: =SUM('Wesseling Vermins'!L58:L62) -> 0 | L78: =SUM('Wesseling Vermins'!M58:M62) -> 0 | M78: =SUM('Wesseling Vermins'!N58:N62) -> 0 | N78: =SUM('Wesseling Vermins'!O58:O62) -> 0 | O78: =SUM('Wesseling Vermins'!P58:P62) -> 0 | P78: =SUM('Wesseling Vermins'!Q58:Q62) -> 0 | Q78: =SUM('Wesseling Vermins'!R58:R62) -> 0 | S78: =SUM('Wesseling Vermins'!T58:T62) -> 0 | T78: =SUM('Wesseling Vermins'!U58:U62) -> 0 | U78: =SUM('Wesseling Vermins'!V58:V62) -> 0 | W78: =IF(ISERROR(G78/D78),0,G78/D78) -> 0 | X78: =IF(ISERROR((4*J78+3*I78+2*H78+G78-SUM(H78:J78))/D78),0,(4*J78+3*I78+2*H78+G78-SUM(H78:J78))/D78) -> 0 | Y78: =W78+X78 -> 0 | Z78: =IF(ISERROR((G78+L78+M78)/(D78+L78+M78+Q78)),0,(G78+L78+M78)/(D78+L78+M78+Q78)) -> 0 | AA78: =Z78+X78 -> 0 | AC78: =IF(ISERROR((S78+T78)/(U78+S78+T78)),0,(S78+T78)/(U78+S78+T78)) -> 0
A79: ='Hamburg Knights'!A83 -> 17 | B79: =IF('Hamburg Knights'!B83="","",'Hamburg Knights'!B83) -> Flohr | C79: =SUM('Hamburg Knights'!D83:D87) -> 0 | D79: =SUM('Hamburg Knights'!E83:E87) -> 0 | E79: =SUM('Hamburg Knights'!F83:F87) -> 0 | F79: =SUM('Hamburg Knights'!G83:G87) -> 0 | G79: =SUM('Hamburg Knights'!H83:H87) -> 0 | H79: =SUM('Hamburg Knights'!I83:I87) -> 0 | I79: =SUM('Hamburg Knights'!J83:J87) -> 0 | J79: =SUM('Hamburg Knights'!K83:K87) -> 0 | K79: =SUM('Hamburg Knights'!L83:L87) -> 0 | L79: =SUM('Hamburg Knights'!M83:M87) -> 0 | M79: =SUM('Hamburg Knights'!N83:N87) -> 0 | N79: =SUM('Hamburg Knights'!O83:O87) -> 0 | O79: =SUM('Hamburg Knights'!P83:P87) -> 0 | P79: =SUM('Hamburg Knights'!Q83:Q87) -> 0 | Q79: =SUM('Hamburg Knights'!R83:R87) -> 0 | S79: =SUM('Hamburg Knights'!T83:T87) -> 0 | T79: =SUM('Hamburg Knights'!U83:U87) -> 0 | U79: =SUM('Hamburg Knights'!V83:V87) -> 0 | W79: =IF(ISERROR(G79/D79),0,G79/D79) -> 0 | X79: =IF(ISERROR((4*J79+3*I79+2*H79+G79-SUM(H79:J79))/D79),0,(4*J79+3*I79+2*H79+G79-SUM(H79:J79))/D79) -> 0 | Y79: =W79+X79 -> 0 | Z79: =IF(ISERROR((G79+L79+M79)/(D79+L79+M79+Q79)),0,(G79+L79+M79)/(D79+L79+M79+Q79)) -> 0 | AA79: =Z79+X79 -> 0 | AC79: =IF(ISERROR((S79+T79)/(U79+S79+T79)),0,(S79+T79)/(U79+S79+T79)) -> 0
A80: ='Karlsruhe Cougars'!A48 -> 66 | B80: =IF('Karlsruhe Cougars'!B48="","",'Karlsruhe Cougars'!B48) ->  | C80: =SUM('Karlsruhe Cougars'!D48:D52) -> 0 | D80: =SUM('Karlsruhe Cougars'!E48:E52) -> 0 | E80: =SUM('Karlsruhe Cougars'!F48:F52) -> 0 | F80: =SUM('Karlsruhe Cougars'!G48:G52) -> 0 | G80: =SUM('Karlsruhe Cougars'!H48:H52) -> 0 | H80: =SUM('Karlsruhe Cougars'!I48:I52) -> 0 | I80: =SUM('Karlsruhe Cougars'!J48:J52) -> 0 | J80: =SUM('Karlsruhe Cougars'!K48:K52) -> 0 | K80: =SUM('Karlsruhe Cougars'!L48:L52) -> 0 | L80: =SUM('Karlsruhe Cougars'!M48:M52) -> 0 | M80: =SUM('Karlsruhe Cougars'!N48:N52) -> 0 | N80: =SUM('Karlsruhe Cougars'!O48:O52) -> 0 | O80: =SUM('Karlsruhe Cougars'!P48:P52) -> 0 | P80: =SUM('Karlsruhe Cougars'!Q48:Q52) -> 0 | Q80: =SUM('Karlsruhe Cougars'!R48:R52) -> 0 | S80: =SUM('Karlsruhe Cougars'!T48:T52) -> 0 | T80: =SUM('Karlsruhe Cougars'!U48:U52) -> 0 | U80: =SUM('Karlsruhe Cougars'!V48:V52) -> 0 | W80: =IF(ISERROR(G80/D80),0,G80/D80) -> 0 | X80: =IF(ISERROR((4*J80+3*I80+2*H80+G80-SUM(H80:J80))/D80),0,(4*J80+3*I80+2*H80+G80-SUM(H80:J80))/D80) -> 0 | Y80: =W80+X80 -> 0 | Z80: =IF(ISERROR((G80+L80+M80)/(D80+L80+M80+Q80)),0,(G80+L80+M80)/(D80+L80+M80+Q80)) -> 0 | AA80: =Z80+X80 -> 0 | AC80: =IF(ISERROR((S80+T80)/(U80+S80+T80)),0,(S80+T80)/(U80+S80+T80)) -> 0
A81: ='Knights 2'!A23 -> 205 | B81: =IF('Knights 2'!B23="","",'Knights 2'!B23) ->  | C81: =SUM('Knights 2'!D23:D27) -> 0 | D81: =SUM('Knights 2'!E23:E27) -> 0 | E81: =SUM('Knights 2'!F23:F27) -> 0 | F81: =SUM('Knights 2'!G23:G27) -> 0 | G81: =SUM('Knights 2'!H23:H27) -> 0 | H81: =SUM('Knights 2'!I23:I27) -> 0 | I81: =SUM('Knights 2'!J23:J27) -> 0 | J81: =SUM('Knights 2'!K23:K27) -> 0 | K81: =SUM('Knights 2'!L23:L27) -> 0 | L81: =SUM('Knights 2'!M23:M27) -> 0 | M81: =SUM('Knights 2'!N23:N27) -> 0 | N81: =SUM('Knights 2'!O23:O27) -> 0 | O81: =SUM('Knights 2'!P23:P27) -> 0 | P81: =SUM('Knights 2'!Q23:Q27) -> 0 | Q81: =SUM('Knights 2'!R23:R27) -> 0 | S81: =SUM('Knights 2'!T23:T27) -> 0 | T81: =SUM('Knights 2'!U23:U27) -> 0 | U81: =SUM('Knights 2'!V23:V27) -> 0 | W81: =IF(ISERROR(G81/D81),0,G81/D81) -> 0 | X81: =IF(ISERROR((4*J81+3*I81+2*H81+G81-SUM(H81:J81))/D81),0,(4*J81+3*I81+2*H81+G81-SUM(H81:J81))/D81) -> 0 | Y81: =W81+X81 -> 0 | Z81: =IF(ISERROR((G81+L81+M81)/(D81+L81+M81+Q81)),0,(G81+L81+M81)/(D81+L81+M81+Q81)) -> 0 | AA81: =Z81+X81 -> 0 | AC81: =IF(ISERROR((S81+T81)/(U81+S81+T81)),0,(S81+T81)/(U81+S81+T81)) -> 0
A82: ='Knights 2'!A28 -> 206 | B82: =IF('Knights 2'!B28="","",'Knights 2'!B28) ->  | C82: =SUM('Knights 2'!D28:D32) -> 0 | D82: =SUM('Knights 2'!E28:E32) -> 0 | E82: =SUM('Knights 2'!F28:F32) -> 0 | F82: =SUM('Knights 2'!G28:G32) -> 0 | G82: =SUM('Knights 2'!H28:H32) -> 0 | H82: =SUM('Knights 2'!I28:I32) -> 0 | I82: =SUM('Knights 2'!J28:J32) -> 0 | J82: =SUM('Knights 2'!K28:K32) -> 0 | K82: =SUM('Knights 2'!L28:L32) -> 0 | L82: =SUM('Knights 2'!M28:M32) -> 0 | M82: =SUM('Knights 2'!N28:N32) -> 0 | N82: =SUM('Knights 2'!O28:O32) -> 0 | O82: =SUM('Knights 2'!P28:P32) -> 0 | P82: =SUM('Knights 2'!Q28:Q32) -> 0 | Q82: =SUM('Knights 2'!R28:R32) -> 0 | S82: =SUM('Knights 2'!T28:T32) -> 0 | T82: =SUM('Knights 2'!U28:U32) -> 0 | U82: =SUM('Knights 2'!V28:V32) -> 0 | W82: =IF(ISERROR(G82/D82),0,G82/D82) -> 0 | X82: =IF(ISERROR((4*J82+3*I82+2*H82+G82-SUM(H82:J82))/D82),0,(4*J82+3*I82+2*H82+G82-SUM(H82:J82))/D82) -> 0 | Y82: =W82+X82 -> 0 | Z82: =IF(ISERROR((G82+L82+M82)/(D82+L82+M82+Q82)),0,(G82+L82+M82)/(D82+L82+M82+Q82)) -> 0 | AA82: =Z82+X82 -> 0 | AC82: =IF(ISERROR((S82+T82)/(U82+S82+T82)),0,(S82+T82)/(U82+S82+T82)) -> 0
A83: ='Knights 2'!A33 -> 207 | B83: =IF('Knights 2'!B33="","",'Knights 2'!B33) ->  | C83: =SUM('Knights 2'!D33:D37) -> 0 | D83: =SUM('Knights 2'!E33:E37) -> 0 | E83: =SUM('Knights 2'!F33:F37) -> 0 | F83: =SUM('Knights 2'!G33:G37) -> 0 | G83: =SUM('Knights 2'!H33:H37) -> 0 | H83: =SUM('Knights 2'!I33:I37) -> 0 | I83: =SUM('Knights 2'!J33:J37) -> 0 | J83: =SUM('Knights 2'!K33:K37) -> 0 | K83: =SUM('Knights 2'!L33:L37) -> 0 | L83: =SUM('Knights 2'!M33:M37) -> 0 | M83: =SUM('Knights 2'!N33:N37) -> 0 | N83: =SUM('Knights 2'!O33:O37) -> 0 | O83: =SUM('Knights 2'!P33:P37) -> 0 | P83: =SUM('Knights 2'!Q33:Q37) -> 0 | Q83: =SUM('Knights 2'!R33:R37) -> 0 | S83: =SUM('Knights 2'!T33:T37) -> 0 | T83: =SUM('Knights 2'!U33:U37) -> 0 | U83: =SUM('Knights 2'!V33:V37) -> 0 | W83: =IF(ISERROR(G83/D83),0,G83/D83) -> 0 | X83: =IF(ISERROR((4*J83+3*I83+2*H83+G83-SUM(H83:J83))/D83),0,(4*J83+3*I83+2*H83+G83-SUM(H83:J83))/D83) -> 0 | Y83: =W83+X83 -> 0 | Z83: =IF(ISERROR((G83+L83+M83)/(D83+L83+M83+Q83)),0,(G83+L83+M83)/(D83+L83+M83+Q83)) -> 0 | AA83: =Z83+X83 -> 0 | AC83: =IF(ISERROR((S83+T83)/(U83+S83+T83)),0,(S83+T83)/(U83+S83+T83)) -> 0
A84: ='Knights 2'!A38 -> 208 | B84: =IF('Knights 2'!B38="","",'Knights 2'!B38) ->  | C84: =SUM('Knights 2'!D38:D42) -> 0 | D84: =SUM('Knights 2'!E38:E42) -> 0 | E84: =SUM('Knights 2'!F38:F42) -> 0 | F84: =SUM('Knights 2'!G38:G42) -> 0 | G84: =SUM('Knights 2'!H38:H42) -> 0 | H84: =SUM('Knights 2'!I38:I42) -> 0 | I84: =SUM('Knights 2'!J38:J42) -> 0 | J84: =SUM('Knights 2'!K38:K42) -> 0 | K84: =SUM('Knights 2'!L38:L42) -> 0 | L84: =SUM('Knights 2'!M38:M42) -> 0 | M84: =SUM('Knights 2'!N38:N42) -> 0 | N84: =SUM('Knights 2'!O38:O42) -> 0 | O84: =SUM('Knights 2'!P38:P42) -> 0 | P84: =SUM('Knights 2'!Q38:Q42) -> 0 | Q84: =SUM('Knights 2'!R38:R42) -> 0 | S84: =SUM('Knights 2'!T38:T42) -> 0 | T84: =SUM('Knights 2'!U38:U42) -> 0 | U84: =SUM('Knights 2'!V38:V42) -> 0 | W84: =IF(ISERROR(G84/D84),0,G84/D84) -> 0 | X84: =IF(ISERROR((4*J84+3*I84+2*H84+G84-SUM(H84:J84))/D84),0,(4*J84+3*I84+2*H84+G84-SUM(H84:J84))/D84) -> 0 | Y84: =W84+X84 -> 0 | Z84: =IF(ISERROR((G84+L84+M84)/(D84+L84+M84+Q84)),0,(G84+L84+M84)/(D84+L84+M84+Q84)) -> 0 | AA84: =Z84+X84 -> 0 | AC84: =IF(ISERROR((S84+T84)/(U84+S84+T84)),0,(S84+T84)/(U84+S84+T84)) -> 0
A85: ='Knights 2'!A43 -> 209 | B85: =IF('Knights 2'!B43="","",'Knights 2'!B43) ->  | C85: =SUM('Knights 2'!D43:D47) -> 0 | D85: =SUM('Knights 2'!E43:E47) -> 0 | E85: =SUM('Knights 2'!F43:F47) -> 0 | F85: =SUM('Knights 2'!G43:G47) -> 0 | G85: =SUM('Knights 2'!H43:H47) -> 0 | H85: =SUM('Knights 2'!I43:I47) -> 0 | I85: =SUM('Knights 2'!J43:J47) -> 0 | J85: =SUM('Knights 2'!K43:K47) -> 0 | K85: =SUM('Knights 2'!L43:L47) -> 0 | L85: =SUM('Knights 2'!M43:M47) -> 0 | M85: =SUM('Knights 2'!N43:N47) -> 0 | N85: =SUM('Knights 2'!O43:O47) -> 0 | O85: =SUM('Knights 2'!P43:P47) -> 0 | P85: =SUM('Knights 2'!Q43:Q47) -> 0 | Q85: =SUM('Knights 2'!R43:R47) -> 0 | S85: =SUM('Knights 2'!T43:T47) -> 0 | T85: =SUM('Knights 2'!U43:U47) -> 0 | U85: =SUM('Knights 2'!V43:V47) -> 0 | W85: =IF(ISERROR(G85/D85),0,G85/D85) -> 0 | X85: =IF(ISERROR((4*J85+3*I85+2*H85+G85-SUM(H85:J85))/D85),0,(4*J85+3*I85+2*H85+G85-SUM(H85:J85))/D85) -> 0 | Y85: =W85+X85 -> 0 | Z85: =IF(ISERROR((G85+L85+M85)/(D85+L85+M85+Q85)),0,(G85+L85+M85)/(D85+L85+M85+Q85)) -> 0 | AA85: =Z85+X85 -> 0 | AC85: =IF(ISERROR((S85+T85)/(U85+S85+T85)),0,(S85+T85)/(U85+S85+T85)) -> 0
A86: ='Knights 2'!A48 -> 210 | B86: =IF('Knights 2'!B48="","",'Knights 2'!B48) ->  | C86: =SUM('Knights 2'!D48:D52) -> 0 | D86: =SUM('Knights 2'!E48:E52) -> 0 | E86: =SUM('Knights 2'!F48:F52) -> 0 | F86: =SUM('Knights 2'!G48:G52) -> 0 | G86: =SUM('Knights 2'!H48:H52) -> 0 | H86: =SUM('Knights 2'!I48:I52) -> 0 | I86: =SUM('Knights 2'!J48:J52) -> 0 | J86: =SUM('Knights 2'!K48:K52) -> 0 | K86: =SUM('Knights 2'!L48:L52) -> 0 | L86: =SUM('Knights 2'!M48:M52) -> 0 | M86: =SUM('Knights 2'!N48:N52) -> 0 | N86: =SUM('Knights 2'!O48:O52) -> 0 | O86: =SUM('Knights 2'!P48:P52) -> 0 | P86: =SUM('Knights 2'!Q48:Q52) -> 0 | Q86: =SUM('Knights 2'!R48:R52) -> 0 | S86: =SUM('Knights 2'!T48:T52) -> 0 | T86: =SUM('Knights 2'!U48:U52) -> 0 | U86: =SUM('Knights 2'!V48:V52) -> 0 | W86: =IF(ISERROR(G86/D86),0,G86/D86) -> 0 | X86: =IF(ISERROR((4*J86+3*I86+2*H86+G86-SUM(H86:J86))/D86),0,(4*J86+3*I86+2*H86+G86-SUM(H86:J86))/D86) -> 0 | Y86: =W86+X86 -> 0 | Z86: =IF(ISERROR((G86+L86+M86)/(D86+L86+M86+Q86)),0,(G86+L86+M86)/(D86+L86+M86+Q86)) -> 0 | AA86: =Z86+X86 -> 0 | AC86: =IF(ISERROR((S86+T86)/(U86+S86+T86)),0,(S86+T86)/(U86+S86+T86)) -> 0
A87: ='Knights 2'!A53 -> 211 | B87: =IF('Knights 2'!B53="","",'Knights 2'!B53) ->  | C87: =SUM('Knights 2'!D53:D57) -> 0 | D87: =SUM('Knights 2'!E53:E57) -> 0 | E87: =SUM('Knights 2'!F53:F57) -> 0 | F87: =SUM('Knights 2'!G53:G57) -> 0 | G87: =SUM('Knights 2'!H53:H57) -> 0 | H87: =SUM('Knights 2'!I53:I57) -> 0 | I87: =SUM('Knights 2'!J53:J57) -> 0 | J87: =SUM('Knights 2'!K53:K57) -> 0 | K87: =SUM('Knights 2'!L53:L57) -> 0 | L87: =SUM('Knights 2'!M53:M57) -> 0 | M87: =SUM('Knights 2'!N53:N57) -> 0 | N87: =SUM('Knights 2'!O53:O57) -> 0 | O87: =SUM('Knights 2'!P53:P57) -> 0 | P87: =SUM('Knights 2'!Q53:Q57) -> 0 | Q87: =SUM('Knights 2'!R53:R57) -> 0 | S87: =SUM('Knights 2'!T53:T57) -> 0 | T87: =SUM('Knights 2'!U53:U57) -> 0 | U87: =SUM('Knights 2'!V53:V57) -> 0 | W87: =IF(ISERROR(G87/D87),0,G87/D87) -> 0 | X87: =IF(ISERROR((4*J87+3*I87+2*H87+G87-SUM(H87:J87))/D87),0,(4*J87+3*I87+2*H87+G87-SUM(H87:J87))/D87) -> 0 | Y87: =W87+X87 -> 0 | Z87: =IF(ISERROR((G87+L87+M87)/(D87+L87+M87+Q87)),0,(G87+L87+M87)/(D87+L87+M87+Q87)) -> 0 | AA87: =Z87+X87 -> 0 | AC87: =IF(ISERROR((S87+T87)/(U87+S87+T87)),0,(S87+T87)/(U87+S87+T87)) -> 0
A88: ='Knights 2'!A58 -> 212 | B88: =IF('Knights 2'!B58="","",'Knights 2'!B58) ->  | C88: =SUM('Knights 2'!D58:D62) -> 0 | D88: =SUM('Knights 2'!E58:E62) -> 0 | E88: =SUM('Knights 2'!F58:F62) -> 0 | F88: =SUM('Knights 2'!G58:G62) -> 0 | G88: =SUM('Knights 2'!H58:H62) -> 0 | H88: =SUM('Knights 2'!I58:I62) -> 0 | I88: =SUM('Knights 2'!J58:J62) -> 0 | J88: =SUM('Knights 2'!K58:K62) -> 0 | K88: =SUM('Knights 2'!L58:L62) -> 0 | L88: =SUM('Knights 2'!M58:M62) -> 0 | M88: =SUM('Knights 2'!N58:N62) -> 0 | N88: =SUM('Knights 2'!O58:O62) -> 0 | O88: =SUM('Knights 2'!P58:P62) -> 0 | P88: =SUM('Knights 2'!Q58:Q62) -> 0 | Q88: =SUM('Knights 2'!R58:R62) -> 0 | S88: =SUM('Knights 2'!T58:T62) -> 0 | T88: =SUM('Knights 2'!U58:U62) -> 0 | U88: =SUM('Knights 2'!V58:V62) -> 0 | W88: =IF(ISERROR(G88/D88),0,G88/D88) -> 0 | X88: =IF(ISERROR((4*J88+3*I88+2*H88+G88-SUM(H88:J88))/D88),0,(4*J88+3*I88+2*H88+G88-SUM(H88:J88))/D88) -> 0 | Y88: =W88+X88 -> 0 | Z88: =IF(ISERROR((G88+L88+M88)/(D88+L88+M88+Q88)),0,(G88+L88+M88)/(D88+L88+M88+Q88)) -> 0 | AA88: =Z88+X88 -> 0 | AC88: =IF(ISERROR((S88+T88)/(U88+S88+T88)),0,(S88+T88)/(U88+S88+T88)) -> 0
A89: ='Knights 2'!A63 -> 213 | B89: =IF('Knights 2'!B63="","",'Knights 2'!B63) ->  | C89: =SUM('Knights 2'!D63:D67) -> 0 | D89: =SUM('Knights 2'!E63:E67) -> 0 | E89: =SUM('Knights 2'!F63:F67) -> 0 | F89: =SUM('Knights 2'!G63:G67) -> 0 | G89: =SUM('Knights 2'!H63:H67) -> 0 | H89: =SUM('Knights 2'!I63:I67) -> 0 | I89: =SUM('Knights 2'!J63:J67) -> 0 | J89: =SUM('Knights 2'!K63:K67) -> 0 | K89: =SUM('Knights 2'!L63:L67) -> 0 | L89: =SUM('Knights 2'!M63:M67) -> 0 | M89: =SUM('Knights 2'!N63:N67) -> 0 | N89: =SUM('Knights 2'!O63:O67) -> 0 | O89: =SUM('Knights 2'!P63:P67) -> 0 | P89: =SUM('Knights 2'!Q63:Q67) -> 0 | Q89: =SUM('Knights 2'!R63:R67) -> 0 | S89: =SUM('Knights 2'!T63:T67) -> 0 | T89: =SUM('Knights 2'!U63:U67) -> 0 | U89: =SUM('Knights 2'!V63:V67) -> 0 | W89: =IF(ISERROR(G89/D89),0,G89/D89) -> 0 | X89: =IF(ISERROR((4*J89+3*I89+2*H89+G89-SUM(H89:J89))/D89),0,(4*J89+3*I89+2*H89+G89-SUM(H89:J89))/D89) -> 0 | Y89: =W89+X89 -> 0 | Z89: =IF(ISERROR((G89+L89+M89)/(D89+L89+M89+Q89)),0,(G89+L89+M89)/(D89+L89+M89+Q89)) -> 0 | AA89: =Z89+X89 -> 0 | AC89: =IF(ISERROR((S89+T89)/(U89+S89+T89)),0,(S89+T89)/(U89+S89+T89)) -> 0
A90: ='Knights 2'!A68 -> 214 | B90: =IF('Knights 2'!B68="","",'Knights 2'!B68) ->  | C90: =SUM('Knights 2'!D68:D72) -> 0 | D90: =SUM('Knights 2'!E68:E72) -> 0 | E90: =SUM('Knights 2'!F68:F72) -> 0 | F90: =SUM('Knights 2'!G68:G72) -> 0 | G90: =SUM('Knights 2'!H68:H72) -> 0 | H90: =SUM('Knights 2'!I68:I72) -> 0 | I90: =SUM('Knights 2'!J68:J72) -> 0 | J90: =SUM('Knights 2'!K68:K72) -> 0 | K90: =SUM('Knights 2'!L68:L72) -> 0 | L90: =SUM('Knights 2'!M68:M72) -> 0 | M90: =SUM('Knights 2'!N68:N72) -> 0 | N90: =SUM('Knights 2'!O68:O72) -> 0 | O90: =SUM('Knights 2'!P68:P72) -> 0 | P90: =SUM('Knights 2'!Q68:Q72) -> 0 | Q90: =SUM('Knights 2'!R68:R72) -> 0 | S90: =SUM('Knights 2'!T68:T72) -> 0 | T90: =SUM('Knights 2'!U68:U72) -> 0 | U90: =SUM('Knights 2'!V68:V72) -> 0 | W90: =IF(ISERROR(G90/D90),0,G90/D90) -> 0 | X90: =IF(ISERROR((4*J90+3*I90+2*H90+G90-SUM(H90:J90))/D90),0,(4*J90+3*I90+2*H90+G90-SUM(H90:J90))/D90) -> 0 | Y90: =W90+X90 -> 0 | Z90: =IF(ISERROR((G90+L90+M90)/(D90+L90+M90+Q90)),0,(G90+L90+M90)/(D90+L90+M90+Q90)) -> 0 | AA90: =Z90+X90 -> 0 | AC90: =IF(ISERROR((S90+T90)/(U90+S90+T90)),0,(S90+T90)/(U90+S90+T90)) -> 0
A91: ='Knights 2'!A73 -> 215 | B91: =IF('Knights 2'!B73="","",'Knights 2'!B73) ->  | C91: =SUM('Knights 2'!D73:D77) -> 0 | D91: =SUM('Knights 2'!E73:E77) -> 0 | E91: =SUM('Knights 2'!F73:F77) -> 0 | F91: =SUM('Knights 2'!G73:G77) -> 0 | G91: =SUM('Knights 2'!H73:H77) -> 0 | H91: =SUM('Knights 2'!I73:I77) -> 0 | I91: =SUM('Knights 2'!J73:J77) -> 0 | J91: =SUM('Knights 2'!K73:K77) -> 0 | K91: =SUM('Knights 2'!L73:L77) -> 0 | L91: =SUM('Knights 2'!M73:M77) -> 0 | M91: =SUM('Knights 2'!N73:N77) -> 0 | N91: =SUM('Knights 2'!O73:O77) -> 0 | O91: =SUM('Knights 2'!P73:P77) -> 0 | P91: =SUM('Knights 2'!Q73:Q77) -> 0 | Q91: =SUM('Knights 2'!R73:R77) -> 0 | S91: =SUM('Knights 2'!T73:T77) -> 0 | T91: =SUM('Knights 2'!U73:U77) -> 0 | U91: =SUM('Knights 2'!V73:V77) -> 0 | W91: =IF(ISERROR(G91/D91),0,G91/D91) -> 0 | X91: =IF(ISERROR((4*J91+3*I91+2*H91+G91-SUM(H91:J91))/D91),0,(4*J91+3*I91+2*H91+G91-SUM(H91:J91))/D91) -> 0 | Y91: =W91+X91 -> 0 | Z91: =IF(ISERROR((G91+L91+M91)/(D91+L91+M91+Q91)),0,(G91+L91+M91)/(D91+L91+M91+Q91)) -> 0 | AA91: =Z91+X91 -> 0 | AC91: =IF(ISERROR((S91+T91)/(U91+S91+T91)),0,(S91+T91)/(U91+S91+T91)) -> 0
A92: ='Knights 2'!A78 -> 216 | B92: =IF('Knights 2'!B78="","",'Knights 2'!B78) ->  | C92: =SUM('Knights 2'!D78:D82) -> 0 | D92: =SUM('Knights 2'!E78:E82) -> 0 | E92: =SUM('Knights 2'!F78:F82) -> 0 | F92: =SUM('Knights 2'!G78:G82) -> 0 | G92: =SUM('Knights 2'!H78:H82) -> 0 | H92: =SUM('Knights 2'!I78:I82) -> 0 | I92: =SUM('Knights 2'!J78:J82) -> 0 | J92: =SUM('Knights 2'!K78:K82) -> 0 | K92: =SUM('Knights 2'!L78:L82) -> 0 | L92: =SUM('Knights 2'!M78:M82) -> 0 | M92: =SUM('Knights 2'!N78:N82) -> 0 | N92: =SUM('Knights 2'!O78:O82) -> 0 | O92: =SUM('Knights 2'!P78:P82) -> 0 | P92: =SUM('Knights 2'!Q78:Q82) -> 0 | Q92: =SUM('Knights 2'!R78:R82) -> 0 | S92: =SUM('Knights 2'!T78:T82) -> 0 | T92: =SUM('Knights 2'!U78:U82) -> 0 | U92: =SUM('Knights 2'!V78:V82) -> 0 | W92: =IF(ISERROR(G92/D92),0,G92/D92) -> 0 | X92: =IF(ISERROR((4*J92+3*I92+2*H92+G92-SUM(H92:J92))/D92),0,(4*J92+3*I92+2*H92+G92-SUM(H92:J92))/D92) -> 0 | Y92: =W92+X92 -> 0 | Z92: =IF(ISERROR((G92+L92+M92)/(D92+L92+M92+Q92)),0,(G92+L92+M92)/(D92+L92+M92+Q92)) -> 0 | AA92: =Z92+X92 -> 0 | AC92: =IF(ISERROR((S92+T92)/(U92+S92+T92)),0,(S92+T92)/(U92+S92+T92)) -> 0
A93: ='Knights 2'!A83 -> 217 | B93: =IF('Knights 2'!B83="","",'Knights 2'!B83) ->  | C93: =SUM('Knights 2'!D83:D87) -> 0 | D93: =SUM('Knights 2'!E83:E87) -> 0 | E93: =SUM('Knights 2'!F83:F87) -> 0 | F93: =SUM('Knights 2'!G83:G87) -> 0 | G93: =SUM('Knights 2'!H83:H87) -> 0 | H93: =SUM('Knights 2'!I83:I87) -> 0 | I93: =SUM('Knights 2'!J83:J87) -> 0 | J93: =SUM('Knights 2'!K83:K87) -> 0 | K93: =SUM('Knights 2'!L83:L87) -> 0 | L93: =SUM('Knights 2'!M83:M87) -> 0 | M93: =SUM('Knights 2'!N83:N87) -> 0 | N93: =SUM('Knights 2'!O83:O87) -> 0 | O93: =SUM('Knights 2'!P83:P87) -> 0 | P93: =SUM('Knights 2'!Q83:Q87) -> 0 | Q93: =SUM('Knights 2'!R83:R87) -> 0 | S93: =SUM('Knights 2'!T83:T87) -> 0 | T93: =SUM('Knights 2'!U83:U87) -> 0 | U93: =SUM('Knights 2'!V83:V87) -> 0 | W93: =IF(ISERROR(G93/D93),0,G93/D93) -> 0 | X93: =IF(ISERROR((4*J93+3*I93+2*H93+G93-SUM(H93:J93))/D93),0,(4*J93+3*I93+2*H93+G93-SUM(H93:J93))/D93) -> 0 | Y93: =W93+X93 -> 0 | Z93: =IF(ISERROR((G93+L93+M93)/(D93+L93+M93+Q93)),0,(G93+L93+M93)/(D93+L93+M93+Q93)) -> 0 | AA93: =Z93+X93 -> 0 | AC93: =IF(ISERROR((S93+T93)/(U93+S93+T93)),0,(S93+T93)/(U93+S93+T93)) -> 0
A94: ='Wesseling Vermins'!A63 -> 313 | B94: =IF('Wesseling Vermins'!B63="","",'Wesseling Vermins'!B63) ->  | C94: =SUM('Wesseling Vermins'!D63:D67) -> 0 | D94: =SUM('Wesseling Vermins'!E63:E67) -> 0 | E94: =SUM('Wesseling Vermins'!F63:F67) -> 0 | F94: =SUM('Wesseling Vermins'!G63:G67) -> 0 | G94: =SUM('Wesseling Vermins'!H63:H67) -> 0 | H94: =SUM('Wesseling Vermins'!I63:I67) -> 0 | I94: =SUM('Wesseling Vermins'!J63:J67) -> 0 | J94: =SUM('Wesseling Vermins'!K63:K67) -> 0 | K94: =SUM('Wesseling Vermins'!L63:L67) -> 0 | L94: =SUM('Wesseling Vermins'!M63:M67) -> 0 | M94: =SUM('Wesseling Vermins'!N63:N67) -> 0 | N94: =SUM('Wesseling Vermins'!O63:O67) -> 0 | O94: =SUM('Wesseling Vermins'!P63:P67) -> 0 | P94: =SUM('Wesseling Vermins'!Q63:Q67) -> 0 | Q94: =SUM('Wesseling Vermins'!R63:R67) -> 0 | S94: =SUM('Wesseling Vermins'!T63:T67) -> 0 | T94: =SUM('Wesseling Vermins'!U63:U67) -> 0 | U94: =SUM('Wesseling Vermins'!V63:V67) -> 0 | W94: =IF(ISERROR(G94/D94),0,G94/D94) -> 0 | X94: =IF(ISERROR((4*J94+3*I94+2*H94+G94-SUM(H94:J94))/D94),0,(4*J94+3*I94+2*H94+G94-SUM(H94:J94))/D94) -> 0 | Y94: =W94+X94 -> 0 | Z94: =IF(ISERROR((G94+L94+M94)/(D94+L94+M94+Q94)),0,(G94+L94+M94)/(D94+L94+M94+Q94)) -> 0 | AA94: =Z94+X94 -> 0 | AC94: =IF(ISERROR((S94+T94)/(U94+S94+T94)),0,(S94+T94)/(U94+S94+T94)) -> 0
A95: ='Wesseling Vermins'!A68 -> 314 | B95: =IF('Wesseling Vermins'!B68="","",'Wesseling Vermins'!B68) ->  | C95: =SUM('Wesseling Vermins'!D68:D72) -> 0 | D95: =SUM('Wesseling Vermins'!E68:E72) -> 0 | E95: =SUM('Wesseling Vermins'!F68:F72) -> 0 | F95: =SUM('Wesseling Vermins'!G68:G72) -> 0 | G95: =SUM('Wesseling Vermins'!H68:H72) -> 0 | H95: =SUM('Wesseling Vermins'!I68:I72) -> 0 | I95: =SUM('Wesseling Vermins'!J68:J72) -> 0 | J95: =SUM('Wesseling Vermins'!K68:K72) -> 0 | K95: =SUM('Wesseling Vermins'!L68:L72) -> 0 | L95: =SUM('Wesseling Vermins'!M68:M72) -> 0 | M95: =SUM('Wesseling Vermins'!N68:N72) -> 0 | N95: =SUM('Wesseling Vermins'!O68:O72) -> 0 | O95: =SUM('Wesseling Vermins'!P68:P72) -> 0 | P95: =SUM('Wesseling Vermins'!Q68:Q72) -> 0 | Q95: =SUM('Wesseling Vermins'!R68:R72) -> 0 | S95: =SUM('Wesseling Vermins'!T68:T72) -> 0 | T95: =SUM('Wesseling Vermins'!U68:U72) -> 0 | U95: =SUM('Wesseling Vermins'!V68:V72) -> 0 | W95: =IF(ISERROR(G95/D95),0,G95/D95) -> 0 | X95: =IF(ISERROR((4*J95+3*I95+2*H95+G95-SUM(H95:J95))/D95),0,(4*J95+3*I95+2*H95+G95-SUM(H95:J95))/D95) -> 0 | Y95: =W95+X95 -> 0 | Z95: =IF(ISERROR((G95+L95+M95)/(D95+L95+M95+Q95)),0,(G95+L95+M95)/(D95+L95+M95+Q95)) -> 0 | AA95: =Z95+X95 -> 0 | AC95: =IF(ISERROR((S95+T95)/(U95+S95+T95)),0,(S95+T95)/(U95+S95+T95)) -> 0
A96: ='Wesseling Vermins'!A73 -> 315 | B96: =IF('Wesseling Vermins'!B73="","",'Wesseling Vermins'!B73) ->  | C96: =SUM('Wesseling Vermins'!D73:D77) -> 0 | D96: =SUM('Wesseling Vermins'!E73:E77) -> 0 | E96: =SUM('Wesseling Vermins'!F73:F77) -> 0 | F96: =SUM('Wesseling Vermins'!G73:G77) -> 0 | G96: =SUM('Wesseling Vermins'!H73:H77) -> 0 | H96: =SUM('Wesseling Vermins'!I73:I77) -> 0 | I96: =SUM('Wesseling Vermins'!J73:J77) -> 0 | J96: =SUM('Wesseling Vermins'!K73:K77) -> 0 | K96: =SUM('Wesseling Vermins'!L73:L77) -> 0 | L96: =SUM('Wesseling Vermins'!M73:M77) -> 0 | M96: =SUM('Wesseling Vermins'!N73:N77) -> 0 | N96: =SUM('Wesseling Vermins'!O73:O77) -> 0 | O96: =SUM('Wesseling Vermins'!P73:P77) -> 0 | P96: =SUM('Wesseling Vermins'!Q73:Q77) -> 0 | Q96: =SUM('Wesseling Vermins'!R73:R77) -> 0 | S96: =SUM('Wesseling Vermins'!T73:T77) -> 0 | T96: =SUM('Wesseling Vermins'!U73:U77) -> 0 | U96: =SUM('Wesseling Vermins'!V73:V77) -> 0 | W96: =IF(ISERROR(G96/D96),0,G96/D96) -> 0 | X96: =IF(ISERROR((4*J96+3*I96+2*H96+G96-SUM(H96:J96))/D96),0,(4*J96+3*I96+2*H96+G96-SUM(H96:J96))/D96) -> 0 | Y96: =W96+X96 -> 0 | Z96: =IF(ISERROR((G96+L96+M96)/(D96+L96+M96+Q96)),0,(G96+L96+M96)/(D96+L96+M96+Q96)) -> 0 | AA96: =Z96+X96 -> 0 | AC96: =IF(ISERROR((S96+T96)/(U96+S96+T96)),0,(S96+T96)/(U96+S96+T96)) -> 0
A97: ='Wesseling Vermins'!A78 -> 316 | B97: =IF('Wesseling Vermins'!B78="","",'Wesseling Vermins'!B78) ->  | C97: =SUM('Wesseling Vermins'!D78:D82) -> 0 | D97: =SUM('Wesseling Vermins'!E78:E82) -> 0 | E97: =SUM('Wesseling Vermins'!F78:F82) -> 0 | F97: =SUM('Wesseling Vermins'!G78:G82) -> 0 | G97: =SUM('Wesseling Vermins'!H78:H82) -> 0 | H97: =SUM('Wesseling Vermins'!I78:I82) -> 0 | I97: =SUM('Wesseling Vermins'!J78:J82) -> 0 | J97: =SUM('Wesseling Vermins'!K78:K82) -> 0 | K97: =SUM('Wesseling Vermins'!L78:L82) -> 0 | L97: =SUM('Wesseling Vermins'!M78:M82) -> 0 | M97: =SUM('Wesseling Vermins'!N78:N82) -> 0 | N97: =SUM('Wesseling Vermins'!O78:O82) -> 0 | O97: =SUM('Wesseling Vermins'!P78:P82) -> 0 | P97: =SUM('Wesseling Vermins'!Q78:Q82) -> 0 | Q97: =SUM('Wesseling Vermins'!R78:R82) -> 0 | S97: =SUM('Wesseling Vermins'!T78:T82) -> 0 | T97: =SUM('Wesseling Vermins'!U78:U82) -> 0 | U97: =SUM('Wesseling Vermins'!V78:V82) -> 0 | W97: =IF(ISERROR(G97/D97),0,G97/D97) -> 0 | X97: =IF(ISERROR((4*J97+3*I97+2*H97+G97-SUM(H97:J97))/D97),0,(4*J97+3*I97+2*H97+G97-SUM(H97:J97))/D97) -> 0 | Y97: =W97+X97 -> 0 | Z97: =IF(ISERROR((G97+L97+M97)/(D97+L97+M97+Q97)),0,(G97+L97+M97)/(D97+L97+M97+Q97)) -> 0 | AA97: =Z97+X97 -> 0 | AC97: =IF(ISERROR((S97+T97)/(U97+S97+T97)),0,(S97+T97)/(U97+S97+T97)) -> 0
A98: ='Wesseling Vermins'!A83 -> 317 | B98: =IF('Wesseling Vermins'!B83="","",'Wesseling Vermins'!B83) ->  | C98: =SUM('Wesseling Vermins'!D83:D87) -> 0 | D98: =SUM('Wesseling Vermins'!E83:E87) -> 0 | E98: =SUM('Wesseling Vermins'!F83:F87) -> 0 | F98: =SUM('Wesseling Vermins'!G83:G87) -> 0 | G98: =SUM('Wesseling Vermins'!H83:H87) -> 0 | H98: =SUM('Wesseling Vermins'!I83:I87) -> 0 | I98: =SUM('Wesseling Vermins'!J83:J87) -> 0 | J98: =SUM('Wesseling Vermins'!K83:K87) -> 0 | K98: =SUM('Wesseling Vermins'!L83:L87) -> 0 | L98: =SUM('Wesseling Vermins'!M83:M87) -> 0 | M98: =SUM('Wesseling Vermins'!N83:N87) -> 0 | N98: =SUM('Wesseling Vermins'!O83:O87) -> 0 | O98: =SUM('Wesseling Vermins'!P83:P87) -> 0 | P98: =SUM('Wesseling Vermins'!Q83:Q87) -> 0 | Q98: =SUM('Wesseling Vermins'!R83:R87) -> 0 | S98: =SUM('Wesseling Vermins'!T83:T87) -> 0 | T98: =SUM('Wesseling Vermins'!U83:U87) -> 0 | U98: =SUM('Wesseling Vermins'!V83:V87) -> 0 | W98: =IF(ISERROR(G98/D98),0,G98/D98) -> 0 | X98: =IF(ISERROR((4*J98+3*I98+2*H98+G98-SUM(H98:J98))/D98),0,(4*J98+3*I98+2*H98+G98-SUM(H98:J98))/D98) -> 0 | Y98: =W98+X98 -> 0 | Z98: =IF(ISERROR((G98+L98+M98)/(D98+L98+M98+Q98)),0,(G98+L98+M98)/(D98+L98+M98+Q98)) -> 0 | AA98: =Z98+X98 -> 0 | AC98: =IF(ISERROR((S98+T98)/(U98+S98+T98)),0,(S98+T98)/(U98+S98+T98)) -> 0
A99: ='Freising Grizzlies'!A58 -> 412 | B99: =IF('Freising Grizzlies'!B58="","",'Freising Grizzlies'!B58) -> Schnirch | C99: =SUM('Freising Grizzlies'!D58:D62) -> 0 | D99: =SUM('Freising Grizzlies'!E58:E62) -> 0 | E99: =SUM('Freising Grizzlies'!F58:F62) -> 0 | F99: =SUM('Freising Grizzlies'!G58:G62) -> 0 | G99: =SUM('Freising Grizzlies'!H58:H62) -> 0 | H99: =SUM('Freising Grizzlies'!I58:I62) -> 0 | I99: =SUM('Freising Grizzlies'!J58:J62) -> 0 | J99: =SUM('Freising Grizzlies'!K58:K62) -> 0 | K99: =SUM('Freising Grizzlies'!L58:L62) -> 0 | L99: =SUM('Freising Grizzlies'!M58:M62) -> 0 | M99: =SUM('Freising Grizzlies'!N58:N62) -> 0 | N99: =SUM('Freising Grizzlies'!O58:O62) -> 0 | O99: =SUM('Freising Grizzlies'!P58:P62) -> 0 | P99: =SUM('Freising Grizzlies'!Q58:Q62) -> 0 | Q99: =SUM('Freising Grizzlies'!R58:R62) -> 0 | S99: =SUM('Freising Grizzlies'!T58:T62) -> 0 | T99: =SUM('Freising Grizzlies'!U58:U62) -> 2 | U99: =SUM('Freising Grizzlies'!V58:V62) -> 1 | W99: =IF(ISERROR(G99/D99),0,G99/D99) -> 0 | X99: =IF(ISERROR((4*J99+3*I99+2*H99+G99-SUM(H99:J99))/D99),0,(4*J99+3*I99+2*H99+G99-SUM(H99:J99))/D99) -> 0 | Y99: =W99+X99 -> 0 | Z99: =IF(ISERROR((G99+L99+M99)/(D99+L99+M99+Q99)),0,(G99+L99+M99)/(D99+L99+M99+Q99)) -> 0 | AA99: =Z99+X99 -> 0 | AC99: =IF(ISERROR((S99+T99)/(U99+S99+T99)),0,(S99+T99)/(U99+S99+T99)) -> 0.6666666667
A100: ='Freising Grizzlies'!A63 -> 413 | B100: =IF('Freising Grizzlies'!B63="","",'Freising Grizzlies'!B63) ->  | C100: =SUM('Freising Grizzlies'!D63:D67) -> 0 | D100: =SUM('Freising Grizzlies'!E63:E67) -> 0 | E100: =SUM('Freising Grizzlies'!F63:F67) -> 0 | F100: =SUM('Freising Grizzlies'!G63:G67) -> 0 | G100: =SUM('Freising Grizzlies'!H63:H67) -> 0 | H100: =SUM('Freising Grizzlies'!I63:I67) -> 0 | I100: =SUM('Freising Grizzlies'!J63:J67) -> 0 | J100: =SUM('Freising Grizzlies'!K63:K67) -> 0 | K100: =SUM('Freising Grizzlies'!L63:L67) -> 0 | L100: =SUM('Freising Grizzlies'!M63:M67) -> 0 | M100: =SUM('Freising Grizzlies'!N63:N67) -> 0 | N100: =SUM('Freising Grizzlies'!O63:O67) -> 0 | O100: =SUM('Freising Grizzlies'!P63:P67) -> 0 | P100: =SUM('Freising Grizzlies'!Q63:Q67) -> 0 | Q100: =SUM('Freising Grizzlies'!R63:R67) -> 0 | S100: =SUM('Freising Grizzlies'!T63:T67) -> 0 | T100: =SUM('Freising Grizzlies'!U63:U67) -> 0 | U100: =SUM('Freising Grizzlies'!V63:V67) -> 0 | W100: =IF(ISERROR(G100/D100),0,G100/D100) -> 0 | X100: =IF(ISERROR((4*J100+3*I100+2*H100+G100-SUM(H100:J100))/D100),0,(4*J100+3*I100+2*H100+G100-SUM(H100:J100))/D100) -> 0 | Y100: =W100+X100 -> 0 | Z100: =IF(ISERROR((G100+L100+M100)/(D100+L100+M100+Q100)),0,(G100+L100+M100)/(D100+L100+M100+Q100)) -> 0 | AA100: =Z100+X100 -> 0 | AC100: =IF(ISERROR((S100+T100)/(U100+S100+T100)),0,(S100+T100)/(U100+S100+T100)) -> 0
A101: ='Freising Grizzlies'!A68 -> 414 | B101: =IF('Freising Grizzlies'!B68="","",'Freising Grizzlies'!B68) ->  | C101: =SUM('Freising Grizzlies'!D68:D72) -> 0 | D101: =SUM('Freising Grizzlies'!E68:E72) -> 0 | E101: =SUM('Freising Grizzlies'!F68:F72) -> 0 | F101: =SUM('Freising Grizzlies'!G68:G72) -> 0 | G101: =SUM('Freising Grizzlies'!H68:H72) -> 0 | H101: =SUM('Freising Grizzlies'!I68:I72) -> 0 | I101: =SUM('Freising Grizzlies'!J68:J72) -> 0 | J101: =SUM('Freising Grizzlies'!K68:K72) -> 0 | K101: =SUM('Freising Grizzlies'!L68:L72) -> 0 | L101: =SUM('Freising Grizzlies'!M68:M72) -> 0 | M101: =SUM('Freising Grizzlies'!N68:N72) -> 0 | N101: =SUM('Freising Grizzlies'!O68:O72) -> 0 | O101: =SUM('Freising Grizzlies'!P68:P72) -> 0 | P101: =SUM('Freising Grizzlies'!Q68:Q72) -> 0 | Q101: =SUM('Freising Grizzlies'!R68:R72) -> 0 | S101: =SUM('Freising Grizzlies'!T68:T72) -> 0 | T101: =SUM('Freising Grizzlies'!U68:U72) -> 0 | U101: =SUM('Freising Grizzlies'!V68:V72) -> 0 | W101: =IF(ISERROR(G101/D101),0,G101/D101) -> 0 | X101: =IF(ISERROR((4*J101+3*I101+2*H101+G101-SUM(H101:J101))/D101),0,(4*J101+3*I101+2*H101+G101-SUM(H101:J101))/D101) -> 0 | Y101: =W101+X101 -> 0 | Z101: =IF(ISERROR((G101+L101+M101)/(D101+L101+M101+Q101)),0,(G101+L101+M101)/(D101+L101+M101+Q101)) -> 0 | AA101: =Z101+X101 -> 0 | AC101: =IF(ISERROR((S101+T101)/(U101+S101+T101)),0,(S101+T101)/(U101+S101+T101)) -> 0
A102: ='Freising Grizzlies'!A73 -> 415 | B102: =IF('Freising Grizzlies'!B73="","",'Freising Grizzlies'!B73) ->  | C102: =SUM('Freising Grizzlies'!D73:D77) -> 0 | D102: =SUM('Freising Grizzlies'!E73:E77) -> 0 | E102: =SUM('Freising Grizzlies'!F73:F77) -> 0 | F102: =SUM('Freising Grizzlies'!G73:G77) -> 0 | G102: =SUM('Freising Grizzlies'!H73:H77) -> 0 | H102: =SUM('Freising Grizzlies'!I73:I77) -> 0 | I102: =SUM('Freising Grizzlies'!J73:J77) -> 0 | J102: =SUM('Freising Grizzlies'!K73:K77) -> 0 | K102: =SUM('Freising Grizzlies'!L73:L77) -> 0 | L102: =SUM('Freising Grizzlies'!M73:M77) -> 0 | M102: =SUM('Freising Grizzlies'!N73:N77) -> 0 | N102: =SUM('Freising Grizzlies'!O73:O77) -> 0 | O102: =SUM('Freising Grizzlies'!P73:P77) -> 0 | P102: =SUM('Freising Grizzlies'!Q73:Q77) -> 0 | Q102: =SUM('Freising Grizzlies'!R73:R77) -> 0 | S102: =SUM('Freising Grizzlies'!T73:T77) -> 0 | T102: =SUM('Freising Grizzlies'!U73:U77) -> 0 | U102: =SUM('Freising Grizzlies'!V73:V77) -> 0 | W102: =IF(ISERROR(G102/D102),0,G102/D102) -> 0 | X102: =IF(ISERROR((4*J102+3*I102+2*H102+G102-SUM(H102:J102))/D102),0,(4*J102+3*I102+2*H102+G102-SUM(H102:J102))/D102) -> 0 | Y102: =W102+X102 -> 0 | Z102: =IF(ISERROR((G102+L102+M102)/(D102+L102+M102+Q102)),0,(G102+L102+M102)/(D102+L102+M102+Q102)) -> 0 | AA102: =Z102+X102 -> 0 | AC102: =IF(ISERROR((S102+T102)/(U102+S102+T102)),0,(S102+T102)/(U102+S102+T102)) -> 0
A103: ='Freising Grizzlies'!A78 -> 416 | B103: =IF('Freising Grizzlies'!B78="","",'Freising Grizzlies'!B78) ->  | C103: =SUM('Freising Grizzlies'!D78:D82) -> 0 | D103: =SUM('Freising Grizzlies'!E78:E82) -> 0 | E103: =SUM('Freising Grizzlies'!F78:F82) -> 0 | F103: =SUM('Freising Grizzlies'!G78:G82) -> 0 | G103: =SUM('Freising Grizzlies'!H78:H82) -> 0 | H103: =SUM('Freising Grizzlies'!I78:I82) -> 0 | I103: =SUM('Freising Grizzlies'!J78:J82) -> 0 | J103: =SUM('Freising Grizzlies'!K78:K82) -> 0 | K103: =SUM('Freising Grizzlies'!L78:L82) -> 0 | L103: =SUM('Freising Grizzlies'!M78:M82) -> 0 | M103: =SUM('Freising Grizzlies'!N78:N82) -> 0 | N103: =SUM('Freising Grizzlies'!O78:O82) -> 0 | O103: =SUM('Freising Grizzlies'!P78:P82) -> 0 | P103: =SUM('Freising Grizzlies'!Q78:Q82) -> 0 | Q103: =SUM('Freising Grizzlies'!R78:R82) -> 0 | S103: =SUM('Freising Grizzlies'!T78:T82) -> 0 | T103: =SUM('Freising Grizzlies'!U78:U82) -> 0 | U103: =SUM('Freising Grizzlies'!V78:V82) -> 0 | W103: =IF(ISERROR(G103/D103),0,G103/D103) -> 0 | X103: =IF(ISERROR((4*J103+3*I103+2*H103+G103-SUM(H103:J103))/D103),0,(4*J103+3*I103+2*H103+G103-SUM(H103:J103))/D103) -> 0 | Y103: =W103+X103 -> 0 | Z103: =IF(ISERROR((G103+L103+M103)/(D103+L103+M103+Q103)),0,(G103+L103+M103)/(D103+L103+M103+Q103)) -> 0 | AA103: =Z103+X103 -> 0 | AC103: =IF(ISERROR((S103+T103)/(U103+S103+T103)),0,(S103+T103)/(U103+S103+T103)) -> 0
A104: ='Freising Grizzlies'!A83 -> 417 | B104: =IF('Freising Grizzlies'!B83="","",'Freising Grizzlies'!B83) ->  | C104: =SUM('Freising Grizzlies'!D83:D87) -> 0 | D104: =SUM('Freising Grizzlies'!E83:E87) -> 0 | E104: =SUM('Freising Grizzlies'!F83:F87) -> 0 | F104: =SUM('Freising Grizzlies'!G83:G87) -> 0 | G104: =SUM('Freising Grizzlies'!H83:H87) -> 0 | H104: =SUM('Freising Grizzlies'!I83:I87) -> 0 | I104: =SUM('Freising Grizzlies'!J83:J87) -> 0 | J104: =SUM('Freising Grizzlies'!K83:K87) -> 0 | K104: =SUM('Freising Grizzlies'!L83:L87) -> 0 | L104: =SUM('Freising Grizzlies'!M83:M87) -> 0 | M104: =SUM('Freising Grizzlies'!N83:N87) -> 0 | N104: =SUM('Freising Grizzlies'!O83:O87) -> 0 | O104: =SUM('Freising Grizzlies'!P83:P87) -> 0 | P104: =SUM('Freising Grizzlies'!Q83:Q87) -> 0 | Q104: =SUM('Freising Grizzlies'!R83:R87) -> 0 | S104: =SUM('Freising Grizzlies'!T83:T87) -> 0 | T104: =SUM('Freising Grizzlies'!U83:U87) -> 0 | U104: =SUM('Freising Grizzlies'!V83:V87) -> 0 | W104: =IF(ISERROR(G104/D104),0,G104/D104) -> 0 | X104: =IF(ISERROR((4*J104+3*I104+2*H104+G104-SUM(H104:J104))/D104),0,(4*J104+3*I104+2*H104+G104-SUM(H104:J104))/D104) -> 0 | Y104: =W104+X104 -> 0 | Z104: =IF(ISERROR((G104+L104+M104)/(D104+L104+M104+Q104)),0,(G104+L104+M104)/(D104+L104+M104+Q104)) -> 0 | AA104: =Z104+X104 -> 0 | AC104: =IF(ISERROR((S104+T104)/(U104+S104+T104)),0,(S104+T104)/(U104+S104+T104)) -> 0
A105: ='Haar Disciples'!A83 -> 517 | B105: =IF('Haar Disciples'!B83="","",'Haar Disciples'!B83) ->  | C105: =SUM('Haar Disciples'!D83:D87) -> 0 | D105: =SUM('Haar Disciples'!E83:E87) -> 0 | E105: =SUM('Haar Disciples'!F83:F87) -> 0 | F105: =SUM('Haar Disciples'!G83:G87) -> 0 | G105: =SUM('Haar Disciples'!H83:H87) -> 0 | H105: =SUM('Haar Disciples'!I83:I87) -> 0 | I105: =SUM('Haar Disciples'!J83:J87) -> 0 | J105: =SUM('Haar Disciples'!K83:K87) -> 0 | K105: =SUM('Haar Disciples'!L83:L87) -> 0 | L105: =SUM('Haar Disciples'!M83:M87) -> 0 | M105: =SUM('Haar Disciples'!N83:N87) -> 0 | N105: =SUM('Haar Disciples'!O83:O87) -> 0 | O105: =SUM('Haar Disciples'!P83:P87) -> 0 | P105: =SUM('Haar Disciples'!Q83:Q87) -> 0 | Q105: =SUM('Haar Disciples'!R83:R87) -> 0 | S105: =SUM('Haar Disciples'!T83:T87) -> 0 | T105: =SUM('Haar Disciples'!U83:U87) -> 0 | U105: =SUM('Haar Disciples'!V83:V87) -> 0 | W105: =IF(ISERROR(G105/D105),0,G105/D105) -> 0 | X105: =IF(ISERROR((4*J105+3*I105+2*H105+G105-SUM(H105:J105))/D105),0,(4*J105+3*I105+2*H105+G105-SUM(H105:J105))/D105) -> 0 | Y105: =W105+X105 -> 0 | Z105: =IF(ISERROR((G105+L105+M105)/(D105+L105+M105+Q105)),0,(G105+L105+M105)/(D105+L105+M105+Q105)) -> 0 | AA105: =Z105+X105 -> 0 | AC105: =IF(ISERROR((S105+T105)/(U105+S105+T105)),0,(S105+T105)/(U105+S105+T105)) -> 0
A106: ='Knights 2'!A18 -> 600 | B106: =IF('Knights 2'!B18="","",'Knights 2'!B18) ->  | C106: =SUM('Knights 2'!D18:D22) -> 0 | D106: =SUM('Knights 2'!E18:E22) -> 0 | E106: =SUM('Knights 2'!F18:F22) -> 0 | F106: =SUM('Knights 2'!G18:G22) -> 0 | G106: =SUM('Knights 2'!H18:H22) -> 0 | H106: =SUM('Knights 2'!I18:I22) -> 0 | I106: =SUM('Knights 2'!J18:J22) -> 0 | J106: =SUM('Knights 2'!K18:K22) -> 0 | K106: =SUM('Knights 2'!L18:L22) -> 0 | L106: =SUM('Knights 2'!M18:M22) -> 0 | M106: =SUM('Knights 2'!N18:N22) -> 0 | N106: =SUM('Knights 2'!O18:O22) -> 0 | O106: =SUM('Knights 2'!P18:P22) -> 0 | P106: =SUM('Knights 2'!Q18:Q22) -> 0 | Q106: =SUM('Knights 2'!R18:R22) -> 0 | S106: =SUM('Knights 2'!T18:T22) -> 0 | T106: =SUM('Knights 2'!U18:U22) -> 0 | U106: =SUM('Knights 2'!V18:V22) -> 0 | W106: =IF(ISERROR(G106/D106),0,G106/D106) -> 0 | X106: =IF(ISERROR((4*J106+3*I106+2*H106+G106-SUM(H106:J106))/D106),0,(4*J106+3*I106+2*H106+G106-SUM(H106:J106))/D106) -> 0 | Y106: =W106+X106 -> 0 | Z106: =IF(ISERROR((G106+L106+M106)/(D106+L106+M106+Q106)),0,(G106+L106+M106)/(D106+L106+M106+Q106)) -> 0 | AA106: =Z106+X106 -> 0 | AC106: =IF(ISERROR((S106+T106)/(U106+S106+T106)),0,(S106+T106)/(U106+S106+T106)) -> 0
A107: ='Karlsruhe Cougars'!A53 -> 611 | B107: =IF('Karlsruhe Cougars'!B53="","",'Karlsruhe Cougars'!B53) ->  | C107: =SUM('Karlsruhe Cougars'!D53:D57) -> 0 | D107: =SUM('Karlsruhe Cougars'!E53:E57) -> 0 | E107: =SUM('Karlsruhe Cougars'!F53:F57) -> 0 | F107: =SUM('Karlsruhe Cougars'!G53:G57) -> 0 | G107: =SUM('Karlsruhe Cougars'!H53:H57) -> 0 | H107: =SUM('Karlsruhe Cougars'!I53:I57) -> 0 | I107: =SUM('Karlsruhe Cougars'!J53:J57) -> 0 | J107: =SUM('Karlsruhe Cougars'!K53:K57) -> 0 | K107: =SUM('Karlsruhe Cougars'!L53:L57) -> 0 | L107: =SUM('Karlsruhe Cougars'!M53:M57) -> 0 | M107: =SUM('Karlsruhe Cougars'!N53:N57) -> 0 | N107: =SUM('Karlsruhe Cougars'!O53:O57) -> 0 | O107: =SUM('Karlsruhe Cougars'!P53:P57) -> 0 | P107: =SUM('Karlsruhe Cougars'!Q53:Q57) -> 0 | Q107: =SUM('Karlsruhe Cougars'!R53:R57) -> 0 | S107: =SUM('Karlsruhe Cougars'!T53:T57) -> 0 | T107: =SUM('Karlsruhe Cougars'!U53:U57) -> 0 | U107: =SUM('Karlsruhe Cougars'!V53:V57) -> 0 | W107: =IF(ISERROR(G107/D107),0,G107/D107) -> 0 | X107: =IF(ISERROR((4*J107+3*I107+2*H107+G107-SUM(H107:J107))/D107),0,(4*J107+3*I107+2*H107+G107-SUM(H107:J107))/D107) -> 0 | Y107: =W107+X107 -> 0 | Z107: =IF(ISERROR((G107+L107+M107)/(D107+L107+M107+Q107)),0,(G107+L107+M107)/(D107+L107+M107+Q107)) -> 0 | AA107: =Z107+X107 -> 0 | AC107: =IF(ISERROR((S107+T107)/(U107+S107+T107)),0,(S107+T107)/(U107+S107+T107)) -> 0
A108: ='Karlsruhe Cougars'!A58 -> 612 | B108: =IF('Karlsruhe Cougars'!B58="","",'Karlsruhe Cougars'!B58) ->  | C108: =SUM('Karlsruhe Cougars'!D58:D62) -> 0 | D108: =SUM('Karlsruhe Cougars'!E58:E62) -> 0 | E108: =SUM('Karlsruhe Cougars'!F58:F62) -> 0 | F108: =SUM('Karlsruhe Cougars'!G58:G62) -> 0 | G108: =SUM('Karlsruhe Cougars'!H58:H62) -> 0 | H108: =SUM('Karlsruhe Cougars'!I58:I62) -> 0 | I108: =SUM('Karlsruhe Cougars'!J58:J62) -> 0 | J108: =SUM('Karlsruhe Cougars'!K58:K62) -> 0 | K108: =SUM('Karlsruhe Cougars'!L58:L62) -> 0 | L108: =SUM('Karlsruhe Cougars'!M58:M62) -> 0 | M108: =SUM('Karlsruhe Cougars'!N58:N62) -> 0 | N108: =SUM('Karlsruhe Cougars'!O58:O62) -> 0 | O108: =SUM('Karlsruhe Cougars'!P58:P62) -> 0 | P108: =SUM('Karlsruhe Cougars'!Q58:Q62) -> 0 | Q108: =SUM('Karlsruhe Cougars'!R58:R62) -> 0 | S108: =SUM('Karlsruhe Cougars'!T58:T62) -> 0 | T108: =SUM('Karlsruhe Cougars'!U58:U62) -> 0 | U108: =SUM('Karlsruhe Cougars'!V58:V62) -> 0 | W108: =IF(ISERROR(G108/D108),0,G108/D108) -> 0 | X108: =IF(ISERROR((4*J108+3*I108+2*H108+G108-SUM(H108:J108))/D108),0,(4*J108+3*I108+2*H108+G108-SUM(H108:J108))/D108) -> 0 | Y108: =W108+X108 -> 0 | Z108: =IF(ISERROR((G108+L108+M108)/(D108+L108+M108+Q108)),0,(G108+L108+M108)/(D108+L108+M108+Q108)) -> 0 | AA108: =Z108+X108 -> 0 | AC108: =IF(ISERROR((S108+T108)/(U108+S108+T108)),0,(S108+T108)/(U108+S108+T108)) -> 0
A109: ='Karlsruhe Cougars'!A63 -> 613 | B109: =IF('Karlsruhe Cougars'!B63="","",'Karlsruhe Cougars'!B63) ->  | C109: =SUM('Karlsruhe Cougars'!D63:D67) -> 0 | D109: =SUM('Karlsruhe Cougars'!E63:E67) -> 0 | E109: =SUM('Karlsruhe Cougars'!F63:F67) -> 0 | F109: =SUM('Karlsruhe Cougars'!G63:G67) -> 0 | G109: =SUM('Karlsruhe Cougars'!H63:H67) -> 0 | H109: =SUM('Karlsruhe Cougars'!I63:I67) -> 0 | I109: =SUM('Karlsruhe Cougars'!J63:J67) -> 0 | J109: =SUM('Karlsruhe Cougars'!K63:K67) -> 0 | K109: =SUM('Karlsruhe Cougars'!L63:L67) -> 0 | L109: =SUM('Karlsruhe Cougars'!M63:M67) -> 0 | M109: =SUM('Karlsruhe Cougars'!N63:N67) -> 0 | N109: =SUM('Karlsruhe Cougars'!O63:O67) -> 0 | O109: =SUM('Karlsruhe Cougars'!P63:P67) -> 0 | P109: =SUM('Karlsruhe Cougars'!Q63:Q67) -> 0 | Q109: =SUM('Karlsruhe Cougars'!R63:R67) -> 0 | S109: =SUM('Karlsruhe Cougars'!T63:T67) -> 0 | T109: =SUM('Karlsruhe Cougars'!U63:U67) -> 0 | U109: =SUM('Karlsruhe Cougars'!V63:V67) -> 0 | W109: =IF(ISERROR(G109/D109),0,G109/D109) -> 0 | X109: =IF(ISERROR((4*J109+3*I109+2*H109+G109-SUM(H109:J109))/D109),0,(4*J109+3*I109+2*H109+G109-SUM(H109:J109))/D109) -> 0 | Y109: =W109+X109 -> 0 | Z109: =IF(ISERROR((G109+L109+M109)/(D109+L109+M109+Q109)),0,(G109+L109+M109)/(D109+L109+M109+Q109)) -> 0 | AA109: =Z109+X109 -> 0 | AC109: =IF(ISERROR((S109+T109)/(U109+S109+T109)),0,(S109+T109)/(U109+S109+T109)) -> 0
A110: ='Karlsruhe Cougars'!A68 -> 614 | B110: =IF('Karlsruhe Cougars'!B68="","",'Karlsruhe Cougars'!B68) ->  | C110: =SUM('Karlsruhe Cougars'!D68:D72) -> 0 | D110: =SUM('Karlsruhe Cougars'!E68:E72) -> 0 | E110: =SUM('Karlsruhe Cougars'!F68:F72) -> 0 | F110: =SUM('Karlsruhe Cougars'!G68:G72) -> 0 | G110: =SUM('Karlsruhe Cougars'!H68:H72) -> 0 | H110: =SUM('Karlsruhe Cougars'!I68:I72) -> 0 | I110: =SUM('Karlsruhe Cougars'!J68:J72) -> 0 | J110: =SUM('Karlsruhe Cougars'!K68:K72) -> 0 | K110: =SUM('Karlsruhe Cougars'!L68:L72) -> 0 | L110: =SUM('Karlsruhe Cougars'!M68:M72) -> 0 | M110: =SUM('Karlsruhe Cougars'!N68:N72) -> 0 | N110: =SUM('Karlsruhe Cougars'!O68:O72) -> 0 | O110: =SUM('Karlsruhe Cougars'!P68:P72) -> 0 | P110: =SUM('Karlsruhe Cougars'!Q68:Q72) -> 0 | Q110: =SUM('Karlsruhe Cougars'!R68:R72) -> 0 | S110: =SUM('Karlsruhe Cougars'!T68:T72) -> 0 | T110: =SUM('Karlsruhe Cougars'!U68:U72) -> 0 | U110: =SUM('Karlsruhe Cougars'!V68:V72) -> 0 | W110: =IF(ISERROR(G110/D110),0,G110/D110) -> 0 | X110: =IF(ISERROR((4*J110+3*I110+2*H110+G110-SUM(H110:J110))/D110),0,(4*J110+3*I110+2*H110+G110-SUM(H110:J110))/D110) -> 0 | Y110: =W110+X110 -> 0 | Z110: =IF(ISERROR((G110+L110+M110)/(D110+L110+M110+Q110)),0,(G110+L110+M110)/(D110+L110+M110+Q110)) -> 0 | AA110: =Z110+X110 -> 0 | AC110: =IF(ISERROR((S110+T110)/(U110+S110+T110)),0,(S110+T110)/(U110+S110+T110)) -> 0
A111: ='Karlsruhe Cougars'!A73 -> 615 | B111: =IF('Karlsruhe Cougars'!B73="","",'Karlsruhe Cougars'!B73) ->  | C111: =SUM('Karlsruhe Cougars'!D73:D77) -> 0 | D111: =SUM('Karlsruhe Cougars'!E73:E77) -> 0 | E111: =SUM('Karlsruhe Cougars'!F73:F77) -> 0 | F111: =SUM('Karlsruhe Cougars'!G73:G77) -> 0 | G111: =SUM('Karlsruhe Cougars'!H73:H77) -> 0 | H111: =SUM('Karlsruhe Cougars'!I73:I77) -> 0 | I111: =SUM('Karlsruhe Cougars'!J73:J77) -> 0 | J111: =SUM('Karlsruhe Cougars'!K73:K77) -> 0 | K111: =SUM('Karlsruhe Cougars'!L73:L77) -> 0 | L111: =SUM('Karlsruhe Cougars'!M73:M77) -> 0 | M111: =SUM('Karlsruhe Cougars'!N73:N77) -> 0 | N111: =SUM('Karlsruhe Cougars'!O73:O77) -> 0 | O111: =SUM('Karlsruhe Cougars'!P73:P77) -> 0 | P111: =SUM('Karlsruhe Cougars'!Q73:Q77) -> 0 | Q111: =SUM('Karlsruhe Cougars'!R73:R77) -> 0 | S111: =SUM('Karlsruhe Cougars'!T73:T77) -> 0 | T111: =SUM('Karlsruhe Cougars'!U73:U77) -> 0 | U111: =SUM('Karlsruhe Cougars'!V73:V77) -> 0 | W111: =IF(ISERROR(G111/D111),0,G111/D111) -> 0 | X111: =IF(ISERROR((4*J111+3*I111+2*H111+G111-SUM(H111:J111))/D111),0,(4*J111+3*I111+2*H111+G111-SUM(H111:J111))/D111) -> 0 | Y111: =W111+X111 -> 0 | Z111: =IF(ISERROR((G111+L111+M111)/(D111+L111+M111+Q111)),0,(G111+L111+M111)/(D111+L111+M111+Q111)) -> 0 | AA111: =Z111+X111 -> 0 | AC111: =IF(ISERROR((S111+T111)/(U111+S111+T111)),0,(S111+T111)/(U111+S111+T111)) -> 0
A112: ='Karlsruhe Cougars'!A78 -> 616 | B112: =IF('Karlsruhe Cougars'!B78="","",'Karlsruhe Cougars'!B78) ->  | C112: =SUM('Karlsruhe Cougars'!D78:D82) -> 0 | D112: =SUM('Karlsruhe Cougars'!E78:E82) -> 0 | E112: =SUM('Karlsruhe Cougars'!F78:F82) -> 0 | F112: =SUM('Karlsruhe Cougars'!G78:G82) -> 0 | G112: =SUM('Karlsruhe Cougars'!H78:H82) -> 0 | H112: =SUM('Karlsruhe Cougars'!I78:I82) -> 0 | I112: =SUM('Karlsruhe Cougars'!J78:J82) -> 0 | J112: =SUM('Karlsruhe Cougars'!K78:K82) -> 0 | K112: =SUM('Karlsruhe Cougars'!L78:L82) -> 0 | L112: =SUM('Karlsruhe Cougars'!M78:M82) -> 0 | M112: =SUM('Karlsruhe Cougars'!N78:N82) -> 0 | N112: =SUM('Karlsruhe Cougars'!O78:O82) -> 0 | O112: =SUM('Karlsruhe Cougars'!P78:P82) -> 0 | P112: =SUM('Karlsruhe Cougars'!Q78:Q82) -> 0 | Q112: =SUM('Karlsruhe Cougars'!R78:R82) -> 0 | S112: =SUM('Karlsruhe Cougars'!T78:T82) -> 0 | T112: =SUM('Karlsruhe Cougars'!U78:U82) -> 0 | U112: =SUM('Karlsruhe Cougars'!V78:V82) -> 0 | W112: =IF(ISERROR(G112/D112),0,G112/D112) -> 0 | X112: =IF(ISERROR((4*J112+3*I112+2*H112+G112-SUM(H112:J112))/D112),0,(4*J112+3*I112+2*H112+G112-SUM(H112:J112))/D112) -> 0 | Y112: =W112+X112 -> 0 | Z112: =IF(ISERROR((G112+L112+M112)/(D112+L112+M112+Q112)),0,(G112+L112+M112)/(D112+L112+M112+Q112)) -> 0 | AA112: =Z112+X112 -> 0 | AC112: =IF(ISERROR((S112+T112)/(U112+S112+T112)),0,(S112+T112)/(U112+S112+T112)) -> 0
A113: ='Karlsruhe Cougars'!A83 -> 617 | B113: =IF('Karlsruhe Cougars'!B83="","",'Karlsruhe Cougars'!B83) ->  | C113: =SUM('Karlsruhe Cougars'!D83:D87) -> 0 | D113: =SUM('Karlsruhe Cougars'!E83:E87) -> 0 | E113: =SUM('Karlsruhe Cougars'!F83:F87) -> 0 | F113: =SUM('Karlsruhe Cougars'!G83:G87) -> 0 | G113: =SUM('Karlsruhe Cougars'!H83:H87) -> 0 | H113: =SUM('Karlsruhe Cougars'!I83:I87) -> 0 | I113: =SUM('Karlsruhe Cougars'!J83:J87) -> 0 | J113: =SUM('Karlsruhe Cougars'!K83:K87) -> 0 | K113: =SUM('Karlsruhe Cougars'!L83:L87) -> 0 | L113: =SUM('Karlsruhe Cougars'!M83:M87) -> 0 | M113: =SUM('Karlsruhe Cougars'!N83:N87) -> 0 | N113: =SUM('Karlsruhe Cougars'!O83:O87) -> 0 | O113: =SUM('Karlsruhe Cougars'!P83:P87) -> 0 | P113: =SUM('Karlsruhe Cougars'!Q83:Q87) -> 0 | Q113: =SUM('Karlsruhe Cougars'!R83:R87) -> 0 | S113: =SUM('Karlsruhe Cougars'!T83:T87) -> 0 | T113: =SUM('Karlsruhe Cougars'!U83:U87) -> 0 | U113: =SUM('Karlsruhe Cougars'!V83:V87) -> 0 | W113: =IF(ISERROR(G113/D113),0,G113/D113) -> 0 | X113: =IF(ISERROR((4*J113+3*I113+2*H113+G113-SUM(H113:J113))/D113),0,(4*J113+3*I113+2*H113+G113-SUM(H113:J113))/D113) -> 0 | Y113: =W113+X113 -> 0 | Z113: =IF(ISERROR((G113+L113+M113)/(D113+L113+M113+Q113)),0,(G113+L113+M113)/(D113+L113+M113+Q113)) -> 0 | AA113: =Z113+X113 -> 0 | AC113: =IF(ISERROR((S113+T113)/(U113+S113+T113)),0,(S113+T113)/(U113+S113+T113)) -> 0
A114: ='Neunkirchen Nightmares'!A48 -> 710 | B114: =IF('Neunkirchen Nightmares'!B48="","",'Neunkirchen Nightmares'!B48) ->  | C114: =SUM('Neunkirchen Nightmares'!D48:D52) -> 0 | D114: =SUM('Neunkirchen Nightmares'!E48:E52) -> 0 | E114: =SUM('Neunkirchen Nightmares'!F48:F52) -> 0 | F114: =SUM('Neunkirchen Nightmares'!G48:G52) -> 0 | G114: =SUM('Neunkirchen Nightmares'!H48:H52) -> 0 | H114: =SUM('Neunkirchen Nightmares'!I48:I52) -> 0 | I114: =SUM('Neunkirchen Nightmares'!J48:J52) -> 0 | J114: =SUM('Neunkirchen Nightmares'!K48:K52) -> 0 | K114: =SUM('Neunkirchen Nightmares'!L48:L52) -> 0 | L114: =SUM('Neunkirchen Nightmares'!M48:M52) -> 0 | M114: =SUM('Neunkirchen Nightmares'!N48:N52) -> 0 | N114: =SUM('Neunkirchen Nightmares'!O48:O52) -> 0 | O114: =SUM('Neunkirchen Nightmares'!P48:P52) -> 0 | P114: =SUM('Neunkirchen Nightmares'!Q48:Q52) -> 0 | Q114: =SUM('Neunkirchen Nightmares'!R48:R52) -> 0 | S114: =SUM('Neunkirchen Nightmares'!T48:T52) -> 0 | T114: =SUM('Neunkirchen Nightmares'!U48:U52) -> 0 | U114: =SUM('Neunkirchen Nightmares'!V48:V52) -> 0 | W114: =IF(ISERROR(G114/D114),0,G114/D114) -> 0 | X114: =IF(ISERROR((4*J114+3*I114+2*H114+G114-SUM(H114:J114))/D114),0,(4*J114+3*I114+2*H114+G114-SUM(H114:J114))/D114) -> 0 | Y114: =W114+X114 -> 0 | Z114: =IF(ISERROR((G114+L114+M114)/(D114+L114+M114+Q114)),0,(G114+L114+M114)/(D114+L114+M114+Q114)) -> 0 | AA114: =Z114+X114 -> 0 | AC114: =IF(ISERROR((S114+T114)/(U114+S114+T114)),0,(S114+T114)/(U114+S114+T114)) -> 0
A115: ='Neunkirchen Nightmares'!A53 -> 711 | B115: =IF('Neunkirchen Nightmares'!B53="","",'Neunkirchen Nightmares'!B53) ->  | C115: =SUM('Neunkirchen Nightmares'!D53:D57) -> 0 | D115: =SUM('Neunkirchen Nightmares'!E53:E57) -> 0 | E115: =SUM('Neunkirchen Nightmares'!F53:F57) -> 0 | F115: =SUM('Neunkirchen Nightmares'!G53:G57) -> 0 | G115: =SUM('Neunkirchen Nightmares'!H53:H57) -> 0 | H115: =SUM('Neunkirchen Nightmares'!I53:I57) -> 0 | I115: =SUM('Neunkirchen Nightmares'!J53:J57) -> 0 | J115: =SUM('Neunkirchen Nightmares'!K53:K57) -> 0 | K115: =SUM('Neunkirchen Nightmares'!L53:L57) -> 0 | L115: =SUM('Neunkirchen Nightmares'!M53:M57) -> 0 | M115: =SUM('Neunkirchen Nightmares'!N53:N57) -> 0 | N115: =SUM('Neunkirchen Nightmares'!O53:O57) -> 0 | O115: =SUM('Neunkirchen Nightmares'!P53:P57) -> 0 | P115: =SUM('Neunkirchen Nightmares'!Q53:Q57) -> 0 | Q115: =SUM('Neunkirchen Nightmares'!R53:R57) -> 0 | S115: =SUM('Neunkirchen Nightmares'!T53:T57) -> 0 | T115: =SUM('Neunkirchen Nightmares'!U53:U57) -> 0 | U115: =SUM('Neunkirchen Nightmares'!V53:V57) -> 0 | W115: =IF(ISERROR(G115/D115),0,G115/D115) -> 0 | X115: =IF(ISERROR((4*J115+3*I115+2*H115+G115-SUM(H115:J115))/D115),0,(4*J115+3*I115+2*H115+G115-SUM(H115:J115))/D115) -> 0 | Y115: =W115+X115 -> 0 | Z115: =IF(ISERROR((G115+L115+M115)/(D115+L115+M115+Q115)),0,(G115+L115+M115)/(D115+L115+M115+Q115)) -> 0 | AA115: =Z115+X115 -> 0 | AC115: =IF(ISERROR((S115+T115)/(U115+S115+T115)),0,(S115+T115)/(U115+S115+T115)) -> 0
A116: ='Neunkirchen Nightmares'!A58 -> 712 | B116: =IF('Neunkirchen Nightmares'!B58="","",'Neunkirchen Nightmares'!B58) ->  | C116: =SUM('Neunkirchen Nightmares'!D58:D62) -> 0 | D116: =SUM('Neunkirchen Nightmares'!E58:E62) -> 0 | E116: =SUM('Neunkirchen Nightmares'!F58:F62) -> 0 | F116: =SUM('Neunkirchen Nightmares'!G58:G62) -> 0 | G116: =SUM('Neunkirchen Nightmares'!H58:H62) -> 0 | H116: =SUM('Neunkirchen Nightmares'!I58:I62) -> 0 | I116: =SUM('Neunkirchen Nightmares'!J58:J62) -> 0 | J116: =SUM('Neunkirchen Nightmares'!K58:K62) -> 0 | K116: =SUM('Neunkirchen Nightmares'!L58:L62) -> 0 | L116: =SUM('Neunkirchen Nightmares'!M58:M62) -> 0 | M116: =SUM('Neunkirchen Nightmares'!N58:N62) -> 0 | N116: =SUM('Neunkirchen Nightmares'!O58:O62) -> 0 | O116: =SUM('Neunkirchen Nightmares'!P58:P62) -> 0 | P116: =SUM('Neunkirchen Nightmares'!Q58:Q62) -> 0 | Q116: =SUM('Neunkirchen Nightmares'!R58:R62) -> 0 | S116: =SUM('Neunkirchen Nightmares'!T58:T62) -> 0 | T116: =SUM('Neunkirchen Nightmares'!U58:U62) -> 0 | U116: =SUM('Neunkirchen Nightmares'!V58:V62) -> 0 | W116: =IF(ISERROR(G116/D116),0,G116/D116) -> 0 | X116: =IF(ISERROR((4*J116+3*I116+2*H116+G116-SUM(H116:J116))/D116),0,(4*J116+3*I116+2*H116+G116-SUM(H116:J116))/D116) -> 0 | Y116: =W116+X116 -> 0 | Z116: =IF(ISERROR((G116+L116+M116)/(D116+L116+M116+Q116)),0,(G116+L116+M116)/(D116+L116+M116+Q116)) -> 0 | AA116: =Z116+X116 -> 0 | AC116: =IF(ISERROR((S116+T116)/(U116+S116+T116)),0,(S116+T116)/(U116+S116+T116)) -> 0
A117: ='Neunkirchen Nightmares'!A63 -> 713 | B117: =IF('Neunkirchen Nightmares'!B63="","",'Neunkirchen Nightmares'!B63) ->  | C117: =SUM('Neunkirchen Nightmares'!D63:D67) -> 0 | D117: =SUM('Neunkirchen Nightmares'!E63:E67) -> 0 | E117: =SUM('Neunkirchen Nightmares'!F63:F67) -> 0 | F117: =SUM('Neunkirchen Nightmares'!G63:G67) -> 0 | G117: =SUM('Neunkirchen Nightmares'!H63:H67) -> 0 | H117: =SUM('Neunkirchen Nightmares'!I63:I67) -> 0 | I117: =SUM('Neunkirchen Nightmares'!J63:J67) -> 0 | J117: =SUM('Neunkirchen Nightmares'!K63:K67) -> 0 | K117: =SUM('Neunkirchen Nightmares'!L63:L67) -> 0 | L117: =SUM('Neunkirchen Nightmares'!M63:M67) -> 0 | M117: =SUM('Neunkirchen Nightmares'!N63:N67) -> 0 | N117: =SUM('Neunkirchen Nightmares'!O63:O67) -> 0 | O117: =SUM('Neunkirchen Nightmares'!P63:P67) -> 0 | P117: =SUM('Neunkirchen Nightmares'!Q63:Q67) -> 0 | Q117: =SUM('Neunkirchen Nightmares'!R63:R67) -> 0 | S117: =SUM('Neunkirchen Nightmares'!T63:T67) -> 0 | T117: =SUM('Neunkirchen Nightmares'!U63:U67) -> 0 | U117: =SUM('Neunkirchen Nightmares'!V63:V67) -> 0 | W117: =IF(ISERROR(G117/D117),0,G117/D117) -> 0 | X117: =IF(ISERROR((4*J117+3*I117+2*H117+G117-SUM(H117:J117))/D117),0,(4*J117+3*I117+2*H117+G117-SUM(H117:J117))/D117) -> 0 | Y117: =W117+X117 -> 0 | Z117: =IF(ISERROR((G117+L117+M117)/(D117+L117+M117+Q117)),0,(G117+L117+M117)/(D117+L117+M117+Q117)) -> 0 | AA117: =Z117+X117 -> 0 | AC117: =IF(ISERROR((S117+T117)/(U117+S117+T117)),0,(S117+T117)/(U117+S117+T117)) -> 0
A118: ='Neunkirchen Nightmares'!A68 -> 714 | B118: =IF('Neunkirchen Nightmares'!B68="","",'Neunkirchen Nightmares'!B68) ->  | C118: =SUM('Neunkirchen Nightmares'!D68:D72) -> 0 | D118: =SUM('Neunkirchen Nightmares'!E68:E72) -> 0 | E118: =SUM('Neunkirchen Nightmares'!F68:F72) -> 0 | F118: =SUM('Neunkirchen Nightmares'!G68:G72) -> 0 | G118: =SUM('Neunkirchen Nightmares'!H68:H72) -> 0 | H118: =SUM('Neunkirchen Nightmares'!I68:I72) -> 0 | I118: =SUM('Neunkirchen Nightmares'!J68:J72) -> 0 | J118: =SUM('Neunkirchen Nightmares'!K68:K72) -> 0 | K118: =SUM('Neunkirchen Nightmares'!L68:L72) -> 0 | L118: =SUM('Neunkirchen Nightmares'!M68:M72) -> 0 | M118: =SUM('Neunkirchen Nightmares'!N68:N72) -> 0 | N118: =SUM('Neunkirchen Nightmares'!O68:O72) -> 0 | O118: =SUM('Neunkirchen Nightmares'!P68:P72) -> 0 | P118: =SUM('Neunkirchen Nightmares'!Q68:Q72) -> 0 | Q118: =SUM('Neunkirchen Nightmares'!R68:R72) -> 0 | S118: =SUM('Neunkirchen Nightmares'!T68:T72) -> 0 | T118: =SUM('Neunkirchen Nightmares'!U68:U72) -> 0 | U118: =SUM('Neunkirchen Nightmares'!V68:V72) -> 0 | W118: =IF(ISERROR(G118/D118),0,G118/D118) -> 0 | X118: =IF(ISERROR((4*J118+3*I118+2*H118+G118-SUM(H118:J118))/D118),0,(4*J118+3*I118+2*H118+G118-SUM(H118:J118))/D118) -> 0 | Y118: =W118+X118 -> 0 | Z118: =IF(ISERROR((G118+L118+M118)/(D118+L118+M118+Q118)),0,(G118+L118+M118)/(D118+L118+M118+Q118)) -> 0 | AA118: =Z118+X118 -> 0 | AC118: =IF(ISERROR((S118+T118)/(U118+S118+T118)),0,(S118+T118)/(U118+S118+T118)) -> 0
A119: ='Neunkirchen Nightmares'!A73 -> 715 | B119: =IF('Neunkirchen Nightmares'!B73="","",'Neunkirchen Nightmares'!B73) ->  | C119: =SUM('Neunkirchen Nightmares'!D73:D77) -> 0 | D119: =SUM('Neunkirchen Nightmares'!E73:E77) -> 0 | E119: =SUM('Neunkirchen Nightmares'!F73:F77) -> 0 | F119: =SUM('Neunkirchen Nightmares'!G73:G77) -> 0 | G119: =SUM('Neunkirchen Nightmares'!H73:H77) -> 0 | H119: =SUM('Neunkirchen Nightmares'!I73:I77) -> 0 | I119: =SUM('Neunkirchen Nightmares'!J73:J77) -> 0 | J119: =SUM('Neunkirchen Nightmares'!K73:K77) -> 0 | K119: =SUM('Neunkirchen Nightmares'!L73:L77) -> 0 | L119: =SUM('Neunkirchen Nightmares'!M73:M77) -> 0 | M119: =SUM('Neunkirchen Nightmares'!N73:N77) -> 0 | N119: =SUM('Neunkirchen Nightmares'!O73:O77) -> 0 | O119: =SUM('Neunkirchen Nightmares'!P73:P77) -> 0 | P119: =SUM('Neunkirchen Nightmares'!Q73:Q77) -> 0 | Q119: =SUM('Neunkirchen Nightmares'!R73:R77) -> 0 | S119: =SUM('Neunkirchen Nightmares'!T73:T77) -> 0 | T119: =SUM('Neunkirchen Nightmares'!U73:U77) -> 0 | U119: =SUM('Neunkirchen Nightmares'!V73:V77) -> 0 | W119: =IF(ISERROR(G119/D119),0,G119/D119) -> 0 | X119: =IF(ISERROR((4*J119+3*I119+2*H119+G119-SUM(H119:J119))/D119),0,(4*J119+3*I119+2*H119+G119-SUM(H119:J119))/D119) -> 0 | Y119: =W119+X119 -> 0 | Z119: =IF(ISERROR((G119+L119+M119)/(D119+L119+M119+Q119)),0,(G119+L119+M119)/(D119+L119+M119+Q119)) -> 0 | AA119: =Z119+X119 -> 0 | AC119: =IF(ISERROR((S119+T119)/(U119+S119+T119)),0,(S119+T119)/(U119+S119+T119)) -> 0
A120: ='Neunkirchen Nightmares'!A78 -> 716 | B120: =IF('Neunkirchen Nightmares'!B78="","",'Neunkirchen Nightmares'!B78) ->  | C120: =SUM('Neunkirchen Nightmares'!D78:D82) -> 0 | D120: =SUM('Neunkirchen Nightmares'!E78:E82) -> 0 | E120: =SUM('Neunkirchen Nightmares'!F78:F82) -> 0 | F120: =SUM('Neunkirchen Nightmares'!G78:G82) -> 0 | G120: =SUM('Neunkirchen Nightmares'!H78:H82) -> 0 | H120: =SUM('Neunkirchen Nightmares'!I78:I82) -> 0 | I120: =SUM('Neunkirchen Nightmares'!J78:J82) -> 0 | J120: =SUM('Neunkirchen Nightmares'!K78:K82) -> 0 | K120: =SUM('Neunkirchen Nightmares'!L78:L82) -> 0 | L120: =SUM('Neunkirchen Nightmares'!M78:M82) -> 0 | M120: =SUM('Neunkirchen Nightmares'!N78:N82) -> 0 | N120: =SUM('Neunkirchen Nightmares'!O78:O82) -> 0 | O120: =SUM('Neunkirchen Nightmares'!P78:P82) -> 0 | P120: =SUM('Neunkirchen Nightmares'!Q78:Q82) -> 0 | Q120: =SUM('Neunkirchen Nightmares'!R78:R82) -> 0 | S120: =SUM('Neunkirchen Nightmares'!T78:T82) -> 0 | T120: =SUM('Neunkirchen Nightmares'!U78:U82) -> 0 | U120: =SUM('Neunkirchen Nightmares'!V78:V82) -> 0 | W120: =IF(ISERROR(G120/D120),0,G120/D120) -> 0 | X120: =IF(ISERROR((4*J120+3*I120+2*H120+G120-SUM(H120:J120))/D120),0,(4*J120+3*I120+2*H120+G120-SUM(H120:J120))/D120) -> 0 | Y120: =W120+X120 -> 0 | Z120: =IF(ISERROR((G120+L120+M120)/(D120+L120+M120+Q120)),0,(G120+L120+M120)/(D120+L120+M120+Q120)) -> 0 | AA120: =Z120+X120 -> 0 | AC120: =IF(ISERROR((S120+T120)/(U120+S120+T120)),0,(S120+T120)/(U120+S120+T120)) -> 0
A121: ='Neunkirchen Nightmares'!A83 -> 717 | B121: =IF('Neunkirchen Nightmares'!B83="","",'Neunkirchen Nightmares'!B83) ->  | C121: =SUM('Neunkirchen Nightmares'!D83:D87) -> 0 | D121: =SUM('Neunkirchen Nightmares'!E83:E87) -> 0 | E121: =SUM('Neunkirchen Nightmares'!F83:F87) -> 0 | F121: =SUM('Neunkirchen Nightmares'!G83:G87) -> 0 | G121: =SUM('Neunkirchen Nightmares'!H83:H87) -> 0 | H121: =SUM('Neunkirchen Nightmares'!I83:I87) -> 0 | I121: =SUM('Neunkirchen Nightmares'!J83:J87) -> 0 | J121: =SUM('Neunkirchen Nightmares'!K83:K87) -> 0 | K121: =SUM('Neunkirchen Nightmares'!L83:L87) -> 0 | L121: =SUM('Neunkirchen Nightmares'!M83:M87) -> 0 | M121: =SUM('Neunkirchen Nightmares'!N83:N87) -> 0 | N121: =SUM('Neunkirchen Nightmares'!O83:O87) -> 0 | O121: =SUM('Neunkirchen Nightmares'!P83:P87) -> 0 | P121: =SUM('Neunkirchen Nightmares'!Q83:Q87) -> 0 | Q121: =SUM('Neunkirchen Nightmares'!R83:R87) -> 0 | S121: =SUM('Neunkirchen Nightmares'!T83:T87) -> 0 | T121: =SUM('Neunkirchen Nightmares'!U83:U87) -> 0 | U121: =SUM('Neunkirchen Nightmares'!V83:V87) -> 0 | W121: =IF(ISERROR(G121/D121),0,G121/D121) -> 0 | X121: =IF(ISERROR((4*J121+3*I121+2*H121+G121-SUM(H121:J121))/D121),0,(4*J121+3*I121+2*H121+G121-SUM(H121:J121))/D121) -> 0 | Y121: =W121+X121 -> 0 | Z121: =IF(ISERROR((G121+L121+M121)/(D121+L121+M121+Q121)),0,(G121+L121+M121)/(D121+L121+M121+Q121)) -> 0 | AA121: =Z121+X121 -> 0 | AC121: =IF(ISERROR((S121+T121)/(U121+S121+T121)),0,(S121+T121)/(U121+S121+T121)) -> 0
A122: ='Team 8'!A3 -> 801 | B122: =IF('Team 8'!B3="","",'Team 8'!B3) ->  | C122: =SUM('Team 8'!D3:D7) -> 0 | D122: =SUM('Team 8'!E3:E7) -> 0 | E122: =SUM('Team 8'!F3:F7) -> 0 | F122: =SUM('Team 8'!G3:G7) -> 0 | G122: =SUM('Team 8'!H3:H7) -> 0 | H122: =SUM('Team 8'!I3:I7) -> 0 | I122: =SUM('Team 8'!J3:J7) -> 0 | J122: =SUM('Team 8'!K3:K7) -> 0 | K122: =SUM('Team 8'!L3:L7) -> 0 | L122: =SUM('Team 8'!M3:M7) -> 0 | M122: =SUM('Team 8'!N3:N7) -> 0 | N122: =SUM('Team 8'!O3:O7) -> 0 | O122: =SUM('Team 8'!P3:P7) -> 0 | P122: =SUM('Team 8'!Q3:Q7) -> 0 | Q122: =SUM('Team 8'!R3:R7) -> 0 | S122: =SUM('Team 8'!T3:T7) -> 0 | T122: =SUM('Team 8'!U3:U7) -> 0 | U122: =SUM('Team 8'!V3:V7) -> 0 | W122: =IF(ISERROR(G122/D122),0,G122/D122) -> 0 | X122: =IF(ISERROR((4*J122+3*I122+2*H122+G122-SUM(H122:J122))/D122),0,(4*J122+3*I122+2*H122+G122-SUM(H122:J122))/D122) -> 0 | Y122: =W122+X122 -> 0 | Z122: =IF(ISERROR((G122+L122+M122)/(D122+L122+M122+Q122)),0,(G122+L122+M122)/(D122+L122+M122+Q122)) -> 0 | AA122: =Z122+X122 -> 0 | AC122: =IF(ISERROR((S122+T122)/(U122+S122+T122)),0,(S122+T122)/(U122+S122+T122)) -> 0
A123: ='Team 8'!A8 -> 802 | B123: =IF('Team 8'!B8="","",'Team 8'!B8) ->  | C123: =SUM('Team 8'!D8:D12) -> 0 | D123: =SUM('Team 8'!E8:E12) -> 0 | E123: =SUM('Team 8'!F8:F12) -> 0 | F123: =SUM('Team 8'!G8:G12) -> 0 | G123: =SUM('Team 8'!H8:H12) -> 0 | H123: =SUM('Team 8'!I8:I12) -> 0 | I123: =SUM('Team 8'!J8:J12) -> 0 | J123: =SUM('Team 8'!K8:K12) -> 0 | K123: =SUM('Team 8'!L8:L12) -> 0 | L123: =SUM('Team 8'!M8:M12) -> 0 | M123: =SUM('Team 8'!N8:N12) -> 0 | N123: =SUM('Team 8'!O8:O12) -> 0 | O123: =SUM('Team 8'!P8:P12) -> 0 | P123: =SUM('Team 8'!Q8:Q12) -> 0 | Q123: =SUM('Team 8'!R8:R12) -> 0 | S123: =SUM('Team 8'!T8:T12) -> 0 | T123: =SUM('Team 8'!U8:U12) -> 0 | U123: =SUM('Team 8'!V8:V12) -> 0 | W123: =IF(ISERROR(G123/D123),0,G123/D123) -> 0 | X123: =IF(ISERROR((4*J123+3*I123+2*H123+G123-SUM(H123:J123))/D123),0,(4*J123+3*I123+2*H123+G123-SUM(H123:J123))/D123) -> 0 | Y123: =W123+X123 -> 0 | Z123: =IF(ISERROR((G123+L123+M123)/(D123+L123+M123+Q123)),0,(G123+L123+M123)/(D123+L123+M123+Q123)) -> 0 | AA123: =Z123+X123 -> 0 | AC123: =IF(ISERROR((S123+T123)/(U123+S123+T123)),0,(S123+T123)/(U123+S123+T123)) -> 0
A124: ='Team 8'!A13 -> 803 | B124: =IF('Team 8'!B13="","",'Team 8'!B13) ->  | C124: =SUM('Team 8'!D13:D17) -> 0 | D124: =SUM('Team 8'!E13:E17) -> 0 | E124: =SUM('Team 8'!F13:F17) -> 0 | F124: =SUM('Team 8'!G13:G17) -> 0 | G124: =SUM('Team 8'!H13:H17) -> 0 | H124: =SUM('Team 8'!I13:I17) -> 0 | I124: =SUM('Team 8'!J13:J17) -> 0 | J124: =SUM('Team 8'!K13:K17) -> 0 | K124: =SUM('Team 8'!L13:L17) -> 0 | L124: =SUM('Team 8'!M13:M17) -> 0 | M124: =SUM('Team 8'!N13:N17) -> 0 | N124: =SUM('Team 8'!O13:O17) -> 0 | O124: =SUM('Team 8'!P13:P17) -> 0 | P124: =SUM('Team 8'!Q13:Q17) -> 0 | Q124: =SUM('Team 8'!R13:R17) -> 0 | S124: =SUM('Team 8'!T13:T17) -> 0 | T124: =SUM('Team 8'!U13:U17) -> 0 | U124: =SUM('Team 8'!V13:V17) -> 0 | W124: =IF(ISERROR(G124/D124),0,G124/D124) -> 0 | X124: =IF(ISERROR((4*J124+3*I124+2*H124+G124-SUM(H124:J124))/D124),0,(4*J124+3*I124+2*H124+G124-SUM(H124:J124))/D124) -> 0 | Y124: =W124+X124 -> 0 | Z124: =IF(ISERROR((G124+L124+M124)/(D124+L124+M124+Q124)),0,(G124+L124+M124)/(D124+L124+M124+Q124)) -> 0 | AA124: =Z124+X124 -> 0 | AC124: =IF(ISERROR((S124+T124)/(U124+S124+T124)),0,(S124+T124)/(U124+S124+T124)) -> 0
A125: ='Team 8'!A18 -> 804 | B125: =IF('Team 8'!B18="","",'Team 8'!B18) ->  | C125: =SUM('Team 8'!D18:D22) -> 0 | D125: =SUM('Team 8'!E18:E22) -> 0 | E125: =SUM('Team 8'!F18:F22) -> 0 | F125: =SUM('Team 8'!G18:G22) -> 0 | G125: =SUM('Team 8'!H18:H22) -> 0 | H125: =SUM('Team 8'!I18:I22) -> 0 | I125: =SUM('Team 8'!J18:J22) -> 0 | J125: =SUM('Team 8'!K18:K22) -> 0 | K125: =SUM('Team 8'!L18:L22) -> 0 | L125: =SUM('Team 8'!M18:M22) -> 0 | M125: =SUM('Team 8'!N18:N22) -> 0 | N125: =SUM('Team 8'!O18:O22) -> 0 | O125: =SUM('Team 8'!P18:P22) -> 0 | P125: =SUM('Team 8'!Q18:Q22) -> 0 | Q125: =SUM('Team 8'!R18:R22) -> 0 | S125: =SUM('Team 8'!T18:T22) -> 0 | T125: =SUM('Team 8'!U18:U22) -> 0 | U125: =SUM('Team 8'!V18:V22) -> 0 | W125: =IF(ISERROR(G125/D125),0,G125/D125) -> 0 | X125: =IF(ISERROR((4*J125+3*I125+2*H125+G125-SUM(H125:J125))/D125),0,(4*J125+3*I125+2*H125+G125-SUM(H125:J125))/D125) -> 0 | Y125: =W125+X125 -> 0 | Z125: =IF(ISERROR((G125+L125+M125)/(D125+L125+M125+Q125)),0,(G125+L125+M125)/(D125+L125+M125+Q125)) -> 0 | AA125: =Z125+X125 -> 0 | AC125: =IF(ISERROR((S125+T125)/(U125+S125+T125)),0,(S125+T125)/(U125+S125+T125)) -> 0
A126: ='Team 8'!A23 -> 805 | B126: =IF('Team 8'!B23="","",'Team 8'!B23) ->  | C126: =SUM('Team 8'!D23:D27) -> 0 | D126: =SUM('Team 8'!E23:E27) -> 0 | E126: =SUM('Team 8'!F23:F27) -> 0 | F126: =SUM('Team 8'!G23:G27) -> 0 | G126: =SUM('Team 8'!H23:H27) -> 0 | H126: =SUM('Team 8'!I23:I27) -> 0 | I126: =SUM('Team 8'!J23:J27) -> 0 | J126: =SUM('Team 8'!K23:K27) -> 0 | K126: =SUM('Team 8'!L23:L27) -> 0 | L126: =SUM('Team 8'!M23:M27) -> 0 | M126: =SUM('Team 8'!N23:N27) -> 0 | N126: =SUM('Team 8'!O23:O27) -> 0 | O126: =SUM('Team 8'!P23:P27) -> 0 | P126: =SUM('Team 8'!Q23:Q27) -> 0 | Q126: =SUM('Team 8'!R23:R27) -> 0 | S126: =SUM('Team 8'!T23:T27) -> 0 | T126: =SUM('Team 8'!U23:U27) -> 0 | U126: =SUM('Team 8'!V23:V27) -> 0 | W126: =IF(ISERROR(G126/D126),0,G126/D126) -> 0 | X126: =IF(ISERROR((4*J126+3*I126+2*H126+G126-SUM(H126:J126))/D126),0,(4*J126+3*I126+2*H126+G126-SUM(H126:J126))/D126) -> 0 | Y126: =W126+X126 -> 0 | Z126: =IF(ISERROR((G126+L126+M126)/(D126+L126+M126+Q126)),0,(G126+L126+M126)/(D126+L126+M126+Q126)) -> 0 | AA126: =Z126+X126 -> 0 | AC126: =IF(ISERROR((S126+T126)/(U126+S126+T126)),0,(S126+T126)/(U126+S126+T126)) -> 0
A127: ='Team 8'!A28 -> 806 | B127: =IF('Team 8'!B28="","",'Team 8'!B28) ->  | C127: =SUM('Team 8'!D28:D32) -> 0 | D127: =SUM('Team 8'!E28:E32) -> 0 | E127: =SUM('Team 8'!F28:F32) -> 0 | F127: =SUM('Team 8'!G28:G32) -> 0 | G127: =SUM('Team 8'!H28:H32) -> 0 | H127: =SUM('Team 8'!I28:I32) -> 0 | I127: =SUM('Team 8'!J28:J32) -> 0 | J127: =SUM('Team 8'!K28:K32) -> 0 | K127: =SUM('Team 8'!L28:L32) -> 0 | L127: =SUM('Team 8'!M28:M32) -> 0 | M127: =SUM('Team 8'!N28:N32) -> 0 | N127: =SUM('Team 8'!O28:O32) -> 0 | O127: =SUM('Team 8'!P28:P32) -> 0 | P127: =SUM('Team 8'!Q28:Q32) -> 0 | Q127: =SUM('Team 8'!R28:R32) -> 0 | S127: =SUM('Team 8'!T28:T32) -> 0 | T127: =SUM('Team 8'!U28:U32) -> 0 | U127: =SUM('Team 8'!V28:V32) -> 0 | W127: =IF(ISERROR(G127/D127),0,G127/D127) -> 0 | X127: =IF(ISERROR((4*J127+3*I127+2*H127+G127-SUM(H127:J127))/D127),0,(4*J127+3*I127+2*H127+G127-SUM(H127:J127))/D127) -> 0 | Y127: =W127+X127 -> 0 | Z127: =IF(ISERROR((G127+L127+M127)/(D127+L127+M127+Q127)),0,(G127+L127+M127)/(D127+L127+M127+Q127)) -> 0 | AA127: =Z127+X127 -> 0 | AC127: =IF(ISERROR((S127+T127)/(U127+S127+T127)),0,(S127+T127)/(U127+S127+T127)) -> 0
A128: ='Team 8'!A33 -> 807 | B128: =IF('Team 8'!B33="","",'Team 8'!B33) ->  | C128: =SUM('Team 8'!D33:D37) -> 0 | D128: =SUM('Team 8'!E33:E37) -> 0 | E128: =SUM('Team 8'!F33:F37) -> 0 | F128: =SUM('Team 8'!G33:G37) -> 0 | G128: =SUM('Team 8'!H33:H37) -> 0 | H128: =SUM('Team 8'!I33:I37) -> 0 | I128: =SUM('Team 8'!J33:J37) -> 0 | J128: =SUM('Team 8'!K33:K37) -> 0 | K128: =SUM('Team 8'!L33:L37) -> 0 | L128: =SUM('Team 8'!M33:M37) -> 0 | M128: =SUM('Team 8'!N33:N37) -> 0 | N128: =SUM('Team 8'!O33:O37) -> 0 | O128: =SUM('Team 8'!P33:P37) -> 0 | P128: =SUM('Team 8'!Q33:Q37) -> 0 | Q128: =SUM('Team 8'!R33:R37) -> 0 | S128: =SUM('Team 8'!T33:T37) -> 0 | T128: =SUM('Team 8'!U33:U37) -> 0 | U128: =SUM('Team 8'!V33:V37) -> 0 | W128: =IF(ISERROR(G128/D128),0,G128/D128) -> 0 | X128: =IF(ISERROR((4*J128+3*I128+2*H128+G128-SUM(H128:J128))/D128),0,(4*J128+3*I128+2*H128+G128-SUM(H128:J128))/D128) -> 0 | Y128: =W128+X128 -> 0 | Z128: =IF(ISERROR((G128+L128+M128)/(D128+L128+M128+Q128)),0,(G128+L128+M128)/(D128+L128+M128+Q128)) -> 0 | AA128: =Z128+X128 -> 0 | AC128: =IF(ISERROR((S128+T128)/(U128+S128+T128)),0,(S128+T128)/(U128+S128+T128)) -> 0
A129: ='Team 8'!A38 -> 808 | B129: =IF('Team 8'!B38="","",'Team 8'!B38) ->  | C129: =SUM('Team 8'!D38:D42) -> 0 | D129: =SUM('Team 8'!E38:E42) -> 0 | E129: =SUM('Team 8'!F38:F42) -> 0 | F129: =SUM('Team 8'!G38:G42) -> 0 | G129: =SUM('Team 8'!H38:H42) -> 0 | H129: =SUM('Team 8'!I38:I42) -> 0 | I129: =SUM('Team 8'!J38:J42) -> 0 | J129: =SUM('Team 8'!K38:K42) -> 0 | K129: =SUM('Team 8'!L38:L42) -> 0 | L129: =SUM('Team 8'!M38:M42) -> 0 | M129: =SUM('Team 8'!N38:N42) -> 0 | N129: =SUM('Team 8'!O38:O42) -> 0 | O129: =SUM('Team 8'!P38:P42) -> 0 | P129: =SUM('Team 8'!Q38:Q42) -> 0 | Q129: =SUM('Team 8'!R38:R42) -> 0 | S129: =SUM('Team 8'!T38:T42) -> 0 | T129: =SUM('Team 8'!U38:U42) -> 0 | U129: =SUM('Team 8'!V38:V42) -> 0 | W129: =IF(ISERROR(G129/D129),0,G129/D129) -> 0 | X129: =IF(ISERROR((4*J129+3*I129+2*H129+G129-SUM(H129:J129))/D129),0,(4*J129+3*I129+2*H129+G129-SUM(H129:J129))/D129) -> 0 | Y129: =W129+X129 -> 0 | Z129: =IF(ISERROR((G129+L129+M129)/(D129+L129+M129+Q129)),0,(G129+L129+M129)/(D129+L129+M129+Q129)) -> 0 | AA129: =Z129+X129 -> 0 | AC129: =IF(ISERROR((S129+T129)/(U129+S129+T129)),0,(S129+T129)/(U129+S129+T129)) -> 0
A130: ='Team 8'!A43 -> 809 | B130: =IF('Team 8'!B43="","",'Team 8'!B43) ->  | C130: =SUM('Team 8'!D43:D47) -> 0 | D130: =SUM('Team 8'!E43:E47) -> 0 | E130: =SUM('Team 8'!F43:F47) -> 0 | F130: =SUM('Team 8'!G43:G47) -> 0 | G130: =SUM('Team 8'!H43:H47) -> 0 | H130: =SUM('Team 8'!I43:I47) -> 0 | I130: =SUM('Team 8'!J43:J47) -> 0 | J130: =SUM('Team 8'!K43:K47) -> 0 | K130: =SUM('Team 8'!L43:L47) -> 0 | L130: =SUM('Team 8'!M43:M47) -> 0 | M130: =SUM('Team 8'!N43:N47) -> 0 | N130: =SUM('Team 8'!O43:O47) -> 0 | O130: =SUM('Team 8'!P43:P47) -> 0 | P130: =SUM('Team 8'!Q43:Q47) -> 0 | Q130: =SUM('Team 8'!R43:R47) -> 0 | S130: =SUM('Team 8'!T43:T47) -> 0 | T130: =SUM('Team 8'!U43:U47) -> 0 | U130: =SUM('Team 8'!V43:V47) -> 0 | W130: =IF(ISERROR(G130/D130),0,G130/D130) -> 0 | X130: =IF(ISERROR((4*J130+3*I130+2*H130+G130-SUM(H130:J130))/D130),0,(4*J130+3*I130+2*H130+G130-SUM(H130:J130))/D130) -> 0 | Y130: =W130+X130 -> 0 | Z130: =IF(ISERROR((G130+L130+M130)/(D130+L130+M130+Q130)),0,(G130+L130+M130)/(D130+L130+M130+Q130)) -> 0 | AA130: =Z130+X130 -> 0 | AC130: =IF(ISERROR((S130+T130)/(U130+S130+T130)),0,(S130+T130)/(U130+S130+T130)) -> 0
A131: ='Team 8'!A48 -> 810 | B131: =IF('Team 8'!B48="","",'Team 8'!B48) ->  | C131: =SUM('Team 8'!D48:D52) -> 0 | D131: =SUM('Team 8'!E48:E52) -> 0 | E131: =SUM('Team 8'!F48:F52) -> 0 | F131: =SUM('Team 8'!G48:G52) -> 0 | G131: =SUM('Team 8'!H48:H52) -> 0 | H131: =SUM('Team 8'!I48:I52) -> 0 | I131: =SUM('Team 8'!J48:J52) -> 0 | J131: =SUM('Team 8'!K48:K52) -> 0 | K131: =SUM('Team 8'!L48:L52) -> 0 | L131: =SUM('Team 8'!M48:M52) -> 0 | M131: =SUM('Team 8'!N48:N52) -> 0 | N131: =SUM('Team 8'!O48:O52) -> 0 | O131: =SUM('Team 8'!P48:P52) -> 0 | P131: =SUM('Team 8'!Q48:Q52) -> 0 | Q131: =SUM('Team 8'!R48:R52) -> 0 | S131: =SUM('Team 8'!T48:T52) -> 0 | T131: =SUM('Team 8'!U48:U52) -> 0 | U131: =SUM('Team 8'!V48:V52) -> 0 | W131: =IF(ISERROR(G131/D131),0,G131/D131) -> 0 | X131: =IF(ISERROR((4*J131+3*I131+2*H131+G131-SUM(H131:J131))/D131),0,(4*J131+3*I131+2*H131+G131-SUM(H131:J131))/D131) -> 0 | Y131: =W131+X131 -> 0 | Z131: =IF(ISERROR((G131+L131+M131)/(D131+L131+M131+Q131)),0,(G131+L131+M131)/(D131+L131+M131+Q131)) -> 0 | AA131: =Z131+X131 -> 0 | AC131: =IF(ISERROR((S131+T131)/(U131+S131+T131)),0,(S131+T131)/(U131+S131+T131)) -> 0
A132: ='Team 8'!A53 -> 811 | B132: =IF('Team 8'!B53="","",'Team 8'!B53) ->  | C132: =SUM('Team 8'!D53:D57) -> 0 | D132: =SUM('Team 8'!E53:E57) -> 0 | E132: =SUM('Team 8'!F53:F57) -> 0 | F132: =SUM('Team 8'!G53:G57) -> 0 | G132: =SUM('Team 8'!H53:H57) -> 0 | H132: =SUM('Team 8'!I53:I57) -> 0 | I132: =SUM('Team 8'!J53:J57) -> 0 | J132: =SUM('Team 8'!K53:K57) -> 0 | K132: =SUM('Team 8'!L53:L57) -> 0 | L132: =SUM('Team 8'!M53:M57) -> 0 | M132: =SUM('Team 8'!N53:N57) -> 0 | N132: =SUM('Team 8'!O53:O57) -> 0 | O132: =SUM('Team 8'!P53:P57) -> 0 | P132: =SUM('Team 8'!Q53:Q57) -> 0 | Q132: =SUM('Team 8'!R53:R57) -> 0 | S132: =SUM('Team 8'!T53:T57) -> 0 | T132: =SUM('Team 8'!U53:U57) -> 0 | U132: =SUM('Team 8'!V53:V57) -> 0 | W132: =IF(ISERROR(G132/D132),0,G132/D132) -> 0 | X132: =IF(ISERROR((4*J132+3*I132+2*H132+G132-SUM(H132:J132))/D132),0,(4*J132+3*I132+2*H132+G132-SUM(H132:J132))/D132) -> 0 | Y132: =W132+X132 -> 0 | Z132: =IF(ISERROR((G132+L132+M132)/(D132+L132+M132+Q132)),0,(G132+L132+M132)/(D132+L132+M132+Q132)) -> 0 | AA132: =Z132+X132 -> 0 | AC132: =IF(ISERROR((S132+T132)/(U132+S132+T132)),0,(S132+T132)/(U132+S132+T132)) -> 0
A133: ='Team 8'!A58 -> 812 | B133: =IF('Team 8'!B58="","",'Team 8'!B58) ->  | C133: =SUM('Team 8'!D58:D62) -> 0 | D133: =SUM('Team 8'!E58:E62) -> 0 | E133: =SUM('Team 8'!F58:F62) -> 0 | F133: =SUM('Team 8'!G58:G62) -> 0 | G133: =SUM('Team 8'!H58:H62) -> 0 | H133: =SUM('Team 8'!I58:I62) -> 0 | I133: =SUM('Team 8'!J58:J62) -> 0 | J133: =SUM('Team 8'!K58:K62) -> 0 | K133: =SUM('Team 8'!L58:L62) -> 0 | L133: =SUM('Team 8'!M58:M62) -> 0 | M133: =SUM('Team 8'!N58:N62) -> 0 | N133: =SUM('Team 8'!O58:O62) -> 0 | O133: =SUM('Team 8'!P58:P62) -> 0 | P133: =SUM('Team 8'!Q58:Q62) -> 0 | Q133: =SUM('Team 8'!R58:R62) -> 0 | S133: =SUM('Team 8'!T58:T62) -> 0 | T133: =SUM('Team 8'!U58:U62) -> 0 | U133: =SUM('Team 8'!V58:V62) -> 0 | W133: =IF(ISERROR(G133/D133),0,G133/D133) -> 0 | X133: =IF(ISERROR((4*J133+3*I133+2*H133+G133-SUM(H133:J133))/D133),0,(4*J133+3*I133+2*H133+G133-SUM(H133:J133))/D133) -> 0 | Y133: =W133+X133 -> 0 | Z133: =IF(ISERROR((G133+L133+M133)/(D133+L133+M133+Q133)),0,(G133+L133+M133)/(D133+L133+M133+Q133)) -> 0 | AA133: =Z133+X133 -> 0 | AC133: =IF(ISERROR((S133+T133)/(U133+S133+T133)),0,(S133+T133)/(U133+S133+T133)) -> 0
A134: ='Team 8'!A63 -> 813 | B134: =IF('Team 8'!B63="","",'Team 8'!B63) ->  | C134: =SUM('Team 8'!D63:D67) -> 0 | D134: =SUM('Team 8'!E63:E67) -> 0 | E134: =SUM('Team 8'!F63:F67) -> 0 | F134: =SUM('Team 8'!G63:G67) -> 0 | G134: =SUM('Team 8'!H63:H67) -> 0 | H134: =SUM('Team 8'!I63:I67) -> 0 | I134: =SUM('Team 8'!J63:J67) -> 0 | J134: =SUM('Team 8'!K63:K67) -> 0 | K134: =SUM('Team 8'!L63:L67) -> 0 | L134: =SUM('Team 8'!M63:M67) -> 0 | M134: =SUM('Team 8'!N63:N67) -> 0 | N134: =SUM('Team 8'!O63:O67) -> 0 | O134: =SUM('Team 8'!P63:P67) -> 0 | P134: =SUM('Team 8'!Q63:Q67) -> 0 | Q134: =SUM('Team 8'!R63:R67) -> 0 | S134: =SUM('Team 8'!T63:T67) -> 0 | T134: =SUM('Team 8'!U63:U67) -> 0 | U134: =SUM('Team 8'!V63:V67) -> 0 | W134: =IF(ISERROR(G134/D134),0,G134/D134) -> 0 | X134: =IF(ISERROR((4*J134+3*I134+2*H134+G134-SUM(H134:J134))/D134),0,(4*J134+3*I134+2*H134+G134-SUM(H134:J134))/D134) -> 0 | Y134: =W134+X134 -> 0 | Z134: =IF(ISERROR((G134+L134+M134)/(D134+L134+M134+Q134)),0,(G134+L134+M134)/(D134+L134+M134+Q134)) -> 0 | AA134: =Z134+X134 -> 0 | AC134: =IF(ISERROR((S134+T134)/(U134+S134+T134)),0,(S134+T134)/(U134+S134+T134)) -> 0
A135: ='Team 8'!A68 -> 814 | B135: =IF('Team 8'!B68="","",'Team 8'!B68) ->  | C135: =SUM('Team 8'!D68:D72) -> 0 | D135: =SUM('Team 8'!E68:E72) -> 0 | E135: =SUM('Team 8'!F68:F72) -> 0 | F135: =SUM('Team 8'!G68:G72) -> 0 | G135: =SUM('Team 8'!H68:H72) -> 0 | H135: =SUM('Team 8'!I68:I72) -> 0 | I135: =SUM('Team 8'!J68:J72) -> 0 | J135: =SUM('Team 8'!K68:K72) -> 0 | K135: =SUM('Team 8'!L68:L72) -> 0 | L135: =SUM('Team 8'!M68:M72) -> 0 | M135: =SUM('Team 8'!N68:N72) -> 0 | N135: =SUM('Team 8'!O68:O72) -> 0 | O135: =SUM('Team 8'!P68:P72) -> 0 | P135: =SUM('Team 8'!Q68:Q72) -> 0 | Q135: =SUM('Team 8'!R68:R72) -> 0 | S135: =SUM('Team 8'!T68:T72) -> 0 | T135: =SUM('Team 8'!U68:U72) -> 0 | U135: =SUM('Team 8'!V68:V72) -> 0 | W135: =IF(ISERROR(G135/D135),0,G135/D135) -> 0 | X135: =IF(ISERROR((4*J135+3*I135+2*H135+G135-SUM(H135:J135))/D135),0,(4*J135+3*I135+2*H135+G135-SUM(H135:J135))/D135) -> 0 | Y135: =W135+X135 -> 0 | Z135: =IF(ISERROR((G135+L135+M135)/(D135+L135+M135+Q135)),0,(G135+L135+M135)/(D135+L135+M135+Q135)) -> 0 | AA135: =Z135+X135 -> 0 | AC135: =IF(ISERROR((S135+T135)/(U135+S135+T135)),0,(S135+T135)/(U135+S135+T135)) -> 0
A136: ='Team 8'!A73 -> 815 | B136: =IF('Team 8'!B73="","",'Team 8'!B73) ->  | C136: =SUM('Team 8'!D73:D77) -> 0 | D136: =SUM('Team 8'!E73:E77) -> 0 | E136: =SUM('Team 8'!F73:F77) -> 0 | F136: =SUM('Team 8'!G73:G77) -> 0 | G136: =SUM('Team 8'!H73:H77) -> 0 | H136: =SUM('Team 8'!I73:I77) -> 0 | I136: =SUM('Team 8'!J73:J77) -> 0 | J136: =SUM('Team 8'!K73:K77) -> 0 | K136: =SUM('Team 8'!L73:L77) -> 0 | L136: =SUM('Team 8'!M73:M77) -> 0 | M136: =SUM('Team 8'!N73:N77) -> 0 | N136: =SUM('Team 8'!O73:O77) -> 0 | O136: =SUM('Team 8'!P73:P77) -> 0 | P136: =SUM('Team 8'!Q73:Q77) -> 0 | Q136: =SUM('Team 8'!R73:R77) -> 0 | S136: =SUM('Team 8'!T73:T77) -> 0 | T136: =SUM('Team 8'!U73:U77) -> 0 | U136: =SUM('Team 8'!V73:V77) -> 0 | W136: =IF(ISERROR(G136/D136),0,G136/D136) -> 0 | X136: =IF(ISERROR((4*J136+3*I136+2*H136+G136-SUM(H136:J136))/D136),0,(4*J136+3*I136+2*H136+G136-SUM(H136:J136))/D136) -> 0 | Y136: =W136+X136 -> 0 | Z136: =IF(ISERROR((G136+L136+M136)/(D136+L136+M136+Q136)),0,(G136+L136+M136)/(D136+L136+M136+Q136)) -> 0 | AA136: =Z136+X136 -> 0 | AC136: =IF(ISERROR((S136+T136)/(U136+S136+T136)),0,(S136+T136)/(U136+S136+T136)) -> 0
A137: ='Team 8'!A78 -> 816 | B137: =IF('Team 8'!B78="","",'Team 8'!B78) ->  | C137: =SUM('Team 8'!D78:D82) -> 0 | D137: =SUM('Team 8'!E78:E82) -> 0 | E137: =SUM('Team 8'!F78:F82) -> 0 | F137: =SUM('Team 8'!G78:G82) -> 0 | G137: =SUM('Team 8'!H78:H82) -> 0 | H137: =SUM('Team 8'!I78:I82) -> 0 | I137: =SUM('Team 8'!J78:J82) -> 0 | J137: =SUM('Team 8'!K78:K82) -> 0 | K137: =SUM('Team 8'!L78:L82) -> 0 | L137: =SUM('Team 8'!M78:M82) -> 0 | M137: =SUM('Team 8'!N78:N82) -> 0 | N137: =SUM('Team 8'!O78:O82) -> 0 | O137: =SUM('Team 8'!P78:P82) -> 0 | P137: =SUM('Team 8'!Q78:Q82) -> 0 | Q137: =SUM('Team 8'!R78:R82) -> 0 | S137: =SUM('Team 8'!T78:T82) -> 0 | T137: =SUM('Team 8'!U78:U82) -> 0 | U137: =SUM('Team 8'!V78:V82) -> 0 | W137: =IF(ISERROR(G137/D137),0,G137/D137) -> 0 | X137: =IF(ISERROR((4*J137+3*I137+2*H137+G137-SUM(H137:J137))/D137),0,(4*J137+3*I137+2*H137+G137-SUM(H137:J137))/D137) -> 0 | Y137: =W137+X137 -> 0 | Z137: =IF(ISERROR((G137+L137+M137)/(D137+L137+M137+Q137)),0,(G137+L137+M137)/(D137+L137+M137+Q137)) -> 0 | AA137: =Z137+X137 -> 0 | AC137: =IF(ISERROR((S137+T137)/(U137+S137+T137)),0,(S137+T137)/(U137+S137+T137)) -> 0
A138: ='Team 8'!A83 -> 817 | B138: =IF('Team 8'!B83="","",'Team 8'!B83) ->  | C138: =SUM('Team 8'!D83:D87) -> 0 | D138: =SUM('Team 8'!E83:E87) -> 0 | E138: =SUM('Team 8'!F83:F87) -> 0 | F138: =SUM('Team 8'!G83:G87) -> 0 | G138: =SUM('Team 8'!H83:H87) -> 0 | H138: =SUM('Team 8'!I83:I87) -> 0 | I138: =SUM('Team 8'!J83:J87) -> 0 | J138: =SUM('Team 8'!K83:K87) -> 0 | K138: =SUM('Team 8'!L83:L87) -> 0 | L138: =SUM('Team 8'!M83:M87) -> 0 | M138: =SUM('Team 8'!N83:N87) -> 0 | N138: =SUM('Team 8'!O83:O87) -> 0 | O138: =SUM('Team 8'!P83:P87) -> 0 | P138: =SUM('Team 8'!Q83:Q87) -> 0 | Q138: =SUM('Team 8'!R83:R87) -> 0 | S138: =SUM('Team 8'!T83:T87) -> 0 | T138: =SUM('Team 8'!U83:U87) -> 0 | U138: =SUM('Team 8'!V83:V87) -> 0 | W138: =IF(ISERROR(G138/D138),0,G138/D138) -> 0 | X138: =IF(ISERROR((4*J138+3*I138+2*H138+G138-SUM(H138:J138))/D138),0,(4*J138+3*I138+2*H138+G138-SUM(H138:J138))/D138) -> 0 | Y138: =W138+X138 -> 0 | Z138: =IF(ISERROR((G138+L138+M138)/(D138+L138+M138+Q138)),0,(G138+L138+M138)/(D138+L138+M138+Q138)) -> 0 | AA138: =Z138+X138 -> 0 | AC138: =IF(ISERROR((S138+T138)/(U138+S138+T138)),0,(S138+T138)/(U138+S138+T138)) -> 0

Sheet Pitching
A1: ID | B1: Spieler | C1: Gegner | D1: IP | E1: BF | F1: AB | G1: R | H1: ER | I1: H | J1: 2B | K1: 3B | L1: HR | M1: K | N1: BB | O1: HP | P1: SH | Q1: SF | R1: WP | S1: BK | T1: W | U1: L | V1: S
A2: 1 | B2: Bertonasco | C2: Wesseling | D2: 2 | E2: 20 | F2: 10 | G2: 12 | H2: 1 | I2: 1 | M2: 1 | N2: 10 | R2: 2 | U2: 1
A7: 10 | B7: Hermann | C7: Wesseling | D7: 1 | E7: 8 | F7: 2 | G7: 3 | H7: 3 | N7: 5 | O7: 1
A12: 24 | B12: Dickmeiss | C12: Hamburg | D12: 3 | E12: 9 | F12: 9 | M12: 6 | T12: 1
C13: Haar | D13: 5 | E13: 20 | F13: 20 | G13: 2 | H13: 2 | I13: 3 | J13: 2 | M13: 6 | T13: 1
C14: Freising | D14: 5 | E14: 31 | F14: 27 | G14: 10 | H14: 6 | I14: 10 | J14: 2 | K14: 1 | M14: 8 | N14: 4 | R14: 1 | U14: 1
C15: Haar | D15: 7 | E15: 36 | F15: 33 | G15: 7 | H15: 6 | I15: 12 | J15: 1 | L15: 2 | M15: 11 | N15: 3 | R15: 1 | U15: 1
A17: 32 | B17: Biswas, T. | C17: Karlsruhe | D17: 5 | E17: 27 | F17: 23 | G17: 7 | H17: 2 | I17: 7 | J17: 1 | M17: 5 | N17: 3 | O17: 1 | T17: 1
A22: 59 | B22: Reibenspies | C22: Freising | D22: 0 | E22: 7 | F22: 4 | G22: 7 | H22: 6 | I22: 3 | J22: 1 | N22: 3 | R22: 2 | U22: 1
C23: Neunkirchen | D23: 3,33 | E23: 14 | F23: 12 | G23: 2 | H23: 2 | I23: 2 | K23: 1 | M23: 5 | N23: 2 | T23: 1
C24: Haar | D24: 4 | E24: 20 | F24: 18 | G24: 3 | H24: 3 | I24: 7 | K24: 1 | N24: 1 | P24: 1 | R24: 1
A27: 57 | B27: Weil | C27: Freising | D27: 0.33 | E27: 5 | F27: 3 | G27: 4 | H27: 3 | I27: 2 | N27: 2 | R27: 1
C28: Neunkirchen | D28: 0.66 | E28: 6 | F28: 1 | G28: 3 | H28: 2 | I28: 1 | N28: 4 | Q28: 1 | R28: 1
C29: Haar | D29: 2 | E29: 12 | F29: 8 | G29: 3 | H29: 2 | M29: 2 | N29: 4 | R29: 3
A32: 65 | B32: Rauprich | C32: Freising | D32: 3.66 | E32: 22 | F32: 13 | G32: 5 | H32: 4 | I32: 4 | J32: 1 | N32: 7 | Q32: 2 | R32: 3
C33: Haar | D33: 0 | E33: 3 | F33: 2 | G33: 3 | H33: 2 | I33: 2 | J33: 1 | N33: 1 | U33: 1
A37: 70 | B37: Parpart | C37: Karlsruhe | D37: 3,33 | E37: 32 | F37: 24 | G37: 15 | H37: 10 | I37: 11 | J37: 3 | M37: 3 | N37: 8 | R37: 1 | U37: 1
C38: Hamburg | D38: 1 | E38: 11 | F38: 10 | G38: 3 | H38: 1 | I38: 4 | N38: 1 | T38: 1
A42: 50 | B42: Reinisch, Sophie | C42: Hamburg | D42: 4 | E42: 18 | F42: 16 | G42: 4 | H42: 4 | I42: 4 | J42: 1 | K42: 1 | M42: 2 | N42: 2 | R42: 2 | T42: 1
C43: Karlsruhe | D43: 1.33 | E43: 9 | F43: 8 | G43: 2 | H43: 2 | I43: 4 | M43: 1 | N43: 1
C44: Wesseling | D44: 7 | E44: 25 | F44: 24 | G44: 2 | H44: 2 | I44: 2 | J44: 1 | M44: 7 | N44: 1 | T44: 1
C45: freising | D45: 5.33 | E45: 28 | F45: 19 | G45: 9 | H45: 4 | I45: 7 | J45: 3 | N45: 4 | P45: 4 | Q45: 1 | R45: 1 | U45: 1
A47: 13 | B47: Heiland | C47: Haar | D47: 0.33 | E47: 10 | F47: 4 | G47: 9 | H47: 8 | I47: 4 | K47: 1 | N47: 6 | R47: 3 | U47: 1
A52: 19 | B52: Ottenberg | C52: Haar | D52: 3 | E52: 25 | F52: 17 | G52: 12 | H52: 8 | I52: 4 | K52: 1 | M52: 2 | N52: 7 | O52: 1 | R52: 2
A57: 11 | B57: Fluegge | C57: Haar | D57: 0.66 | E57: 1 | F57: 1 | R57: 1
A62: 51 | B62: Raziorrouh | C62: Wesseling | D62: 5 | E62: 35 | F62: 21 | G62: 13 | H62: 9 | I62: 8 | J62: 3 | M62: 1 | N62: 9 | P62: 5 | U62: 1
C63: Karlsruhe | D63: 3.66 | E63: 18 | F63: 11 | G63: 4 | H63: 4 | I63: 3 | J63: 2 | N63: 5 | O63: 1 | Q63: 1 | R63: 1 | T63: 1
A67: 38 | B67: Biswas, L. | C67: Neunkirchen | D67: 2 | E67: 13 | F67: 4 | G67: 2 | H67: 2 | M67: 1 | N67: 9 | R67: 7 | T67: 1
A72: 41 | B72: Thürmer | C72: Neunkirchen | D72: 2 | E72: 10 | F72: 8 | G72: 2 | H72: 2 | I72: 2 | J72: 1 | M72: 1 | N72: 2
A77: 72 | B77: Singer | C77: Freising | D77: 4 | E77: 35 | F77: 28 | G77: 19 | H77: 13 | I77: 12 | J77: 3 | K77: 3 | M77: 3 | N77: 5 | O77: 2 | R77: 3 | U77: 1
C78: Hamburg | D78: 3 | E78: 21 | F78: 15 | G78: 8 | H78: 2 | I78: 3 | J78: 1 | M78: 5 | N78: 4 | O78: 2
A82: 35 | B82: Sandner | C82: Wesseling | D82: 5 | E82: 16 | F82: 16 | I82: 1 | M82: 7 | T82: 1
C83: Haar | D83: 6 | E83: 29 | F83: 22 | G83: 2 | H83: 1 | I83: 4 | M83: 5 | N83: 5 | O83: 2 | T83: 1
A87: 43 | B87: Stepniak | C87: Karlsruhe | D87: 2 | E87: 11 | F87: 7 | G87: 1 | H87: 1 | I87: 1 | M87: 4 | N87: 2 | O87: 2 | R87: 5 | V87: 1
C88: Freising | D88: 0.33 | E88: 2 | F88: 2 | M88: 1 | N88: 1 | R88: 2
B92: Rackwitz | C92: Neunkirchen | D92: 2 | E92: 12 | F92: 6 | G92: 4 | H92: 4 | I92: 1 | M92: 1 | N92: 5 | Q92: 1 | R92: 2
B97: Ernst | C97: Neunkirchen | D97: 2 | E97: 18 | F97: 9 | G97: 10 | H97: 4 | I97: 3 | N97: 8 | P97: 1 | U97: 1

Sheet Pitching Leaders
C1: Pitching | W1: Pitching Percentage
A2: ID | B2: Spieler | C2: IP | D2: BF | E2: AB | F2: R | G2: ER | H2: H | I2: 2B | J2: 3B | K2: HR | L2: K | M2: BB | N2: HP | O2: SH | P2: SF | Q2: WP | R2: BK | S2: W | T2: L | U2: S | W2: ERA | X2: K/IP | Y2: WHIP | Z2: OAVG
A3: =Pitching!A82 -> 35 | B3: =IF(Pitching!B82="","",Pitching!B82) -> Sandner | C3: =SUM(Pitching!D82:D86) -> 11 | D3: =SUM(Pitching!E82:E86) -> 45 | E3: =SUM(Pitching!F82:F86) -> 38 | F3: =SUM(Pitching!G82:G86) -> 2 | G3: =SUM(Pitching!H82:H86) -> 1 | H3: =SUM(Pitching!I82:I86) -> 5 | I3: =SUM(Pitching!J82:J86) -> 0 | J3: =SUM(Pitching!K82:K86) -> 0 | K3: =SUM(Pitching!L82:L86) -> 0 | L3: =SUM(Pitching!M82:M86) -> 12 | M3: =SUM(Pitching!N82:N86) -> 5 | N3: =SUM(Pitching!O82:O86) -> 2 | O3: =SUM(Pitching!P82:P86) -> 0 | P3: =SUM(Pitching!Q82:Q86) -> 0 | Q3: =SUM(Pitching!R82:R86) -> 0 | R3: =SUM(Pitching!S82:S86) -> 0 | S3: =COUNTA(Pitching!T82:T86) -> 2 | T3: =COUNTA(Pitching!U82:U86) -> 0 | U3: =COUNTA(Pitching!V82:V86) -> 0 | W3: =IF(ISERROR(7*G3/C3),"-",7*G3/C3) -> 0.6363636364 | X3: =IF(ISERROR(L3/C3),0,L3/C3) -> 1.090909091 | Y3: =IF(ISERROR((M3+H3)/C3),"-",(M3+H3)/C3) -> 0.9090909091 | Z3: =IF(ISERROR(H3/E3),"-",(H3/E3)) -> 0.1315789474
A4: =Pitching!A57 -> 11 | B4: =IF(Pitching!B57="","",Pitching!B57) -> Fluegge | C4: =SUM(Pitching!D57:D61) -> 0.66 | D4: =SUM(Pitching!E57:E61) -> 1 | E4: =SUM(Pitching!F57:F61) -> 1 | F4: =SUM(Pitching!G57:G61) -> 0 | G4: =SUM(Pitching!H57:H61) -> 0 | H4: =SUM(Pitching!I57:I61) -> 0 | I4: =SUM(Pitching!J57:J61) -> 0 | J4: =SUM(Pitching!K57:K61) -> 0 | K4: =SUM(Pitching!L57:L61) -> 0 | L4: =SUM(Pitching!M57:M61) -> 0 | M4: =SUM(Pitching!N57:N61) -> 0 | N4: =SUM(Pitching!O57:O61) -> 0 | O4: =SUM(Pitching!P57:P61) -> 0 | P4: =SUM(Pitching!Q57:Q61) -> 0 | Q4: =SUM(Pitching!R57:R61) -> 1 | R4: =SUM(Pitching!S57:S61) -> 0 | S4: =COUNTA(Pitching!T57:T61) -> 0 | T4: =COUNTA(Pitching!U57:U61) -> 0 | U4: =COUNTA(Pitching!V57:V61) -> 0 | W4: =IF(ISERROR(7*G4/C4),"-",7*G4/C4) -> 0 | X4: =IF(ISERROR(L4/C4),0,L4/C4) -> 0 | Y4: =IF(ISERROR((M4+H4)/C4),"-",(M4+H4)/C4) -> 0 | Z4: =IF(ISERROR(H4/E4),"-",(H4/E4)) -> 0
A5: =Pitching!A17 -> 32 | B5: =IF(Pitching!B17="","",Pitching!B17) -> Biswas, T. | C5: =SUM(Pitching!D17:D21) -> 5 | D5: =SUM(Pitching!E17:E21) -> 27 | E5: =SUM(Pitching!F17:F21) -> 23 | F5: =SUM(Pitching!G17:G21) -> 7 | G5: =SUM(Pitching!H17:H21) -> 2 | H5: =SUM(Pitching!I17:I21) -> 7 | I5: =SUM(Pitching!J17:J21) -> 1 | J5: =SUM(Pitching!K17:K21) -> 0 | K5: =SUM(Pitching!L17:L21) -> 0 | L5: =SUM(Pitching!M17:M21) -> 5 | M5: =SUM(Pitching!N17:N21) -> 3 | N5: =SUM(Pitching!O17:O21) -> 1 | O5: =SUM(Pitching!P17:P21) -> 0 | P5: =SUM(Pitching!Q17:Q21) -> 0 | Q5: =SUM(Pitching!R17:R21) -> 0 | R5: =SUM(Pitching!S17:S21) -> 0 | S5: =COUNTA(Pitching!T17:T21) -> 1 | T5: =COUNTA(Pitching!U17:U21) -> 0 | U5: =COUNTA(Pitching!V17:V21) -> 0 | W5: =IF(ISERROR(7*G5/C5),"-",7*G5/C5) -> 2.8 | X5: =IF(ISERROR(L5/C5),0,L5/C5) -> 1 | Y5: =IF(ISERROR((M5+H5)/C5),"-",(M5+H5)/C5) -> 2 | Z5: =IF(ISERROR(H5/E5),"-",(H5/E5)) -> 0.3043478261
A6: =Pitching!A2 -> 1 | B6: =IF(Pitching!B2="","",Pitching!B2) -> Bertonasco | C6: =SUM(Pitching!D2:D6) -> 2 | D6: =SUM(Pitching!E2:E6) -> 20 | E6: =SUM(Pitching!F2:F6) -> 10 | F6: =SUM(Pitching!G2:G6) -> 12 | G6: =SUM(Pitching!H2:H6) -> 1 | H6: =SUM(Pitching!I2:I6) -> 1 | I6: =SUM(Pitching!J2:J6) -> 0 | J6: =SUM(Pitching!K2:K6) -> 0 | K6: =SUM(Pitching!L2:L6) -> 0 | L6: =SUM(Pitching!M2:M6) -> 1 | M6: =SUM(Pitching!N2:N6) -> 10 | N6: =SUM(Pitching!O2:O6) -> 0 | O6: =SUM(Pitching!P2:P6) -> 0 | P6: =SUM(Pitching!Q2:Q6) -> 0 | Q6: =SUM(Pitching!R2:R6) -> 2 | R6: =SUM(Pitching!S2:S6) -> 0 | S6: =COUNTA(Pitching!T2:T6) -> 0 | T6: =COUNTA(Pitching!U2:U6) -> 1 | U6: =COUNTA(Pitching!V2:V6) -> 0 | W6: =IF(ISERROR(7*G6/C6),"-",7*G6/C6) -> 3.5 | X6: =IF(ISERROR(L6/C6),0,L6/C6) -> 0.5 | Y6: =IF(ISERROR((M6+H6)/C6),"-",(M6+H6)/C6) -> 5.5 | Z6: =IF(ISERROR(H6/E6),"-",(H6/E6)) -> 0.1
A7: =Pitching!A87 -> 43 | B7: =IF(Pitching!B87="","",Pitching!B87) -> Stepniak | C7: =SUM(Pitching!D87:D91) -> 2.33 | D7: =SUM(Pitching!E87:E91) -> 13 | E7: =SUM(Pitching!F87:F91) -> 9 | F7: =SUM(Pitching!G87:G91) -> 1 | G7: =SUM(Pitching!H87:H91) -> 1 | H7: =SUM(Pitching!I87:I91) -> 1 | I7: =SUM(Pitching!J87:J91) -> 0 | J7: =SUM(Pitching!K87:K91) -> 0 | K7: =SUM(Pitching!L87:L91) -> 0 | L7: =SUM(Pitching!M87:M91) -> 5 | M7: =SUM(Pitching!N87:N91) -> 3 | N7: =SUM(Pitching!O87:O91) -> 2 | O7: =SUM(Pitching!P87:P91) -> 0 | P7: =SUM(Pitching!Q87:Q91) -> 0 | Q7: =SUM(Pitching!R87:R91) -> 7 | R7: =SUM(Pitching!S87:S91) -> 0 | S7: =COUNTA(Pitching!T87:T91) -> 0 | T7: =COUNTA(Pitching!U87:U91) -> 0 | U7: =COUNTA(Pitching!V87:V91) -> 1 | W7: =IF(ISERROR(7*G7/C7),"-",7*G7/C7) -> 3.004291845 | X7: =IF(ISERROR(L7/C7),0,L7/C7) -> 2.145922747 | Y7: =IF(ISERROR((M7+H7)/C7),"-",(M7+H7)/C7) -> 1.716738197 | Z7: =IF(ISERROR(H7/E7),"-",(H7/E7)) -> 0.1111111111
A8: =Pitching!A42 -> 50 | B8: =IF(Pitching!B42="","",Pitching!B42) -> Reinisch, Sophie | C8: =SUM(Pitching!D42:D46) -> 17.66 | D8: =SUM(Pitching!E42:E46) -> 80 | E8: =SUM(Pitching!F42:F46) -> 67 | F8: =SUM(Pitching!G42:G46) -> 17 | G8: =SUM(Pitching!H42:H46) -> 12 | H8: =SUM(Pitching!I42:I46) -> 17 | I8: =SUM(Pitching!J42:J46) -> 5 | J8: =SUM(Pitching!K42:K46) -> 1 | K8: =SUM(Pitching!L42:L46) -> 0 | L8: =SUM(Pitching!M42:M46) -> 10 | M8: =SUM(Pitching!N42:N46) -> 8 | N8: =SUM(Pitching!O42:O46) -> 0 | O8: =SUM(Pitching!P42:P46) -> 4 | P8: =SUM(Pitching!Q42:Q46) -> 1 | Q8: =SUM(Pitching!R42:R46) -> 3 | R8: =SUM(Pitching!S42:S46) -> 0 | S8: =COUNTA(Pitching!T42:T46) -> 2 | T8: =COUNTA(Pitching!U42:U46) -> 1 | U8: =COUNTA(Pitching!V42:V46) -> 0 | W8: =IF(ISERROR(7*G8/C8),"-",7*G8/C8) -> 4.756511891 | X8: =IF(ISERROR(L8/C8),0,L8/C8) -> 0.5662514156 | Y8: =IF(ISERROR((M8+H8)/C8),"-",(M8+H8)/C8) -> 1.415628539 | Z8: =IF(ISERROR(H8/E8),"-",(H8/E8)) -> 0.2537313433
A9: =Pitching!A12 -> 24 | B9: =IF(Pitching!B12="","",Pitching!B12) -> Dickmeiss | C9: =SUM(Pitching!D12:D16) -> 20 | D9: =SUM(Pitching!E12:E16) -> 96 | E9: =SUM(Pitching!F12:F16) -> 89 | F9: =SUM(Pitching!G12:G16) -> 19 | G9: =SUM(Pitching!H12:H16) -> 14 | H9: =SUM(Pitching!I12:I16) -> 25 | I9: =SUM(Pitching!J12:J16) -> 5 | J9: =SUM(Pitching!K12:K16) -> 1 | K9: =SUM(Pitching!L12:L16) -> 2 | L9: =SUM(Pitching!M12:M16) -> 31 | M9: =SUM(Pitching!N12:N16) -> 7 | N9: =SUM(Pitching!O12:O16) -> 0 | O9: =SUM(Pitching!P12:P16) -> 0 | P9: =SUM(Pitching!Q12:Q16) -> 0 | Q9: =SUM(Pitching!R12:R16) -> 2 | R9: =SUM(Pitching!S12:S16) -> 0 | S9: =COUNTA(Pitching!T12:T16) -> 2 | T9: =COUNTA(Pitching!U12:U16) -> 2 | U9: =COUNTA(Pitching!V12:V16) -> 0 | W9: =IF(ISERROR(7*G9/C9),"-",7*G9/C9) -> 4.9 | X9: =IF(ISERROR(L9/C9),0,L9/C9) -> 1.55 | Y9: =IF(ISERROR((M9+H9)/C9),"-",(M9+H9)/C9) -> 1.6 | Z9: =IF(ISERROR(H9/E9),"-",(H9/E9)) -> 0.2808988764
A10: =Pitching!A67 -> 38 | B10: =IF(Pitching!B67="","",Pitching!B67) -> Biswas, L. | C10: =SUM(Pitching!D67:D71) -> 2 | D10: =SUM(Pitching!E67:E71) -> 13 | E10: =SUM(Pitching!F67:F71) -> 4 | F10: =SUM(Pitching!G67:G71) -> 2 | G10: =SUM(Pitching!H67:H71) -> 2 | H10: =SUM(Pitching!I67:I71) -> 0 | I10: =SUM(Pitching!J67:J71) -> 0 | J10: =SUM(Pitching!K67:K71) -> 0 | K10: =SUM(Pitching!L67:L71) -> 0 | L10: =SUM(Pitching!M67:M71) -> 1 | M10: =SUM(Pitching!N67:N71) -> 9 | N10: =SUM(Pitching!O67:O71) -> 0 | O10: =SUM(Pitching!P67:P71) -> 0 | P10: =SUM(Pitching!Q67:Q71) -> 0 | Q10: =SUM(Pitching!R67:R71) -> 7 | R10: =SUM(Pitching!S67:S71) -> 0 | S10: =COUNTA(Pitching!T67:T71) -> 1 | T10: =COUNTA(Pitching!U67:U71) -> 0 | U10: =COUNTA(Pitching!V67:V71) -> 0 | W10: =IF(ISERROR(7*G10/C10),"-",7*G10/C10) -> 7 | X10: =IF(ISERROR(L10/C10),0,L10/C10) -> 0.5 | Y10: =IF(ISERROR((M10+H10)/C10),"-",(M10+H10)/C10) -> 4.5 | Z10: =IF(ISERROR(H10/E10),"-",(H10/E10)) -> 0
A11: =Pitching!A72 -> 41 | B11: =IF(Pitching!B72="","",Pitching!B72) -> Thürmer | C11: =SUM(Pitching!D72:D76) -> 2 | D11: =SUM(Pitching!E72:E76) -> 10 | E11: =SUM(Pitching!F72:F76) -> 8 | F11: =SUM(Pitching!G72:G76) -> 2 | G11: =SUM(Pitching!H72:H76) -> 2 | H11: =SUM(Pitching!I72:I76) -> 2 | I11: =SUM(Pitching!J72:J76) -> 1 | J11: =SUM(Pitching!K72:K76) -> 0 | K11: =SUM(Pitching!L72:L76) -> 0 | L11: =SUM(Pitching!M72:M76) -> 1 | M11: =SUM(Pitching!N72:N76) -> 2 | N11: =SUM(Pitching!O72:O76) -> 0 | O11: =SUM(Pitching!P72:P76) -> 0 | P11: =SUM(Pitching!Q72:Q76) -> 0 | Q11: =SUM(Pitching!R72:R76) -> 0 | R11: =SUM(Pitching!S72:S76) -> 0 | S11: =COUNTA(Pitching!T72:T76) -> 0 | T11: =COUNTA(Pitching!U72:U76) -> 0 | U11: =COUNTA(Pitching!V72:V76) -> 0 | W11: =IF(ISERROR(7*G11/C11),"-",7*G11/C11) -> 7 | X11: =IF(ISERROR(L11/C11),0,L11/C11) -> 0.5 | Y11: =IF(ISERROR((M11+H11)/C11),"-",(M11+H11)/C11) -> 2 | Z11: =IF(ISERROR(H11/E11),"-",(H11/E11)) -> 0.25
A12: =Pitching!A62 -> 51 | B12: =IF(Pitching!B62="","",Pitching!B62) -> Raziorrouh | C12: =SUM(Pitching!D62:D66) -> 8.66 | D12: =SUM(Pitching!E62:E66) -> 53 | E12: =SUM(Pitching!F62:F66) -> 32 | F12: =SUM(Pitching!G62:G66) -> 17 | G12: =SUM(Pitching!H62:H66) -> 13 | H12: =SUM(Pitching!I62:I66) -> 11 | I12: =SUM(Pitching!J62:J66) -> 5 | J12: =SUM(Pitching!K62:K66) -> 0 | K12: =SUM(Pitching!L62:L66) -> 0 | L12: =SUM(Pitching!M62:M66) -> 1 | M12: =SUM(Pitching!N62:N66) -> 14 | N12: =SUM(Pitching!O62:O66) -> 1 | O12: =SUM(Pitching!P62:P66) -> 5 | P12: =SUM(Pitching!Q62:Q66) -> 1 | Q12: =SUM(Pitching!R62:R66) -> 1 | R12: =SUM(Pitching!S62:S66) -> 0 | S12: =COUNTA(Pitching!T62:T66) -> 1 | T12: =COUNTA(Pitching!U62:U66) -> 1 | U12: =COUNTA(Pitching!V62:V66) -> 0 | W12: =IF(ISERROR(7*G12/C12),"-",7*G12/C12) -> 10.50808314 | X12: =IF(ISERROR(L12/C12),0,L12/C12) -> 0.1154734411 | Y12: =IF(ISERROR((M12+H12)/C12),"-",(M12+H12)/C12) -> 2.886836028 | Z12: =IF(ISERROR(H12/E12),"-",(H12/E12)) -> 0.34375
A13: =Pitching!A32 -> 65 | B13: =IF(Pitching!B32="","",Pitching!B32) -> Rauprich | C13: =SUM(Pitching!D32:D36) -> 3.66 | D13: =SUM(Pitching!E32:E36) -> 25 | E13: =SUM(Pitching!F32:F36) -> 15 | F13: =SUM(Pitching!G32:G36) -> 8 | G13: =SUM(Pitching!H32:H36) -> 6 | H13: =SUM(Pitching!I32:I36) -> 6 | I13: =SUM(Pitching!J32:J36) -> 2 | J13: =SUM(Pitching!K32:K36) -> 0 | K13: =SUM(Pitching!L32:L36) -> 0 | L13: =SUM(Pitching!M32:M36) -> 0 | M13: =SUM(Pitching!N32:N36) -> 8 | N13: =SUM(Pitching!O32:O36) -> 0 | O13: =SUM(Pitching!P32:P36) -> 0 | P13: =SUM(Pitching!Q32:Q36) -> 2 | Q13: =SUM(Pitching!R32:R36) -> 3 | R13: =SUM(Pitching!S32:S36) -> 0 | S13: =COUNTA(Pitching!T32:T36) -> 0 | T13: =COUNTA(Pitching!U32:U36) -> 1 | U13: =COUNTA(Pitching!V32:V36) -> 0 | W13: =IF(ISERROR(7*G13/C13),"-",7*G13/C13) -> 11.47540984 | X13: =IF(ISERROR(L13/C13),0,L13/C13) -> 0 | Y13: =IF(ISERROR((M13+H13)/C13),"-",(M13+H13)/C13) -> 3.825136612 | Z13: =IF(ISERROR(H13/E13),"-",(H13/E13)) -> 0.4
A14: =Pitching!A92 -> 0 | B14: =IF(Pitching!B92="","",Pitching!B92) -> Rackwitz | C14: =SUM(Pitching!D92:D96) -> 2 | D14: =SUM(Pitching!E92:E96) -> 12 | E14: =SUM(Pitching!F92:F96) -> 6 | F14: =SUM(Pitching!G92:G96) -> 4 | G14: =SUM(Pitching!H92:H96) -> 4 | H14: =SUM(Pitching!I92:I96) -> 1 | I14: =SUM(Pitching!J92:J96) -> 0 | J14: =SUM(Pitching!K92:K96) -> 0 | K14: =SUM(Pitching!L92:L96) -> 0 | L14: =SUM(Pitching!M92:M96) -> 1 | M14: =SUM(Pitching!N92:N96) -> 5 | N14: =SUM(Pitching!O92:O96) -> 0 | O14: =SUM(Pitching!P92:P96) -> 0 | P14: =SUM(Pitching!Q92:Q96) -> 1 | Q14: =SUM(Pitching!R92:R96) -> 2 | R14: =SUM(Pitching!S92:S96) -> 0 | S14: =COUNTA(Pitching!T92:T96) -> 0 | T14: =COUNTA(Pitching!U92:U96) -> 0 | U14: =COUNTA(Pitching!V92:V96) -> 0 | W14: =IF(ISERROR(7*G14/C14),"-",7*G14/C14) -> 14 | X14: =IF(ISERROR(L14/C14),0,L14/C14) -> 0.5 | Y14: =IF(ISERROR((M14+H14)/C14),"-",(M14+H14)/C14) -> 3 | Z14: =IF(ISERROR(H14/E14),"-",(H14/E14)) -> 0.1666666667
A15: =Pitching!A97 -> 0 | B15: =IF(Pitching!B97="","",Pitching!B97) -> Ernst | C15: =SUM(Pitching!D97:D101) -> 2 | D15: =SUM(Pitching!E97:E101) -> 18 | E15: =SUM(Pitching!F97:F101) -> 9 | F15: =SUM(Pitching!G97:G101) -> 10 | G15: =SUM(Pitching!H97:H101) -> 4 | H15: =SUM(Pitching!I97:I101) -> 3 | I15: =SUM(Pitching!J97:J101) -> 0 | J15: =SUM(Pitching!K97:K101) -> 0 | K15: =SUM(Pitching!L97:L101) -> 0 | L15: =SUM(Pitching!M97:M101) -> 0 | M15: =SUM(Pitching!N97:N101) -> 8 | N15: =SUM(Pitching!O97:O101) -> 0 | O15: =SUM(Pitching!P97:P101) -> 1 | P15: =SUM(Pitching!Q97:Q101) -> 0 | Q15: =SUM(Pitching!R97:R101) -> 0 | R15: =SUM(Pitching!S97:S101) -> 0 | S15: =COUNTA(Pitching!T97:T101) -> 0 | T15: =COUNTA(Pitching!U97:U101) -> 1 | U15: =COUNTA(Pitching!V97:V101) -> 0 | W15: =IF(ISERROR(7*G15/C15),"-",7*G15/C15) -> 14 | X15: =IF(ISERROR(L15/C15),0,L15/C15) -> 0 | Y15: =IF(ISERROR((M15+H15)/C15),"-",(M15+H15)/C15) -> 5.5 | Z15: =IF(ISERROR(H15/E15),"-",(H15/E15)) -> 0.3333333333
A16: =Pitching!A77 -> 72 | B16: =IF(Pitching!B77="","",Pitching!B77) -> Singer | C16: =SUM(Pitching!D77:D81) -> 7 | D16: =SUM(Pitching!E77:E81) -> 56 | E16: =SUM(Pitching!F77:F81) -> 43 | F16: =SUM(Pitching!G77:G81) -> 27 | G16: =SUM(Pitching!H77:H81) -> 15 | H16: =SUM(Pitching!I77:I81) -> 15 | I16: =SUM(Pitching!J77:J81) -> 4 | J16: =SUM(Pitching!K77:K81) -> 3 | K16: =SUM(Pitching!L77:L81) -> 0 | L16: =SUM(Pitching!M77:M81) -> 8 | M16: =SUM(Pitching!N77:N81) -> 9 | N16: =SUM(Pitching!O77:O81) -> 4 | O16: =SUM(Pitching!P77:P81) -> 0 | P16: =SUM(Pitching!Q77:Q81) -> 0 | Q16: =SUM(Pitching!R77:R81) -> 3 | R16: =SUM(Pitching!S77:S81) -> 0 | S16: =COUNTA(Pitching!T77:T81) -> 0 | T16: =COUNTA(Pitching!U77:U81) -> 1 | U16: =COUNTA(Pitching!V77:V81) -> 0 | W16: =IF(ISERROR(7*G16/C16),"-",7*G16/C16) -> 15 | X16: =IF(ISERROR(L16/C16),0,L16/C16) -> 1.142857143 | Y16: =IF(ISERROR((M16+H16)/C16),"-",(M16+H16)/C16) -> 3.428571429 | Z16: =IF(ISERROR(H16/E16),"-",(H16/E16)) -> 0.3488372093
A17: =Pitching!A27 -> 57 | B17: =IF(Pitching!B27="","",Pitching!B27) -> Weil | C17: =SUM(Pitching!D27:D31) -> 2.99 | D17: =SUM(Pitching!E27:E31) -> 23 | E17: =SUM(Pitching!F27:F31) -> 12 | F17: =SUM(Pitching!G27:G31) -> 10 | G17: =SUM(Pitching!H27:H31) -> 7 | H17: =SUM(Pitching!I27:I31) -> 3 | I17: =SUM(Pitching!J27:J31) -> 0 | J17: =SUM(Pitching!K27:K31) -> 0 | K17: =SUM(Pitching!L27:L31) -> 0 | L17: =SUM(Pitching!M27:M31) -> 2 | M17: =SUM(Pitching!N27:N31) -> 10 | N17: =SUM(Pitching!O27:O31) -> 0 | O17: =SUM(Pitching!P27:P31) -> 0 | P17: =SUM(Pitching!Q27:Q31) -> 1 | Q17: =SUM(Pitching!R27:R31) -> 5 | R17: =SUM(Pitching!S27:S31) -> 0 | S17: =COUNTA(Pitching!T27:T31) -> 0 | T17: =COUNTA(Pitching!U27:U31) -> 0 | U17: =COUNTA(Pitching!V27:V31) -> 0 | W17: =IF(ISERROR(7*G17/C17),"-",7*G17/C17) -> 16.38795987 | X17: =IF(ISERROR(L17/C17),0,L17/C17) -> 0.6688963211 | Y17: =IF(ISERROR((M17+H17)/C17),"-",(M17+H17)/C17) -> 4.347826087 | Z17: =IF(ISERROR(H17/E17),"-",(H17/E17)) -> 0.25
A18: =Pitching!A52 -> 19 | B18: =IF(Pitching!B52="","",Pitching!B52) -> Ottenberg | C18: =SUM(Pitching!D52:D56) -> 3 | D18: =SUM(Pitching!E52:E56) -> 25 | E18: =SUM(Pitching!F52:F56) -> 17 | F18: =SUM(Pitching!G52:G56) -> 12 | G18: =SUM(Pitching!H52:H56) -> 8 | H18: =SUM(Pitching!I52:I56) -> 4 | I18: =SUM(Pitching!J52:J56) -> 0 | J18: =SUM(Pitching!K52:K56) -> 1 | K18: =SUM(Pitching!L52:L56) -> 0 | L18: =SUM(Pitching!M52:M56) -> 2 | M18: =SUM(Pitching!N52:N56) -> 7 | N18: =SUM(Pitching!O52:O56) -> 1 | O18: =SUM(Pitching!P52:P56) -> 0 | P18: =SUM(Pitching!Q52:Q56) -> 0 | Q18: =SUM(Pitching!R52:R56) -> 2 | R18: =SUM(Pitching!S52:S56) -> 0 | S18: =COUNTA(Pitching!T52:T56) -> 0 | T18: =COUNTA(Pitching!U52:U56) -> 0 | U18: =COUNTA(Pitching!V52:V56) -> 0 | W18: =IF(ISERROR(7*G18/C18),"-",7*G18/C18) -> 18.66666667 | X18: =IF(ISERROR(L18/C18),0,L18/C18) -> 0.6666666667 | Y18: =IF(ISERROR((M18+H18)/C18),"-",(M18+H18)/C18) -> 3.666666667 | Z18: =IF(ISERROR(H18/E18),"-",(H18/E18)) -> 0.2352941176
A19: =Pitching!A22 -> 59 | B19: =IF(Pitching!B22="","",Pitching!B22) -> Reibenspies | C19: =SUM(Pitching!D22:D26) -> 4 | D19: =SUM(Pitching!E22:E26) -> 41 | E19: =SUM(Pitching!F22:F26) -> 34 | F19: =SUM(Pitching!G22:G26) -> 12 | G19: =SUM(Pitching!H22:H26) -> 11 | H19: =SUM(Pitching!I22:I26) -> 12 | I19: =SUM(Pitching!J22:J26) -> 1 | J19: =SUM(Pitching!K22:K26) -> 2 | K19: =SUM(Pitching!L22:L26) -> 0 | L19: =SUM(Pitching!M22:M26) -> 5 | M19: =SUM(Pitching!N22:N26) -> 6 | N19: =SUM(Pitching!O22:O26) -> 0 | O19: =SUM(Pitching!P22:P26) -> 1 | P19: =SUM(Pitching!Q22:Q26) -> 0 | Q19: =SUM(Pitching!R22:R26) -> 3 | R19: =SUM(Pitching!S22:S26) -> 0 | S19: =COUNTA(Pitching!T22:T26) -> 1 | T19: =COUNTA(Pitching!U22:U26) -> 1 | U19: =COUNTA(Pitching!V22:V26) -> 0 | W19: =IF(ISERROR(7*G19/C19),"-",7*G19/C19) -> 19.25 | X19: =IF(ISERROR(L19/C19),0,L19/C19) -> 1.25 | Y19: =IF(ISERROR((M19+H19)/C19),"-",(M19+H19)/C19) -> 4.5 | Z19: =IF(ISERROR(H19/E19),"-",(H19/E19)) -> 0.3529411765
A20: =Pitching!A7 -> 10 | B20: =IF(Pitching!B7="","",Pitching!B7) -> Hermann | C20: =SUM(Pitching!D7:D11) -> 1 | D20: =SUM(Pitching!E7:E11) -> 8 | E20: =SUM(Pitching!F7:F11) -> 2 | F20: =SUM(Pitching!G7:G11) -> 3 | G20: =SUM(Pitching!H7:H11) -> 3 | H20: =SUM(Pitching!I7:I11) -> 0 | I20: =SUM(Pitching!J7:J11) -> 0 | J20: =SUM(Pitching!K7:K11) -> 0 | K20: =SUM(Pitching!L7:L11) -> 0 | L20: =SUM(Pitching!M7:M11) -> 0 | M20: =SUM(Pitching!N7:N11) -> 5 | N20: =SUM(Pitching!O7:O11) -> 1 | O20: =SUM(Pitching!P7:P11) -> 0 | P20: =SUM(Pitching!Q7:Q11) -> 0 | Q20: =SUM(Pitching!R7:R11) -> 0 | R20: =SUM(Pitching!S7:S11) -> 0 | S20: =COUNTA(Pitching!T7:T11) -> 0 | T20: =COUNTA(Pitching!U7:U11) -> 0 | U20: =COUNTA(Pitching!V7:V11) -> 0 | W20: =IF(ISERROR(7*G20/C20),"-",7*G20/C20) -> 21 | X20: =IF(ISERROR(L20/C20),0,L20/C20) -> 0 | Y20: =IF(ISERROR((M20+H20)/C20),"-",(M20+H20)/C20) -> 5 | Z20: =IF(ISERROR(H20/E20),"-",(H20/E20)) -> 0
A21: =Pitching!A37 -> 70 | B21: =IF(Pitching!B37="","",Pitching!B37) -> Parpart | C21: =SUM(Pitching!D37:D41) -> 1 | D21: =SUM(Pitching!D37:D41) -> 1 | E21: =SUM(Pitching!E37:E41) -> 43 | F21: =SUM(Pitching!F37:F41) -> 34 | G21: =SUM(Pitching!G37:G41) -> 18 | H21: =SUM(Pitching!H37:H41) -> 11 | I21: =SUM(Pitching!I37:I41) -> 15 | J21: =SUM(Pitching!J37:J41) -> 3 | K21: =SUM(Pitching!K37:K41) -> 0 | L21: =SUM(Pitching!L37:L41) -> 0 | M21: =SUM(Pitching!M37:M41) -> 3 | N21: =SUM(Pitching!N37:N41) -> 9 | O21: =SUM(Pitching!O37:O41) -> 0 | P21: =SUM(Pitching!P37:P41) -> 0 | Q21: =SUM(Pitching!Q37:Q41) -> 0 | R21: =SUM(Pitching!R37:R41) -> 1 | S21: =COUNTA(Pitching!T37:T41) -> 1 | T21: =COUNTA(Pitching!U37:U41) -> 1 | U21: =COUNTA(Pitching!V37:V41) -> 0 | W21: =IF(ISERROR(7*G21/C21),"-",7*G21/C21) -> 126 | X21: =IF(ISERROR(L21/C21),0,L21/C21) -> 0 | Y21: =IF(ISERROR((M21+H21)/C21),"-",(M21+H21)/C21) -> 14 | Z21: =IF(ISERROR(H21/E21),"-",(H21/E21)) -> 0.2558139535
A22: =Pitching!A47 -> 13 | B22: =IF(Pitching!B47="","",Pitching!B47) -> Heiland | C22: =SUM(Pitching!D47:D51) -> 0.33 | D22: =SUM(Pitching!E47:E51) -> 10 | E22: =SUM(Pitching!F47:F51) -> 4 | F22: =SUM(Pitching!G47:G51) -> 9 | G22: =SUM(Pitching!H47:H51) -> 8 | H22: =SUM(Pitching!I47:I51) -> 4 | I22: =SUM(Pitching!J47:J51) -> 0 | J22: =SUM(Pitching!K47:K51) -> 1 | K22: =SUM(Pitching!L47:L51) -> 0 | L22: =SUM(Pitching!M47:M51) -> 0 | M22: =SUM(Pitching!N47:N51) -> 6 | N22: =SUM(Pitching!O47:O51) -> 0 | O22: =SUM(Pitching!P47:P51) -> 0 | P22: =SUM(Pitching!Q47:Q51) -> 0 | Q22: =SUM(Pitching!R47:R51) -> 3 | R22: =SUM(Pitching!S47:S51) -> 0 | S22: =COUNTA(Pitching!T47:T51) -> 0 | T22: =COUNTA(Pitching!U47:U51) -> 1 | U22: =COUNTA(Pitching!V47:V51) -> 0 | W22: =IF(ISERROR(7*G22/C22),"-",7*G22/C22) -> 169.6969697 | X22: =IF(ISERROR(L22/C22),0,L22/C22) -> 0 | Y22: =IF(ISERROR((M22+H22)/C22),"-",(M22+H22)/C22) -> 30.3030303 | Z22: =IF(ISERROR(H22/E22),"-",(H22/E22)) -> 1
A23: =Pitching!A102 -> 0 | B23: =IF(Pitching!B102="","",Pitching!B102) ->  | C23: =SUM(Pitching!D102:D106) -> 0 | D23: =SUM(Pitching!E102:E106) -> 0 | E23: =SUM(Pitching!F102:F106) -> 0 | F23: =SUM(Pitching!G102:G106) -> 0 | G23: =SUM(Pitching!H102:H106) -> 0 | H23: =SUM(Pitching!I102:I106) -> 0 | I23: =SUM(Pitching!J102:J106) -> 0 | J23: =SUM(Pitching!K102:K106) -> 0 | K23: =SUM(Pitching!L102:L106) -> 0 | L23: =SUM(Pitching!M102:M106) -> 0 | M23: =SUM(Pitching!N102:N106) -> 0 | N23: =SUM(Pitching!O102:O106) -> 0 | O23: =SUM(Pitching!P102:P106) -> 0 | P23: =SUM(Pitching!Q102:Q106) -> 0 | Q23: =SUM(Pitching!R102:R106) -> 0 | R23: =SUM(Pitching!S102:S106) -> 0 | S23: =COUNTA(Pitching!T102:T106) -> 0 | T23: =COUNTA(Pitching!U102:U106) -> 0 | U23: =COUNTA(Pitching!V102:V106) -> 0 | W23: =IF(ISERROR(7*G23/C23),"-",7*G23/C23) -> - | X23: =IF(ISERROR(L23/C23),0,L23/C23) -> 0 | Y23: =IF(ISERROR((M23+H23)/C23),"-",(M23+H23)/C23) -> - | Z23: =IF(ISERROR(H23/E23),"-",(H23/E23)) -> -
A24: =Pitching!A107 -> 0 | B24: =IF(Pitching!B107="","",Pitching!B107) ->  | C24: =SUM(Pitching!D107:D111) -> 0 | D24: =SUM(Pitching!E107:E111) -> 0 | E24: =SUM(Pitching!F107:F111) -> 0 | F24: =SUM(Pitching!G107:G111) -> 0 | G24: =SUM(Pitching!H107:H111) -> 0 | H24: =SUM(Pitching!I107:I111) -> 0 | I24: =SUM(Pitching!J107:J111) -> 0 | J24: =SUM(Pitching!K107:K111) -> 0 | K24: =SUM(Pitching!L107:L111) -> 0 | L24: =SUM(Pitching!M107:M111) -> 0 | M24: =SUM(Pitching!N107:N111) -> 0 | N24: =SUM(Pitching!O107:O111) -> 0 | O24: =SUM(Pitching!P107:P111) -> 0 | P24: =SUM(Pitching!Q107:Q111) -> 0 | Q24: =SUM(Pitching!R107:R111) -> 0 | R24: =SUM(Pitching!S107:S111) -> 0 | S24: =COUNTA(Pitching!T107:T111) -> 0 | T24: =COUNTA(Pitching!U107:U111) -> 0 | U24: =COUNTA(Pitching!V107:V111) -> 0 | W24: =IF(ISERROR(7*G24/C24),"-",7*G24/C24) -> - | X24: =IF(ISERROR(L24/C24),0,L24/C24) -> 0 | Y24: =IF(ISERROR((M24+H24)/C24),"-",(M24+H24)/C24) -> - | Z24: =IF(ISERROR(H24/E24),"-",(H24/E24)) -> -
A25: =Pitching!A112 -> 0 | B25: =IF(Pitching!B112="","",Pitching!B112) ->  | C25: =SUM(Pitching!D112:D116) -> 0 | D25: =SUM(Pitching!E112:E116) -> 0 | E25: =SUM(Pitching!F112:F116) -> 0 | F25: =SUM(Pitching!G112:G116) -> 0 | G25: =SUM(Pitching!H112:H116) -> 0 | H25: =SUM(Pitching!I112:I116) -> 0 | I25: =SUM(Pitching!J112:J116) -> 0 | J25: =SUM(Pitching!K112:K116) -> 0 | K25: =SUM(Pitching!L112:L116) -> 0 | L25: =SUM(Pitching!M112:M116) -> 0 | M25: =SUM(Pitching!N112:N116) -> 0 | N25: =SUM(Pitching!O112:O116) -> 0 | O25: =SUM(Pitching!P112:P116) -> 0 | P25: =SUM(Pitching!Q112:Q116) -> 0 | Q25: =SUM(Pitching!R112:R116) -> 0 | R25: =SUM(Pitching!S112:S116) -> 0 | S25: =COUNTA(Pitching!T112:T116) -> 0 | T25: =COUNTA(Pitching!U112:U116) -> 0 | U25: =COUNTA(Pitching!V112:V116) -> 0 | W25: =IF(ISERROR(7*G25/C25),"-",7*G25/C25) -> - | X25: =IF(ISERROR(L25/C25),0,L25/C25) -> 0 | Y25: =IF(ISERROR((M25+H25)/C25),"-",(M25+H25)/C25) -> - | Z25: =IF(ISERROR(H25/E25),"-",(H25/E25)) -> -
A26: =Pitching!A117 -> 0 | B26: =IF(Pitching!B117="","",Pitching!B117) ->  | C26: =SUM(Pitching!D117:D121) -> 0 | D26: =SUM(Pitching!E117:E121) -> 0 | E26: =SUM(Pitching!F117:F121) -> 0 | F26: =SUM(Pitching!G117:G121) -> 0 | G26: =SUM(Pitching!H117:H121) -> 0 | H26: =SUM(Pitching!I117:I121) -> 0 | I26: =SUM(Pitching!J117:J121) -> 0 | J26: =SUM(Pitching!K117:K121) -> 0 | K26: =SUM(Pitching!L117:L121) -> 0 | L26: =SUM(Pitching!M117:M121) -> 0 | M26: =SUM(Pitching!N117:N121) -> 0 | N26: =SUM(Pitching!O117:O121) -> 0 | O26: =SUM(Pitching!P117:P121) -> 0 | P26: =SUM(Pitching!Q117:Q121) -> 0 | Q26: =SUM(Pitching!R117:R121) -> 0 | R26: =SUM(Pitching!S117:S121) -> 0 | S26: =COUNTA(Pitching!T117:T121) -> 0 | T26: =COUNTA(Pitching!U117:U121) -> 0 | U26: =COUNTA(Pitching!V117:V121) -> 0 | W26: =IF(ISERROR(7*G26/C26),"-",7*G26/C26) -> - | X26: =IF(ISERROR(L26/C26),0,L26/C26) -> 0 | Y26: =IF(ISERROR((M26+H26)/C26),"-",(M26+H26)/C26) -> - | Z26: =IF(ISERROR(H26/E26),"-",(H26/E26)) -> -
A27: =Pitching!A122 -> 0 | B27: =IF(Pitching!B122="","",Pitching!B122) ->  | C27: =SUM(Pitching!D122:D126) -> 0 | D27: =SUM(Pitching!E122:E126) -> 0 | E27: =SUM(Pitching!F122:F126) -> 0 | F27: =SUM(Pitching!G122:G126) -> 0 | G27: =SUM(Pitching!H122:H126) -> 0 | H27: =SUM(Pitching!I122:I126) -> 0 | I27: =SUM(Pitching!J122:J126) -> 0 | J27: =SUM(Pitching!K122:K126) -> 0 | K27: =SUM(Pitching!L122:L126) -> 0 | L27: =SUM(Pitching!M122:M126) -> 0 | M27: =SUM(Pitching!N122:N126) -> 0 | N27: =SUM(Pitching!O122:O126) -> 0 | O27: =SUM(Pitching!P122:P126) -> 0 | P27: =SUM(Pitching!Q122:Q126) -> 0 | Q27: =SUM(Pitching!R122:R126) -> 0 | R27: =SUM(Pitching!S122:S126) -> 0 | S27: =COUNTA(Pitching!T122:T126) -> 0 | T27: =COUNTA(Pitching!U122:U126) -> 0 | U27: =COUNTA(Pitching!V122:V126) -> 0 | W27: =IF(ISERROR(7*G27/C27),"-",7*G27/C27) -> - | X27: =IF(ISERROR(L27/C27),0,L27/C27) -> 0 | Y27: =IF(ISERROR((M27+H27)/C27),"-",(M27+H27)/C27) -> - | Z27: =IF(ISERROR(H27/E27),"-",(H27/E27)) -> -
A28: =Pitching!A127 -> 0 | B28: =IF(Pitching!B127="","",Pitching!B127) ->  | C28: =SUM(Pitching!D127:D131) -> 0 | D28: =SUM(Pitching!E127:E131) -> 0 | E28: =SUM(Pitching!F127:F131) -> 0 | F28: =SUM(Pitching!G127:G131) -> 0 | G28: =SUM(Pitching!H127:H131) -> 0 | H28: =SUM(Pitching!I127:I131) -> 0 | I28: =SUM(Pitching!J127:J131) -> 0 | J28: =SUM(Pitching!K127:K131) -> 0 | K28: =SUM(Pitching!L127:L131) -> 0 | L28: =SUM(Pitching!M127:M131) -> 0 | M28: =SUM(Pitching!N127:N131) -> 0 | N28: =SUM(Pitching!O127:O131) -> 0 | O28: =SUM(Pitching!P127:P131) -> 0 | P28: =SUM(Pitching!Q127:Q131) -> 0 | Q28: =SUM(Pitching!R127:R131) -> 0 | R28: =SUM(Pitching!S127:S131) -> 0 | S28: =COUNTA(Pitching!T127:T131) -> 0 | T28: =COUNTA(Pitching!U127:U131) -> 0 | U28: =COUNTA(Pitching!V127:V131) -> 0 | W28: =IF(ISERROR(7*G28/C28),"-",7*G28/C28) -> - | X28: =IF(ISERROR(L28/C28),0,L28/C28) -> 0 | Y28: =IF(ISERROR((M28+H28)/C28),"-",(M28+H28)/C28) -> - | Z28: =IF(ISERROR(H28/E28),"-",(H28/E28)) -> -
A29: =Pitching!A132 -> 0 | B29: =IF(Pitching!B132="","",Pitching!B132) ->  | C29: =SUM(Pitching!D132:D136) -> 0 | D29: =SUM(Pitching!E132:E136) -> 0 | E29: =SUM(Pitching!F132:F136) -> 0 | F29: =SUM(Pitching!G132:G136) -> 0 | G29: =SUM(Pitching!H132:H136) -> 0 | H29: =SUM(Pitching!I132:I136) -> 0 | I29: =SUM(Pitching!J132:J136) -> 0 | J29: =SUM(Pitching!K132:K136) -> 0 | K29: =SUM(Pitching!L132:L136) -> 0 | L29: =SUM(Pitching!M132:M136) -> 0 | M29: =SUM(Pitching!N132:N136) -> 0 | N29: =SUM(Pitching!O132:O136) -> 0 | O29: =SUM(Pitching!P132:P136) -> 0 | P29: =SUM(Pitching!Q132:Q136) -> 0 | Q29: =SUM(Pitching!R132:R136) -> 0 | R29: =SUM(Pitching!S132:S136) -> 0 | S29: =COUNTA(Pitching!T132:T136) -> 0 | T29: =COUNTA(Pitching!U132:U136) -> 0 | U29: =COUNTA(Pitching!V132:V136) -> 0 | W29: =IF(ISERROR(7*G29/C29),"-",7*G29/C29) -> - | X29: =IF(ISERROR(L29/C29),0,L29/C29) -> 0 | Y29: =IF(ISERROR((M29+H29)/C29),"-",(M29+H29)/C29) -> - | Z29: =IF(ISERROR(H29/E29),"-",(H29/E29)) -> -
A30: =Pitching!A137 -> 0 | B30: =IF(Pitching!B137="","",Pitching!B137) ->  | C30: =SUM(Pitching!D137:D141) -> 0 | D30: =SUM(Pitching!E137:E141) -> 0 | E30: =SUM(Pitching!F137:F141) -> 0 | F30: =SUM(Pitching!G137:G141) -> 0 | G30: =SUM(Pitching!H137:H141) -> 0 | H30: =SUM(Pitching!I137:I141) -> 0 | I30: =SUM(Pitching!J137:J141) -> 0 | J30: =SUM(Pitching!K137:K141) -> 0 | K30: =SUM(Pitching!L137:L141) -> 0 | L30: =SUM(Pitching!M137:M141) -> 0 | M30: =SUM(Pitching!N137:N141) -> 0 | N30: =SUM(Pitching!O137:O141) -> 0 | O30: =SUM(Pitching!P137:P141) -> 0 | P30: =SUM(Pitching!Q137:Q141) -> 0 | Q30: =SUM(Pitching!R137:R141) -> 0 | R30: =SUM(Pitching!S137:S141) -> 0 | S30: =COUNTA(Pitching!T137:T141) -> 0 | T30: =COUNTA(Pitching!U137:U141) -> 0 | U30: =COUNTA(Pitching!V137:V141) -> 0 | W30: =IF(ISERROR(7*G30/C30),"-",7*G30/C30) -> - | X30: =IF(ISERROR(L30/C30),0,L30/C30) -> 0 | Y30: =IF(ISERROR((M30+H30)/C30),"-",(M30+H30)/C30) -> - | Z30: =IF(ISERROR(H30/E30),"-",(H30/E30)) -> -
A31: =Pitching!A142 -> 0 | B31: =IF(Pitching!B142="","",Pitching!B142) ->  | C31: =SUM(Pitching!D142:D146) -> 0 | D31: =SUM(Pitching!E142:E146) -> 0 | E31: =SUM(Pitching!F142:F146) -> 0 | F31: =SUM(Pitching!G142:G146) -> 0 | G31: =SUM(Pitching!H142:H146) -> 0 | H31: =SUM(Pitching!I142:I146) -> 0 | I31: =SUM(Pitching!J142:J146) -> 0 | J31: =SUM(Pitching!K142:K146) -> 0 | K31: =SUM(Pitching!L142:L146) -> 0 | L31: =SUM(Pitching!M142:M146) -> 0 | M31: =SUM(Pitching!N142:N146) -> 0 | N31: =SUM(Pitching!O142:O146) -> 0 | O31: =SUM(Pitching!P142:P146) -> 0 | P31: =SUM(Pitching!Q142:Q146) -> 0 | Q31: =SUM(Pitching!R142:R146) -> 0 | R31: =SUM(Pitching!S142:S146) -> 0 | S31: =COUNTA(Pitching!T142:T146) -> 0 | T31: =COUNTA(Pitching!U142:U146) -> 0 | U31: =COUNTA(Pitching!V142:V146) -> 0 | W31: =IF(ISERROR(7*G31/C31),"-",7*G31/C31) -> - | X31: =IF(ISERROR(L31/C31),0,L31/C31) -> 0 | Y31: =IF(ISERROR((M31+H31)/C31),"-",(M31+H31)/C31) -> - | Z31: =IF(ISERROR(H31/E31),"-",(H31/E31)) -> -
A32: =Pitching!A147 -> 0 | B32: =IF(Pitching!B147="","",Pitching!B147) ->  | C32: =SUM(Pitching!D147:D151) -> 0 | D32: =SUM(Pitching!E147:E151) -> 0 | E32: =SUM(Pitching!F147:F151) -> 0 | F32: =SUM(Pitching!G147:G151) -> 0 | G32: =SUM(Pitching!H147:H151) -> 0 | H32: =SUM(Pitching!I147:I151) -> 0 | I32: =SUM(Pitching!J147:J151) -> 0 | J32: =SUM(Pitching!K147:K151) -> 0 | K32: =SUM(Pitching!L147:L151) -> 0 | L32: =SUM(Pitching!M147:M151) -> 0 | M32: =SUM(Pitching!N147:N151) -> 0 | N32: =SUM(Pitching!O147:O151) -> 0 | O32: =SUM(Pitching!P147:P151) -> 0 | P32: =SUM(Pitching!Q147:Q151) -> 0 | Q32: =SUM(Pitching!R147:R151) -> 0 | R32: =SUM(Pitching!S147:S151) -> 0 | S32: =COUNTA(Pitching!T147:T151) -> 0 | T32: =COUNTA(Pitching!U147:U151) -> 0 | U32: =COUNTA(Pitching!V147:V151) -> 0 | W32: =IF(ISERROR(7*G32/C32),"-",7*G32/C32) -> - | X32: =IF(ISERROR(L32/C32),0,L32/C32) -> 0 | Y32: =IF(ISERROR((M32+H32)/C32),"-",(M32+H32)/C32) -> - | Z32: =IF(ISERROR(H32/E32),"-",(H32/E32)) -> -
A33: =Pitching!A152 -> 0 | B33: =IF(Pitching!B152="","",Pitching!B152) ->  | C33: =SUM(Pitching!D152:D156) -> 0 | D33: =SUM(Pitching!E152:E156) -> 0 | E33: =SUM(Pitching!F152:F156) -> 0 | F33: =SUM(Pitching!G152:G156) -> 0 | G33: =SUM(Pitching!H152:H156) -> 0 | H33: =SUM(Pitching!I152:I156) -> 0 | I33: =SUM(Pitching!J152:J156) -> 0 | J33: =SUM(Pitching!K152:K156) -> 0 | K33: =SUM(Pitching!L152:L156) -> 0 | L33: =SUM(Pitching!M152:M156) -> 0 | M33: =SUM(Pitching!N152:N156) -> 0 | N33: =SUM(Pitching!O152:O156) -> 0 | O33: =SUM(Pitching!P152:P156) -> 0 | P33: =SUM(Pitching!Q152:Q156) -> 0 | Q33: =SUM(Pitching!R152:R156) -> 0 | R33: =SUM(Pitching!S152:S156) -> 0 | S33: =COUNTA(Pitching!T152:T156) -> 0 | T33: =COUNTA(Pitching!U152:U156) -> 0 | U33: =COUNTA(Pitching!V152:V156) -> 0 | W33: =IF(ISERROR(7*G33/C33),"-",7*G33/C33) -> - | X33: =IF(ISERROR(L33/C33),0,L33/C33) -> 0 | Y33: =IF(ISERROR((M33+H33)/C33),"-",(M33+H33)/C33) -> - | Z33: =IF(ISERROR(H33/E33),"-",(H33/E33)) -> -
A34: =Pitching!A157 -> 0 | B34: =IF(Pitching!B157="","",Pitching!B157) ->  | C34: =SUM(Pitching!D157:D161) -> 0 | D34: =SUM(Pitching!E157:E161) -> 0 | E34: =SUM(Pitching!F157:F161) -> 0 | F34: =SUM(Pitching!G157:G161) -> 0 | G34: =SUM(Pitching!H157:H161) -> 0 | H34: =SUM(Pitching!I157:I161) -> 0 | I34: =SUM(Pitching!J157:J161) -> 0 | J34: =SUM(Pitching!K157:K161) -> 0 | K34: =SUM(Pitching!L157:L161) -> 0 | L34: =SUM(Pitching!M157:M161) -> 0 | M34: =SUM(Pitching!N157:N161) -> 0 | N34: =SUM(Pitching!O157:O161) -> 0 | O34: =SUM(Pitching!P157:P161) -> 0 | P34: =SUM(Pitching!Q157:Q161) -> 0 | Q34: =SUM(Pitching!R157:R161) -> 0 | R34: =SUM(Pitching!S157:S161) -> 0 | S34: =COUNTA(Pitching!T157:T161) -> 0 | T34: =COUNTA(Pitching!U157:U161) -> 0 | U34: =COUNTA(Pitching!V157:V161) -> 0 | W34: =IF(ISERROR(7*G34/C34),"-",7*G34/C34) -> - | X34: =IF(ISERROR(L34/C34),0,L34/C34) -> 0 | Y34: =IF(ISERROR((M34+H34)/C34),"-",(M34+H34)/C34) -> - | Z34: =IF(ISERROR(H34/E34),"-",(H34/E34)) -> -
A35: =Pitching!A162 -> 0 | B35: =IF(Pitching!B162="","",Pitching!B162) ->  | C35: =SUM(Pitching!D162:D166) -> 0 | D35: =SUM(Pitching!E162:E166) -> 0 | E35: =SUM(Pitching!F162:F166) -> 0 | F35: =SUM(Pitching!G162:G166) -> 0 | G35: =SUM(Pitching!H162:H166) -> 0 | H35: =SUM(Pitching!I162:I166) -> 0 | I35: =SUM(Pitching!J162:J166) -> 0 | J35: =SUM(Pitching!K162:K166) -> 0 | K35: =SUM(Pitching!L162:L166) -> 0 | L35: =SUM(Pitching!M162:M166) -> 0 | M35: =SUM(Pitching!N162:N166) -> 0 | N35: =SUM(Pitching!O162:O166) -> 0 | O35: =SUM(Pitching!P162:P166) -> 0 | P35: =SUM(Pitching!Q162:Q166) -> 0 | Q35: =SUM(Pitching!R162:R166) -> 0 | R35: =SUM(Pitching!S162:S166) -> 0 | S35: =COUNTA(Pitching!T162:T166) -> 0 | T35: =COUNTA(Pitching!U162:U166) -> 0 | U35: =COUNTA(Pitching!V162:V166) -> 0 | W35: =IF(ISERROR(7*G35/C35),"-",7*G35/C35) -> - | X35: =IF(ISERROR(L35/C35),0,L35/C35) -> 0 | Y35: =IF(ISERROR((M35+H35)/C35),"-",(M35+H35)/C35) -> - | Z35: =IF(ISERROR(H35/E35),"-",(H35/E35)) -> -
A36: =Pitching!A167 -> 0 | B36: =IF(Pitching!B167="","",Pitching!B167) ->  | C36: =SUM(Pitching!D167:D171) -> 0 | D36: =SUM(Pitching!E167:E171) -> 0 | E36: =SUM(Pitching!F167:F171) -> 0 | F36: =SUM(Pitching!G167:G171) -> 0 | G36: =SUM(Pitching!H167:H171) -> 0 | H36: =SUM(Pitching!I167:I171) -> 0 | I36: =SUM(Pitching!J167:J171) -> 0 | J36: =SUM(Pitching!K167:K171) -> 0 | K36: =SUM(Pitching!L167:L171) -> 0 | L36: =SUM(Pitching!M167:M171) -> 0 | M36: =SUM(Pitching!N167:N171) -> 0 | N36: =SUM(Pitching!O167:O171) -> 0 | O36: =SUM(Pitching!P167:P171) -> 0 | P36: =SUM(Pitching!Q167:Q171) -> 0 | Q36: =SUM(Pitching!R167:R171) -> 0 | R36: =SUM(Pitching!S167:S171) -> 0 | S36: =COUNTA(Pitching!T167:T171) -> 0 | T36: =COUNTA(Pitching!U167:U171) -> 0 | U36: =COUNTA(Pitching!V167:V171) -> 0 | W36: =IF(ISERROR(7*G36/C36),"-",7*G36/C36) -> - | X36: =IF(ISERROR(L36/C36),0,L36/C36) -> 0 | Y36: =IF(ISERROR((M36+H36)/C36),"-",(M36+H36)/C36) -> - | Z36: =IF(ISERROR(H36/E36),"-",(H36/E36)) -> -
A37: =Pitching!A172 -> 0 | B37: =IF(Pitching!B172="","",Pitching!B172) ->  | C37: =SUM(Pitching!D172:D176) -> 0 | D37: =SUM(Pitching!E172:E176) -> 0 | E37: =SUM(Pitching!F172:F176) -> 0 | F37: =SUM(Pitching!G172:G176) -> 0 | G37: =SUM(Pitching!H172:H176) -> 0 | H37: =SUM(Pitching!I172:I176) -> 0 | I37: =SUM(Pitching!J172:J176) -> 0 | J37: =SUM(Pitching!K172:K176) -> 0 | K37: =SUM(Pitching!L172:L176) -> 0 | L37: =SUM(Pitching!M172:M176) -> 0 | M37: =SUM(Pitching!N172:N176) -> 0 | N37: =SUM(Pitching!O172:O176) -> 0 | O37: =SUM(Pitching!P172:P176) -> 0 | P37: =SUM(Pitching!Q172:Q176) -> 0 | Q37: =SUM(Pitching!R172:R176) -> 0 | R37: =SUM(Pitching!S172:S176) -> 0 | S37: =COUNTA(Pitching!T172:T176) -> 0 | T37: =COUNTA(Pitching!U172:U176) -> 0 | U37: =COUNTA(Pitching!V172:V176) -> 0 | W37: =IF(ISERROR(7*G37/C37),"-",7*G37/C37) -> - | X37: =IF(ISERROR(L37/C37),0,L37/C37) -> 0 | Y37: =IF(ISERROR((M37+H37)/C37),"-",(M37+H37)/C37) -> - | Z37: =IF(ISERROR(H37/E37),"-",(H37/E37)) -> -
A38: =Pitching!A177 -> 0 | B38: =IF(Pitching!B177="","",Pitching!B177) ->  | C38: =SUM(Pitching!D177:D181) -> 0 | D38: =SUM(Pitching!E177:E181) -> 0 | E38: =SUM(Pitching!F177:F181) -> 0 | F38: =SUM(Pitching!G177:G181) -> 0 | G38: =SUM(Pitching!H177:H181) -> 0 | H38: =SUM(Pitching!I177:I181) -> 0 | I38: =SUM(Pitching!J177:J181) -> 0 | J38: =SUM(Pitching!K177:K181) -> 0 | K38: =SUM(Pitching!L177:L181) -> 0 | L38: =SUM(Pitching!M177:M181) -> 0 | M38: =SUM(Pitching!N177:N181) -> 0 | N38: =SUM(Pitching!O177:O181) -> 0 | O38: =SUM(Pitching!P177:P181) -> 0 | P38: =SUM(Pitching!Q177:Q181) -> 0 | Q38: =SUM(Pitching!R177:R181) -> 0 | R38: =SUM(Pitching!S177:S181) -> 0 | S38: =COUNTA(Pitching!T177:T181) -> 0 | T38: =COUNTA(Pitching!U177:U181) -> 0 | U38: =COUNTA(Pitching!V177:V181) -> 0 | W38: =IF(ISERROR(7*G38/C38),"-",7*G38/C38) -> - | X38: =IF(ISERROR(L38/C38),0,L38/C38) -> 0 | Y38: =IF(ISERROR((M38+H38)/C38),"-",(M38+H38)/C38) -> - | Z38: =IF(ISERROR(H38/E38),"-",(H38/E38)) -> -
A39: =Pitching!A182 -> 0 | B39: =IF(Pitching!B182="","",Pitching!B182) ->  | C39: =SUM(Pitching!D182:D186) -> 0 | D39: =SUM(Pitching!E182:E186) -> 0 | E39: =SUM(Pitching!F182:F186) -> 0 | F39: =SUM(Pitching!G182:G186) -> 0 | G39: =SUM(Pitching!H182:H186) -> 0 | H39: =SUM(Pitching!I182:I186) -> 0 | I39: =SUM(Pitching!J182:J186) -> 0 | J39: =SUM(Pitching!K182:K186) -> 0 | K39: =SUM(Pitching!L182:L186) -> 0 | L39: =SUM(Pitching!M182:M186) -> 0 | M39: =SUM(Pitching!N182:N186) -> 0 | N39: =SUM(Pitching!O182:O186) -> 0 | O39: =SUM(Pitching!P182:P186) -> 0 | P39: =SUM(Pitching!Q182:Q186) -> 0 | Q39: =SUM(Pitching!R182:R186) -> 0 | R39: =SUM(Pitching!S182:S186) -> 0 | S39: =COUNTA(Pitching!T182:T186) -> 0 | T39: =COUNTA(Pitching!U182:U186) -> 0 | U39: =COUNTA(Pitching!V182:V186) -> 0 | W39: =IF(ISERROR(7*G39/C39),"-",7*G39/C39) -> - | X39: =IF(ISERROR(L39/C39),0,L39/C39) -> 0 | Y39: =IF(ISERROR((M39+H39)/C39),"-",(M39+H39)/C39) -> - | Z39: =IF(ISERROR(H39/E39),"-",(H39/E39)) -> -
A40: =Pitching!A187 -> 0 | B40: =IF(Pitching!B187="","",Pitching!B187) ->  | C40: =SUM(Pitching!D187:D191) -> 0 | D40: =SUM(Pitching!E187:E191) -> 0 | E40: =SUM(Pitching!F187:F191) -> 0 | F40: =SUM(Pitching!G187:G191) -> 0 | G40: =SUM(Pitching!H187:H191) -> 0 | H40: =SUM(Pitching!I187:I191) -> 0 | I40: =SUM(Pitching!J187:J191) -> 0 | J40: =SUM(Pitching!K187:K191) -> 0 | K40: =SUM(Pitching!L187:L191) -> 0 | L40: =SUM(Pitching!M187:M191) -> 0 | M40: =SUM(Pitching!N187:N191) -> 0 | N40: =SUM(Pitching!O187:O191) -> 0 | O40: =SUM(Pitching!P187:P191) -> 0 | P40: =SUM(Pitching!Q187:Q191) -> 0 | Q40: =SUM(Pitching!R187:R191) -> 0 | R40: =SUM(Pitching!S187:S191) -> 0 | S40: =COUNTA(Pitching!T187:T191) -> 0 | T40: =COUNTA(Pitching!U187:U191) -> 0 | U40: =COUNTA(Pitching!V187:V191) -> 0 | W40: =IF(ISERROR(7*G40/C40),"-",7*G40/C40) -> - | X40: =IF(ISERROR(L40/C40),0,L40/C40) -> 0 | Y40: =IF(ISERROR((M40+H40)/C40),"-",(M40+H40)/C40) -> - | Z40: =IF(ISERROR(H40/E40),"-",(H40/E40)) -> -
A41: =Pitching!A192 -> 0 | B41: =IF(Pitching!B192="","",Pitching!B192) ->  | C41: =SUM(Pitching!D192:D196) -> 0 | D41: =SUM(Pitching!E192:E196) -> 0 | E41: =SUM(Pitching!F192:F196) -> 0 | F41: =SUM(Pitching!G192:G196) -> 0 | G41: =SUM(Pitching!H192:H196) -> 0 | H41: =SUM(Pitching!I192:I196) -> 0 | I41: =SUM(Pitching!J192:J196) -> 0 | J41: =SUM(Pitching!K192:K196) -> 0 | K41: =SUM(Pitching!L192:L196) -> 0 | L41: =SUM(Pitching!M192:M196) -> 0 | M41: =SUM(Pitching!N192:N196) -> 0 | N41: =SUM(Pitching!O192:O196) -> 0 | O41: =SUM(Pitching!P192:P196) -> 0 | P41: =SUM(Pitching!Q192:Q196) -> 0 | Q41: =SUM(Pitching!R192:R196) -> 0 | R41: =SUM(Pitching!S192:S196) -> 0 | S41: =COUNTA(Pitching!T192:T196) -> 0 | T41: =COUNTA(Pitching!U192:U196) -> 0 | U41: =COUNTA(Pitching!V192:V196) -> 0 | W41: =IF(ISERROR(7*G41/C41),"-",7*G41/C41) -> - | X41: =IF(ISERROR(L41/C41),0,L41/C41) -> 0 | Y41: =IF(ISERROR((M41+H41)/C41),"-",(M41+H41)/C41) -> - | Z41: =IF(ISERROR(H41/E41),"-",(H41/E41)) -> -
A42: =Pitching!A197 -> 0 | B42: =IF(Pitching!B197="","",Pitching!B197) ->  | C42: =SUM(Pitching!D197:D201) -> 0 | D42: =SUM(Pitching!E197:E201) -> 0 | E42: =SUM(Pitching!F197:F201) -> 0 | F42: =SUM(Pitching!G197:G201) -> 0 | G42: =SUM(Pitching!H197:H201) -> 0 | H42: =SUM(Pitching!I197:I201) -> 0 | I42: =SUM(Pitching!J197:J201) -> 0 | J42: =SUM(Pitching!K197:K201) -> 0 | K42: =SUM(Pitching!L197:L201) -> 0 | L42: =SUM(Pitching!M197:M201) -> 0 | M42: =SUM(Pitching!N197:N201) -> 0 | N42: =SUM(Pitching!O197:O201) -> 0 | O42: =SUM(Pitching!P197:P201) -> 0 | P42: =SUM(Pitching!Q197:Q201) -> 0 | Q42: =SUM(Pitching!R197:R201) -> 0 | R42: =SUM(Pitching!S197:S201) -> 0 | S42: =COUNTA(Pitching!T197:T201) -> 0 | T42: =COUNTA(Pitching!U197:U201) -> 0 | U42: =COUNTA(Pitching!V197:V201) -> 0 | W42: =IF(ISERROR(7*G42/C42),"-",7*G42/C42) -> - | X42: =IF(ISERROR(L42/C42),0,L42/C42) -> 0 | Y42: =IF(ISERROR((M42+H42)/C42),"-",(M42+H42)/C42) -> - | Z42: =IF(ISERROR(H42/E42),"-",(H42/E42)) -> -
A43: =Pitching!A202 -> 0 | B43: =IF(Pitching!B202="","",Pitching!B202) ->  | C43: =SUM(Pitching!D202:D206) -> 0 | D43: =SUM(Pitching!E202:E206) -> 0 | E43: =SUM(Pitching!F202:F206) -> 0 | F43: =SUM(Pitching!G202:G206) -> 0 | G43: =SUM(Pitching!H202:H206) -> 0 | H43: =SUM(Pitching!I202:I206) -> 0 | I43: =SUM(Pitching!J202:J206) -> 0 | J43: =SUM(Pitching!K202:K206) -> 0 | K43: =SUM(Pitching!L202:L206) -> 0 | L43: =SUM(Pitching!M202:M206) -> 0 | M43: =SUM(Pitching!N202:N206) -> 0 | N43: =SUM(Pitching!O202:O206) -> 0 | O43: =SUM(Pitching!P202:P206) -> 0 | P43: =SUM(Pitching!Q202:Q206) -> 0 | Q43: =SUM(Pitching!R202:R206) -> 0 | R43: =SUM(Pitching!S202:S206) -> 0 | S43: =COUNTA(Pitching!T202:T206) -> 0 | T43: =COUNTA(Pitching!U202:U206) -> 0 | U43: =COUNTA(Pitching!V202:V206) -> 0 | W43: =IF(ISERROR(7*G43/C43),"-",7*G43/C43) -> - | X43: =IF(ISERROR(L43/C43),0,L43/C43) -> 0 | Y43: =IF(ISERROR((M43+H43)/C43),"-",(M43+H43)/C43) -> - | Z43: =IF(ISERROR(H43/E43),"-",(H43/E43)) -> -
A44: =Pitching!A207 -> 0 | B44: =IF(Pitching!B207="","",Pitching!B207) ->  | C44: =SUM(Pitching!D207:D211) -> 0 | D44: =SUM(Pitching!E207:E211) -> 0 | E44: =SUM(Pitching!F207:F211) -> 0 | F44: =SUM(Pitching!G207:G211) -> 0 | G44: =SUM(Pitching!H207:H211) -> 0 | H44: =SUM(Pitching!I207:I211) -> 0 | I44: =SUM(Pitching!J207:J211) -> 0 | J44: =SUM(Pitching!K207:K211) -> 0 | K44: =SUM(Pitching!L207:L211) -> 0 | L44: =SUM(Pitching!M207:M211) -> 0 | M44: =SUM(Pitching!N207:N211) -> 0 | N44: =SUM(Pitching!O207:O211) -> 0 | O44: =SUM(Pitching!P207:P211) -> 0 | P44: =SUM(Pitching!Q207:Q211) -> 0 | Q44: =SUM(Pitching!R207:R211) -> 0 | R44: =SUM(Pitching!S207:S211) -> 0 | S44: =COUNTA(Pitching!T207:T211) -> 0 | T44: =COUNTA(Pitching!U207:U211) -> 0 | U44: =COUNTA(Pitching!V207:V211) -> 0 | W44: =IF(ISERROR(7*G44/C44),"-",7*G44/C44) -> - | X44: =IF(ISERROR(L44/C44),0,L44/C44) -> 0 | Y44: =IF(ISERROR((M44+H44)/C44),"-",(M44+H44)/C44) -> - | Z44: =IF(ISERROR(H44/E44),"-",(H44/E44)) -> -
A45: =Pitching!A212 -> 0 | B45: =IF(Pitching!B212="","",Pitching!B212) ->  | C45: =SUM(Pitching!D212:D216) -> 0 | D45: =SUM(Pitching!E212:E216) -> 0 | E45: =SUM(Pitching!F212:F216) -> 0 | F45: =SUM(Pitching!G212:G216) -> 0 | G45: =SUM(Pitching!H212:H216) -> 0 | H45: =SUM(Pitching!I212:I216) -> 0 | I45: =SUM(Pitching!J212:J216) -> 0 | J45: =SUM(Pitching!K212:K216) -> 0 | K45: =SUM(Pitching!L212:L216) -> 0 | L45: =SUM(Pitching!M212:M216) -> 0 | M45: =SUM(Pitching!N212:N216) -> 0 | N45: =SUM(Pitching!O212:O216) -> 0 | O45: =SUM(Pitching!P212:P216) -> 0 | P45: =SUM(Pitching!Q212:Q216) -> 0 | Q45: =SUM(Pitching!R212:R216) -> 0 | R45: =SUM(Pitching!S212:S216) -> 0 | S45: =COUNTA(Pitching!T212:T216) -> 0 | T45: =COUNTA(Pitching!U212:U216) -> 0 | U45: =COUNTA(Pitching!V212:V216) -> 0 | W45: =IF(ISERROR(7*G45/C45),"-",7*G45/C45) -> - | X45: =IF(ISERROR(L45/C45),0,L45/C45) -> 0 | Y45: =IF(ISERROR((M45+H45)/C45),"-",(M45+H45)/C45) -> - | Z45: =IF(ISERROR(H45/E45),"-",(H45/E45)) -> -
A46: =Pitching!A217 -> 0 | B46: =IF(Pitching!B217="","",Pitching!B217) ->  | C46: =SUM(Pitching!D217:D221) -> 0 | D46: =SUM(Pitching!E217:E221) -> 0 | E46: =SUM(Pitching!F217:F221) -> 0 | F46: =SUM(Pitching!G217:G221) -> 0 | G46: =SUM(Pitching!H217:H221) -> 0 | H46: =SUM(Pitching!I217:I221) -> 0 | I46: =SUM(Pitching!J217:J221) -> 0 | J46: =SUM(Pitching!K217:K221) -> 0 | K46: =SUM(Pitching!L217:L221) -> 0 | L46: =SUM(Pitching!M217:M221) -> 0 | M46: =SUM(Pitching!N217:N221) -> 0 | N46: =SUM(Pitching!O217:O221) -> 0 | O46: =SUM(Pitching!P217:P221) -> 0 | P46: =SUM(Pitching!Q217:Q221) -> 0 | Q46: =SUM(Pitching!R217:R221) -> 0 | R46: =SUM(Pitching!S217:S221) -> 0 | S46: =COUNTA(Pitching!T217:T221) -> 0 | T46: =COUNTA(Pitching!U217:U221) -> 0 | U46: =COUNTA(Pitching!V217:V221) -> 0 | W46: =IF(ISERROR(7*G46/C46),"-",7*G46/C46) -> - | X46: =IF(ISERROR(L46/C46),0,L46/C46) -> 0 | Y46: =IF(ISERROR((M46+H46)/C46),"-",(M46+H46)/C46) -> - | Z46: =IF(ISERROR(H46/E46),"-",(H46/E46)) -> -
A47: =Pitching!A222 -> 0 | B47: =IF(Pitching!B222="","",Pitching!B222) ->  | C47: =SUM(Pitching!D222:D226) -> 0 | D47: =SUM(Pitching!E222:E226) -> 0 | E47: =SUM(Pitching!F222:F226) -> 0 | F47: =SUM(Pitching!G222:G226) -> 0 | G47: =SUM(Pitching!H222:H226) -> 0 | H47: =SUM(Pitching!I222:I226) -> 0 | I47: =SUM(Pitching!J222:J226) -> 0 | J47: =SUM(Pitching!K222:K226) -> 0 | K47: =SUM(Pitching!L222:L226) -> 0 | L47: =SUM(Pitching!M222:M226) -> 0 | M47: =SUM(Pitching!N222:N226) -> 0 | N47: =SUM(Pitching!O222:O226) -> 0 | O47: =SUM(Pitching!P222:P226) -> 0 | P47: =SUM(Pitching!Q222:Q226) -> 0 | Q47: =SUM(Pitching!R222:R226) -> 0 | R47: =SUM(Pitching!S222:S226) -> 0 | S47: =COUNTA(Pitching!T222:T226) -> 0 | T47: =COUNTA(Pitching!U222:U226) -> 0 | U47: =COUNTA(Pitching!V222:V226) -> 0 | W47: =IF(ISERROR(7*G47/C47),"-",7*G47/C47) -> - | X47: =IF(ISERROR(L47/C47),0,L47/C47) -> 0 | Y47: =IF(ISERROR((M47+H47)/C47),"-",(M47+H47)/C47) -> - | Z47: =IF(ISERROR(H47/E47),"-",(H47/E47)) -> -
A48: =Pitching!A227 -> 0 | B48: =IF(Pitching!B227="","",Pitching!B227) ->  | C48: =SUM(Pitching!D227:D231) -> 0 | D48: =SUM(Pitching!E227:E231) -> 0 | E48: =SUM(Pitching!F227:F231) -> 0 | F48: =SUM(Pitching!G227:G231) -> 0 | G48: =SUM(Pitching!H227:H231) -> 0 | H48: =SUM(Pitching!I227:I231) -> 0 | I48: =SUM(Pitching!J227:J231) -> 0 | J48: =SUM(Pitching!K227:K231) -> 0 | K48: =SUM(Pitching!L227:L231) -> 0 | L48: =SUM(Pitching!M227:M231) -> 0 | M48: =SUM(Pitching!N227:N231) -> 0 | N48: =SUM(Pitching!O227:O231) -> 0 | O48: =SUM(Pitching!P227:P231) -> 0 | P48: =SUM(Pitching!Q227:Q231) -> 0 | Q48: =SUM(Pitching!R227:R231) -> 0 | R48: =SUM(Pitching!S227:S231) -> 0 | S48: =COUNTA(Pitching!T227:T231) -> 0 | T48: =COUNTA(Pitching!U227:U231) -> 0 | U48: =COUNTA(Pitching!V227:V231) -> 0 | W48: =IF(ISERROR(7*G48/C48),"-",7*G48/C48) -> - | X48: =IF(ISERROR(L48/C48),0,L48/C48) -> 0 | Y48: =IF(ISERROR((M48+H48)/C48),"-",(M48+H48)/C48) -> - | Z48: =IF(ISERROR(H48/E48),"-",(H48/E48)) -> -
A49: =Pitching!A232 -> 0 | B49: =IF(Pitching!B232="","",Pitching!B232) ->  | C49: =SUM(Pitching!D232:D236) -> 0 | D49: =SUM(Pitching!E232:E236) -> 0 | E49: =SUM(Pitching!F232:F236) -> 0 | F49: =SUM(Pitching!G232:G236) -> 0 | G49: =SUM(Pitching!H232:H236) -> 0 | H49: =SUM(Pitching!I232:I236) -> 0 | I49: =SUM(Pitching!J232:J236) -> 0 | J49: =SUM(Pitching!K232:K236) -> 0 | K49: =SUM(Pitching!L232:L236) -> 0 | L49: =SUM(Pitching!M232:M236) -> 0 | M49: =SUM(Pitching!N232:N236) -> 0 | N49: =SUM(Pitching!O232:O236) -> 0 | O49: =SUM(Pitching!P232:P236) -> 0 | P49: =SUM(Pitching!Q232:Q236) -> 0 | Q49: =SUM(Pitching!R232:R236) -> 0 | R49: =SUM(Pitching!S232:S236) -> 0 | S49: =COUNTA(Pitching!T232:T236) -> 0 | T49: =COUNTA(Pitching!U232:U236) -> 0 | U49: =COUNTA(Pitching!V232:V236) -> 0 | W49: =IF(ISERROR(7*G49/C49),"-",7*G49/C49) -> - | X49: =IF(ISERROR(L49/C49),0,L49/C49) -> 0 | Y49: =IF(ISERROR((M49+H49)/C49),"-",(M49+H49)/C49) -> - | Z49: =IF(ISERROR(H49/E49),"-",(H49/E49)) -> -
A50: =Pitching!A237 -> 0 | B50: =IF(Pitching!B237="","",Pitching!B237) ->  | C50: =SUM(Pitching!D237:D241) -> 0 | D50: =SUM(Pitching!E237:E241) -> 0 | E50: =SUM(Pitching!F237:F241) -> 0 | F50: =SUM(Pitching!G237:G241) -> 0 | G50: =SUM(Pitching!H237:H241) -> 0 | H50: =SUM(Pitching!I237:I241) -> 0 | I50: =SUM(Pitching!J237:J241) -> 0 | J50: =SUM(Pitching!K237:K241) -> 0 | K50: =SUM(Pitching!L237:L241) -> 0 | L50: =SUM(Pitching!M237:M241) -> 0 | M50: =SUM(Pitching!N237:N241) -> 0 | N50: =SUM(Pitching!O237:O241) -> 0 | O50: =SUM(Pitching!P237:P241) -> 0 | P50: =SUM(Pitching!Q237:Q241) -> 0 | Q50: =SUM(Pitching!R237:R241) -> 0 | R50: =SUM(Pitching!S237:S241) -> 0 | S50: =COUNTA(Pitching!T237:T241) -> 0 | T50: =COUNTA(Pitching!U237:U241) -> 0 | U50: =COUNTA(Pitching!V237:V241) -> 0 | W50: =IF(ISERROR(7*G50/C50),"-",7*G50/C50) -> - | X50: =IF(ISERROR(L50/C50),0,L50/C50) -> 0 | Y50: =IF(ISERROR((M50+H50)/C50),"-",(M50+H50)/C50) -> - | Z50: =IF(ISERROR(H50/E50),"-",(H50/E50)) -> -
A51: =Pitching!A242 -> 0 | B51: =IF(Pitching!B242="","",Pitching!B242) ->  | C51: =SUM(Pitching!D242:D246) -> 0 | D51: =SUM(Pitching!E242:E246) -> 0 | E51: =SUM(Pitching!F242:F246) -> 0 | F51: =SUM(Pitching!G242:G246) -> 0 | G51: =SUM(Pitching!H242:H246) -> 0 | H51: =SUM(Pitching!I242:I246) -> 0 | I51: =SUM(Pitching!J242:J246) -> 0 | J51: =SUM(Pitching!K242:K246) -> 0 | K51: =SUM(Pitching!L242:L246) -> 0 | L51: =SUM(Pitching!M242:M246) -> 0 | M51: =SUM(Pitching!N242:N246) -> 0 | N51: =SUM(Pitching!O242:O246) -> 0 | O51: =SUM(Pitching!P242:P246) -> 0 | P51: =SUM(Pitching!Q242:Q246) -> 0 | Q51: =SUM(Pitching!R242:R246) -> 0 | R51: =SUM(Pitching!S242:S246) -> 0 | S51: =COUNTA(Pitching!T242:T246) -> 0 | T51: =COUNTA(Pitching!U242:U246) -> 0 | U51: =COUNTA(Pitching!V242:V246) -> 0 | W51: =IF(ISERROR(7*G51/C51),"-",7*G51/C51) -> - | X51: =IF(ISERROR(L51/C51),0,L51/C51) -> 0 | Y51: =IF(ISERROR((M51+H51)/C51),"-",(M51+H51)/C51) -> - | Z51: =IF(ISERROR(H51/E51),"-",(H51/E51)) -> -
A52: =Pitching!A247 -> 0 | B52: =IF(Pitching!B247="","",Pitching!B247) ->  | C52: =SUM(Pitching!D247:D251) -> 0 | D52: =SUM(Pitching!E247:E251) -> 0 | E52: =SUM(Pitching!F247:F251) -> 0 | F52: =SUM(Pitching!G247:G251) -> 0 | G52: =SUM(Pitching!H247:H251) -> 0 | H52: =SUM(Pitching!I247:I251) -> 0 | I52: =SUM(Pitching!J247:J251) -> 0 | J52: =SUM(Pitching!K247:K251) -> 0 | K52: =SUM(Pitching!L247:L251) -> 0 | L52: =SUM(Pitching!M247:M251) -> 0 | M52: =SUM(Pitching!N247:N251) -> 0 | N52: =SUM(Pitching!O247:O251) -> 0 | O52: =SUM(Pitching!P247:P251) -> 0 | P52: =SUM(Pitching!Q247:Q251) -> 0 | Q52: =SUM(Pitching!R247:R251) -> 0 | R52: =SUM(Pitching!S247:S251) -> 0 | S52: =COUNTA(Pitching!T247:T251) -> 0 | T52: =COUNTA(Pitching!U247:U251) -> 0 | U52: =COUNTA(Pitching!V247:V251) -> 0 | W52: =IF(ISERROR(7*G52/C52),"-",7*G52/C52) -> - | X52: =IF(ISERROR(L52/C52),0,L52/C52) -> 0 | Y52: =IF(ISERROR((M52+H52)/C52),"-",(M52+H52)/C52) -> - | Z52: =IF(ISERROR(H52/E52),"-",(H52/E52)) -> -
